Workbook

Sheet Раздача
O1: Утверждаю:
N2: Директор___________
N3: ______________________202
A5: Организация "Рога и копыта"
A6: ИНН/КПП 00000 /00000
A7: Адрес _____________________________________
I8: Акт № ___ от _____.________.202___ года
C9: О выдаче (списании) товаров на нужды в соответствии с решением комиссии от _____________г
E10: Протокол №_____ от ________________202_г
E11: Ответственные лица за выдачу (приобретение) товаров на нужды:
C12: ____________:______________________________________________________________________________
A13: Фио | B13: Всего, руб. | C13: =Прайс!B5 -> бумага | F13: =Прайс!B6 -> мыло | I13: =Прайс!B7 -> салфетки | L13: =Прайс!B8 -> ручки | O13: =Прайс!B9 -> 0 | R13: =Прайс!B10 -> 0 | U13: =Прайс!B11 -> 0 | X13: =Прайс!B12 -> 0 | AA13: =Прайс!B13 -> 0 | AD13: =Прайс!B14 -> 0 | AG13: =Прайс!B15 -> 0 | AJ13: =Прайс!B16 -> 0 | AM13: =Прайс!B17 -> 0 | AP13: =Прайс!B18 -> 0 | AS13: =Прайс!B19 -> 0 | AV13: =Прайс!B20 -> 0 | AY13: =Прайс!B21 -> 0 | BB13: =Прайс!B22 -> 0 | BE13: =Прайс!B23 -> 0 | BH13: =Прайс!B24 -> 0 | BK13: =Прайс!B25 -> 0 | BN13: =Прайс!B26 -> 0 | BQ13: =Прайс!B27 -> 0 | BT13: =Прайс!B28 -> 0 | BW13: =Прайс!B29 -> 0 | BZ13: =Прайс!B30 -> 0 | CC13: =Прайс!B31 -> 0 | CF13: =Прайс!B32 -> 0 | CI13: =Прайс!B33 -> 0 | CL13: =Прайс!B34 -> 0 | CO13: =Прайс!B35 -> 0 | CR13: =Прайс!B36 -> 0 | CU13: =Прайс!B37 -> 0 | CX13: =Прайс!B38 -> 0 | DA13: =Прайс!B39 -> 0 | DD13: =Прайс!B40 -> 0 | DG13: =Прайс!B41 -> 0 | DJ13: =Прайс!B42 -> 0 | DM13: =Прайс!B43 -> 0 | DP13: =Прайс!B44 -> 0 | DS13: =Прайс!B45 -> 0 | DV13: =Прайс!B46 -> 0 | DY13: =Прайс!B47 -> 0 | EB13: =Прайс!B48 -> 0 | EE13: =Прайс!B49 -> 0 | EH13: =Прайс!B50 -> 0 | EK13: =Прайс!B51 -> 0 | EN13: =Прайс!B52 -> 0 | EQ13: =Прайс!B53 -> 0 | ET13: =Прайс!B54 -> 0 | EW13: =Прайс!B55 -> 0 | EZ13: =Прайс!B56 -> 0 | FC13: =Прайс!B57 -> 0 | FF13: =Прайс!B58 -> 0 | FI13: =Прайс!B59 -> 0 | FL13: =Прайс!B60 -> 0 | FO13: =Прайс!B61 -> 0 | FR13: =Прайс!B62 -> 0 | FU13: =Прайс!B63 -> 0 | FX13: =Прайс!B64 -> 0 | GA13: =Прайс!B65 -> 0 | GD13: =Прайс!B66 -> 0 | GG13: =Прайс!B67 -> 0 | GJ13: =Прайс!B68 -> 0 | GM13: =Прайс!B69 -> 0 | GP13: =Прайс!B70 -> 0 | GS13: =Прайс!B71 -> 0 | GV13: =Прайс!B72 -> 0 | GY13: =Прайс!B73 -> 0 | HB13: =Прайс!B74 -> 0 | HE13: =Прайс!B75 -> 0 | HH13: =Прайс!B76 -> 0 | HK13: =Прайс!B77 -> 0 | HN13: =Прайс!B78 -> 0 | HQ13: =Прайс!B79 -> 0 | HT13: =Прайс!B80 -> 0 | HW13: =Прайс!B81 -> 0 | HZ13: =Прайс!B82 -> 0 | IC13: =Прайс!B83 -> 0 | IF13: =Прайс!IB84 -> 0
C14: кол | D14: цена | E14: сумма | F14: кол | G14: цена | H14: сумма | I14: кол | J14: цена | K14: сумма | L14: кол | M14: цена | N14: сумма | O14: кол | P14: цена | Q14: сумма | R14: кол | S14: цена | T14: сумма | U14: кол | V14: цена | W14: сумма | X14: кол | Y14: цена | Z14: сумма | AA14: кол | AB14: цена | AC14: сумма | AD14: кол | AE14: цена | AF14: сумма | AG14: кол | AH14: цена | AI14: сумма | AJ14: кол | AK14: цена | AL14: сумма | AM14: кол | AN14: цена | AO14: сумма | AP14: кол | AQ14: цена | AR14: сумма | AS14: кол | AT14: цена | AU14: сумма | AV14: кол | AW14: цена | AX14: сумма | AY14: кол | AZ14: цена | BA14: сумма | BB14: кол | BC14: цена | BD14: сумма | BE14: кол | BF14: цена | BG14: сумма | BH14: кол | BI14: цена | BJ14: сумма | BK14: кол | BL14: цена | BM14: сумма | BN14: кол | BO14: цена | BP14: сумма | BQ14: кол | BR14: цена | BS14: сумма | BT14: кол | BU14: цена | BV14: сумма | BW14: кол | BX14: цена | BY14: сумма | BZ14: кол | CA14: цена | CB14: сумма | CC14: кол | CD14: цена | CE14: сумма | CF14: кол | CG14: цена | CH14: сумма | CI14: кол | CJ14: цена | CK14: сумма | CL14: кол | CM14: цена | CN14: сумма | CO14: кол | CP14: цена | CQ14: сумма | CR14: кол | CS14: цена | CT14: сумма | CU14: кол | CV14: цена | CW14: сумма | CX14: кол | CY14: цена | CZ14: сумма | DA14: кол | DB14: цена | DC14: сумма | DD14: кол | DE14: цена | DF14: сумма | DG14: кол | DH14: цена | DI14: сумма | DJ14: кол | DK14: цена | DL14: сумма | DM14: кол | DN14: цена | DO14: сумма | DP14: кол | DQ14: цена | DR14: сумма | DS14: кол | DT14: цена | DU14: сумма | DV14: кол | DW14: цена | DX14: сумма | DY14: кол | DZ14: цена | EA14: сумма | EB14: кол | EC14: цена | ED14: сумма | EE14: кол | EF14: цена | EG14: сумма | EH14: кол | EI14: цена | EJ14: сумма | EK14: кол | EL14: цена | EM14: сумма | EN14: кол | EO14: цена | EP14: сумма | EQ14: кол | ER14: цена | ES14: сумма | ET14: кол | EU14: цена | EV14: сумма | EW14: кол | EX14: цена | EY14: сумма | EZ14: кол | FA14: цена | FB14: сумма | FC14: кол | FD14: цена | FE14: сумма | FF14: кол | FG14: цена | FH14: сумма | FI14: кол | FJ14: цена | FK14: сумма | FL14: кол | FM14: цена | FN14: сумма | FO14: кол | FP14: цена | FQ14: сумма | FR14: кол | FS14: цена | FT14: сумма | FU14: кол | FV14: цена | FW14: сумма | FX14: кол | FY14: цена | FZ14: сумма | GA14: кол | GB14: цена | GC14: сумма | GD14: кол | GE14: цена | GF14: сумма | GG14: кол | GH14: цена | GI14: сумма | GJ14: кол | GK14: цена | GL14: сумма | GM14: кол | GN14: цена | GO14: сумма | GP14: кол | GQ14: цена | GR14: сумма | GS14: кол | GT14: цена | GU14: сумма | GV14: кол | GW14: цена | GX14: сумма | GY14: кол | GZ14: цена | HA14: сумма | HB14: кол | HC14: цена | HD14: сумма | HE14: кол | HF14: цена | HG14: сумма | HH14: кол | HI14: цена | HJ14: сумма | HK14: кол | HL14: цена | HM14: сумма | HN14: кол | HO14: цена | HP14: сумма | HQ14: кол | HR14: цена | HS14: сумма | HT14: кол | HU14: цена | HV14: сумма | HW14: кол | HX14: цена | HY14: сумма | HZ14: кол | IA14: цена | IB14: сумма | IC14: кол | ID14: цена | IE14: сумма | IF14: кол | IG14: цена | IH14: сумма
C15: =Прайс!C5 -> 100 | D15: =Прайс!D5 -> 30 | E15: =C15*D15 -> 3000 | F15: =Прайс!C6 -> 100 | G15: =Прайс!D6 -> 25 | H15: =F15*G15 -> 2500 | I15: =Прайс!C7 -> 100 | J15: =Прайс!D7 -> 75 | K15: =I15*J15 -> 7500 | L15: =Прайс!C8 -> 100 | M15: =Прайс!D8 -> 35 | N15: =L15*M15 -> 3500 | O15: =Прайс!C9 -> 0 | P15: =Прайс!D9 -> 0 | Q15: =O15*P15 -> 0 | R15: =Прайс!C10 -> 0 | S15: =Прайс!D10 -> 0 | T15: =R15*S15 -> 0 | U15: =Прайс!C11 -> 0 | V15: =Прайс!D11 -> 0 | W15: =U15*V15 -> 0 | X15: =Прайс!C12 -> 0 | Y15: =Прайс!D12 -> 0 | Z15: =X15*Y15 -> 0 | AA15: =Прайс!C13 -> 0 | AB15: =Прайс!D13 -> 0 | AC15: =AA15*AB15 -> 0 | AD15: =Прайс!C14 -> 0 | AE15: =Прайс!D14 -> 0 | AF15: =AD15*AE15 -> 0 | AG15: =Прайс!C15 -> 0 | AH15: =Прайс!D15 -> 0 | AI15: =AG15*AH15 -> 0 | AJ15: =Прайс!C16 -> 0 | AK15: =Прайс!D16 -> 0 | AL15: =AJ15*AK15 -> 0 | AM15: =Прайс!C17 -> 0 | AN15: =Прайс!D17 -> 0 | AO15: =AM15*AN15 -> 0 | AP15: =Прайс!C18 -> 0 | AQ15: =Прайс!D18 -> 0 | AR15: =AP15*AQ15 -> 0 | AS15: =Прайс!C19 -> 0 | AT15: =Прайс!D19 -> 0 | AU15: =AS15*AT15 -> 0 | AV15: =Прайс!C20 -> 0 | AW15: =Прайс!D20 -> 0 | AX15: =AV15*AW15 -> 0 | AY15: =Прайс!C21 -> 0 | AZ15: =Прайс!D21 -> 0 | BA15: =AY15*AZ15 -> 0 | BB15: =Прайс!C22 -> 0 | BC15: =Прайс!D22 -> 0 | BD15: =BB15*BC15 -> 0 | BE15: =Прайс!C23 -> 0 | BF15: =Прайс!D23 -> 0 | BG15: =BE15*BF15 -> 0 | BH15: =Прайс!C24 -> 0 | BI15: =Прайс!D24 -> 0 | BJ15: =BH15*BI15 -> 0 | BK15: =Прайс!C25 -> 0 | BL15: =Прайс!D25 -> 0 | BM15: =BK15*BL15 -> 0 | BN15: =Прайс!C26 -> 0 | BO15: =Прайс!D26 -> 0 | BP15: =BN15*BO15 -> 0 | BQ15: =Прайс!C27 -> 0 | BR15: =Прайс!D27 -> 0 | BS15: =BQ15*BR15 -> 0 | BT15: =Прайс!C28 -> 0 | BU15: =Прайс!D28 -> 0 | BV15: =BT15*BU15 -> 0 | BW15: =Прайс!C29 -> 0 | BX15: =Прайс!D29 -> 0 | BY15: =BW15*BX15 -> 0 | BZ15: =Прайс!C30 -> 0 | CA15: =Прайс!D30 -> 0 | CB15: =BZ15*CA15 -> 0 | CC15: =Прайс!C31 -> 0 | CD15: =Прайс!D31 -> 0 | CE15: =CC15*CD15 -> 0 | CF15: =Прайс!C32 -> 0 | CG15: =Прайс!D32 -> 0 | CH15: =CF15*CG15 -> 0 | CI15: =Прайс!C33 -> 0 | CJ15: =Прайс!D33 -> 0 | CK15: =CI15*CJ15 -> 0 | CL15: =Прайс!C34 -> 0 | CM15: =Прайс!D34 -> 0 | CN15: =CL15*CM15 -> 0 | CO15: =Прайс!C35 -> 0 | CP15: =Прайс!D35 -> 0 | CQ15: =CO15*CP15 -> 0 | CR15: =Прайс!C36 -> 0 | CS15: =Прайс!D36 -> 0 | CT15: =CR15*CS15 -> 0 | CU15: =Прайс!C37 -> 0 | CV15: =Прайс!D37 -> 0 | CW15: =CU15*CV15 -> 0 | CX15: =Прайс!C38 -> 0 | CY15: =Прайс!D38 -> 0 | CZ15: =CX15*CY15 -> 0 | DA15: =Прайс!C39 -> 0 | DB15: =Прайс!D39 -> 0 | DC15: =DA15*DB15 -> 0 | DD15: =Прайс!C40 -> 0 | DE15: =Прайс!D40 -> 0 | DF15: =DD15*DE15 -> 0 | DG15: =Прайс!C41 -> 0 | DH15: =Прайс!D41 -> 0 | DI15: =DG15*DH15 -> 0 | DJ15: =Прайс!C42 -> 0 | DK15: =Прайс!D42 -> 0 | DL15: =DJ15*DK15 -> 0 | DM15: =Прайс!C43 -> 0 | DN15: =Прайс!D43 -> 0 | DO15: =DM15*DN15 -> 0 | DP15: =Прайс!C44 -> 0 | DQ15: =Прайс!D44 -> 0 | DR15: =DP15*DQ15 -> 0 | DS15: =Прайс!C45 -> 0 | DT15: =Прайс!D45 -> 0 | DU15: =DS15*DT15 -> 0 | DV15: =Прайс!C46 -> 0 | DW15: =Прайс!D46 -> 0 | DX15: =DV15*DW15 -> 0 | DY15: =Прайс!C47 -> 0 | DZ15: =Прайс!D47 -> 0 | EA15: =DY15*DZ15 -> 0 | EB15: =Прайс!C48 -> 0 | EC15: =Прайс!D48 -> 0 | ED15: =EB15*EC15 -> 0 | EE15: =Прайс!C49 -> 0 | EF15: =Прайс!D49 -> 0 | EG15: =EE15*EF15 -> 0 | EH15: =Прайс!C50 -> 0 | EI15: =Прайс!D50 -> 0 | EJ15: =EH15*EI15 -> 0 | EK15: =Прайс!C51 -> 0 | EL15: =Прайс!D51 -> 0 | EM15: =EK15*EL15 -> 0 | EN15: =Прайс!C52 -> 0 | EO15: =Прайс!D52 -> 0 | EP15: =EN15*EO15 -> 0 | EQ15: =Прайс!C53 -> 0 | ER15: =Прайс!D53 -> 0 | ES15: =EQ15*ER15 -> 0 | ET15: =Прайс!C54 -> 0 | EU15: =Прайс!D54 -> 0 | EV15: =ET15*EU15 -> 0 | EW15: =Прайс!C55 -> 0 | EX15: =Прайс!D55 -> 0 | EY15: =EW15*EX15 -> 0 | EZ15: =Прайс!C56 -> 0 | FA15: =Прайс!D56 -> 0 | FB15: =EZ15*FA15 -> 0 | FC15: =Прайс!C57 -> 0 | FD15: =Прайс!D57 -> 0 | FE15: =FC15*FD15 -> 0 | FF15: =Прайс!C58 -> 0 | FG15: =Прайс!D58 -> 0 | FH15: =FF15*FG15 -> 0 | FI15: =Прайс!C59 -> 0 | FJ15: =Прайс!D59 -> 0 | FK15: =FI15*FJ15 -> 0 | FL15: =Прайс!C60 -> 0 | FM15: =Прайс!D60 -> 0 | FN15: =FL15*FM15 -> 0 | FO15: =Прайс!C61 -> 0 | FP15: =Прайс!D61 -> 0 | FQ15: =FO15*FP15 -> 0 | FR15: =Прайс!C62 -> 0 | FS15: =Прайс!D62 -> 0 | FT15: =FR15*FS15 -> 0 | FU15: =Прайс!C63 -> 0 | FV15: =Прайс!D63 -> 0 | FW15: =FU15*FV15 -> 0 | FX15: =Прайс!C64 -> 0 | FY15: =Прайс!D64 -> 0 | FZ15: =FX15*FY15 -> 0 | GA15: =Прайс!C65 -> 0 | GB15: =Прайс!D65 -> 0 | GC15: =GA15*GB15 -> 0 | GD15: =Прайс!C66 -> 0 | GE15: =Прайс!D66 -> 0 | GF15: =GD15*GE15 -> 0 | GG15: =Прайс!C67 -> 0 | GH15: =Прайс!D67 -> 0 | GI15: =GG15*GH15 -> 0 | GJ15: =Прайс!C68 -> 0 | GK15: =Прайс!D68 -> 0 | GL15: =GJ15*GK15 -> 0 | GM15: =Прайс!C69 -> 0 | GN15: =Прайс!D69 -> 0 | GO15: =GM15*GN15 -> 0 | GP15: =Прайс!C70 -> 0 | GQ15: =Прайс!D70 -> 0 | GR15: =GP15*GQ15 -> 0 | GS15: =Прайс!C71 -> 0 | GT15: =Прайс!D71 -> 0 | GU15: =GS15*GT15 -> 0 | GV15: =Прайс!C72 -> 0 | GW15: =Прайс!D72 -> 0 | GX15: =GV15*GW15 -> 0 | GY15: =Прайс!C73 -> 0 | GZ15: =Прайс!D73 -> 0 | HA15: =GY15*GZ15 -> 0 | HB15: =Прайс!C74 -> 0 | HC15: =Прайс!D74 -> 0 | HD15: =HB15*HC15 -> 0 | HE15: =Прайс!C75 -> 0 | HF15: =Прайс!D75 -> 0 | HG15: =HE15*HF15 -> 0 | HH15: =Прайс!C76 -> 0 | HI15: =Прайс!D76 -> 0 | HJ15: =HH15*HI15 -> 0 | HK15: =Прайс!C77 -> 0 | HL15: =Прайс!D77 -> 0 | HM15: =HK15*HL15 -> 0 | HN15: =Прайс!C78 -> 0 | HO15: =Прайс!D78 -> 0 | HP15: =HN15*HO15 -> 0 | HQ15: =Прайс!C79 -> 0 | HR15: =Прайс!D79 -> 0 | HS15: =HQ15*HR15 -> 0 | HT15: =Прайс!C80 -> 0 | HU15: =Прайс!D80 -> 0 | HV15: =HT15*HU15 -> 0 | HW15: =Прайс!C81 -> 0 | HX15: =Прайс!D81 -> 0 | HY15: =HW15*HX15 -> 0 | HZ15: =Прайс!C82 -> 0 | IA15: =Прайс!D82 -> 0 | IB15: =HZ15*IA15 -> 0 | IC15: =Прайс!C83 -> 0 | ID15: =Прайс!D83 -> 0 | IE15: =IC15*ID15 -> 0 | IF15: =Прайс!C84 -> 0 | IG15: =Прайс!D84 -> 0 | IH15: =IF15*IG15 -> 0
A16: Итого расход | B16: =SUM(B17:B266) -> 950 | C16: =SUM(C17:C266) -> 8 | E16: =SUM(E17:E266) -> 240 | F16: =SUM(F17:F266) -> 5 | H16: =SUM(H17:H266) -> 125 | I16: =SUM(I17:I266) -> 5 | K16: =SUM(K17:K266) -> 375 | L16: =SUM(L17:L266) -> 6 | N16: =SUM(N17:N266) -> 210 | O16: =SUM(O17:O266) -> 0 | Q16: =SUM(Q17:Q266) -> 0 | R16: =SUM(R17:R266) -> 0 | T16: =SUM(T17:T266) -> 0 | U16: =SUM(U17:U266) -> 0 | W16: =SUM(W17:W266) -> 0 | X16: =SUM(X17:X266) -> 0 | Z16: =SUM(Z17:Z266) -> 0 | AA16: =SUM(AA17:AA266) -> 0 | AC16: =SUM(AC17:AC266) -> 0 | AD16: =SUM(AD17:AD266) -> 0 | AF16: =SUM(AF17:AF266) -> 0 | AG16: =SUM(AG17:AG266) -> 0 | AI16: =SUM(AI17:AI266) -> 0 | AJ16: =SUM(AJ17:AJ266) -> 0 | AL16: =SUM(AL17:AL266) -> 0 | AM16: =SUM(AM17:AM266) -> 0 | AO16: =SUM(AO17:AO266) -> 0 | AP16: =SUM(AP17:AP266) -> 0 | AR16: =SUM(AR17:AR266) -> 0 | AS16: =SUM(AS17:AS266) -> 0 | AU16: =SUM(AU17:AU266) -> 0 | AV16: =SUM(AV17:AV266) -> 0 | AX16: =SUM(AX17:AX266) -> 0 | AY16: =SUM(AY17:AY266) -> 0 | BA16: =SUM(BA17:BA266) -> 0 | BB16: =SUM(BB17:BB266) -> 0 | BD16: =SUM(BD17:BD266) -> 0 | BE16: =SUM(BE17:BE266) -> 0 | BG16: =SUM(BG17:BG266) -> 0 | BH16: =SUM(BH17:BH266) -> 0 | BJ16: =SUM(BJ17:BJ266) -> 0 | BK16: =SUM(BK17:BK266) -> 0 | BM16: =SUM(BM17:BM266) -> 0 | BN16: =SUM(BN17:BN266) -> 0 | BP16: =SUM(BP17:BP266) -> 0 | BQ16: =SUM(BQ17:BQ266) -> 0 | BS16: =SUM(BS17:BS266) -> 0 | BT16: =SUM(BT17:BT266) -> 0 | BV16: =SUM(BV17:BV266) -> 0 | BW16: =SUM(BW17:BW266) -> 0 | BY16: =SUM(BY17:BY266) -> 0 | BZ16: =SUM(BZ17:BZ266) -> 0 | CB16: =SUM(CB17:CB266) -> 0 | CC16: =SUM(CC17:CC266) -> 0 | CE16: =SUM(CE17:CE266) -> 0 | CF16: =SUM(CF17:CF266) -> 0 | CH16: =SUM(CH17:CH266) -> 0 | CI16: =SUM(CI17:CI266) -> 0 | CK16: =SUM(CK17:CK266) -> 0 | CL16: =SUM(CL17:CL266) -> 0 | CN16: =SUM(CN17:CN266) -> 0 | CO16: =SUM(CO17:CO266) -> 0 | CQ16: =SUM(CQ17:CQ266) -> 0 | CR16: =SUM(CR17:CR266) -> 0 | CT16: =SUM(CT17:CT266) -> 0 | CU16: =SUM(CU17:CU266) -> 0 | CW16: =SUM(CW17:CW266) -> 0 | CX16: =SUM(CX17:CX266) -> 0 | CZ16: =SUM(CZ17:CZ266) -> 0 | DA16: =SUM(DA17:DA266) -> 0 | DC16: =SUM(DC17:DC266) -> 0 | DD16: =SUM(DD17:DD266) -> 0 | DF16: =SUM(DF17:DF266) -> 0 | DG16: =SUM(DG17:DG266) -> 0 | DI16: =SUM(DI17:DI266) -> 0 | DJ16: =SUM(DJ17:DJ266) -> 0 | DL16: =SUM(DL17:DL266) -> 0 | DM16: =SUM(DM17:DM266) -> 0 | DO16: =SUM(DO17:DO266) -> 0 | DP16: =SUM(DP17:DP266) -> 0 | DR16: =SUM(DR17:DR266) -> 0 | DS16: =SUM(DS17:DS266) -> 0 | DU16: =SUM(DU17:DU266) -> 0 | DV16: =SUM(DV17:DV266) -> 0 | DX16: =SUM(DX17:DX266) -> 0 | DY16: =SUM(DY17:DY266) -> 0 | EA16: =SUM(EA17:EA266) -> 0 | EB16: =SUM(EB17:EB266) -> 0 | ED16: =SUM(ED17:ED266) -> 0 | EE16: =SUM(EE17:EE266) -> 0 | EG16: =SUM(EG17:EG266) -> 0 | EH16: =SUM(EH17:EH266) -> 0 | EJ16: =SUM(EJ17:EJ266) -> 0 | EK16: =SUM(EK17:EK266) -> 0 | EM16: =SUM(EM17:EM266) -> 0 | EN16: =SUM(EN17:EN266) -> 0 | EP16: =SUM(EP17:EP266) -> 0 | EQ16: =SUM(EQ17:EQ266) -> 0 | ES16: =SUM(ES17:ES266) -> 0 | ET16: =SUM(ET17:ET266) -> 0 | EV16: =SUM(EV17:EV266) -> 0 | EW16: =SUM(EW17:EW266) -> 0 | EY16: =SUM(EY17:EY266) -> 0 | EZ16: =SUM(EZ17:EZ266) -> 0 | FB16: =SUM(FB17:FB266) -> 0 | FC16: =SUM(FC17:FC266) -> 0 | FE16: =SUM(FE17:FE266) -> 0 | FF16: =SUM(FF17:FF266) -> 0 | FH16: =SUM(FH17:FH266) -> 0 | FI16: =SUM(FI17:FI266) -> 0 | FK16: =SUM(FK17:FK266) -> 0 | FL16: =SUM(FL17:FL266) -> 0 | FN16: =SUM(FN17:FN266) -> 0 | FO16: =SUM(FO17:FO266) -> 0 | FQ16: =SUM(FQ17:FQ266) -> 0 | FR16: =SUM(FR17:FR266) -> 0 | FT16: =SUM(FT17:FT266) -> 0 | FU16: =SUM(FU17:FU266) -> 0 | FW16: =SUM(FW17:FW266) -> 0 | FX16: =SUM(FX17:FX266) -> 0 | FZ16: =SUM(FZ17:FZ266) -> 0 | GA16: =SUM(GA17:GA266) -> 0 | GC16: =SUM(GC17:GC266) -> 0 | GD16: =SUM(GD17:GD266) -> 0 | GF16: =SUM(GF17:GF266) -> 0 | GG16: =SUM(GG17:GG266) -> 0 | GI16: =SUM(GI17:GI266) -> 0 | GJ16: =SUM(GJ17:GJ266) -> 0 | GL16: =SUM(GL17:GL266) -> 0 | GM16: =SUM(GM17:GM266) -> 0 | GO16: =SUM(GO17:GO266) -> 0 | GP16: =SUM(GP17:GP266) -> 0 | GR16: =SUM(GR17:GR266) -> 0 | GS16: =SUM(GS17:GS266) -> 0 | GU16: =SUM(GU17:GU266) -> 0 | GV16: =SUM(GV17:GV266) -> 0 | GX16: =SUM(GX17:GX266) -> 0 | GY16: =SUM(GY17:GY266) -> 0 | HA16: =SUM(HA17:HA266) -> 0 | HB16: =SUM(HB17:HB266) -> 0 | HD16: =SUM(HD17:HD266) -> 0 | HE16: =SUM(HE17:HE266) -> 0 | HG16: =SUM(HG17:HG266) -> 0 | HH16: =SUM(HH17:HH266) -> 0 | HJ16: =SUM(HJ17:HJ266) -> 0 | HK16: =SUM(HK17:HK266) -> 0 | HM16: =SUM(HM17:HM266) -> 0 | HN16: =SUM(HN17:HN266) -> 0 | HP16: =SUM(HP17:HP266) -> 0 | HQ16: =SUM(HQ17:HQ266) -> 0 | HS16: =SUM(HS17:HS266) -> 0 | HT16: =SUM(HT17:HT266) -> 0 | HV16: =SUM(HV17:HV266) -> 0 | HW16: =SUM(HW17:HW266) -> 0 | HY16: =SUM(HY17:HY266) -> 0 | HZ16: =SUM(HZ17:HZ266) -> 0 | IB16: =SUM(IB17:IB266) -> 0 | IC16: =SUM(IC17:IC266) -> 0 | IE16: =SUM(IE17:IE266) -> 0 | IF16: =SUM(IF17:IF266) -> 1 | IH16: =SUM(IH17:IH266) -> 0
A17: Сидоров Сидор Сидорович | B17: =E17+H17+K17+N17+Q17+T17+W17+Z17+AC17+AF17+AI17+AL17+AO17+AR17+AU17+AX17+BA17+BD17+BG17+BJ17+BM17+BP17+BS17+BV17+BY17+CB17+CE17+CH17+CK17+CN17+CQ17+CT17+CW17+CZ17+DC17+DF17+DI17+DL17+DO17+DR17+DU17+DX17+EA17+ED17+EG17+EJ17+EM17+EP17+ES17+EV17+EY17+FB17+FE17+FH17+FK17+FN17+FQ17+FT17+FW17+FZ17+GC17+GF17+GI17+GL17+GO17+GR17+GU17+GX17+HA17+HD17+HG17+HJ17+HM17+HP17+HS17+HV17+HY17+IB17+IE17+IH17 -> 385 | C17: 5 | E17: =C17*D15 -> 150 | F17: 2 | H17: =F17*G15 -> 50 | I17: 2 | K17: =I17*J15 -> 150 | L17: 1 | N17: =L17*M15 -> 35 | Q17: =O17*P15 -> 0 | T17: =R17*S15 -> 0 | W17: =U17*V15 -> 0 | Z17: =X17*Y15 -> 0 | AC17: =AA17*AB15 -> 0 | AF17: =AD17*AE15 -> 0 | AI17: =AG17*AH15 -> 0 | AL17: =AJ17*AK15 -> 0 | AO17: =AM17*AN15 -> 0 | AR17: =AP17*AQ15 -> 0 | AU17: =AS17*AT15 -> 0 | AX17: =AV17*AW15 -> 0 | BA17: =AY17*AZ15 -> 0 | BD17: =BB17*BC15 -> 0 | BG17: =BE17*BF15 -> 0 | BJ17: =BH17*BI15 -> 0 | BM17: =BK17*BL15 -> 0 | BP17: =BN17*BO15 -> 0 | BS17: =BQ17*BR15 -> 0 | BV17: =BT17*BU15 -> 0 | BY17: =BW17*BX15 -> 0 | CB17: =BZ17*CA15 -> 0 | CE17: =CC17*CD15 -> 0 | CH17: =CF17*CG15 -> 0 | CK17: =CI17*CJ15 -> 0 | CN17: =CL17*CM15 -> 0 | CQ17: =CO17*CP15 -> 0 | CT17: =CR17*CS15 -> 0 | CW17: =CU17*CV15 -> 0 | CZ17: =CX17*CY15 -> 0 | DC17: =DA17*DB15 -> 0 | DF17: =DD17*DE15 -> 0 | DI17: =DG17*DH15 -> 0 | DL17: =DJ17*DK15 -> 0 | DO17: =DM17*DN15 -> 0 | DR17: =DP17*DQ15 -> 0 | DU17: =DS17*DT15 -> 0 | DX17: =DV17*DW15 -> 0 | EA17: =DY17*DZ15 -> 0 | ED17: =EB17*EC15 -> 0 | EG17: =EE17*EF15 -> 0 | EJ17: =EH17*EI15 -> 0 | EM17: =EK17*EL15 -> 0 | EP17: =EN17*EO15 -> 0 | ES17: =EQ17*ER15 -> 0 | EV17: =ET17*EU15 -> 0 | EY17: =EW17*EX15 -> 0 | FB17: =EZ17*FA15 -> 0 | FE17: =FC17*FD15 -> 0 | FH17: =FF17*FG15 -> 0 | FK17: =FI17*FJ15 -> 0 | FN17: =FL17*FM15 -> 0 | FQ17: =FO17*FP15 -> 0 | FT17: =FR17*FS15 -> 0 | FW17: =FU17*FV15 -> 0 | FZ17: =FX17*FY15 -> 0 | GC17: =GA17*GB15 -> 0 | GF17: =GD17*GE15 -> 0 | GI17: =GG17*GH15 -> 0 | GL17: =GJ17*GK15 -> 0 | GO17: =GM17*GN15 -> 0 | GR17: =GP17*GQ15 -> 0 | GU17: =GS17*GT15 -> 0 | GX17: =GV17*GW15 -> 0 | HA17: =GY17*GZ15 -> 0 | HD17: =HB17*HC15 -> 0 | HG17: =HE17*HF15 -> 0 | HJ17: =HH17*HI15 -> 0 | HM17: =HK17*HL15 -> 0 | HP17: =HN17*HO15 -> 0 | HS17: =HQ17*HR15 -> 0 | HV17: =HT17*HU15 -> 0 | HY17: =HW17*HX15 -> 0 | IB17: =HZ17*IA15 -> 0 | IE17: =IC17*ID15 -> 0 | IF17: 1 | IH17: =IF17*IG15 -> 0
A18: Иванов Иван Иванович | B18: =E18+H18+K18+N18+Q18+T18+W18+Z18+AC18+AF18+AI18+AL18+AO18+AR18+AU18+AX18+BA18+BD18+BG18+BJ18+BM18+BP18+BS18+BV18+BY18+CB18+CE18+CH18+CK18+CN18+CQ18+CT18+CW18+CZ18+DC18+DF18+DI18+DL18+DO18+DR18+DU18+DX18+EA18+ED18+EG18+EJ18+EM18+EP18+ES18+EV18+EY18+FB18+FE18+FH18+FK18+FN18+FQ18+FT18+FW18+FZ18+GC18+GF18+GI18+GL18+GO18+GR18+GU18+GX18+HA18+HD18+HG18+HJ18+HM18+HP18+HS18+HV18+HY18+IB18+IE18+IH18 -> 235 | C18: 1 | E18: =C18*D15 -> 30 | F18: 1 | H18: =F18*G15 -> 25 | I18: 1 | K18: =I18*J15 -> 75 | L18: 3 | N18: =L18*M15 -> 105 | Q18: =O18*P15 -> 0 | T18: =R18*S15 -> 0 | W18: =U18*V15 -> 0 | Z18: =X18*Y15 -> 0 | AC18: =AA18*AB15 -> 0 | AF18: =AD18*AE15 -> 0 | AI18: =AG18*AH15 -> 0 | AL18: =AJ18*AK15 -> 0 | AO18: =AM18*AN15 -> 0 | AR18: =AP18*AQ15 -> 0 | AU18: =AS18*AT15 -> 0 | AX18: =AV18*AW15 -> 0 | BA18: =AY18*AZ15 -> 0 | BD18: =BB18*BC15 -> 0 | BG18: =BE18*BF15 -> 0 | BJ18: =BH18*BI15 -> 0 | BM18: =BK18*BL15 -> 0 | BP18: =BN18*BO15 -> 0 | BS18: =BQ18*BR15 -> 0 | BV18: =BT18*BU15 -> 0 | BY18: =BW18*BX15 -> 0 | CB18: =BZ18*CA15 -> 0 | CE18: =CC18*CD15 -> 0 | CH18: =CF18*CG15 -> 0 | CK18: =CI18*CJ15 -> 0 | CN18: =CL18*CM15 -> 0 | CQ18: =CO18*CP15 -> 0 | CT18: =CR18*CS15 -> 0 | CW18: =CU18*CV15 -> 0 | CZ18: =CX18*CY15 -> 0 | DC18: =DA18*DB15 -> 0 | DF18: =DD18*DE15 -> 0 | DI18: =DG18*DH15 -> 0 | DL18: =DJ18*DK15 -> 0 | DO18: =DM18*DN15 -> 0 | DR18: =DP18*DQ15 -> 0 | DU18: =DS18*DT15 -> 0 | DX18: =DV18*DW15 -> 0 | EA18: =DY18*DZ15 -> 0 | ED18: =EB18*EC15 -> 0 | EG18: =EE18*EF15 -> 0 | EJ18: =EH18*EI15 -> 0 | EM18: =EK18*EL15 -> 0 | EP18: =EN18*EO15 -> 0 | ES18: =EQ18*ER15 -> 0 | EV18: =ET18*EU15 -> 0 | EY18: =EW18*EX15 -> 0 | FB18: =EZ18*FA15 -> 0 | FE18: =FC18*FD15 -> 0 | FH18: =FF18*FG15 -> 0 | FK18: =FI18*FJ15 -> 0 | FN18: =FL18*FM15 -> 0 | FQ18: =FO18*FP15 -> 0 | FT18: =FR18*FS15 -> 0 | FW18: =FU18*FV15 -> 0 | FZ18: =FX18*FY15 -> 0 | GC18: =GA18*GB15 -> 0 | GF18: =GD18*GE15 -> 0 | GI18: =GG18*GH15 -> 0 | GL18: =GJ18*GK15 -> 0 | GO18: =GM18*GN15 -> 0 | GR18: =GP18*GQ15 -> 0 | GU18: =GS18*GT15 -> 0 | GX18: =GV18*GW15 -> 0 | HA18: =GY18*GZ15 -> 0 | HD18: =HB18*HC15 -> 0 | HG18: =HE18*HF15 -> 0 | HJ18: =HH18*HI15 -> 0 | HM18: =HK18*HL15 -> 0 | HP18: =HN18*HO15 -> 0 | HS18: =HQ18*HR15 -> 0 | HV18: =HT18*HU15 -> 0 | HY18: =HW18*HX15 -> 0 | IB18: =HZ18*IA15 -> 0 | IE18: =IC18*ID15 -> 0 | IH18: =IF18*IG15 -> 0
A19: Петров Петр Петрович | B19: 330 | C19: 2 | E19: =C19*D15 -> 60 | F19: 2 | H19: =F19*G15 -> 50 | I19: 2 | K19: =I19*J15 -> 150 | L19: 2 | N19: =L19*M15 -> 70 | Q19: =O19*P15 -> 0 | T19: =R19*S15 -> 0 | W19: =U19*V15 -> 0 | Z19: =X19*Y15 -> 0 | AC19: =AA19*AB15 -> 0 | AF19: =AD19*AE15 -> 0 | AI19: =AG19*AH15 -> 0 | AL19: =AJ19*AK15 -> 0 | AO19: =AM19*AN15 -> 0 | AR19: =AP19*AQ15 -> 0 | AU19: =AS19*AT15 -> 0 | AX19: =AV19*AW15 -> 0 | BA19: =AY19*AZ15 -> 0 | BD19: =BB19*BC15 -> 0 | BG19: =BE19*BF15 -> 0 | BJ19: =BH19*BI15 -> 0 | BM19: =BK19*BL15 -> 0 | BP19: =BN19*BO15 -> 0 | BS19: =BQ19*BR15 -> 0 | BV19: =BT19*BU15 -> 0 | BY19: =BW19*BX15 -> 0 | CB19: =BZ19*CA15 -> 0 | CE19: =CC19*CD15 -> 0 | CH19: =CF19*CG15 -> 0 | CK19: =CI19*CJ15 -> 0 | CN19: =CL19*CM15 -> 0 | CQ19: =CO19*CP15 -> 0 | CT19: =CR19*CS15 -> 0 | CW19: =CU19*CV15 -> 0 | CZ19: =CX19*CY15 -> 0 | DC19: =DA19*DB15 -> 0 | DF19: =DD19*DE15 -> 0 | DI19: =DG19*DH15 -> 0 | DL19: =DJ19*DK15 -> 0 | DO19: =DM19*DN15 -> 0 | DR19: =DP19*DQ15 -> 0 | DU19: =DS19*DT15 -> 0 | DX19: =DV19*DW15 -> 0 | EA19: =DY19*DZ15 -> 0 | ED19: =EB19*EC15 -> 0 | EG19: =EE19*EF15 -> 0 | EJ19: =EH19*EI15 -> 0 | EM19: =EK19*EL15 -> 0 | EP19: =EN19*EO15 -> 0 | ES19: =EQ19*ER15 -> 0 | EV19: =ET19*EU15 -> 0 | EY19: =EW19*EX15 -> 0 | FB19: =EZ19*FA15 -> 0 | FE19: =FC19*FD15 -> 0 | FH19: =FF19*FG15 -> 0 | FK19: =FI19*FJ15 -> 0 | FN19: =FL19*FM15 -> 0 | FQ19: =FO19*FP15 -> 0 | FT19: =FR19*FS15 -> 0 | FW19: =FU19*FV15 -> 0 | FZ19: =FX19*FY15 -> 0 | GC19: =GA19*GB15 -> 0 | GF19: =GD19*GE15 -> 0 | GI19: =GG19*GH15 -> 0 | GL19: =GJ19*GK15 -> 0 | GO19: =GM19*GN15 -> 0 | GR19: =GP19*GQ15 -> 0 | GU19: =GS19*GT15 -> 0 | GX19: =GV19*GW15 -> 0 | HA19: =GY19*GZ15 -> 0 | HD19: =HB19*HC15 -> 0 | HG19: =HE19*HF15 -> 0 | HJ19: =HH19*HI15 -> 0 | HM19: =HK19*HL15 -> 0 | HP19: =HN19*HO15 -> 0 | HS19: =HQ19*HR15 -> 0 | HV19: =HT19*HU15 -> 0 | HY19: =HW19*HX15 -> 0 | IB19: =HZ19*IA15 -> 0 | IE19: =IC19*ID15 -> 0 | IH19: =IF19*IG15 -> 0
B20: 0 | E20: =C20*D15 -> 0 | H20: =F20*G15 -> 0 | K20: =I20*J15 -> 0 | N20: =L20*M15 -> 0 | Q20: =O20*P15 -> 0 | T20: =R20*S15 -> 0 | W20: =U20*V15 -> 0 | Z20: =X20*Y15 -> 0 | AC20: =AA20*AB15 -> 0 | AF20: =AD20*AE15 -> 0 | AI20: =AG20*AH15 -> 0 | AL20: =AJ20*AK15 -> 0 | AO20: =AM20*AN15 -> 0 | AR20: =AP20*AQ15 -> 0 | AU20: =AS20*AT15 -> 0 | AX20: =AV20*AW15 -> 0 | BA20: =AY20*AZ15 -> 0 | BD20: =BB20*BC15 -> 0 | BG20: =BE20*BF15 -> 0 | BJ20: =BH20*BI15 -> 0 | BM20: =BK20*BL15 -> 0 | BP20: =BN20*BO15 -> 0 | BS20: =BQ20*BR15 -> 0 | BV20: =BT20*BU15 -> 0 | BY20: =BW20*BX15 -> 0 | CB20: =BZ20*CA15 -> 0 | CE20: =CC20*CD15 -> 0 | CH20: =CF20*CG15 -> 0 | CK20: =CI20*CJ15 -> 0 | CN20: =CL20*CM15 -> 0 | CQ20: =CO20*CP15 -> 0 | CT20: =CR20*CS15 -> 0 | CW20: =CU20*CV15 -> 0 | CZ20: =CX20*CY15 -> 0 | DC20: =DA20*DB15 -> 0 | DF20: =DD20*DE15 -> 0 | DI20: =DG20*DH15 -> 0 | DL20: =DJ20*DK15 -> 0 | DO20: =DM20*DN15 -> 0 | DR20: =DP20*DQ15 -> 0 | DU20: =DS20*DT15 -> 0 | DX20: =DV20*DW15 -> 0 | EA20: =DY20*DZ15 -> 0 | ED20: =EB20*EC15 -> 0 | EG20: =EE20*EF15 -> 0 | EJ20: =EH20*EI15 -> 0 | EM20: =EK20*EL15 -> 0 | EP20: =EN20*EO15 -> 0 | ES20: =EQ20*ER15 -> 0 | EV20: =ET20*EU15 -> 0 | EY20: =EW20*EX15 -> 0 | FB20: =EZ20*FA15 -> 0 | FE20: =FC20*FD15 -> 0 | FH20: =FF20*FG15 -> 0 | FK20: =FI20*FJ15 -> 0 | FN20: =FL20*FM15 -> 0 | FQ20: =FO20*FP15 -> 0 | FT20: =FR20*FS15 -> 0 | FW20: =FU20*FV15 -> 0 | FZ20: =FX20*FY15 -> 0 | GC20: =GA20*GB15 -> 0 | GF20: =GD20*GE15 -> 0 | GI20: =GG20*GH15 -> 0 | GL20: =GJ20*GK15 -> 0 | GO20: =GM20*GN15 -> 0 | GR20: =GP20*GQ15 -> 0 | GU20: =GS20*GT15 -> 0 | GX20: =GV20*GW15 -> 0 | HA20: =GY20*GZ15 -> 0 | HD20: =HB20*HC15 -> 0 | HG20: =HE20*HF15 -> 0 | HJ20: =HH20*HI15 -> 0 | HM20: =HK20*HL15 -> 0 | HP20: =HN20*HO15 -> 0 | HS20: =HQ20*HR15 -> 0 | HV20: =HT20*HU15 -> 0 | HY20: =HW20*HX15 -> 0 | IB20: =HZ20*IA15 -> 0 | IE20: =IC20*ID15 -> 0 | IH20: =IF20*IG15 -> 0
B21: 0 | E21: =C21*D15 -> 0 | H21: =F21*G15 -> 0 | K21: =I21*J15 -> 0 | N21: =L21*M15 -> 0 | Q21: =O21*P15 -> 0 | T21: =R21*S15 -> 0 | W21: =U21*V15 -> 0 | Z21: =X21*Y15 -> 0 | AC21: =AA21*AB15 -> 0 | AF21: =AD21*AE15 -> 0 | AI21: =AG21*AH15 -> 0 | AL21: =AJ21*AK15 -> 0 | AO21: =AM21*AN15 -> 0 | AR21: =AP21*AQ15 -> 0 | AU21: =AS21*AT15 -> 0 | AX21: =AV21*AW15 -> 0 | BA21: =AY21*AZ15 -> 0 | BD21: =BB21*BC15 -> 0 | BG21: =BE21*BF15 -> 0 | BJ21: =BH21*BI15 -> 0 | BM21: =BK21*BL15 -> 0 | BP21: =BN21*BO15 -> 0 | BS21: =BQ21*BR15 -> 0 | BV21: =BT21*BU15 -> 0 | BY21: =BW21*BX15 -> 0 | CB21: =BZ21*CA15 -> 0 | CE21: =CC21*CD15 -> 0 | CH21: =CF21*CG15 -> 0 | CK21: =CI21*CJ15 -> 0 | CN21: =CL21*CM15 -> 0 | CQ21: =CO21*CP15 -> 0 | CT21: =CR21*CS15 -> 0 | CW21: =CU21*CV15 -> 0 | CZ21: =CX21*CY15 -> 0 | DC21: =DA21*DB15 -> 0 | DF21: =DD21*DE15 -> 0 | DI21: =DG21*DH15 -> 0 | DL21: =DJ21*DK15 -> 0 | DO21: =DM21*DN15 -> 0 | DR21: =DP21*DQ15 -> 0 | DU21: =DS21*DT15 -> 0 | DX21: =DV21*DW15 -> 0 | EA21: =DY21*DZ15 -> 0 | ED21: =EB21*EC15 -> 0 | EG21: =EE21*EF15 -> 0 | EJ21: =EH21*EI15 -> 0 | EM21: =EK21*EL15 -> 0 | EP21: =EN21*EO15 -> 0 | ES21: =EQ21*ER15 -> 0 | EV21: =ET21*EU15 -> 0 | EY21: =EW21*EX15 -> 0 | FB21: =EZ21*FA15 -> 0 | FE21: =FC21*FD15 -> 0 | FH21: =FF21*FG15 -> 0 | FK21: =FI21*FJ15 -> 0 | FN21: =FL21*FM15 -> 0 | FQ21: =FO21*FP15 -> 0 | FT21: =FR21*FS15 -> 0 | FW21: =FU21*FV15 -> 0 | FZ21: =FX21*FY15 -> 0 | GC21: =GA21*GB15 -> 0 | GF21: =GD21*GE15 -> 0 | GI21: =GG21*GH15 -> 0 | GL21: =GJ21*GK15 -> 0 | GO21: =GM21*GN15 -> 0 | GR21: =GP21*GQ15 -> 0 | GU21: =GS21*GT15 -> 0 | GX21: =GV21*GW15 -> 0 | HA21: =GY21*GZ15 -> 0 | HD21: =HB21*HC15 -> 0 | HG21: =HE21*HF15 -> 0 | HJ21: =HH21*HI15 -> 0 | HM21: =HK21*HL15 -> 0 | HP21: =HN21*HO15 -> 0 | HS21: =HQ21*HR15 -> 0 | HV21: =HT21*HU15 -> 0 | HY21: =HW21*HX15 -> 0 | IB21: =HZ21*IA15 -> 0 | IE21: =IC21*ID15 -> 0 | IH21: =IF21*IG15 -> 0
B22: 0 | E22: =C22*D15 -> 0 | H22: =F22*G15 -> 0 | K22: =I22*J15 -> 0 | N22: =L22*M15 -> 0 | Q22: =O22*P15 -> 0 | T22: =R22*S15 -> 0 | W22: =U22*V15 -> 0 | Z22: =X22*Y15 -> 0 | AC22: =AA22*AB15 -> 0 | AF22: =AD22*AE15 -> 0 | AI22: =AG22*AH15 -> 0 | AL22: =AJ22*AK15 -> 0 | AO22: =AM22*AN15 -> 0 | AR22: =AP22*AQ15 -> 0 | AU22: =AS22*AT15 -> 0 | AX22: =AV22*AW15 -> 0 | BA22: =AY22*AZ15 -> 0 | BD22: =BB22*BC15 -> 0 | BG22: =BE22*BF15 -> 0 | BJ22: =BH22*BI15 -> 0 | BM22: =BK22*BL15 -> 0 | BP22: =BN22*BO15 -> 0 | BS22: =BQ22*BR15 -> 0 | BV22: =BT22*BU15 -> 0 | BY22: =BW22*BX15 -> 0 | CB22: =BZ22*CA15 -> 0 | CE22: =CC22*CD15 -> 0 | CH22: =CF22*CG15 -> 0 | CK22: =CI22*CJ15 -> 0 | CN22: =CL22*CM15 -> 0 | CQ22: =CO22*CP15 -> 0 | CT22: =CR22*CS15 -> 0 | CW22: =CU22*CV15 -> 0 | CZ22: =CX22*CY15 -> 0 | DC22: =DA22*DB15 -> 0 | DF22: =DD22*DE15 -> 0 | DI22: =DG22*DH15 -> 0 | DL22: =DJ22*DK15 -> 0 | DO22: =DM22*DN15 -> 0 | DR22: =DP22*DQ15 -> 0 | DU22: =DS22*DT15 -> 0 | DX22: =DV22*DW15 -> 0 | EA22: =DY22*DZ15 -> 0 | ED22: =EB22*EC15 -> 0 | EG22: =EE22*EF15 -> 0 | EJ22: =EH22*EI15 -> 0 | EM22: =EK22*EL15 -> 0 | EP22: =EN22*EO15 -> 0 | ES22: =EQ22*ER15 -> 0 | EV22: =ET22*EU15 -> 0 | EY22: =EW22*EX15 -> 0 | FB22: =EZ22*FA15 -> 0 | FE22: =FC22*FD15 -> 0 | FH22: =FF22*FG15 -> 0 | FK22: =FI22*FJ15 -> 0 | FN22: =FL22*FM15 -> 0 | FQ22: =FO22*FP15 -> 0 | FT22: =FR22*FS15 -> 0 | FW22: =FU22*FV15 -> 0 | FZ22: =FX22*FY15 -> 0 | GC22: =GA22*GB15 -> 0 | GF22: =GD22*GE15 -> 0 | GI22: =GG22*GH15 -> 0 | GL22: =GJ22*GK15 -> 0 | GO22: =GM22*GN15 -> 0 | GR22: =GP22*GQ15 -> 0 | GU22: =GS22*GT15 -> 0 | GX22: =GV22*GW15 -> 0 | HA22: =GY22*GZ15 -> 0 | HD22: =HB22*HC15 -> 0 | HG22: =HE22*HF15 -> 0 | HJ22: =HH22*HI15 -> 0 | HM22: =HK22*HL15 -> 0 | HP22: =HN22*HO15 -> 0 | HS22: =HQ22*HR15 -> 0 | HV22: =HT22*HU15 -> 0 | HY22: =HW22*HX15 -> 0 | IB22: =HZ22*IA15 -> 0 | IE22: =IC22*ID15 -> 0 | IH22: =IF22*IG15 -> 0
B23: 0 | E23: =C23*D15 -> 0 | H23: =F23*G15 -> 0 | K23: =I23*J15 -> 0 | N23: =L23*M15 -> 0 | Q23: =O23*P15 -> 0 | T23: =R23*S15 -> 0 | W23: =U23*V15 -> 0 | Z23: =X23*Y15 -> 0 | AC23: =AA23*AB15 -> 0 | AF23: =AD23*AE15 -> 0 | AI23: =AG23*AH15 -> 0 | AL23: =AJ23*AK15 -> 0 | AO23: =AM23*AN15 -> 0 | AR23: =AP23*AQ15 -> 0 | AU23: =AS23*AT15 -> 0 | AX23: =AV23*AW15 -> 0 | BA23: =AY23*AZ15 -> 0 | BD23: =BB23*BC15 -> 0 | BG23: =BE23*BF15 -> 0 | BJ23: =BH23*BI15 -> 0 | BM23: =BK23*BL15 -> 0 | BP23: =BN23*BO15 -> 0 | BS23: =BQ23*BR15 -> 0 | BV23: =BT23*BU15 -> 0 | BY23: =BW23*BX15 -> 0 | CB23: =BZ23*CA15 -> 0 | CE23: =CC23*CD15 -> 0 | CH23: =CF23*CG15 -> 0 | CK23: =CI23*CJ15 -> 0 | CN23: =CL23*CM15 -> 0 | CQ23: =CO23*CP15 -> 0 | CT23: =CR23*CS15 -> 0 | CW23: =CU23*CV15 -> 0 | CZ23: =CX23*CY15 -> 0 | DC23: =DA23*DB15 -> 0 | DF23: =DD23*DE15 -> 0 | DI23: =DG23*DH15 -> 0 | DL23: =DJ23*DK15 -> 0 | DO23: =DM23*DN15 -> 0 | DR23: =DP23*DQ15 -> 0 | DU23: =DS23*DT15 -> 0 | DX23: =DV23*DW15 -> 0 | EA23: =DY23*DZ15 -> 0 | ED23: =EB23*EC15 -> 0 | EG23: =EE23*EF15 -> 0 | EJ23: =EH23*EI15 -> 0 | EM23: =EK23*EL15 -> 0 | EP23: =EN23*EO15 -> 0 | ES23: =EQ23*ER15 -> 0 | EV23: =ET23*EU15 -> 0 | EY23: =EW23*EX15 -> 0 | FB23: =EZ23*FA15 -> 0 | FE23: =FC23*FD15 -> 0 | FH23: =FF23*FG15 -> 0 | FK23: =FI23*FJ15 -> 0 | FN23: =FL23*FM15 -> 0 | FQ23: =FO23*FP15 -> 0 | FT23: =FR23*FS15 -> 0 | FW23: =FU23*FV15 -> 0 | FZ23: =FX23*FY15 -> 0 | GC23: =GA23*GB15 -> 0 | GF23: =GD23*GE15 -> 0 | GI23: =GG23*GH15 -> 0 | GL23: =GJ23*GK15 -> 0 | GO23: =GM23*GN15 -> 0 | GR23: =GP23*GQ15 -> 0 | GU23: =GS23*GT15 -> 0 | GX23: =GV23*GW15 -> 0 | HA23: =GY23*GZ15 -> 0 | HD23: =HB23*HC15 -> 0 | HG23: =HE23*HF15 -> 0 | HJ23: =HH23*HI15 -> 0 | HM23: =HK23*HL15 -> 0 | HP23: =HN23*HO15 -> 0 | HS23: =HQ23*HR15 -> 0 | HV23: =HT23*HU15 -> 0 | HY23: =HW23*HX15 -> 0 | IB23: =HZ23*IA15 -> 0 | IE23: =IC23*ID15 -> 0 | IH23: =IF23*IG15 -> 0
B24: 0 | E24: =C24*D15 -> 0 | H24: =F24*G15 -> 0 | K24: =I24*J15 -> 0 | N24: =L24*M15 -> 0 | Q24: =O24*P15 -> 0 | T24: =R24*S15 -> 0 | W24: =U24*V15 -> 0 | Z24: =X24*Y15 -> 0 | AC24: =AA24*AB15 -> 0 | AF24: =AD24*AE15 -> 0 | AI24: =AG24*AH15 -> 0 | AL24: =AJ24*AK15 -> 0 | AO24: =AM24*AN15 -> 0 | AR24: =AP24*AQ15 -> 0 | AU24: =AS24*AT15 -> 0 | AX24: =AV24*AW15 -> 0 | BA24: =AY24*AZ15 -> 0 | BD24: =BB24*BC15 -> 0 | BG24: =BE24*BF15 -> 0 | BJ24: =BH24*BI15 -> 0 | BM24: =BK24*BL15 -> 0 | BP24: =BN24*BO15 -> 0 | BS24: =BQ24*BR15 -> 0 | BV24: =BT24*BU15 -> 0 | BY24: =BW24*BX15 -> 0 | CB24: =BZ24*CA15 -> 0 | CE24: =CC24*CD15 -> 0 | CH24: =CF24*CG15 -> 0 | CK24: =CI24*CJ15 -> 0 | CN24: =CL24*CM15 -> 0 | CQ24: =CO24*CP15 -> 0 | CT24: =CR24*CS15 -> 0 | CW24: =CU24*CV15 -> 0 | CZ24: =CX24*CY15 -> 0 | DC24: =DA24*DB15 -> 0 | DF24: =DD24*DE15 -> 0 | DI24: =DG24*DH15 -> 0 | DL24: =DJ24*DK15 -> 0 | DO24: =DM24*DN15 -> 0 | DR24: =DP24*DQ15 -> 0 | DU24: =DS24*DT15 -> 0 | DX24: =DV24*DW15 -> 0 | EA24: =DY24*DZ15 -> 0 | ED24: =EB24*EC15 -> 0 | EG24: =EE24*EF15 -> 0 | EJ24: =EH24*EI15 -> 0 | EM24: =EK24*EL15 -> 0 | EP24: =EN24*EO15 -> 0 | ES24: =EQ24*ER15 -> 0 | EV24: =ET24*EU15 -> 0 | EY24: =EW24*EX15 -> 0 | FB24: =EZ24*FA15 -> 0 | FE24: =FC24*FD15 -> 0 | FH24: =FF24*FG15 -> 0 | FK24: =FI24*FJ15 -> 0 | FN24: =FL24*FM15 -> 0 | FQ24: =FO24*FP15 -> 0 | FT24: =FR24*FS15 -> 0 | FW24: =FU24*FV15 -> 0 | FZ24: =FX24*FY15 -> 0 | GC24: =GA24*GB15 -> 0 | GF24: =GD24*GE15 -> 0 | GI24: =GG24*GH15 -> 0 | GL24: =GJ24*GK15 -> 0 | GO24: =GM24*GN15 -> 0 | GR24: =GP24*GQ15 -> 0 | GU24: =GS24*GT15 -> 0 | GX24: =GV24*GW15 -> 0 | HA24: =GY24*GZ15 -> 0 | HD24: =HB24*HC15 -> 0 | HG24: =HE24*HF15 -> 0 | HJ24: =HH24*HI15 -> 0 | HM24: =HK24*HL15 -> 0 | HP24: =HN24*HO15 -> 0 | HS24: =HQ24*HR15 -> 0 | HV24: =HT24*HU15 -> 0 | HY24: =HW24*HX15 -> 0 | IB24: =HZ24*IA15 -> 0 | IE24: =IC24*ID15 -> 0 | IH24: =IF24*IG15 -> 0
B25: 0 | E25: =C25*D15 -> 0 | H25: =F25*G15 -> 0 | K25: =I25*J15 -> 0 | N25: =L25*M15 -> 0 | Q25: =O25*P15 -> 0 | T25: =R25*S15 -> 0 | W25: =U25*V15 -> 0 | Z25: =X25*Y15 -> 0 | AC25: =AA25*AB15 -> 0 | AF25: =AD25*AE15 -> 0 | AI25: =AG25*AH15 -> 0 | AL25: =AJ25*AK15 -> 0 | AO25: =AM25*AN15 -> 0 | AR25: =AP25*AQ15 -> 0 | AU25: =AS25*AT15 -> 0 | AX25: =AV25*AW15 -> 0 | BA25: =AY25*AZ15 -> 0 | BD25: =BB25*BC15 -> 0 | BG25: =BE25*BF15 -> 0 | BJ25: =BH25*BI15 -> 0 | BM25: =BK25*BL15 -> 0 | BP25: =BN25*BO15 -> 0 | BS25: =BQ25*BR15 -> 0 | BV25: =BT25*BU15 -> 0 | BY25: =BW25*BX15 -> 0 | CB25: =BZ25*CA15 -> 0 | CE25: =CC25*CD15 -> 0 | CH25: =CF25*CG15 -> 0 | CK25: =CI25*CJ15 -> 0 | CN25: =CL25*CM15 -> 0 | CQ25: =CO25*CP15 -> 0 | CT25: =CR25*CS15 -> 0 | CW25: =CU25*CV15 -> 0 | CZ25: =CX25*CY15 -> 0 | DC25: =DA25*DB15 -> 0 | DF25: =DD25*DE15 -> 0 | DI25: =DG25*DH15 -> 0 | DL25: =DJ25*DK15 -> 0 | DO25: =DM25*DN15 -> 0 | DR25: =DP25*DQ15 -> 0 | DU25: =DS25*DT15 -> 0 | DX25: =DV25*DW15 -> 0 | EA25: =DY25*DZ15 -> 0 | ED25: =EB25*EC15 -> 0 | EG25: =EE25*EF15 -> 0 | EJ25: =EH25*EI15 -> 0 | EM25: =EK25*EL15 -> 0 | EP25: =EN25*EO15 -> 0 | ES25: =EQ25*ER15 -> 0 | EV25: =ET25*EU15 -> 0 | EY25: =EW25*EX15 -> 0 | FB25: =EZ25*FA15 -> 0 | FE25: =FC25*FD15 -> 0 | FH25: =FF25*FG15 -> 0 | FK25: =FI25*FJ15 -> 0 | FN25: =FL25*FM15 -> 0 | FQ25: =FO25*FP15 -> 0 | FT25: =FR25*FS15 -> 0 | FW25: =FU25*FV15 -> 0 | FZ25: =FX25*FY15 -> 0 | GC25: =GA25*GB15 -> 0 | GF25: =GD25*GE15 -> 0 | GI25: =GG25*GH15 -> 0 | GL25: =GJ25*GK15 -> 0 | GO25: =GM25*GN15 -> 0 | GR25: =GP25*GQ15 -> 0 | GU25: =GS25*GT15 -> 0 | GX25: =GV25*GW15 -> 0 | HA25: =GY25*GZ15 -> 0 | HD25: =HB25*HC15 -> 0 | HG25: =HE25*HF15 -> 0 | HJ25: =HH25*HI15 -> 0 | HM25: =HK25*HL15 -> 0 | HP25: =HN25*HO15 -> 0 | HS25: =HQ25*HR15 -> 0 | HV25: =HT25*HU15 -> 0 | HY25: =HW25*HX15 -> 0 | IB25: =HZ25*IA15 -> 0 | IE25: =IC25*ID15 -> 0 | IH25: =IF25*IG15 -> 0
B26: 0 | E26: =C26*D15 -> 0 | H26: =F26*G15 -> 0 | K26: =I26*J15 -> 0 | N26: =L26*M15 -> 0 | Q26: =O26*P15 -> 0 | T26: =R26*S15 -> 0 | W26: =U26*V15 -> 0 | Z26: =X26*Y15 -> 0 | AC26: =AA26*AB15 -> 0 | AF26: =AD26*AE15 -> 0 | AI26: =AG26*AH15 -> 0 | AL26: =AJ26*AK15 -> 0 | AO26: =AM26*AN15 -> 0 | AR26: =AP26*AQ15 -> 0 | AU26: =AS26*AT15 -> 0 | AX26: =AV26*AW15 -> 0 | BA26: =AY26*AZ15 -> 0 | BD26: =BB26*BC15 -> 0 | BG26: =BE26*BF15 -> 0 | BJ26: =BH26*BI15 -> 0 | BM26: =BK26*BL15 -> 0 | BP26: =BN26*BO15 -> 0 | BS26: =BQ26*BR15 -> 0 | BV26: =BT26*BU15 -> 0 | BY26: =BW26*BX15 -> 0 | CB26: =BZ26*CA15 -> 0 | CE26: =CC26*CD15 -> 0 | CH26: =CF26*CG15 -> 0 | CK26: =CI26*CJ15 -> 0 | CN26: =CL26*CM15 -> 0 | CQ26: =CO26*CP15 -> 0 | CT26: =CR26*CS15 -> 0 | CW26: =CU26*CV15 -> 0 | CZ26: =CX26*CY15 -> 0 | DC26: =DA26*DB15 -> 0 | DF26: =DD26*DE15 -> 0 | DI26: =DG26*DH15 -> 0 | DL26: =DJ26*DK15 -> 0 | DO26: =DM26*DN15 -> 0 | DR26: =DP26*DQ15 -> 0 | DU26: =DS26*DT15 -> 0 | DX26: =DV26*DW15 -> 0 | EA26: =DY26*DZ15 -> 0 | ED26: =EB26*EC15 -> 0 | EG26: =EE26*EF15 -> 0 | EJ26: =EH26*EI15 -> 0 | EM26: =EK26*EL15 -> 0 | EP26: =EN26*EO15 -> 0 | ES26: =EQ26*ER15 -> 0 | EV26: =ET26*EU15 -> 0 | EY26: =EW26*EX15 -> 0 | FB26: =EZ26*FA15 -> 0 | FE26: =FC26*FD15 -> 0 | FH26: =FF26*FG15 -> 0 | FK26: =FI26*FJ15 -> 0 | FN26: =FL26*FM15 -> 0 | FQ26: =FO26*FP15 -> 0 | FT26: =FR26*FS15 -> 0 | FW26: =FU26*FV15 -> 0 | FZ26: =FX26*FY15 -> 0 | GC26: =GA26*GB15 -> 0 | GF26: =GD26*GE15 -> 0 | GI26: =GG26*GH15 -> 0 | GL26: =GJ26*GK15 -> 0 | GO26: =GM26*GN15 -> 0 | GR26: =GP26*GQ15 -> 0 | GU26: =GS26*GT15 -> 0 | GX26: =GV26*GW15 -> 0 | HA26: =GY26*GZ15 -> 0 | HD26: =HB26*HC15 -> 0 | HG26: =HE26*HF15 -> 0 | HJ26: =HH26*HI15 -> 0 | HM26: =HK26*HL15 -> 0 | HP26: =HN26*HO15 -> 0 | HS26: =HQ26*HR15 -> 0 | HV26: =HT26*HU15 -> 0 | HY26: =HW26*HX15 -> 0 | IB26: =HZ26*IA15 -> 0 | IE26: =IC26*ID15 -> 0 | IH26: =IF26*IG15 -> 0
B27: 0 | E27: =C27*D15 -> 0 | H27: =F27*G15 -> 0 | K27: =I27*J15 -> 0 | N27: =L27*M15 -> 0 | Q27: =O27*P15 -> 0 | T27: =R27*S15 -> 0 | W27: =U27*V15 -> 0 | Z27: =X27*Y15 -> 0 | AC27: =AA27*AB15 -> 0 | AF27: =AD27*AE15 -> 0 | AI27: =AG27*AH15 -> 0 | AL27: =AJ27*AK15 -> 0 | AO27: =AM27*AN15 -> 0 | AR27: =AP27*AQ15 -> 0 | AU27: =AS27*AT15 -> 0 | AX27: =AV27*AW15 -> 0 | BA27: =AY27*AZ15 -> 0 | BD27: =BB27*BC15 -> 0 | BG27: =BE27*BF15 -> 0 | BJ27: =BH27*BI15 -> 0 | BM27: =BK27*BL15 -> 0 | BP27: =BN27*BO15 -> 0 | BS27: =BQ27*BR15 -> 0 | BV27: =BT27*BU15 -> 0 | BY27: =BW27*BX15 -> 0 | CB27: =BZ27*CA15 -> 0 | CE27: =CC27*CD15 -> 0 | CH27: =CF27*CG15 -> 0 | CK27: =CI27*CJ15 -> 0 | CN27: =CL27*CM15 -> 0 | CQ27: =CO27*CP15 -> 0 | CT27: =CR27*CS15 -> 0 | CW27: =CU27*CV15 -> 0 | CZ27: =CX27*CY15 -> 0 | DC27: =DA27*DB15 -> 0 | DF27: =DD27*DE15 -> 0 | DI27: =DG27*DH15 -> 0 | DL27: =DJ27*DK15 -> 0 | DO27: =DM27*DN15 -> 0 | DR27: =DP27*DQ15 -> 0 | DU27: =DS27*DT15 -> 0 | DX27: =DV27*DW15 -> 0 | EA27: =DY27*DZ15 -> 0 | ED27: =EB27*EC15 -> 0 | EG27: =EE27*EF15 -> 0 | EJ27: =EH27*EI15 -> 0 | EM27: =EK27*EL15 -> 0 | EP27: =EN27*EO15 -> 0 | ES27: =EQ27*ER15 -> 0 | EV27: =ET27*EU15 -> 0 | EY27: =EW27*EX15 -> 0 | FB27: =EZ27*FA15 -> 0 | FE27: =FC27*FD15 -> 0 | FH27: =FF27*FG15 -> 0 | FK27: =FI27*FJ15 -> 0 | FN27: =FL27*FM15 -> 0 | FQ27: =FO27*FP15 -> 0 | FT27: =FR27*FS15 -> 0 | FW27: =FU27*FV15 -> 0 | FZ27: =FX27*FY15 -> 0 | GC27: =GA27*GB15 -> 0 | GF27: =GD27*GE15 -> 0 | GI27: =GG27*GH15 -> 0 | GL27: =GJ27*GK15 -> 0 | GO27: =GM27*GN15 -> 0 | GR27: =GP27*GQ15 -> 0 | GU27: =GS27*GT15 -> 0 | GX27: =GV27*GW15 -> 0 | HA27: =GY27*GZ15 -> 0 | HD27: =HB27*HC15 -> 0 | HG27: =HE27*HF15 -> 0 | HJ27: =HH27*HI15 -> 0 | HM27: =HK27*HL15 -> 0 | HP27: =HN27*HO15 -> 0 | HS27: =HQ27*HR15 -> 0 | HV27: =HT27*HU15 -> 0 | HY27: =HW27*HX15 -> 0 | IB27: =HZ27*IA15 -> 0 | IE27: =IC27*ID15 -> 0 | IH27: =IF27*IG15 -> 0
B28: 0 | E28: =C28*D15 -> 0 | H28: =F28*G15 -> 0 | K28: =I28*J15 -> 0 | N28: =L28*M15 -> 0 | Q28: =O28*P15 -> 0 | T28: =R28*S15 -> 0 | W28: =U28*V15 -> 0 | Z28: =X28*Y15 -> 0 | AC28: =AA28*AB15 -> 0 | AF28: =AD28*AE15 -> 0 | AI28: =AG28*AH15 -> 0 | AL28: =AJ28*AK15 -> 0 | AO28: =AM28*AN15 -> 0 | AR28: =AP28*AQ15 -> 0 | AU28: =AS28*AT15 -> 0 | AX28: =AV28*AW15 -> 0 | BA28: =AY28*AZ15 -> 0 | BD28: =BB28*BC15 -> 0 | BG28: =BE28*BF15 -> 0 | BJ28: =BH28*BI15 -> 0 | BM28: =BK28*BL15 -> 0 | BP28: =BN28*BO15 -> 0 | BS28: =BQ28*BR15 -> 0 | BV28: =BT28*BU15 -> 0 | BY28: =BW28*BX15 -> 0 | CB28: =BZ28*CA15 -> 0 | CE28: =CC28*CD15 -> 0 | CH28: =CF28*CG15 -> 0 | CK28: =CI28*CJ15 -> 0 | CN28: =CL28*CM15 -> 0 | CQ28: =CO28*CP15 -> 0 | CT28: =CR28*CS15 -> 0 | CW28: =CU28*CV15 -> 0 | CZ28: =CX28*CY15 -> 0 | DC28: =DA28*DB15 -> 0 | DF28: =DD28*DE15 -> 0 | DI28: =DG28*DH15 -> 0 | DL28: =DJ28*DK15 -> 0 | DO28: =DM28*DN15 -> 0 | DR28: =DP28*DQ15 -> 0 | DU28: =DS28*DT15 -> 0 | DX28: =DV28*DW15 -> 0 | EA28: =DY28*DZ15 -> 0 | ED28: =EB28*EC15 -> 0 | EG28: =EE28*EF15 -> 0 | EJ28: =EH28*EI15 -> 0 | EM28: =EK28*EL15 -> 0 | EP28: =EN28*EO15 -> 0 | ES28: =EQ28*ER15 -> 0 | EV28: =ET28*EU15 -> 0 | EY28: =EW28*EX15 -> 0 | FB28: =EZ28*FA15 -> 0 | FE28: =FC28*FD15 -> 0 | FH28: =FF28*FG15 -> 0 | FK28: =FI28*FJ15 -> 0 | FN28: =FL28*FM15 -> 0 | FQ28: =FO28*FP15 -> 0 | FT28: =FR28*FS15 -> 0 | FW28: =FU28*FV15 -> 0 | FZ28: =FX28*FY15 -> 0 | GC28: =GA28*GB15 -> 0 | GF28: =GD28*GE15 -> 0 | GI28: =GG28*GH15 -> 0 | GL28: =GJ28*GK15 -> 0 | GO28: =GM28*GN15 -> 0 | GR28: =GP28*GQ15 -> 0 | GU28: =GS28*GT15 -> 0 | GX28: =GV28*GW15 -> 0 | HA28: =GY28*GZ15 -> 0 | HD28: =HB28*HC15 -> 0 | HG28: =HE28*HF15 -> 0 | HJ28: =HH28*HI15 -> 0 | HM28: =HK28*HL15 -> 0 | HP28: =HN28*HO15 -> 0 | HS28: =HQ28*HR15 -> 0 | HV28: =HT28*HU15 -> 0 | HY28: =HW28*HX15 -> 0 | IB28: =HZ28*IA15 -> 0 | IE28: =IC28*ID15 -> 0 | IH28: =IF28*IG15 -> 0
B29: 0 | E29: =C29*D15 -> 0 | H29: =F29*G15 -> 0 | K29: =I29*J15 -> 0 | N29: =L29*M15 -> 0 | Q29: =O29*P15 -> 0 | T29: =R29*S15 -> 0 | W29: =U29*V15 -> 0 | Z29: =X29*Y15 -> 0 | AC29: =AA29*AB15 -> 0 | AF29: =AD29*AE15 -> 0 | AI29: =AG29*AH15 -> 0 | AL29: =AJ29*AK15 -> 0 | AO29: =AM29*AN15 -> 0 | AR29: =AP29*AQ15 -> 0 | AU29: =AS29*AT15 -> 0 | AX29: =AV29*AW15 -> 0 | BA29: =AY29*AZ15 -> 0 | BD29: =BB29*BC15 -> 0 | BG29: =BE29*BF15 -> 0 | BJ29: =BH29*BI15 -> 0 | BM29: =BK29*BL15 -> 0 | BP29: =BN29*BO15 -> 0 | BS29: =BQ29*BR15 -> 0 | BV29: =BT29*BU15 -> 0 | BY29: =BW29*BX15 -> 0 | CB29: =BZ29*CA15 -> 0 | CE29: =CC29*CD15 -> 0 | CH29: =CF29*CG15 -> 0 | CK29: =CI29*CJ15 -> 0 | CN29: =CL29*CM15 -> 0 | CQ29: =CO29*CP15 -> 0 | CT29: =CR29*CS15 -> 0 | CW29: =CU29*CV15 -> 0 | CZ29: =CX29*CY15 -> 0 | DC29: =DA29*DB15 -> 0 | DF29: =DD29*DE15 -> 0 | DI29: =DG29*DH15 -> 0 | DL29: =DJ29*DK15 -> 0 | DO29: =DM29*DN15 -> 0 | DR29: =DP29*DQ15 -> 0 | DU29: =DS29*DT15 -> 0 | DX29: =DV29*DW15 -> 0 | EA29: =DY29*DZ15 -> 0 | ED29: =EB29*EC15 -> 0 | EG29: =EE29*EF15 -> 0 | EJ29: =EH29*EI15 -> 0 | EM29: =EK29*EL15 -> 0 | EP29: =EN29*EO15 -> 0 | ES29: =EQ29*ER15 -> 0 | EV29: =ET29*EU15 -> 0 | EY29: =EW29*EX15 -> 0 | FB29: =EZ29*FA15 -> 0 | FE29: =FC29*FD15 -> 0 | FH29: =FF29*FG15 -> 0 | FK29: =FI29*FJ15 -> 0 | FN29: =FL29*FM15 -> 0 | FQ29: =FO29*FP15 -> 0 | FT29: =FR29*FS15 -> 0 | FW29: =FU29*FV15 -> 0 | FZ29: =FX29*FY15 -> 0 | GC29: =GA29*GB15 -> 0 | GF29: =GD29*GE15 -> 0 | GI29: =GG29*GH15 -> 0 | GL29: =GJ29*GK15 -> 0 | GO29: =GM29*GN15 -> 0 | GR29: =GP29*GQ15 -> 0 | GU29: =GS29*GT15 -> 0 | GX29: =GV29*GW15 -> 0 | HA29: =GY29*GZ15 -> 0 | HD29: =HB29*HC15 -> 0 | HG29: =HE29*HF15 -> 0 | HJ29: =HH29*HI15 -> 0 | HM29: =HK29*HL15 -> 0 | HP29: =HN29*HO15 -> 0 | HS29: =HQ29*HR15 -> 0 | HV29: =HT29*HU15 -> 0 | HY29: =HW29*HX15 -> 0 | IB29: =HZ29*IA15 -> 0 | IE29: =IC29*ID15 -> 0 | IH29: =IF29*IG15 -> 0
B30: 0 | E30: =C30*D15 -> 0 | H30: =F30*G15 -> 0 | K30: =I30*J15 -> 0 | N30: =L30*M15 -> 0 | Q30: =O30*P15 -> 0 | T30: =R30*S15 -> 0 | W30: =U30*V15 -> 0 | Z30: =X30*Y15 -> 0 | AC30: =AA30*AB15 -> 0 | AF30: =AD30*AE15 -> 0 | AI30: =AG30*AH15 -> 0 | AL30: =AJ30*AK15 -> 0 | AO30: =AM30*AN15 -> 0 | AR30: =AP30*AQ15 -> 0 | AU30: =AS30*AT15 -> 0 | AX30: =AV30*AW15 -> 0 | BA30: =AY30*AZ15 -> 0 | BD30: =BB30*BC15 -> 0 | BG30: =BE30*BF15 -> 0 | BJ30: =BH30*BI15 -> 0 | BM30: =BK30*BL15 -> 0 | BP30: =BN30*BO15 -> 0 | BS30: =BQ30*BR15 -> 0 | BV30: =BT30*BU15 -> 0 | BY30: =BW30*BX15 -> 0 | CB30: =BZ30*CA15 -> 0 | CE30: =CC30*CD15 -> 0 | CH30: =CF30*CG15 -> 0 | CK30: =CI30*CJ15 -> 0 | CN30: =CL30*CM15 -> 0 | CQ30: =CO30*CP15 -> 0 | CT30: =CR30*CS15 -> 0 | CW30: =CU30*CV15 -> 0 | CZ30: =CX30*CY15 -> 0 | DC30: =DA30*DB15 -> 0 | DF30: =DD30*DE15 -> 0 | DI30: =DG30*DH15 -> 0 | DL30: =DJ30*DK15 -> 0 | DO30: =DM30*DN15 -> 0 | DR30: =DP30*DQ15 -> 0 | DU30: =DS30*DT15 -> 0 | DX30: =DV30*DW15 -> 0 | EA30: =DY30*DZ15 -> 0 | ED30: =EB30*EC15 -> 0 | EG30: =EE30*EF15 -> 0 | EJ30: =EH30*EI15 -> 0 | EM30: =EK30*EL15 -> 0 | EP30: =EN30*EO15 -> 0 | ES30: =EQ30*ER15 -> 0 | EV30: =ET30*EU15 -> 0 | EY30: =EW30*EX15 -> 0 | FB30: =EZ30*FA15 -> 0 | FE30: =FC30*FD15 -> 0 | FH30: =FF30*FG15 -> 0 | FK30: =FI30*FJ15 -> 0 | FN30: =FL30*FM15 -> 0 | FQ30: =FO30*FP15 -> 0 | FT30: =FR30*FS15 -> 0 | FW30: =FU30*FV15 -> 0 | FZ30: =FX30*FY15 -> 0 | GC30: =GA30*GB15 -> 0 | GF30: =GD30*GE15 -> 0 | GI30: =GG30*GH15 -> 0 | GL30: =GJ30*GK15 -> 0 | GO30: =GM30*GN15 -> 0 | GR30: =GP30*GQ15 -> 0 | GU30: =GS30*GT15 -> 0 | GX30: =GV30*GW15 -> 0 | HA30: =GY30*GZ15 -> 0 | HD30: =HB30*HC15 -> 0 | HG30: =HE30*HF15 -> 0 | HJ30: =HH30*HI15 -> 0 | HM30: =HK30*HL15 -> 0 | HP30: =HN30*HO15 -> 0 | HS30: =HQ30*HR15 -> 0 | HV30: =HT30*HU15 -> 0 | HY30: =HW30*HX15 -> 0 | IB30: =HZ30*IA15 -> 0 | IE30: =IC30*ID15 -> 0 | IH30: =IF30*IG15 -> 0
B31: 0 | E31: =C31*D15 -> 0 | H31: =F31*G15 -> 0 | K31: =I31*J15 -> 0 | N31: =L31*M15 -> 0 | Q31: =O31*P15 -> 0 | T31: =R31*S15 -> 0 | W31: =U31*V15 -> 0 | Z31: =X31*Y15 -> 0 | AC31: =AA31*AB15 -> 0 | AF31: =AD31*AE15 -> 0 | AI31: =AG31*AH15 -> 0 | AL31: =AJ31*AK15 -> 0 | AO31: =AM31*AN15 -> 0 | AR31: =AP31*AQ15 -> 0 | AU31: =AS31*AT15 -> 0 | AX31: =AV31*AW15 -> 0 | BA31: =AY31*AZ15 -> 0 | BD31: =BB31*BC15 -> 0 | BG31: =BE31*BF15 -> 0 | BJ31: =BH31*BI15 -> 0 | BM31: =BK31*BL15 -> 0 | BP31: =BN31*BO15 -> 0 | BS31: =BQ31*BR15 -> 0 | BV31: =BT31*BU15 -> 0 | BY31: =BW31*BX15 -> 0 | CB31: =BZ31*CA15 -> 0 | CE31: =CC31*CD15 -> 0 | CH31: =CF31*CG15 -> 0 | CK31: =CI31*CJ15 -> 0 | CN31: =CL31*CM15 -> 0 | CQ31: =CO31*CP15 -> 0 | CT31: =CR31*CS15 -> 0 | CW31: =CU31*CV15 -> 0 | CZ31: =CX31*CY15 -> 0 | DC31: =DA31*DB15 -> 0 | DF31: =DD31*DE15 -> 0 | DI31: =DG31*DH15 -> 0 | DL31: =DJ31*DK15 -> 0 | DO31: =DM31*DN15 -> 0 | DR31: =DP31*DQ15 -> 0 | DU31: =DS31*DT15 -> 0 | DX31: =DV31*DW15 -> 0 | EA31: =DY31*DZ15 -> 0 | ED31: =EB31*EC15 -> 0 | EG31: =EE31*EF15 -> 0 | EJ31: =EH31*EI15 -> 0 | EM31: =EK31*EL15 -> 0 | EP31: =EN31*EO15 -> 0 | ES31: =EQ31*ER15 -> 0 | EV31: =ET31*EU15 -> 0 | EY31: =EW31*EX15 -> 0 | FB31: =EZ31*FA15 -> 0 | FE31: =FC31*FD15 -> 0 | FH31: =FF31*FG15 -> 0 | FK31: =FI31*FJ15 -> 0 | FN31: =FL31*FM15 -> 0 | FQ31: =FO31*FP15 -> 0 | FT31: =FR31*FS15 -> 0 | FW31: =FU31*FV15 -> 0 | FZ31: =FX31*FY15 -> 0 | GC31: =GA31*GB15 -> 0 | GF31: =GD31*GE15 -> 0 | GI31: =GG31*GH15 -> 0 | GL31: =GJ31*GK15 -> 0 | GO31: =GM31*GN15 -> 0 | GR31: =GP31*GQ15 -> 0 | GU31: =GS31*GT15 -> 0 | GX31: =GV31*GW15 -> 0 | HA31: =GY31*GZ15 -> 0 | HD31: =HB31*HC15 -> 0 | HG31: =HE31*HF15 -> 0 | HJ31: =HH31*HI15 -> 0 | HM31: =HK31*HL15 -> 0 | HP31: =HN31*HO15 -> 0 | HS31: =HQ31*HR15 -> 0 | HV31: =HT31*HU15 -> 0 | HY31: =HW31*HX15 -> 0 | IB31: =HZ31*IA15 -> 0 | IE31: =IC31*ID15 -> 0 | IH31: =IF31*IG15 -> 0
B32: 0 | E32: =C32*D15 -> 0 | H32: =F32*G15 -> 0 | K32: =I32*J15 -> 0 | N32: =L32*M15 -> 0 | Q32: =O32*P15 -> 0 | T32: =R32*S15 -> 0 | W32: =U32*V15 -> 0 | Z32: =X32*Y15 -> 0 | AC32: =AA32*AB15 -> 0 | AF32: =AD32*AE15 -> 0 | AI32: =AG32*AH15 -> 0 | AL32: =AJ32*AK15 -> 0 | AO32: =AM32*AN15 -> 0 | AR32: =AP32*AQ15 -> 0 | AU32: =AS32*AT15 -> 0 | AX32: =AV32*AW15 -> 0 | BA32: =AY32*AZ15 -> 0 | BD32: =BB32*BC15 -> 0 | BG32: =BE32*BF15 -> 0 | BJ32: =BH32*BI15 -> 0 | BM32: =BK32*BL15 -> 0 | BP32: =BN32*BO15 -> 0 | BS32: =BQ32*BR15 -> 0 | BV32: =BT32*BU15 -> 0 | BY32: =BW32*BX15 -> 0 | CB32: =BZ32*CA15 -> 0 | CE32: =CC32*CD15 -> 0 | CH32: =CF32*CG15 -> 0 | CK32: =CI32*CJ15 -> 0 | CN32: =CL32*CM15 -> 0 | CQ32: =CO32*CP15 -> 0 | CT32: =CR32*CS15 -> 0 | CW32: =CU32*CV15 -> 0 | CZ32: =CX32*CY15 -> 0 | DC32: =DA32*DB15 -> 0 | DF32: =DD32*DE15 -> 0 | DI32: =DG32*DH15 -> 0 | DL32: =DJ32*DK15 -> 0 | DO32: =DM32*DN15 -> 0 | DR32: =DP32*DQ15 -> 0 | DU32: =DS32*DT15 -> 0 | DX32: =DV32*DW15 -> 0 | EA32: =DY32*DZ15 -> 0 | ED32: =EB32*EC15 -> 0 | EG32: =EE32*EF15 -> 0 | EJ32: =EH32*EI15 -> 0 | EM32: =EK32*EL15 -> 0 | EP32: =EN32*EO15 -> 0 | ES32: =EQ32*ER15 -> 0 | EV32: =ET32*EU15 -> 0 | EY32: =EW32*EX15 -> 0 | FB32: =EZ32*FA15 -> 0 | FE32: =FC32*FD15 -> 0 | FH32: =FF32*FG15 -> 0 | FK32: =FI32*FJ15 -> 0 | FN32: =FL32*FM15 -> 0 | FQ32: =FO32*FP15 -> 0 | FT32: =FR32*FS15 -> 0 | FW32: =FU32*FV15 -> 0 | FZ32: =FX32*FY15 -> 0 | GC32: =GA32*GB15 -> 0 | GF32: =GD32*GE15 -> 0 | GI32: =GG32*GH15 -> 0 | GL32: =GJ32*GK15 -> 0 | GO32: =GM32*GN15 -> 0 | GR32: =GP32*GQ15 -> 0 | GU32: =GS32*GT15 -> 0 | GX32: =GV32*GW15 -> 0 | HA32: =GY32*GZ15 -> 0 | HD32: =HB32*HC15 -> 0 | HG32: =HE32*HF15 -> 0 | HJ32: =HH32*HI15 -> 0 | HM32: =HK32*HL15 -> 0 | HP32: =HN32*HO15 -> 0 | HS32: =HQ32*HR15 -> 0 | HV32: =HT32*HU15 -> 0 | HY32: =HW32*HX15 -> 0 | IB32: =HZ32*IA15 -> 0 | IE32: =IC32*ID15 -> 0 | IH32: =IF32*IG15 -> 0
B33: 0 | E33: =C33*D15 -> 0 | H33: =F33*G15 -> 0 | K33: =I33*J15 -> 0 | N33: =L33*M15 -> 0 | Q33: =O33*P15 -> 0 | T33: =R33*S15 -> 0 | W33: =U33*V15 -> 0 | Z33: =X33*Y15 -> 0 | AC33: =AA33*AB15 -> 0 | AF33: =AD33*AE15 -> 0 | AI33: =AG33*AH15 -> 0 | AL33: =AJ33*AK15 -> 0 | AO33: =AM33*AN15 -> 0 | AR33: =AP33*AQ15 -> 0 | AU33: =AS33*AT15 -> 0 | AX33: =AV33*AW15 -> 0 | BA33: =AY33*AZ15 -> 0 | BD33: =BB33*BC15 -> 0 | BG33: =BE33*BF15 -> 0 | BJ33: =BH33*BI15 -> 0 | BM33: =BK33*BL15 -> 0 | BP33: =BN33*BO15 -> 0 | BS33: =BQ33*BR15 -> 0 | BV33: =BT33*BU15 -> 0 | BY33: =BW33*BX15 -> 0 | CB33: =BZ33*CA15 -> 0 | CE33: =CC33*CD15 -> 0 | CH33: =CF33*CG15 -> 0 | CK33: =CI33*CJ15 -> 0 | CN33: =CL33*CM15 -> 0 | CQ33: =CO33*CP15 -> 0 | CT33: =CR33*CS15 -> 0 | CW33: =CU33*CV15 -> 0 | CZ33: =CX33*CY15 -> 0 | DC33: =DA33*DB15 -> 0 | DF33: =DD33*DE15 -> 0 | DI33: =DG33*DH15 -> 0 | DL33: =DJ33*DK15 -> 0 | DO33: =DM33*DN15 -> 0 | DR33: =DP33*DQ15 -> 0 | DU33: =DS33*DT15 -> 0 | DX33: =DV33*DW15 -> 0 | EA33: =DY33*DZ15 -> 0 | ED33: =EB33*EC15 -> 0 | EG33: =EE33*EF15 -> 0 | EJ33: =EH33*EI15 -> 0 | EM33: =EK33*EL15 -> 0 | EP33: =EN33*EO15 -> 0 | ES33: =EQ33*ER15 -> 0 | EV33: =ET33*EU15 -> 0 | EY33: =EW33*EX15 -> 0 | FB33: =EZ33*FA15 -> 0 | FE33: =FC33*FD15 -> 0 | FH33: =FF33*FG15 -> 0 | FK33: =FI33*FJ15 -> 0 | FN33: =FL33*FM15 -> 0 | FQ33: =FO33*FP15 -> 0 | FT33: =FR33*FS15 -> 0 | FW33: =FU33*FV15 -> 0 | FZ33: =FX33*FY15 -> 0 | GC33: =GA33*GB15 -> 0 | GF33: =GD33*GE15 -> 0 | GI33: =GG33*GH15 -> 0 | GL33: =GJ33*GK15 -> 0 | GO33: =GM33*GN15 -> 0 | GR33: =GP33*GQ15 -> 0 | GU33: =GS33*GT15 -> 0 | GX33: =GV33*GW15 -> 0 | HA33: =GY33*GZ15 -> 0 | HD33: =HB33*HC15 -> 0 | HG33: =HE33*HF15 -> 0 | HJ33: =HH33*HI15 -> 0 | HM33: =HK33*HL15 -> 0 | HP33: =HN33*HO15 -> 0 | HS33: =HQ33*HR15 -> 0 | HV33: =HT33*HU15 -> 0 | HY33: =HW33*HX15 -> 0 | IB33: =HZ33*IA15 -> 0 | IE33: =IC33*ID15 -> 0 | IH33: =IF33*IG15 -> 0
B34: 0 | E34: =C34*D15 -> 0 | H34: =F34*G15 -> 0 | K34: =I34*J15 -> 0 | N34: =L34*M15 -> 0 | Q34: =O34*P15 -> 0 | T34: =R34*S15 -> 0 | W34: =U34*V15 -> 0 | Z34: =X34*Y15 -> 0 | AC34: =AA34*AB15 -> 0 | AF34: =AD34*AE15 -> 0 | AI34: =AG34*AH15 -> 0 | AL34: =AJ34*AK15 -> 0 | AO34: =AM34*AN15 -> 0 | AR34: =AP34*AQ15 -> 0 | AU34: =AS34*AT15 -> 0 | AX34: =AV34*AW15 -> 0 | BA34: =AY34*AZ15 -> 0 | BD34: =BB34*BC15 -> 0 | BG34: =BE34*BF15 -> 0 | BJ34: =BH34*BI15 -> 0 | BM34: =BK34*BL15 -> 0 | BP34: =BN34*BO15 -> 0 | BS34: =BQ34*BR15 -> 0 | BV34: =BT34*BU15 -> 0 | BY34: =BW34*BX15 -> 0 | CB34: =BZ34*CA15 -> 0 | CE34: =CC34*CD15 -> 0 | CH34: =CF34*CG15 -> 0 | CK34: =CI34*CJ15 -> 0 | CN34: =CL34*CM15 -> 0 | CQ34: =CO34*CP15 -> 0 | CT34: =CR34*CS15 -> 0 | CW34: =CU34*CV15 -> 0 | CZ34: =CX34*CY15 -> 0 | DC34: =DA34*DB15 -> 0 | DF34: =DD34*DE15 -> 0 | DI34: =DG34*DH15 -> 0 | DL34: =DJ34*DK15 -> 0 | DO34: =DM34*DN15 -> 0 | DR34: =DP34*DQ15 -> 0 | DU34: =DS34*DT15 -> 0 | DX34: =DV34*DW15 -> 0 | EA34: =DY34*DZ15 -> 0 | ED34: =EB34*EC15 -> 0 | EG34: =EE34*EF15 -> 0 | EJ34: =EH34*EI15 -> 0 | EM34: =EK34*EL15 -> 0 | EP34: =EN34*EO15 -> 0 | ES34: =EQ34*ER15 -> 0 | EV34: =ET34*EU15 -> 0 | EY34: =EW34*EX15 -> 0 | FB34: =EZ34*FA15 -> 0 | FE34: =FC34*FD15 -> 0 | FH34: =FF34*FG15 -> 0 | FK34: =FI34*FJ15 -> 0 | FN34: =FL34*FM15 -> 0 | FQ34: =FO34*FP15 -> 0 | FT34: =FR34*FS15 -> 0 | FW34: =FU34*FV15 -> 0 | FZ34: =FX34*FY15 -> 0 | GC34: =GA34*GB15 -> 0 | GF34: =GD34*GE15 -> 0 | GI34: =GG34*GH15 -> 0 | GL34: =GJ34*GK15 -> 0 | GO34: =GM34*GN15 -> 0 | GR34: =GP34*GQ15 -> 0 | GU34: =GS34*GT15 -> 0 | GX34: =GV34*GW15 -> 0 | HA34: =GY34*GZ15 -> 0 | HD34: =HB34*HC15 -> 0 | HG34: =HE34*HF15 -> 0 | HJ34: =HH34*HI15 -> 0 | HM34: =HK34*HL15 -> 0 | HP34: =HN34*HO15 -> 0 | HS34: =HQ34*HR15 -> 0 | HV34: =HT34*HU15 -> 0 | HY34: =HW34*HX15 -> 0 | IB34: =HZ34*IA15 -> 0 | IE34: =IC34*ID15 -> 0 | IH34: =IF34*IG15 -> 0
B35: 0 | E35: =C35*D15 -> 0 | H35: =F35*G15 -> 0 | K35: =I35*J15 -> 0 | N35: =L35*M15 -> 0 | Q35: =O35*P15 -> 0 | T35: =R35*S15 -> 0 | W35: =U35*V15 -> 0 | Z35: =X35*Y15 -> 0 | AC35: =AA35*AB15 -> 0 | AF35: =AD35*AE15 -> 0 | AI35: =AG35*AH15 -> 0 | AL35: =AJ35*AK15 -> 0 | AO35: =AM35*AN15 -> 0 | AR35: =AP35*AQ15 -> 0 | AU35: =AS35*AT15 -> 0 | AX35: =AV35*AW15 -> 0 | BA35: =AY35*AZ15 -> 0 | BD35: =BB35*BC15 -> 0 | BG35: =BE35*BF15 -> 0 | BJ35: =BH35*BI15 -> 0 | BM35: =BK35*BL15 -> 0 | BP35: =BN35*BO15 -> 0 | BS35: =BQ35*BR15 -> 0 | BV35: =BT35*BU15 -> 0 | BY35: =BW35*BX15 -> 0 | CB35: =BZ35*CA15 -> 0 | CE35: =CC35*CD15 -> 0 | CH35: =CF35*CG15 -> 0 | CK35: =CI35*CJ15 -> 0 | CN35: =CL35*CM15 -> 0 | CQ35: =CO35*CP15 -> 0 | CT35: =CR35*CS15 -> 0 | CW35: =CU35*CV15 -> 0 | CZ35: =CX35*CY15 -> 0 | DC35: =DA35*DB15 -> 0 | DF35: =DD35*DE15 -> 0 | DI35: =DG35*DH15 -> 0 | DL35: =DJ35*DK15 -> 0 | DO35: =DM35*DN15 -> 0 | DR35: =DP35*DQ15 -> 0 | DU35: =DS35*DT15 -> 0 | DX35: =DV35*DW15 -> 0 | EA35: =DY35*DZ15 -> 0 | ED35: =EB35*EC15 -> 0 | EG35: =EE35*EF15 -> 0 | EJ35: =EH35*EI15 -> 0 | EM35: =EK35*EL15 -> 0 | EP35: =EN35*EO15 -> 0 | ES35: =EQ35*ER15 -> 0 | EV35: =ET35*EU15 -> 0 | EY35: =EW35*EX15 -> 0 | FB35: =EZ35*FA15 -> 0 | FE35: =FC35*FD15 -> 0 | FH35: =FF35*FG15 -> 0 | FK35: =FI35*FJ15 -> 0 | FN35: =FL35*FM15 -> 0 | FQ35: =FO35*FP15 -> 0 | FT35: =FR35*FS15 -> 0 | FW35: =FU35*FV15 -> 0 | FZ35: =FX35*FY15 -> 0 | GC35: =GA35*GB15 -> 0 | GF35: =GD35*GE15 -> 0 | GI35: =GG35*GH15 -> 0 | GL35: =GJ35*GK15 -> 0 | GO35: =GM35*GN15 -> 0 | GR35: =GP35*GQ15 -> 0 | GU35: =GS35*GT15 -> 0 | GX35: =GV35*GW15 -> 0 | HA35: =GY35*GZ15 -> 0 | HD35: =HB35*HC15 -> 0 | HG35: =HE35*HF15 -> 0 | HJ35: =HH35*HI15 -> 0 | HM35: =HK35*HL15 -> 0 | HP35: =HN35*HO15 -> 0 | HS35: =HQ35*HR15 -> 0 | HV35: =HT35*HU15 -> 0 | HY35: =HW35*HX15 -> 0 | IB35: =HZ35*IA15 -> 0 | IE35: =IC35*ID15 -> 0 | IH35: =IF35*IG15 -> 0
B36: 0 | E36: =C36*D15 -> 0 | H36: =F36*G15 -> 0 | K36: =I36*J15 -> 0 | N36: =L36*M15 -> 0 | Q36: =O36*P15 -> 0 | T36: =R36*S15 -> 0 | W36: =U36*V15 -> 0 | Z36: =X36*Y15 -> 0 | AC36: =AA36*AB15 -> 0 | AF36: =AD36*AE15 -> 0 | AI36: =AG36*AH15 -> 0 | AL36: =AJ36*AK15 -> 0 | AO36: =AM36*AN15 -> 0 | AR36: =AP36*AQ15 -> 0 | AU36: =AS36*AT15 -> 0 | AX36: =AV36*AW15 -> 0 | BA36: =AY36*AZ15 -> 0 | BD36: =BB36*BC15 -> 0 | BG36: =BE36*BF15 -> 0 | BJ36: =BH36*BI15 -> 0 | BM36: =BK36*BL15 -> 0 | BP36: =BN36*BO15 -> 0 | BS36: =BQ36*BR15 -> 0 | BV36: =BT36*BU15 -> 0 | BY36: =BW36*BX15 -> 0 | CB36: =BZ36*CA15 -> 0 | CE36: =CC36*CD15 -> 0 | CH36: =CF36*CG15 -> 0 | CK36: =CI36*CJ15 -> 0 | CN36: =CL36*CM15 -> 0 | CQ36: =CO36*CP15 -> 0 | CT36: =CR36*CS15 -> 0 | CW36: =CU36*CV15 -> 0 | CZ36: =CX36*CY15 -> 0 | DC36: =DA36*DB15 -> 0 | DF36: =DD36*DE15 -> 0 | DI36: =DG36*DH15 -> 0 | DL36: =DJ36*DK15 -> 0 | DO36: =DM36*DN15 -> 0 | DR36: =DP36*DQ15 -> 0 | DU36: =DS36*DT15 -> 0 | DX36: =DV36*DW15 -> 0 | EA36: =DY36*DZ15 -> 0 | ED36: =EB36*EC15 -> 0 | EG36: =EE36*EF15 -> 0 | EJ36: =EH36*EI15 -> 0 | EM36: =EK36*EL15 -> 0 | EP36: =EN36*EO15 -> 0 | ES36: =EQ36*ER15 -> 0 | EV36: =ET36*EU15 -> 0 | EY36: =EW36*EX15 -> 0 | FB36: =EZ36*FA15 -> 0 | FE36: =FC36*FD15 -> 0 | FH36: =FF36*FG15 -> 0 | FK36: =FI36*FJ15 -> 0 | FN36: =FL36*FM15 -> 0 | FQ36: =FO36*FP15 -> 0 | FT36: =FR36*FS15 -> 0 | FW36: =FU36*FV15 -> 0 | FZ36: =FX36*FY15 -> 0 | GC36: =GA36*GB15 -> 0 | GF36: =GD36*GE15 -> 0 | GI36: =GG36*GH15 -> 0 | GL36: =GJ36*GK15 -> 0 | GO36: =GM36*GN15 -> 0 | GR36: =GP36*GQ15 -> 0 | GU36: =GS36*GT15 -> 0 | GX36: =GV36*GW15 -> 0 | HA36: =GY36*GZ15 -> 0 | HD36: =HB36*HC15 -> 0 | HG36: =HE36*HF15 -> 0 | HJ36: =HH36*HI15 -> 0 | HM36: =HK36*HL15 -> 0 | HP36: =HN36*HO15 -> 0 | HS36: =HQ36*HR15 -> 0 | HV36: =HT36*HU15 -> 0 | HY36: =HW36*HX15 -> 0 | IB36: =HZ36*IA15 -> 0 | IE36: =IC36*ID15 -> 0 | IH36: =IF36*IG15 -> 0
B37: 0 | E37: =C37*D15 -> 0 | H37: =F37*G15 -> 0 | K37: =I37*J15 -> 0 | N37: =L37*M15 -> 0 | Q37: =O37*P15 -> 0 | T37: =R37*S15 -> 0 | W37: =U37*V15 -> 0 | Z37: =X37*Y15 -> 0 | AC37: =AA37*AB15 -> 0 | AF37: =AD37*AE15 -> 0 | AI37: =AG37*AH15 -> 0 | AL37: =AJ37*AK15 -> 0 | AO37: =AM37*AN15 -> 0 | AR37: =AP37*AQ15 -> 0 | AU37: =AS37*AT15 -> 0 | AX37: =AV37*AW15 -> 0 | BA37: =AY37*AZ15 -> 0 | BD37: =BB37*BC15 -> 0 | BG37: =BE37*BF15 -> 0 | BJ37: =BH37*BI15 -> 0 | BM37: =BK37*BL15 -> 0 | BP37: =BN37*BO15 -> 0 | BS37: =BQ37*BR15 -> 0 | BV37: =BT37*BU15 -> 0 | BY37: =BW37*BX15 -> 0 | CB37: =BZ37*CA15 -> 0 | CE37: =CC37*CD15 -> 0 | CH37: =CF37*CG15 -> 0 | CK37: =CI37*CJ15 -> 0 | CN37: =CL37*CM15 -> 0 | CQ37: =CO37*CP15 -> 0 | CT37: =CR37*CS15 -> 0 | CW37: =CU37*CV15 -> 0 | CZ37: =CX37*CY15 -> 0 | DC37: =DA37*DB15 -> 0 | DF37: =DD37*DE15 -> 0 | DI37: =DG37*DH15 -> 0 | DL37: =DJ37*DK15 -> 0 | DO37: =DM37*DN15 -> 0 | DR37: =DP37*DQ15 -> 0 | DU37: =DS37*DT15 -> 0 | DX37: =DV37*DW15 -> 0 | EA37: =DY37*DZ15 -> 0 | ED37: =EB37*EC15 -> 0 | EG37: =EE37*EF15 -> 0 | EJ37: =EH37*EI15 -> 0 | EM37: =EK37*EL15 -> 0 | EP37: =EN37*EO15 -> 0 | ES37: =EQ37*ER15 -> 0 | EV37: =ET37*EU15 -> 0 | EY37: =EW37*EX15 -> 0 | FB37: =EZ37*FA15 -> 0 | FE37: =FC37*FD15 -> 0 | FH37: =FF37*FG15 -> 0 | FK37: =FI37*FJ15 -> 0 | FN37: =FL37*FM15 -> 0 | FQ37: =FO37*FP15 -> 0 | FT37: =FR37*FS15 -> 0 | FW37: =FU37*FV15 -> 0 | FZ37: =FX37*FY15 -> 0 | GC37: =GA37*GB15 -> 0 | GF37: =GD37*GE15 -> 0 | GI37: =GG37*GH15 -> 0 | GL37: =GJ37*GK15 -> 0 | GO37: =GM37*GN15 -> 0 | GR37: =GP37*GQ15 -> 0 | GU37: =GS37*GT15 -> 0 | GX37: =GV37*GW15 -> 0 | HA37: =GY37*GZ15 -> 0 | HD37: =HB37*HC15 -> 0 | HG37: =HE37*HF15 -> 0 | HJ37: =HH37*HI15 -> 0 | HM37: =HK37*HL15 -> 0 | HP37: =HN37*HO15 -> 0 | HS37: =HQ37*HR15 -> 0 | HV37: =HT37*HU15 -> 0 | HY37: =HW37*HX15 -> 0 | IB37: =HZ37*IA15 -> 0 | IE37: =IC37*ID15 -> 0 | IH37: =IF37*IG15 -> 0
B38: 0 | E38: =C38*D15 -> 0 | H38: =F38*G15 -> 0 | K38: =I38*J15 -> 0 | N38: =L38*M15 -> 0 | Q38: =O38*P15 -> 0 | T38: =R38*S15 -> 0 | W38: =U38*V15 -> 0 | Z38: =X38*Y15 -> 0 | AC38: =AA38*AB15 -> 0 | AF38: =AD38*AE15 -> 0 | AI38: =AG38*AH15 -> 0 | AL38: =AJ38*AK15 -> 0 | AO38: =AM38*AN15 -> 0 | AR38: =AP38*AQ15 -> 0 | AU38: =AS38*AT15 -> 0 | AX38: =AV38*AW15 -> 0 | BA38: =AY38*AZ15 -> 0 | BD38: =BB38*BC15 -> 0 | BG38: =BE38*BF15 -> 0 | BJ38: =BH38*BI15 -> 0 | BM38: =BK38*BL15 -> 0 | BP38: =BN38*BO15 -> 0 | BS38: =BQ38*BR15 -> 0 | BV38: =BT38*BU15 -> 0 | BY38: =BW38*BX15 -> 0 | CB38: =BZ38*CA15 -> 0 | CE38: =CC38*CD15 -> 0 | CH38: =CF38*CG15 -> 0 | CK38: =CI38*CJ15 -> 0 | CN38: =CL38*CM15 -> 0 | CQ38: =CO38*CP15 -> 0 | CT38: =CR38*CS15 -> 0 | CW38: =CU38*CV15 -> 0 | CZ38: =CX38*CY15 -> 0 | DC38: =DA38*DB15 -> 0 | DF38: =DD38*DE15 -> 0 | DI38: =DG38*DH15 -> 0 | DL38: =DJ38*DK15 -> 0 | DO38: =DM38*DN15 -> 0 | DR38: =DP38*DQ15 -> 0 | DU38: =DS38*DT15 -> 0 | DX38: =DV38*DW15 -> 0 | EA38: =DY38*DZ15 -> 0 | ED38: =EB38*EC15 -> 0 | EG38: =EE38*EF15 -> 0 | EJ38: =EH38*EI15 -> 0 | EM38: =EK38*EL15 -> 0 | EP38: =EN38*EO15 -> 0 | ES38: =EQ38*ER15 -> 0 | EV38: =ET38*EU15 -> 0 | EY38: =EW38*EX15 -> 0 | FB38: =EZ38*FA15 -> 0 | FE38: =FC38*FD15 -> 0 | FH38: =FF38*FG15 -> 0 | FK38: =FI38*FJ15 -> 0 | FN38: =FL38*FM15 -> 0 | FQ38: =FO38*FP15 -> 0 | FT38: =FR38*FS15 -> 0 | FW38: =FU38*FV15 -> 0 | FZ38: =FX38*FY15 -> 0 | GC38: =GA38*GB15 -> 0 | GF38: =GD38*GE15 -> 0 | GI38: =GG38*GH15 -> 0 | GL38: =GJ38*GK15 -> 0 | GO38: =GM38*GN15 -> 0 | GR38: =GP38*GQ15 -> 0 | GU38: =GS38*GT15 -> 0 | GX38: =GV38*GW15 -> 0 | HA38: =GY38*GZ15 -> 0 | HD38: =HB38*HC15 -> 0 | HG38: =HE38*HF15 -> 0 | HJ38: =HH38*HI15 -> 0 | HM38: =HK38*HL15 -> 0 | HP38: =HN38*HO15 -> 0 | HS38: =HQ38*HR15 -> 0 | HV38: =HT38*HU15 -> 0 | HY38: =HW38*HX15 -> 0 | IB38: =HZ38*IA15 -> 0 | IE38: =IC38*ID15 -> 0 | IH38: =IF38*IG15 -> 0
B39: 0 | E39: =C39*D15 -> 0 | H39: =F39*G15 -> 0 | K39: =I39*J15 -> 0 | N39: =L39*M15 -> 0 | Q39: =O39*P15 -> 0 | T39: =R39*S15 -> 0 | W39: =U39*V15 -> 0 | Z39: =X39*Y15 -> 0 | AC39: =AA39*AB15 -> 0 | AF39: =AD39*AE15 -> 0 | AI39: =AG39*AH15 -> 0 | AL39: =AJ39*AK15 -> 0 | AO39: =AM39*AN15 -> 0 | AR39: =AP39*AQ15 -> 0 | AU39: =AS39*AT15 -> 0 | AX39: =AV39*AW15 -> 0 | BA39: =AY39*AZ15 -> 0 | BD39: =BB39*BC15 -> 0 | BG39: =BE39*BF15 -> 0 | BJ39: =BH39*BI15 -> 0 | BM39: =BK39*BL15 -> 0 | BP39: =BN39*BO15 -> 0 | BS39: =BQ39*BR15 -> 0 | BV39: =BT39*BU15 -> 0 | BY39: =BW39*BX15 -> 0 | CB39: =BZ39*CA15 -> 0 | CE39: =CC39*CD15 -> 0 | CH39: =CF39*CG15 -> 0 | CK39: =CI39*CJ15 -> 0 | CN39: =CL39*CM15 -> 0 | CQ39: =CO39*CP15 -> 0 | CT39: =CR39*CS15 -> 0 | CW39: =CU39*CV15 -> 0 | CZ39: =CX39*CY15 -> 0 | DC39: =DA39*DB15 -> 0 | DF39: =DD39*DE15 -> 0 | DI39: =DG39*DH15 -> 0 | DL39: =DJ39*DK15 -> 0 | DO39: =DM39*DN15 -> 0 | DR39: =DP39*DQ15 -> 0 | DU39: =DS39*DT15 -> 0 | DX39: =DV39*DW15 -> 0 | EA39: =DY39*DZ15 -> 0 | ED39: =EB39*EC15 -> 0 | EG39: =EE39*EF15 -> 0 | EJ39: =EH39*EI15 -> 0 | EM39: =EK39*EL15 -> 0 | EP39: =EN39*EO15 -> 0 | ES39: =EQ39*ER15 -> 0 | EV39: =ET39*EU15 -> 0 | EY39: =EW39*EX15 -> 0 | FB39: =EZ39*FA15 -> 0 | FE39: =FC39*FD15 -> 0 | FH39: =FF39*FG15 -> 0 | FK39: =FI39*FJ15 -> 0 | FN39: =FL39*FM15 -> 0 | FQ39: =FO39*FP15 -> 0 | FT39: =FR39*FS15 -> 0 | FW39: =FU39*FV15 -> 0 | FZ39: =FX39*FY15 -> 0 | GC39: =GA39*GB15 -> 0 | GF39: =GD39*GE15 -> 0 | GI39: =GG39*GH15 -> 0 | GL39: =GJ39*GK15 -> 0 | GO39: =GM39*GN15 -> 0 | GR39: =GP39*GQ15 -> 0 | GU39: =GS39*GT15 -> 0 | GX39: =GV39*GW15 -> 0 | HA39: =GY39*GZ15 -> 0 | HD39: =HB39*HC15 -> 0 | HG39: =HE39*HF15 -> 0 | HJ39: =HH39*HI15 -> 0 | HM39: =HK39*HL15 -> 0 | HP39: =HN39*HO15 -> 0 | HS39: =HQ39*HR15 -> 0 | HV39: =HT39*HU15 -> 0 | HY39: =HW39*HX15 -> 0 | IB39: =HZ39*IA15 -> 0 | IE39: =IC39*ID15 -> 0 | IH39: =IF39*IG15 -> 0
B40: 0 | E40: =C40*D15 -> 0 | H40: =F40*G15 -> 0 | K40: =I40*J15 -> 0 | N40: =L40*M15 -> 0 | Q40: =O40*P15 -> 0 | T40: =R40*S15 -> 0 | W40: =U40*V15 -> 0 | Z40: =X40*Y15 -> 0 | AC40: =AA40*AB15 -> 0 | AF40: =AD40*AE15 -> 0 | AI40: =AG40*AH15 -> 0 | AL40: =AJ40*AK15 -> 0 | AO40: =AM40*AN15 -> 0 | AR40: =AP40*AQ15 -> 0 | AU40: =AS40*AT15 -> 0 | AX40: =AV40*AW15 -> 0 | BA40: =AY40*AZ15 -> 0 | BD40: =BB40*BC15 -> 0 | BG40: =BE40*BF15 -> 0 | BJ40: =BH40*BI15 -> 0 | BM40: =BK40*BL15 -> 0 | BP40: =BN40*BO15 -> 0 | BS40: =BQ40*BR15 -> 0 | BV40: =BT40*BU15 -> 0 | BY40: =BW40*BX15 -> 0 | CB40: =BZ40*CA15 -> 0 | CE40: =CC40*CD15 -> 0 | CH40: =CF40*CG15 -> 0 | CK40: =CI40*CJ15 -> 0 | CN40: =CL40*CM15 -> 0 | CQ40: =CO40*CP15 -> 0 | CT40: =CR40*CS15 -> 0 | CW40: =CU40*CV15 -> 0 | CZ40: =CX40*CY15 -> 0 | DC40: =DA40*DB15 -> 0 | DF40: =DD40*DE15 -> 0 | DI40: =DG40*DH15 -> 0 | DL40: =DJ40*DK15 -> 0 | DO40: =DM40*DN15 -> 0 | DR40: =DP40*DQ15 -> 0 | DU40: =DS40*DT15 -> 0 | DX40: =DV40*DW15 -> 0 | EA40: =DY40*DZ15 -> 0 | ED40: =EB40*EC15 -> 0 | EG40: =EE40*EF15 -> 0 | EJ40: =EH40*EI15 -> 0 | EM40: =EK40*EL15 -> 0 | EP40: =EN40*EO15 -> 0 | ES40: =EQ40*ER15 -> 0 | EV40: =ET40*EU15 -> 0 | EY40: =EW40*EX15 -> 0 | FB40: =EZ40*FA15 -> 0 | FE40: =FC40*FD15 -> 0 | FH40: =FF40*FG15 -> 0 | FK40: =FI40*FJ15 -> 0 | FN40: =FL40*FM15 -> 0 | FQ40: =FO40*FP15 -> 0 | FT40: =FR40*FS15 -> 0 | FW40: =FU40*FV15 -> 0 | FZ40: =FX40*FY15 -> 0 | GC40: =GA40*GB15 -> 0 | GF40: =GD40*GE15 -> 0 | GI40: =GG40*GH15 -> 0 | GL40: =GJ40*GK15 -> 0 | GO40: =GM40*GN15 -> 0 | GR40: =GP40*GQ15 -> 0 | GU40: =GS40*GT15 -> 0 | GX40: =GV40*GW15 -> 0 | HA40: =GY40*GZ15 -> 0 | HD40: =HB40*HC15 -> 0 | HG40: =HE40*HF15 -> 0 | HJ40: =HH40*HI15 -> 0 | HM40: =HK40*HL15 -> 0 | HP40: =HN40*HO15 -> 0 | HS40: =HQ40*HR15 -> 0 | HV40: =HT40*HU15 -> 0 | HY40: =HW40*HX15 -> 0 | IB40: =HZ40*IA15 -> 0 | IE40: =IC40*ID15 -> 0 | IH40: =IF40*IG15 -> 0
B41: 0 | E41: =C41*D15 -> 0 | H41: =F41*G15 -> 0 | K41: =I41*J15 -> 0 | N41: =L41*M15 -> 0 | Q41: =O41*P15 -> 0 | T41: =R41*S15 -> 0 | W41: =U41*V15 -> 0 | Z41: =X41*Y15 -> 0 | AC41: =AA41*AB15 -> 0 | AF41: =AD41*AE15 -> 0 | AI41: =AG41*AH15 -> 0 | AL41: =AJ41*AK15 -> 0 | AO41: =AM41*AN15 -> 0 | AR41: =AP41*AQ15 -> 0 | AU41: =AS41*AT15 -> 0 | AX41: =AV41*AW15 -> 0 | BA41: =AY41*AZ15 -> 0 | BD41: =BB41*BC15 -> 0 | BG41: =BE41*BF15 -> 0 | BJ41: =BH41*BI15 -> 0 | BM41: =BK41*BL15 -> 0 | BP41: =BN41*BO15 -> 0 | BS41: =BQ41*BR15 -> 0 | BV41: =BT41*BU15 -> 0 | BY41: =BW41*BX15 -> 0 | CB41: =BZ41*CA15 -> 0 | CE41: =CC41*CD15 -> 0 | CH41: =CF41*CG15 -> 0 | CK41: =CI41*CJ15 -> 0 | CN41: =CL41*CM15 -> 0 | CQ41: =CO41*CP15 -> 0 | CT41: =CR41*CS15 -> 0 | CW41: =CU41*CV15 -> 0 | CZ41: =CX41*CY15 -> 0 | DC41: =DA41*DB15 -> 0 | DF41: =DD41*DE15 -> 0 | DI41: =DG41*DH15 -> 0 | DL41: =DJ41*DK15 -> 0 | DO41: =DM41*DN15 -> 0 | DR41: =DP41*DQ15 -> 0 | DU41: =DS41*DT15 -> 0 | DX41: =DV41*DW15 -> 0 | EA41: =DY41*DZ15 -> 0 | ED41: =EB41*EC15 -> 0 | EG41: =EE41*EF15 -> 0 | EJ41: =EH41*EI15 -> 0 | EM41: =EK41*EL15 -> 0 | EP41: =EN41*EO15 -> 0 | ES41: =EQ41*ER15 -> 0 | EV41: =ET41*EU15 -> 0 | EY41: =EW41*EX15 -> 0 | FB41: =EZ41*FA15 -> 0 | FE41: =FC41*FD15 -> 0 | FH41: =FF41*FG15 -> 0 | FK41: =FI41*FJ15 -> 0 | FN41: =FL41*FM15 -> 0 | FQ41: =FO41*FP15 -> 0 | FT41: =FR41*FS15 -> 0 | FW41: =FU41*FV15 -> 0 | FZ41: =FX41*FY15 -> 0 | GC41: =GA41*GB15 -> 0 | GF41: =GD41*GE15 -> 0 | GI41: =GG41*GH15 -> 0 | GL41: =GJ41*GK15 -> 0 | GO41: =GM41*GN15 -> 0 | GR41: =GP41*GQ15 -> 0 | GU41: =GS41*GT15 -> 0 | GX41: =GV41*GW15 -> 0 | HA41: =GY41*GZ15 -> 0 | HD41: =HB41*HC15 -> 0 | HG41: =HE41*HF15 -> 0 | HJ41: =HH41*HI15 -> 0 | HM41: =HK41*HL15 -> 0 | HP41: =HN41*HO15 -> 0 | HS41: =HQ41*HR15 -> 0 | HV41: =HT41*HU15 -> 0 | HY41: =HW41*HX15 -> 0 | IB41: =HZ41*IA15 -> 0 | IE41: =IC41*ID15 -> 0 | IH41: =IF41*IG15 -> 0
B42: 0 | E42: =C42*D15 -> 0 | H42: =F42*G15 -> 0 | K42: =I42*J15 -> 0 | N42: =L42*M15 -> 0 | Q42: =O42*P15 -> 0 | T42: =R42*S15 -> 0 | W42: =U42*V15 -> 0 | Z42: =X42*Y15 -> 0 | AC42: =AA42*AB15 -> 0 | AF42: =AD42*AE15 -> 0 | AI42: =AG42*AH15 -> 0 | AL42: =AJ42*AK15 -> 0 | AO42: =AM42*AN15 -> 0 | AR42: =AP42*AQ15 -> 0 | AU42: =AS42*AT15 -> 0 | AX42: =AV42*AW15 -> 0 | BA42: =AY42*AZ15 -> 0 | BD42: =BB42*BC15 -> 0 | BG42: =BE42*BF15 -> 0 | BJ42: =BH42*BI15 -> 0 | BM42: =BK42*BL15 -> 0 | BP42: =BN42*BO15 -> 0 | BS42: =BQ42*BR15 -> 0 | BV42: =BT42*BU15 -> 0 | BY42: =BW42*BX15 -> 0 | CB42: =BZ42*CA15 -> 0 | CE42: =CC42*CD15 -> 0 | CH42: =CF42*CG15 -> 0 | CK42: =CI42*CJ15 -> 0 | CN42: =CL42*CM15 -> 0 | CQ42: =CO42*CP15 -> 0 | CT42: =CR42*CS15 -> 0 | CW42: =CU42*CV15 -> 0 | CZ42: =CX42*CY15 -> 0 | DC42: =DA42*DB15 -> 0 | DF42: =DD42*DE15 -> 0 | DI42: =DG42*DH15 -> 0 | DL42: =DJ42*DK15 -> 0 | DO42: =DM42*DN15 -> 0 | DR42: =DP42*DQ15 -> 0 | DU42: =DS42*DT15 -> 0 | DX42: =DV42*DW15 -> 0 | EA42: =DY42*DZ15 -> 0 | ED42: =EB42*EC15 -> 0 | EG42: =EE42*EF15 -> 0 | EJ42: =EH42*EI15 -> 0 | EM42: =EK42*EL15 -> 0 | EP42: =EN42*EO15 -> 0 | ES42: =EQ42*ER15 -> 0 | EV42: =ET42*EU15 -> 0 | EY42: =EW42*EX15 -> 0 | FB42: =EZ42*FA15 -> 0 | FE42: =FC42*FD15 -> 0 | FH42: =FF42*FG15 -> 0 | FK42: =FI42*FJ15 -> 0 | FN42: =FL42*FM15 -> 0 | FQ42: =FO42*FP15 -> 0 | FT42: =FR42*FS15 -> 0 | FW42: =FU42*FV15 -> 0 | FZ42: =FX42*FY15 -> 0 | GC42: =GA42*GB15 -> 0 | GF42: =GD42*GE15 -> 0 | GI42: =GG42*GH15 -> 0 | GL42: =GJ42*GK15 -> 0 | GO42: =GM42*GN15 -> 0 | GR42: =GP42*GQ15 -> 0 | GU42: =GS42*GT15 -> 0 | GX42: =GV42*GW15 -> 0 | HA42: =GY42*GZ15 -> 0 | HD42: =HB42*HC15 -> 0 | HG42: =HE42*HF15 -> 0 | HJ42: =HH42*HI15 -> 0 | HM42: =HK42*HL15 -> 0 | HP42: =HN42*HO15 -> 0 | HS42: =HQ42*HR15 -> 0 | HV42: =HT42*HU15 -> 0 | HY42: =HW42*HX15 -> 0 | IB42: =HZ42*IA15 -> 0 | IE42: =IC42*ID15 -> 0 | IH42: =IF42*IG15 -> 0
B43: 0 | E43: =C43*D15 -> 0 | H43: =F43*G15 -> 0 | K43: =I43*J15 -> 0 | N43: =L43*M15 -> 0 | Q43: =O43*P15 -> 0 | T43: =R43*S15 -> 0 | W43: =U43*V15 -> 0 | Z43: =X43*Y15 -> 0 | AC43: =AA43*AB15 -> 0 | AF43: =AD43*AE15 -> 0 | AI43: =AG43*AH15 -> 0 | AL43: =AJ43*AK15 -> 0 | AO43: =AM43*AN15 -> 0 | AR43: =AP43*AQ15 -> 0 | AU43: =AS43*AT15 -> 0 | AX43: =AV43*AW15 -> 0 | BA43: =AY43*AZ15 -> 0 | BD43: =BB43*BC15 -> 0 | BG43: =BE43*BF15 -> 0 | BJ43: =BH43*BI15 -> 0 | BM43: =BK43*BL15 -> 0 | BP43: =BN43*BO15 -> 0 | BS43: =BQ43*BR15 -> 0 | BV43: =BT43*BU15 -> 0 | BY43: =BW43*BX15 -> 0 | CB43: =BZ43*CA15 -> 0 | CE43: =CC43*CD15 -> 0 | CH43: =CF43*CG15 -> 0 | CK43: =CI43*CJ15 -> 0 | CN43: =CL43*CM15 -> 0 | CQ43: =CO43*CP15 -> 0 | CT43: =CR43*CS15 -> 0 | CW43: =CU43*CV15 -> 0 | CZ43: =CX43*CY15 -> 0 | DC43: =DA43*DB15 -> 0 | DF43: =DD43*DE15 -> 0 | DI43: =DG43*DH15 -> 0 | DL43: =DJ43*DK15 -> 0 | DO43: =DM43*DN15 -> 0 | DR43: =DP43*DQ15 -> 0 | DU43: =DS43*DT15 -> 0 | DX43: =DV43*DW15 -> 0 | EA43: =DY43*DZ15 -> 0 | ED43: =EB43*EC15 -> 0 | EG43: =EE43*EF15 -> 0 | EJ43: =EH43*EI15 -> 0 | EM43: =EK43*EL15 -> 0 | EP43: =EN43*EO15 -> 0 | ES43: =EQ43*ER15 -> 0 | EV43: =ET43*EU15 -> 0 | EY43: =EW43*EX15 -> 0 | FB43: =EZ43*FA15 -> 0 | FE43: =FC43*FD15 -> 0 | FH43: =FF43*FG15 -> 0 | FK43: =FI43*FJ15 -> 0 | FN43: =FL43*FM15 -> 0 | FQ43: =FO43*FP15 -> 0 | FT43: =FR43*FS15 -> 0 | FW43: =FU43*FV15 -> 0 | FZ43: =FX43*FY15 -> 0 | GC43: =GA43*GB15 -> 0 | GF43: =GD43*GE15 -> 0 | GI43: =GG43*GH15 -> 0 | GL43: =GJ43*GK15 -> 0 | GO43: =GM43*GN15 -> 0 | GR43: =GP43*GQ15 -> 0 | GU43: =GS43*GT15 -> 0 | GX43: =GV43*GW15 -> 0 | HA43: =GY43*GZ15 -> 0 | HD43: =HB43*HC15 -> 0 | HG43: =HE43*HF15 -> 0 | HJ43: =HH43*HI15 -> 0 | HM43: =HK43*HL15 -> 0 | HP43: =HN43*HO15 -> 0 | HS43: =HQ43*HR15 -> 0 | HV43: =HT43*HU15 -> 0 | HY43: =HW43*HX15 -> 0 | IB43: =HZ43*IA15 -> 0 | IE43: =IC43*ID15 -> 0 | IH43: =IF43*IG15 -> 0
B44: 0 | E44: =C44*D15 -> 0 | H44: =F44*G15 -> 0 | K44: =I44*J15 -> 0 | N44: =L44*M15 -> 0 | Q44: =O44*P15 -> 0 | T44: =R44*S15 -> 0 | W44: =U44*V15 -> 0 | Z44: =X44*Y15 -> 0 | AC44: =AA44*AB15 -> 0 | AF44: =AD44*AE15 -> 0 | AI44: =AG44*AH15 -> 0 | AL44: =AJ44*AK15 -> 0 | AO44: =AM44*AN15 -> 0 | AR44: =AP44*AQ15 -> 0 | AU44: =AS44*AT15 -> 0 | AX44: =AV44*AW15 -> 0 | BA44: =AY44*AZ15 -> 0 | BD44: =BB44*BC15 -> 0 | BG44: =BE44*BF15 -> 0 | BJ44: =BH44*BI15 -> 0 | BM44: =BK44*BL15 -> 0 | BP44: =BN44*BO15 -> 0 | BS44: =BQ44*BR15 -> 0 | BV44: =BT44*BU15 -> 0 | BY44: =BW44*BX15 -> 0 | CB44: =BZ44*CA15 -> 0 | CE44: =CC44*CD15 -> 0 | CH44: =CF44*CG15 -> 0 | CK44: =CI44*CJ15 -> 0 | CN44: =CL44*CM15 -> 0 | CQ44: =CO44*CP15 -> 0 | CT44: =CR44*CS15 -> 0 | CW44: =CU44*CV15 -> 0 | CZ44: =CX44*CY15 -> 0 | DC44: =DA44*DB15 -> 0 | DF44: =DD44*DE15 -> 0 | DI44: =DG44*DH15 -> 0 | DL44: =DJ44*DK15 -> 0 | DO44: =DM44*DN15 -> 0 | DR44: =DP44*DQ15 -> 0 | DU44: =DS44*DT15 -> 0 | DX44: =DV44*DW15 -> 0 | EA44: =DY44*DZ15 -> 0 | ED44: =EB44*EC15 -> 0 | EG44: =EE44*EF15 -> 0 | EJ44: =EH44*EI15 -> 0 | EM44: =EK44*EL15 -> 0 | EP44: =EN44*EO15 -> 0 | ES44: =EQ44*ER15 -> 0 | EV44: =ET44*EU15 -> 0 | EY44: =EW44*EX15 -> 0 | FB44: =EZ44*FA15 -> 0 | FE44: =FC44*FD15 -> 0 | FH44: =FF44*FG15 -> 0 | FK44: =FI44*FJ15 -> 0 | FN44: =FL44*FM15 -> 0 | FQ44: =FO44*FP15 -> 0 | FT44: =FR44*FS15 -> 0 | FW44: =FU44*FV15 -> 0 | FZ44: =FX44*FY15 -> 0 | GC44: =GA44*GB15 -> 0 | GF44: =GD44*GE15 -> 0 | GI44: =GG44*GH15 -> 0 | GL44: =GJ44*GK15 -> 0 | GO44: =GM44*GN15 -> 0 | GR44: =GP44*GQ15 -> 0 | GU44: =GS44*GT15 -> 0 | GX44: =GV44*GW15 -> 0 | HA44: =GY44*GZ15 -> 0 | HD44: =HB44*HC15 -> 0 | HG44: =HE44*HF15 -> 0 | HJ44: =HH44*HI15 -> 0 | HM44: =HK44*HL15 -> 0 | HP44: =HN44*HO15 -> 0 | HS44: =HQ44*HR15 -> 0 | HV44: =HT44*HU15 -> 0 | HY44: =HW44*HX15 -> 0 | IB44: =HZ44*IA15 -> 0 | IE44: =IC44*ID15 -> 0 | IH44: =IF44*IG15 -> 0
B45: 0 | E45: =C45*D15 -> 0 | H45: =F45*G15 -> 0 | K45: =I45*J15 -> 0 | N45: =L45*M15 -> 0 | Q45: =O45*P15 -> 0 | T45: =R45*S15 -> 0 | W45: =U45*V15 -> 0 | Z45: =X45*Y15 -> 0 | AC45: =AA45*AB15 -> 0 | AF45: =AD45*AE15 -> 0 | AI45: =AG45*AH15 -> 0 | AL45: =AJ45*AK15 -> 0 | AO45: =AM45*AN15 -> 0 | AR45: =AP45*AQ15 -> 0 | AU45: =AS45*AT15 -> 0 | AX45: =AV45*AW15 -> 0 | BA45: =AY45*AZ15 -> 0 | BD45: =BB45*BC15 -> 0 | BG45: =BE45*BF15 -> 0 | BJ45: =BH45*BI15 -> 0 | BM45: =BK45*BL15 -> 0 | BP45: =BN45*BO15 -> 0 | BS45: =BQ45*BR15 -> 0 | BV45: =BT45*BU15 -> 0 | BY45: =BW45*BX15 -> 0 | CB45: =BZ45*CA15 -> 0 | CE45: =CC45*CD15 -> 0 | CH45: =CF45*CG15 -> 0 | CK45: =CI45*CJ15 -> 0 | CN45: =CL45*CM15 -> 0 | CQ45: =CO45*CP15 -> 0 | CT45: =CR45*CS15 -> 0 | CW45: =CU45*CV15 -> 0 | CZ45: =CX45*CY15 -> 0 | DC45: =DA45*DB15 -> 0 | DF45: =DD45*DE15 -> 0 | DI45: =DG45*DH15 -> 0 | DL45: =DJ45*DK15 -> 0 | DO45: =DM45*DN15 -> 0 | DR45: =DP45*DQ15 -> 0 | DU45: =DS45*DT15 -> 0 | DX45: =DV45*DW15 -> 0 | EA45: =DY45*DZ15 -> 0 | ED45: =EB45*EC15 -> 0 | EG45: =EE45*EF15 -> 0 | EJ45: =EH45*EI15 -> 0 | EM45: =EK45*EL15 -> 0 | EP45: =EN45*EO15 -> 0 | ES45: =EQ45*ER15 -> 0 | EV45: =ET45*EU15 -> 0 | EY45: =EW45*EX15 -> 0 | FB45: =EZ45*FA15 -> 0 | FE45: =FC45*FD15 -> 0 | FH45: =FF45*FG15 -> 0 | FK45: =FI45*FJ15 -> 0 | FN45: =FL45*FM15 -> 0 | FQ45: =FO45*FP15 -> 0 | FT45: =FR45*FS15 -> 0 | FW45: =FU45*FV15 -> 0 | FZ45: =FX45*FY15 -> 0 | GC45: =GA45*GB15 -> 0 | GF45: =GD45*GE15 -> 0 | GI45: =GG45*GH15 -> 0 | GL45: =GJ45*GK15 -> 0 | GO45: =GM45*GN15 -> 0 | GR45: =GP45*GQ15 -> 0 | GU45: =GS45*GT15 -> 0 | GX45: =GV45*GW15 -> 0 | HA45: =GY45*GZ15 -> 0 | HD45: =HB45*HC15 -> 0 | HG45: =HE45*HF15 -> 0 | HJ45: =HH45*HI15 -> 0 | HM45: =HK45*HL15 -> 0 | HP45: =HN45*HO15 -> 0 | HS45: =HQ45*HR15 -> 0 | HV45: =HT45*HU15 -> 0 | HY45: =HW45*HX15 -> 0 | IB45: =HZ45*IA15 -> 0 | IE45: =IC45*ID15 -> 0 | IH45: =IF45*IG15 -> 0
B46: 0 | E46: =C46*D15 -> 0 | H46: =F46*G15 -> 0 | K46: =I46*J15 -> 0 | N46: =L46*M15 -> 0 | Q46: =O46*P15 -> 0 | T46: =R46*S15 -> 0 | W46: =U46*V15 -> 0 | Z46: =X46*Y15 -> 0 | AC46: =AA46*AB15 -> 0 | AF46: =AD46*AE15 -> 0 | AI46: =AG46*AH15 -> 0 | AL46: =AJ46*AK15 -> 0 | AO46: =AM46*AN15 -> 0 | AR46: =AP46*AQ15 -> 0 | AU46: =AS46*AT15 -> 0 | AX46: =AV46*AW15 -> 0 | BA46: =AY46*AZ15 -> 0 | BD46: =BB46*BC15 -> 0 | BG46: =BE46*BF15 -> 0 | BJ46: =BH46*BI15 -> 0 | BM46: =BK46*BL15 -> 0 | BP46: =BN46*BO15 -> 0 | BS46: =BQ46*BR15 -> 0 | BV46: =BT46*BU15 -> 0 | BY46: =BW46*BX15 -> 0 | CB46: =BZ46*CA15 -> 0 | CE46: =CC46*CD15 -> 0 | CH46: =CF46*CG15 -> 0 | CK46: =CI46*CJ15 -> 0 | CN46: =CL46*CM15 -> 0 | CQ46: =CO46*CP15 -> 0 | CT46: =CR46*CS15 -> 0 | CW46: =CU46*CV15 -> 0 | CZ46: =CX46*CY15 -> 0 | DC46: =DA46*DB15 -> 0 | DF46: =DD46*DE15 -> 0 | DI46: =DG46*DH15 -> 0 | DL46: =DJ46*DK15 -> 0 | DO46: =DM46*DN15 -> 0 | DR46: =DP46*DQ15 -> 0 | DU46: =DS46*DT15 -> 0 | DX46: =DV46*DW15 -> 0 | EA46: =DY46*DZ15 -> 0 | ED46: =EB46*EC15 -> 0 | EG46: =EE46*EF15 -> 0 | EJ46: =EH46*EI15 -> 0 | EM46: =EK46*EL15 -> 0 | EP46: =EN46*EO15 -> 0 | ES46: =EQ46*ER15 -> 0 | EV46: =ET46*EU15 -> 0 | EY46: =EW46*EX15 -> 0 | FB46: =EZ46*FA15 -> 0 | FE46: =FC46*FD15 -> 0 | FH46: =FF46*FG15 -> 0 | FK46: =FI46*FJ15 -> 0 | FN46: =FL46*FM15 -> 0 | FQ46: =FO46*FP15 -> 0 | FT46: =FR46*FS15 -> 0 | FW46: =FU46*FV15 -> 0 | FZ46: =FX46*FY15 -> 0 | GC46: =GA46*GB15 -> 0 | GF46: =GD46*GE15 -> 0 | GI46: =GG46*GH15 -> 0 | GL46: =GJ46*GK15 -> 0 | GO46: =GM46*GN15 -> 0 | GR46: =GP46*GQ15 -> 0 | GU46: =GS46*GT15 -> 0 | GX46: =GV46*GW15 -> 0 | HA46: =GY46*GZ15 -> 0 | HD46: =HB46*HC15 -> 0 | HG46: =HE46*HF15 -> 0 | HJ46: =HH46*HI15 -> 0 | HM46: =HK46*HL15 -> 0 | HP46: =HN46*HO15 -> 0 | HS46: =HQ46*HR15 -> 0 | HV46: =HT46*HU15 -> 0 | HY46: =HW46*HX15 -> 0 | IB46: =HZ46*IA15 -> 0 | IE46: =IC46*ID15 -> 0 | IH46: =IF46*IG15 -> 0
B47: 0 | E47: =C47*D15 -> 0 | H47: =F47*G15 -> 0 | K47: =I47*J15 -> 0 | N47: =L47*M15 -> 0 | Q47: =O47*P15 -> 0 | T47: =R47*S15 -> 0 | W47: =U47*V15 -> 0 | Z47: =X47*Y15 -> 0 | AC47: =AA47*AB15 -> 0 | AF47: =AD47*AE15 -> 0 | AI47: =AG47*AH15 -> 0 | AL47: =AJ47*AK15 -> 0 | AO47: =AM47*AN15 -> 0 | AR47: =AP47*AQ15 -> 0 | AU47: =AS47*AT15 -> 0 | AX47: =AV47*AW15 -> 0 | BA47: =AY47*AZ15 -> 0 | BD47: =BB47*BC15 -> 0 | BG47: =BE47*BF15 -> 0 | BJ47: =BH47*BI15 -> 0 | BM47: =BK47*BL15 -> 0 | BP47: =BN47*BO15 -> 0 | BS47: =BQ47*BR15 -> 0 | BV47: =BT47*BU15 -> 0 | BY47: =BW47*BX15 -> 0 | CB47: =BZ47*CA15 -> 0 | CE47: =CC47*CD15 -> 0 | CH47: =CF47*CG15 -> 0 | CK47: =CI47*CJ15 -> 0 | CN47: =CL47*CM15 -> 0 | CQ47: =CO47*CP15 -> 0 | CT47: =CR47*CS15 -> 0 | CW47: =CU47*CV15 -> 0 | CZ47: =CX47*CY15 -> 0 | DC47: =DA47*DB15 -> 0 | DF47: =DD47*DE15 -> 0 | DI47: =DG47*DH15 -> 0 | DL47: =DJ47*DK15 -> 0 | DO47: =DM47*DN15 -> 0 | DR47: =DP47*DQ15 -> 0 | DU47: =DS47*DT15 -> 0 | DX47: =DV47*DW15 -> 0 | EA47: =DY47*DZ15 -> 0 | ED47: =EB47*EC15 -> 0 | EG47: =EE47*EF15 -> 0 | EJ47: =EH47*EI15 -> 0 | EM47: =EK47*EL15 -> 0 | EP47: =EN47*EO15 -> 0 | ES47: =EQ47*ER15 -> 0 | EV47: =ET47*EU15 -> 0 | EY47: =EW47*EX15 -> 0 | FB47: =EZ47*FA15 -> 0 | FE47: =FC47*FD15 -> 0 | FH47: =FF47*FG15 -> 0 | FK47: =FI47*FJ15 -> 0 | FN47: =FL47*FM15 -> 0 | FQ47: =FO47*FP15 -> 0 | FT47: =FR47*FS15 -> 0 | FW47: =FU47*FV15 -> 0 | FZ47: =FX47*FY15 -> 0 | GC47: =GA47*GB15 -> 0 | GF47: =GD47*GE15 -> 0 | GI47: =GG47*GH15 -> 0 | GL47: =GJ47*GK15 -> 0 | GO47: =GM47*GN15 -> 0 | GR47: =GP47*GQ15 -> 0 | GU47: =GS47*GT15 -> 0 | GX47: =GV47*GW15 -> 0 | HA47: =GY47*GZ15 -> 0 | HD47: =HB47*HC15 -> 0 | HG47: =HE47*HF15 -> 0 | HJ47: =HH47*HI15 -> 0 | HM47: =HK47*HL15 -> 0 | HP47: =HN47*HO15 -> 0 | HS47: =HQ47*HR15 -> 0 | HV47: =HT47*HU15 -> 0 | HY47: =HW47*HX15 -> 0 | IB47: =HZ47*IA15 -> 0 | IE47: =IC47*ID15 -> 0 | IH47: =IF47*IG15 -> 0
B48: 0 | E48: =C48*D15 -> 0 | H48: =F48*G15 -> 0 | K48: =I48*J15 -> 0 | N48: =L48*M15 -> 0 | Q48: =O48*P15 -> 0 | T48: =R48*S15 -> 0 | W48: =U48*V15 -> 0 | Z48: =X48*Y15 -> 0 | AC48: =AA48*AB15 -> 0 | AF48: =AD48*AE15 -> 0 | AI48: =AG48*AH15 -> 0 | AL48: =AJ48*AK15 -> 0 | AO48: =AM48*AN15 -> 0 | AR48: =AP48*AQ15 -> 0 | AU48: =AS48*AT15 -> 0 | AX48: =AV48*AW15 -> 0 | BA48: =AY48*AZ15 -> 0 | BD48: =BB48*BC15 -> 0 | BG48: =BE48*BF15 -> 0 | BJ48: =BH48*BI15 -> 0 | BM48: =BK48*BL15 -> 0 | BP48: =BN48*BO15 -> 0 | BS48: =BQ48*BR15 -> 0 | BV48: =BT48*BU15 -> 0 | BY48: =BW48*BX15 -> 0 | CB48: =BZ48*CA15 -> 0 | CE48: =CC48*CD15 -> 0 | CH48: =CF48*CG15 -> 0 | CK48: =CI48*CJ15 -> 0 | CN48: =CL48*CM15 -> 0 | CQ48: =CO48*CP15 -> 0 | CT48: =CR48*CS15 -> 0 | CW48: =CU48*CV15 -> 0 | CZ48: =CX48*CY15 -> 0 | DC48: =DA48*DB15 -> 0 | DF48: =DD48*DE15 -> 0 | DI48: =DG48*DH15 -> 0 | DL48: =DJ48*DK15 -> 0 | DO48: =DM48*DN15 -> 0 | DR48: =DP48*DQ15 -> 0 | DU48: =DS48*DT15 -> 0 | DX48: =DV48*DW15 -> 0 | EA48: =DY48*DZ15 -> 0 | ED48: =EB48*EC15 -> 0 | EG48: =EE48*EF15 -> 0 | EJ48: =EH48*EI15 -> 0 | EM48: =EK48*EL15 -> 0 | EP48: =EN48*EO15 -> 0 | ES48: =EQ48*ER15 -> 0 | EV48: =ET48*EU15 -> 0 | EY48: =EW48*EX15 -> 0 | FB48: =EZ48*FA15 -> 0 | FE48: =FC48*FD15 -> 0 | FH48: =FF48*FG15 -> 0 | FK48: =FI48*FJ15 -> 0 | FN48: =FL48*FM15 -> 0 | FQ48: =FO48*FP15 -> 0 | FT48: =FR48*FS15 -> 0 | FW48: =FU48*FV15 -> 0 | FZ48: =FX48*FY15 -> 0 | GC48: =GA48*GB15 -> 0 | GF48: =GD48*GE15 -> 0 | GI48: =GG48*GH15 -> 0 | GL48: =GJ48*GK15 -> 0 | GO48: =GM48*GN15 -> 0 | GR48: =GP48*GQ15 -> 0 | GU48: =GS48*GT15 -> 0 | GX48: =GV48*GW15 -> 0 | HA48: =GY48*GZ15 -> 0 | HD48: =HB48*HC15 -> 0 | HG48: =HE48*HF15 -> 0 | HJ48: =HH48*HI15 -> 0 | HM48: =HK48*HL15 -> 0 | HP48: =HN48*HO15 -> 0 | HS48: =HQ48*HR15 -> 0 | HV48: =HT48*HU15 -> 0 | HY48: =HW48*HX15 -> 0 | IB48: =HZ48*IA15 -> 0 | IE48: =IC48*ID15 -> 0 | IH48: =IF48*IG15 -> 0
B49: 0 | E49: =C49*D15 -> 0 | H49: =F49*G15 -> 0 | K49: =I49*J15 -> 0 | N49: =L49*M15 -> 0 | Q49: =O49*P15 -> 0 | T49: =R49*S15 -> 0 | W49: =U49*V15 -> 0 | Z49: =X49*Y15 -> 0 | AC49: =AA49*AB15 -> 0 | AF49: =AD49*AE15 -> 0 | AI49: =AG49*AH15 -> 0 | AL49: =AJ49*AK15 -> 0 | AO49: =AM49*AN15 -> 0 | AR49: =AP49*AQ15 -> 0 | AU49: =AS49*AT15 -> 0 | AX49: =AV49*AW15 -> 0 | BA49: =AY49*AZ15 -> 0 | BD49: =BB49*BC15 -> 0 | BG49: =BE49*BF15 -> 0 | BJ49: =BH49*BI15 -> 0 | BM49: =BK49*BL15 -> 0 | BP49: =BN49*BO15 -> 0 | BS49: =BQ49*BR15 -> 0 | BV49: =BT49*BU15 -> 0 | BY49: =BW49*BX15 -> 0 | CB49: =BZ49*CA15 -> 0 | CE49: =CC49*CD15 -> 0 | CH49: =CF49*CG15 -> 0 | CK49: =CI49*CJ15 -> 0 | CN49: =CL49*CM15 -> 0 | CQ49: =CO49*CP15 -> 0 | CT49: =CR49*CS15 -> 0 | CW49: =CU49*CV15 -> 0 | CZ49: =CX49*CY15 -> 0 | DC49: =DA49*DB15 -> 0 | DF49: =DD49*DE15 -> 0 | DI49: =DG49*DH15 -> 0 | DL49: =DJ49*DK15 -> 0 | DO49: =DM49*DN15 -> 0 | DR49: =DP49*DQ15 -> 0 | DU49: =DS49*DT15 -> 0 | DX49: =DV49*DW15 -> 0 | EA49: =DY49*DZ15 -> 0 | ED49: =EB49*EC15 -> 0 | EG49: =EE49*EF15 -> 0 | EJ49: =EH49*EI15 -> 0 | EM49: =EK49*EL15 -> 0 | EP49: =EN49*EO15 -> 0 | ES49: =EQ49*ER15 -> 0 | EV49: =ET49*EU15 -> 0 | EY49: =EW49*EX15 -> 0 | FB49: =EZ49*FA15 -> 0 | FE49: =FC49*FD15 -> 0 | FH49: =FF49*FG15 -> 0 | FK49: =FI49*FJ15 -> 0 | FN49: =FL49*FM15 -> 0 | FQ49: =FO49*FP15 -> 0 | FT49: =FR49*FS15 -> 0 | FW49: =FU49*FV15 -> 0 | FZ49: =FX49*FY15 -> 0 | GC49: =GA49*GB15 -> 0 | GF49: =GD49*GE15 -> 0 | GI49: =GG49*GH15 -> 0 | GL49: =GJ49*GK15 -> 0 | GO49: =GM49*GN15 -> 0 | GR49: =GP49*GQ15 -> 0 | GU49: =GS49*GT15 -> 0 | GX49: =GV49*GW15 -> 0 | HA49: =GY49*GZ15 -> 0 | HD49: =HB49*HC15 -> 0 | HG49: =HE49*HF15 -> 0 | HJ49: =HH49*HI15 -> 0 | HM49: =HK49*HL15 -> 0 | HP49: =HN49*HO15 -> 0 | HS49: =HQ49*HR15 -> 0 | HV49: =HT49*HU15 -> 0 | HY49: =HW49*HX15 -> 0 | IB49: =HZ49*IA15 -> 0 | IE49: =IC49*ID15 -> 0 | IH49: =IF49*IG15 -> 0
B50: 0 | E50: =C50*D15 -> 0 | H50: =F50*G15 -> 0 | K50: =I50*J15 -> 0 | N50: =L50*M15 -> 0 | Q50: =O50*P15 -> 0 | T50: =R50*S15 -> 0 | W50: =U50*V15 -> 0 | Z50: =X50*Y15 -> 0 | AC50: =AA50*AB15 -> 0 | AF50: =AD50*AE15 -> 0 | AI50: =AG50*AH15 -> 0 | AL50: =AJ50*AK15 -> 0 | AO50: =AM50*AN15 -> 0 | AR50: =AP50*AQ15 -> 0 | AU50: =AS50*AT15 -> 0 | AX50: =AV50*AW15 -> 0 | BA50: =AY50*AZ15 -> 0 | BD50: =BB50*BC15 -> 0 | BG50: =BE50*BF15 -> 0 | BJ50: =BH50*BI15 -> 0 | BM50: =BK50*BL15 -> 0 | BP50: =BN50*BO15 -> 0 | BS50: =BQ50*BR15 -> 0 | BV50: =BT50*BU15 -> 0 | BY50: =BW50*BX15 -> 0 | CB50: =BZ50*CA15 -> 0 | CE50: =CC50*CD15 -> 0 | CH50: =CF50*CG15 -> 0 | CK50: =CI50*CJ15 -> 0 | CN50: =CL50*CM15 -> 0 | CQ50: =CO50*CP15 -> 0 | CT50: =CR50*CS15 -> 0 | CW50: =CU50*CV15 -> 0 | CZ50: =CX50*CY15 -> 0 | DC50: =DA50*DB15 -> 0 | DF50: =DD50*DE15 -> 0 | DI50: =DG50*DH15 -> 0 | DL50: =DJ50*DK15 -> 0 | DO50: =DM50*DN15 -> 0 | DR50: =DP50*DQ15 -> 0 | DU50: =DS50*DT15 -> 0 | DX50: =DV50*DW15 -> 0 | EA50: =DY50*DZ15 -> 0 | ED50: =EB50*EC15 -> 0 | EG50: =EE50*EF15 -> 0 | EJ50: =EH50*EI15 -> 0 | EM50: =EK50*EL15 -> 0 | EP50: =EN50*EO15 -> 0 | ES50: =EQ50*ER15 -> 0 | EV50: =ET50*EU15 -> 0 | EY50: =EW50*EX15 -> 0 | FB50: =EZ50*FA15 -> 0 | FE50: =FC50*FD15 -> 0 | FH50: =FF50*FG15 -> 0 | FK50: =FI50*FJ15 -> 0 | FN50: =FL50*FM15 -> 0 | FQ50: =FO50*FP15 -> 0 | FT50: =FR50*FS15 -> 0 | FW50: =FU50*FV15 -> 0 | FZ50: =FX50*FY15 -> 0 | GC50: =GA50*GB15 -> 0 | GF50: =GD50*GE15 -> 0 | GI50: =GG50*GH15 -> 0 | GL50: =GJ50*GK15 -> 0 | GO50: =GM50*GN15 -> 0 | GR50: =GP50*GQ15 -> 0 | GU50: =GS50*GT15 -> 0 | GX50: =GV50*GW15 -> 0 | HA50: =GY50*GZ15 -> 0 | HD50: =HB50*HC15 -> 0 | HG50: =HE50*HF15 -> 0 | HJ50: =HH50*HI15 -> 0 | HM50: =HK50*HL15 -> 0 | HP50: =HN50*HO15 -> 0 | HS50: =HQ50*HR15 -> 0 | HV50: =HT50*HU15 -> 0 | HY50: =HW50*HX15 -> 0 | IB50: =HZ50*IA15 -> 0 | IE50: =IC50*ID15 -> 0 | IH50: =IF50*IG15 -> 0
B51: 0 | E51: =C51*D15 -> 0 | H51: =F51*G15 -> 0 | K51: =I51*J15 -> 0 | N51: =L51*M15 -> 0 | Q51: =O51*P15 -> 0 | T51: =R51*S15 -> 0 | W51: =U51*V15 -> 0 | Z51: =X51*Y15 -> 0 | AC51: =AA51*AB15 -> 0 | AF51: =AD51*AE15 -> 0 | AI51: =AG51*AH15 -> 0 | AL51: =AJ51*AK15 -> 0 | AO51: =AM51*AN15 -> 0 | AR51: =AP51*AQ15 -> 0 | AU51: =AS51*AT15 -> 0 | AX51: =AV51*AW15 -> 0 | BA51: =AY51*AZ15 -> 0 | BD51: =BB51*BC15 -> 0 | BG51: =BE51*BF15 -> 0 | BJ51: =BH51*BI15 -> 0 | BM51: =BK51*BL15 -> 0 | BP51: =BN51*BO15 -> 0 | BS51: =BQ51*BR15 -> 0 | BV51: =BT51*BU15 -> 0 | BY51: =BW51*BX15 -> 0 | CB51: =BZ51*CA15 -> 0 | CE51: =CC51*CD15 -> 0 | CH51: =CF51*CG15 -> 0 | CK51: =CI51*CJ15 -> 0 | CN51: =CL51*CM15 -> 0 | CQ51: =CO51*CP15 -> 0 | CT51: =CR51*CS15 -> 0 | CW51: =CU51*CV15 -> 0 | CZ51: =CX51*CY15 -> 0 | DC51: =DA51*DB15 -> 0 | DF51: =DD51*DE15 -> 0 | DI51: =DG51*DH15 -> 0 | DL51: =DJ51*DK15 -> 0 | DO51: =DM51*DN15 -> 0 | DR51: =DP51*DQ15 -> 0 | DU51: =DS51*DT15 -> 0 | DX51: =DV51*DW15 -> 0 | EA51: =DY51*DZ15 -> 0 | ED51: =EB51*EC15 -> 0 | EG51: =EE51*EF15 -> 0 | EJ51: =EH51*EI15 -> 0 | EM51: =EK51*EL15 -> 0 | EP51: =EN51*EO15 -> 0 | ES51: =EQ51*ER15 -> 0 | EV51: =ET51*EU15 -> 0 | EY51: =EW51*EX15 -> 0 | FB51: =EZ51*FA15 -> 0 | FE51: =FC51*FD15 -> 0 | FH51: =FF51*FG15 -> 0 | FK51: =FI51*FJ15 -> 0 | FN51: =FL51*FM15 -> 0 | FQ51: =FO51*FP15 -> 0 | FT51: =FR51*FS15 -> 0 | FW51: =FU51*FV15 -> 0 | FZ51: =FX51*FY15 -> 0 | GC51: =GA51*GB15 -> 0 | GF51: =GD51*GE15 -> 0 | GI51: =GG51*GH15 -> 0 | GL51: =GJ51*GK15 -> 0 | GO51: =GM51*GN15 -> 0 | GR51: =GP51*GQ15 -> 0 | GU51: =GS51*GT15 -> 0 | GX51: =GV51*GW15 -> 0 | HA51: =GY51*GZ15 -> 0 | HD51: =HB51*HC15 -> 0 | HG51: =HE51*HF15 -> 0 | HJ51: =HH51*HI15 -> 0 | HM51: =HK51*HL15 -> 0 | HP51: =HN51*HO15 -> 0 | HS51: =HQ51*HR15 -> 0 | HV51: =HT51*HU15 -> 0 | HY51: =HW51*HX15 -> 0 | IB51: =HZ51*IA15 -> 0 | IE51: =IC51*ID15 -> 0 | IH51: =IF51*IG15 -> 0
B52: 0 | E52: =C52*D15 -> 0 | H52: =F52*G15 -> 0 | K52: =I52*J15 -> 0 | N52: =L52*M15 -> 0 | Q52: =O52*P15 -> 0 | T52: =R52*S15 -> 0 | W52: =U52*V15 -> 0 | Z52: =X52*Y15 -> 0 | AC52: =AA52*AB15 -> 0 | AF52: =AD52*AE15 -> 0 | AI52: =AG52*AH15 -> 0 | AL52: =AJ52*AK15 -> 0 | AO52: =AM52*AN15 -> 0 | AR52: =AP52*AQ15 -> 0 | AU52: =AS52*AT15 -> 0 | AX52: =AV52*AW15 -> 0 | BA52: =AY52*AZ15 -> 0 | BD52: =BB52*BC15 -> 0 | BG52: =BE52*BF15 -> 0 | BJ52: =BH52*BI15 -> 0 | BM52: =BK52*BL15 -> 0 | BP52: =BN52*BO15 -> 0 | BS52: =BQ52*BR15 -> 0 | BV52: =BT52*BU15 -> 0 | BY52: =BW52*BX15 -> 0 | CB52: =BZ52*CA15 -> 0 | CE52: =CC52*CD15 -> 0 | CH52: =CF52*CG15 -> 0 | CK52: =CI52*CJ15 -> 0 | CN52: =CL52*CM15 -> 0 | CQ52: =CO52*CP15 -> 0 | CT52: =CR52*CS15 -> 0 | CW52: =CU52*CV15 -> 0 | CZ52: =CX52*CY15 -> 0 | DC52: =DA52*DB15 -> 0 | DF52: =DD52*DE15 -> 0 | DI52: =DG52*DH15 -> 0 | DL52: =DJ52*DK15 -> 0 | DO52: =DM52*DN15 -> 0 | DR52: =DP52*DQ15 -> 0 | DU52: =DS52*DT15 -> 0 | DX52: =DV52*DW15 -> 0 | EA52: =DY52*DZ15 -> 0 | ED52: =EB52*EC15 -> 0 | EG52: =EE52*EF15 -> 0 | EJ52: =EH52*EI15 -> 0 | EM52: =EK52*EL15 -> 0 | EP52: =EN52*EO15 -> 0 | ES52: =EQ52*ER15 -> 0 | EV52: =ET52*EU15 -> 0 | EY52: =EW52*EX15 -> 0 | FB52: =EZ52*FA15 -> 0 | FE52: =FC52*FD15 -> 0 | FH52: =FF52*FG15 -> 0 | FK52: =FI52*FJ15 -> 0 | FN52: =FL52*FM15 -> 0 | FQ52: =FO52*FP15 -> 0 | FT52: =FR52*FS15 -> 0 | FW52: =FU52*FV15 -> 0 | FZ52: =FX52*FY15 -> 0 | GC52: =GA52*GB15 -> 0 | GF52: =GD52*GE15 -> 0 | GI52: =GG52*GH15 -> 0 | GL52: =GJ52*GK15 -> 0 | GO52: =GM52*GN15 -> 0 | GR52: =GP52*GQ15 -> 0 | GU52: =GS52*GT15 -> 0 | GX52: =GV52*GW15 -> 0 | HA52: =GY52*GZ15 -> 0 | HD52: =HB52*HC15 -> 0 | HG52: =HE52*HF15 -> 0 | HJ52: =HH52*HI15 -> 0 | HM52: =HK52*HL15 -> 0 | HP52: =HN52*HO15 -> 0 | HS52: =HQ52*HR15 -> 0 | HV52: =HT52*HU15 -> 0 | HY52: =HW52*HX15 -> 0 | IB52: =HZ52*IA15 -> 0 | IE52: =IC52*ID15 -> 0 | IH52: =IF52*IG15 -> 0
B53: 0 | E53: =C53*D15 -> 0 | H53: =F53*G15 -> 0 | K53: =I53*J15 -> 0 | N53: =L53*M15 -> 0 | Q53: =O53*P15 -> 0 | T53: =R53*S15 -> 0 | W53: =U53*V15 -> 0 | Z53: =X53*Y15 -> 0 | AC53: =AA53*AB15 -> 0 | AF53: =AD53*AE15 -> 0 | AI53: =AG53*AH15 -> 0 | AL53: =AJ53*AK15 -> 0 | AO53: =AM53*AN15 -> 0 | AR53: =AP53*AQ15 -> 0 | AU53: =AS53*AT15 -> 0 | AX53: =AV53*AW15 -> 0 | BA53: =AY53*AZ15 -> 0 | BD53: =BB53*BC15 -> 0 | BG53: =BE53*BF15 -> 0 | BJ53: =BH53*BI15 -> 0 | BM53: =BK53*BL15 -> 0 | BP53: =BN53*BO15 -> 0 | BS53: =BQ53*BR15 -> 0 | BV53: =BT53*BU15 -> 0 | BY53: =BW53*BX15 -> 0 | CB53: =BZ53*CA15 -> 0 | CE53: =CC53*CD15 -> 0 | CH53: =CF53*CG15 -> 0 | CK53: =CI53*CJ15 -> 0 | CN53: =CL53*CM15 -> 0 | CQ53: =CO53*CP15 -> 0 | CT53: =CR53*CS15 -> 0 | CW53: =CU53*CV15 -> 0 | CZ53: =CX53*CY15 -> 0 | DC53: =DA53*DB15 -> 0 | DF53: =DD53*DE15 -> 0 | DI53: =DG53*DH15 -> 0 | DL53: =DJ53*DK15 -> 0 | DO53: =DM53*DN15 -> 0 | DR53: =DP53*DQ15 -> 0 | DU53: =DS53*DT15 -> 0 | DX53: =DV53*DW15 -> 0 | EA53: =DY53*DZ15 -> 0 | ED53: =EB53*EC15 -> 0 | EG53: =EE53*EF15 -> 0 | EJ53: =EH53*EI15 -> 0 | EM53: =EK53*EL15 -> 0 | EP53: =EN53*EO15 -> 0 | ES53: =EQ53*ER15 -> 0 | EV53: =ET53*EU15 -> 0 | EY53: =EW53*EX15 -> 0 | FB53: =EZ53*FA15 -> 0 | FE53: =FC53*FD15 -> 0 | FH53: =FF53*FG15 -> 0 | FK53: =FI53*FJ15 -> 0 | FN53: =FL53*FM15 -> 0 | FQ53: =FO53*FP15 -> 0 | FT53: =FR53*FS15 -> 0 | FW53: =FU53*FV15 -> 0 | FZ53: =FX53*FY15 -> 0 | GC53: =GA53*GB15 -> 0 | GF53: =GD53*GE15 -> 0 | GI53: =GG53*GH15 -> 0 | GL53: =GJ53*GK15 -> 0 | GO53: =GM53*GN15 -> 0 | GR53: =GP53*GQ15 -> 0 | GU53: =GS53*GT15 -> 0 | GX53: =GV53*GW15 -> 0 | HA53: =GY53*GZ15 -> 0 | HD53: =HB53*HC15 -> 0 | HG53: =HE53*HF15 -> 0 | HJ53: =HH53*HI15 -> 0 | HM53: =HK53*HL15 -> 0 | HP53: =HN53*HO15 -> 0 | HS53: =HQ53*HR15 -> 0 | HV53: =HT53*HU15 -> 0 | HY53: =HW53*HX15 -> 0 | IB53: =HZ53*IA15 -> 0 | IE53: =IC53*ID15 -> 0 | IH53: =IF53*IG15 -> 0
B54: 0 | E54: =C54*D15 -> 0 | H54: =F54*G15 -> 0 | K54: =I54*J15 -> 0 | N54: =L54*M15 -> 0 | Q54: =O54*P15 -> 0 | T54: =R54*S15 -> 0 | W54: =U54*V15 -> 0 | Z54: =X54*Y15 -> 0 | AC54: =AA54*AB15 -> 0 | AF54: =AD54*AE15 -> 0 | AI54: =AG54*AH15 -> 0 | AL54: =AJ54*AK15 -> 0 | AO54: =AM54*AN15 -> 0 | AR54: =AP54*AQ15 -> 0 | AU54: =AS54*AT15 -> 0 | AX54: =AV54*AW15 -> 0 | BA54: =AY54*AZ15 -> 0 | BD54: =BB54*BC15 -> 0 | BG54: =BE54*BF15 -> 0 | BJ54: =BH54*BI15 -> 0 | BM54: =BK54*BL15 -> 0 | BP54: =BN54*BO15 -> 0 | BS54: =BQ54*BR15 -> 0 | BV54: =BT54*BU15 -> 0 | BY54: =BW54*BX15 -> 0 | CB54: =BZ54*CA15 -> 0 | CE54: =CC54*CD15 -> 0 | CH54: =CF54*CG15 -> 0 | CK54: =CI54*CJ15 -> 0 | CN54: =CL54*CM15 -> 0 | CQ54: =CO54*CP15 -> 0 | CT54: =CR54*CS15 -> 0 | CW54: =CU54*CV15 -> 0 | CZ54: =CX54*CY15 -> 0 | DC54: =DA54*DB15 -> 0 | DF54: =DD54*DE15 -> 0 | DI54: =DG54*DH15 -> 0 | DL54: =DJ54*DK15 -> 0 | DO54: =DM54*DN15 -> 0 | DR54: =DP54*DQ15 -> 0 | DU54: =DS54*DT15 -> 0 | DX54: =DV54*DW15 -> 0 | EA54: =DY54*DZ15 -> 0 | ED54: =EB54*EC15 -> 0 | EG54: =EE54*EF15 -> 0 | EJ54: =EH54*EI15 -> 0 | EM54: =EK54*EL15 -> 0 | EP54: =EN54*EO15 -> 0 | ES54: =EQ54*ER15 -> 0 | EV54: =ET54*EU15 -> 0 | EY54: =EW54*EX15 -> 0 | FB54: =EZ54*FA15 -> 0 | FE54: =FC54*FD15 -> 0 | FH54: =FF54*FG15 -> 0 | FK54: =FI54*FJ15 -> 0 | FN54: =FL54*FM15 -> 0 | FQ54: =FO54*FP15 -> 0 | FT54: =FR54*FS15 -> 0 | FW54: =FU54*FV15 -> 0 | FZ54: =FX54*FY15 -> 0 | GC54: =GA54*GB15 -> 0 | GF54: =GD54*GE15 -> 0 | GI54: =GG54*GH15 -> 0 | GL54: =GJ54*GK15 -> 0 | GO54: =GM54*GN15 -> 0 | GR54: =GP54*GQ15 -> 0 | GU54: =GS54*GT15 -> 0 | GX54: =GV54*GW15 -> 0 | HA54: =GY54*GZ15 -> 0 | HD54: =HB54*HC15 -> 0 | HG54: =HE54*HF15 -> 0 | HJ54: =HH54*HI15 -> 0 | HM54: =HK54*HL15 -> 0 | HP54: =HN54*HO15 -> 0 | HS54: =HQ54*HR15 -> 0 | HV54: =HT54*HU15 -> 0 | HY54: =HW54*HX15 -> 0 | IB54: =HZ54*IA15 -> 0 | IE54: =IC54*ID15 -> 0 | IH54: =IF54*IG15 -> 0
B55: 0 | E55: =C55*D15 -> 0 | H55: =F55*G15 -> 0 | K55: =I55*J15 -> 0 | N55: =L55*M15 -> 0 | Q55: =O55*P15 -> 0 | T55: =R55*S15 -> 0 | W55: =U55*V15 -> 0 | Z55: =X55*Y15 -> 0 | AC55: =AA55*AB15 -> 0 | AF55: =AD55*AE15 -> 0 | AI55: =AG55*AH15 -> 0 | AL55: =AJ55*AK15 -> 0 | AO55: =AM55*AN15 -> 0 | AR55: =AP55*AQ15 -> 0 | AU55: =AS55*AT15 -> 0 | AX55: =AV55*AW15 -> 0 | BA55: =AY55*AZ15 -> 0 | BD55: =BB55*BC15 -> 0 | BG55: =BE55*BF15 -> 0 | BJ55: =BH55*BI15 -> 0 | BM55: =BK55*BL15 -> 0 | BP55: =BN55*BO15 -> 0 | BS55: =BQ55*BR15 -> 0 | BV55: =BT55*BU15 -> 0 | BY55: =BW55*BX15 -> 0 | CB55: =BZ55*CA15 -> 0 | CE55: =CC55*CD15 -> 0 | CH55: =CF55*CG15 -> 0 | CK55: =CI55*CJ15 -> 0 | CN55: =CL55*CM15 -> 0 | CQ55: =CO55*CP15 -> 0 | CT55: =CR55*CS15 -> 0 | CW55: =CU55*CV15 -> 0 | CZ55: =CX55*CY15 -> 0 | DC55: =DA55*DB15 -> 0 | DF55: =DD55*DE15 -> 0 | DI55: =DG55*DH15 -> 0 | DL55: =DJ55*DK15 -> 0 | DO55: =DM55*DN15 -> 0 | DR55: =DP55*DQ15 -> 0 | DU55: =DS55*DT15 -> 0 | DX55: =DV55*DW15 -> 0 | EA55: =DY55*DZ15 -> 0 | ED55: =EB55*EC15 -> 0 | EG55: =EE55*EF15 -> 0 | EJ55: =EH55*EI15 -> 0 | EM55: =EK55*EL15 -> 0 | EP55: =EN55*EO15 -> 0 | ES55: =EQ55*ER15 -> 0 | EV55: =ET55*EU15 -> 0 | EY55: =EW55*EX15 -> 0 | FB55: =EZ55*FA15 -> 0 | FE55: =FC55*FD15 -> 0 | FH55: =FF55*FG15 -> 0 | FK55: =FI55*FJ15 -> 0 | FN55: =FL55*FM15 -> 0 | FQ55: =FO55*FP15 -> 0 | FT55: =FR55*FS15 -> 0 | FW55: =FU55*FV15 -> 0 | FZ55: =FX55*FY15 -> 0 | GC55: =GA55*GB15 -> 0 | GF55: =GD55*GE15 -> 0 | GI55: =GG55*GH15 -> 0 | GL55: =GJ55*GK15 -> 0 | GO55: =GM55*GN15 -> 0 | GR55: =GP55*GQ15 -> 0 | GU55: =GS55*GT15 -> 0 | GX55: =GV55*GW15 -> 0 | HA55: =GY55*GZ15 -> 0 | HD55: =HB55*HC15 -> 0 | HG55: =HE55*HF15 -> 0 | HJ55: =HH55*HI15 -> 0 | HM55: =HK55*HL15 -> 0 | HP55: =HN55*HO15 -> 0 | HS55: =HQ55*HR15 -> 0 | HV55: =HT55*HU15 -> 0 | HY55: =HW55*HX15 -> 0 | IB55: =HZ55*IA15 -> 0 | IE55: =IC55*ID15 -> 0 | IH55: =IF55*IG15 -> 0
B56: 0 | E56: =C56*D15 -> 0 | H56: =F56*G15 -> 0 | K56: =I56*J15 -> 0 | N56: =L56*M15 -> 0 | Q56: =O56*P15 -> 0 | T56: =R56*S15 -> 0 | W56: =U56*V15 -> 0 | Z56: =X56*Y15 -> 0 | AC56: =AA56*AB15 -> 0 | AF56: =AD56*AE15 -> 0 | AI56: =AG56*AH15 -> 0 | AL56: =AJ56*AK15 -> 0 | AO56: =AM56*AN15 -> 0 | AR56: =AP56*AQ15 -> 0 | AU56: =AS56*AT15 -> 0 | AX56: =AV56*AW15 -> 0 | BA56: =AY56*AZ15 -> 0 | BD56: =BB56*BC15 -> 0 | BG56: =BE56*BF15 -> 0 | BJ56: =BH56*BI15 -> 0 | BM56: =BK56*BL15 -> 0 | BP56: =BN56*BO15 -> 0 | BS56: =BQ56*BR15 -> 0 | BV56: =BT56*BU15 -> 0 | BY56: =BW56*BX15 -> 0 | CB56: =BZ56*CA15 -> 0 | CE56: =CC56*CD15 -> 0 | CH56: =CF56*CG15 -> 0 | CK56: =CI56*CJ15 -> 0 | CN56: =CL56*CM15 -> 0 | CQ56: =CO56*CP15 -> 0 | CT56: =CR56*CS15 -> 0 | CW56: =CU56*CV15 -> 0 | CZ56: =CX56*CY15 -> 0 | DC56: =DA56*DB15 -> 0 | DF56: =DD56*DE15 -> 0 | DI56: =DG56*DH15 -> 0 | DL56: =DJ56*DK15 -> 0 | DO56: =DM56*DN15 -> 0 | DR56: =DP56*DQ15 -> 0 | DU56: =DS56*DT15 -> 0 | DX56: =DV56*DW15 -> 0 | EA56: =DY56*DZ15 -> 0 | ED56: =EB56*EC15 -> 0 | EG56: =EE56*EF15 -> 0 | EJ56: =EH56*EI15 -> 0 | EM56: =EK56*EL15 -> 0 | EP56: =EN56*EO15 -> 0 | ES56: =EQ56*ER15 -> 0 | EV56: =ET56*EU15 -> 0 | EY56: =EW56*EX15 -> 0 | FB56: =EZ56*FA15 -> 0 | FE56: =FC56*FD15 -> 0 | FH56: =FF56*FG15 -> 0 | FK56: =FI56*FJ15 -> 0 | FN56: =FL56*FM15 -> 0 | FQ56: =FO56*FP15 -> 0 | FT56: =FR56*FS15 -> 0 | FW56: =FU56*FV15 -> 0 | FZ56: =FX56*FY15 -> 0 | GC56: =GA56*GB15 -> 0 | GF56: =GD56*GE15 -> 0 | GI56: =GG56*GH15 -> 0 | GL56: =GJ56*GK15 -> 0 | GO56: =GM56*GN15 -> 0 | GR56: =GP56*GQ15 -> 0 | GU56: =GS56*GT15 -> 0 | GX56: =GV56*GW15 -> 0 | HA56: =GY56*GZ15 -> 0 | HD56: =HB56*HC15 -> 0 | HG56: =HE56*HF15 -> 0 | HJ56: =HH56*HI15 -> 0 | HM56: =HK56*HL15 -> 0 | HP56: =HN56*HO15 -> 0 | HS56: =HQ56*HR15 -> 0 | HV56: =HT56*HU15 -> 0 | HY56: =HW56*HX15 -> 0 | IB56: =HZ56*IA15 -> 0 | IE56: =IC56*ID15 -> 0 | IH56: =IF56*IG15 -> 0
B57: 0 | E57: =C57*D15 -> 0 | H57: =F57*G15 -> 0 | K57: =I57*J15 -> 0 | N57: =L57*M15 -> 0 | Q57: =O57*P15 -> 0 | T57: =R57*S15 -> 0 | W57: =U57*V15 -> 0 | Z57: =X57*Y15 -> 0 | AC57: =AA57*AB15 -> 0 | AF57: =AD57*AE15 -> 0 | AI57: =AG57*AH15 -> 0 | AL57: =AJ57*AK15 -> 0 | AO57: =AM57*AN15 -> 0 | AR57: =AP57*AQ15 -> 0 | AU57: =AS57*AT15 -> 0 | AX57: =AV57*AW15 -> 0 | BA57: =AY57*AZ15 -> 0 | BD57: =BB57*BC15 -> 0 | BG57: =BE57*BF15 -> 0 | BJ57: =BH57*BI15 -> 0 | BM57: =BK57*BL15 -> 0 | BP57: =BN57*BO15 -> 0 | BS57: =BQ57*BR15 -> 0 | BV57: =BT57*BU15 -> 0 | BY57: =BW57*BX15 -> 0 | CB57: =BZ57*CA15 -> 0 | CE57: =CC57*CD15 -> 0 | CH57: =CF57*CG15 -> 0 | CK57: =CI57*CJ15 -> 0 | CN57: =CL57*CM15 -> 0 | CQ57: =CO57*CP15 -> 0 | CT57: =CR57*CS15 -> 0 | CW57: =CU57*CV15 -> 0 | CZ57: =CX57*CY15 -> 0 | DC57: =DA57*DB15 -> 0 | DF57: =DD57*DE15 -> 0 | DI57: =DG57*DH15 -> 0 | DL57: =DJ57*DK15 -> 0 | DO57: =DM57*DN15 -> 0 | DR57: =DP57*DQ15 -> 0 | DU57: =DS57*DT15 -> 0 | DX57: =DV57*DW15 -> 0 | EA57: =DY57*DZ15 -> 0 | ED57: =EB57*EC15 -> 0 | EG57: =EE57*EF15 -> 0 | EJ57: =EH57*EI15 -> 0 | EM57: =EK57*EL15 -> 0 | EP57: =EN57*EO15 -> 0 | ES57: =EQ57*ER15 -> 0 | EV57: =ET57*EU15 -> 0 | EY57: =EW57*EX15 -> 0 | FB57: =EZ57*FA15 -> 0 | FE57: =FC57*FD15 -> 0 | FH57: =FF57*FG15 -> 0 | FK57: =FI57*FJ15 -> 0 | FN57: =FL57*FM15 -> 0 | FQ57: =FO57*FP15 -> 0 | FT57: =FR57*FS15 -> 0 | FW57: =FU57*FV15 -> 0 | FZ57: =FX57*FY15 -> 0 | GC57: =GA57*GB15 -> 0 | GF57: =GD57*GE15 -> 0 | GI57: =GG57*GH15 -> 0 | GL57: =GJ57*GK15 -> 0 | GO57: =GM57*GN15 -> 0 | GR57: =GP57*GQ15 -> 0 | GU57: =GS57*GT15 -> 0 | GX57: =GV57*GW15 -> 0 | HA57: =GY57*GZ15 -> 0 | HD57: =HB57*HC15 -> 0 | HG57: =HE57*HF15 -> 0 | HJ57: =HH57*HI15 -> 0 | HM57: =HK57*HL15 -> 0 | HP57: =HN57*HO15 -> 0 | HS57: =HQ57*HR15 -> 0 | HV57: =HT57*HU15 -> 0 | HY57: =HW57*HX15 -> 0 | IB57: =HZ57*IA15 -> 0 | IE57: =IC57*ID15 -> 0 | IH57: =IF57*IG15 -> 0
B58: 0 | E58: =C58*D15 -> 0 | H58: =F58*G15 -> 0 | K58: =I58*J15 -> 0 | N58: =L58*M15 -> 0 | Q58: =O58*P15 -> 0 | T58: =R58*S15 -> 0 | W58: =U58*V15 -> 0 | Z58: =X58*Y15 -> 0 | AC58: =AA58*AB15 -> 0 | AF58: =AD58*AE15 -> 0 | AI58: =AG58*AH15 -> 0 | AL58: =AJ58*AK15 -> 0 | AO58: =AM58*AN15 -> 0 | AR58: =AP58*AQ15 -> 0 | AU58: =AS58*AT15 -> 0 | AX58: =AV58*AW15 -> 0 | BA58: =AY58*AZ15 -> 0 | BD58: =BB58*BC15 -> 0 | BG58: =BE58*BF15 -> 0 | BJ58: =BH58*BI15 -> 0 | BM58: =BK58*BL15 -> 0 | BP58: =BN58*BO15 -> 0 | BS58: =BQ58*BR15 -> 0 | BV58: =BT58*BU15 -> 0 | BY58: =BW58*BX15 -> 0 | CB58: =BZ58*CA15 -> 0 | CE58: =CC58*CD15 -> 0 | CH58: =CF58*CG15 -> 0 | CK58: =CI58*CJ15 -> 0 | CN58: =CL58*CM15 -> 0 | CQ58: =CO58*CP15 -> 0 | CT58: =CR58*CS15 -> 0 | CW58: =CU58*CV15 -> 0 | CZ58: =CX58*CY15 -> 0 | DC58: =DA58*DB15 -> 0 | DF58: =DD58*DE15 -> 0 | DI58: =DG58*DH15 -> 0 | DL58: =DJ58*DK15 -> 0 | DO58: =DM58*DN15 -> 0 | DR58: =DP58*DQ15 -> 0 | DU58: =DS58*DT15 -> 0 | DX58: =DV58*DW15 -> 0 | EA58: =DY58*DZ15 -> 0 | ED58: =EB58*EC15 -> 0 | EG58: =EE58*EF15 -> 0 | EJ58: =EH58*EI15 -> 0 | EM58: =EK58*EL15 -> 0 | EP58: =EN58*EO15 -> 0 | ES58: =EQ58*ER15 -> 0 | EV58: =ET58*EU15 -> 0 | EY58: =EW58*EX15 -> 0 | FB58: =EZ58*FA15 -> 0 | FE58: =FC58*FD15 -> 0 | FH58: =FF58*FG15 -> 0 | FK58: =FI58*FJ15 -> 0 | FN58: =FL58*FM15 -> 0 | FQ58: =FO58*FP15 -> 0 | FT58: =FR58*FS15 -> 0 | FW58: =FU58*FV15 -> 0 | FZ58: =FX58*FY15 -> 0 | GC58: =GA58*GB15 -> 0 | GF58: =GD58*GE15 -> 0 | GI58: =GG58*GH15 -> 0 | GL58: =GJ58*GK15 -> 0 | GO58: =GM58*GN15 -> 0 | GR58: =GP58*GQ15 -> 0 | GU58: =GS58*GT15 -> 0 | GX58: =GV58*GW15 -> 0 | HA58: =GY58*GZ15 -> 0 | HD58: =HB58*HC15 -> 0 | HG58: =HE58*HF15 -> 0 | HJ58: =HH58*HI15 -> 0 | HM58: =HK58*HL15 -> 0 | HP58: =HN58*HO15 -> 0 | HS58: =HQ58*HR15 -> 0 | HV58: =HT58*HU15 -> 0 | HY58: =HW58*HX15 -> 0 | IB58: =HZ58*IA15 -> 0 | IE58: =IC58*ID15 -> 0 | IH58: =IF58*IG15 -> 0
B59: 0 | E59: =C59*D15 -> 0 | H59: =F59*G15 -> 0 | K59: =I59*J15 -> 0 | N59: =L59*M15 -> 0 | Q59: =O59*P15 -> 0 | T59: =R59*S15 -> 0 | W59: =U59*V15 -> 0 | Z59: =X59*Y15 -> 0 | AC59: =AA59*AB15 -> 0 | AF59: =AD59*AE15 -> 0 | AI59: =AG59*AH15 -> 0 | AL59: =AJ59*AK15 -> 0 | AO59: =AM59*AN15 -> 0 | AR59: =AP59*AQ15 -> 0 | AU59: =AS59*AT15 -> 0 | AX59: =AV59*AW15 -> 0 | BA59: =AY59*AZ15 -> 0 | BD59: =BB59*BC15 -> 0 | BG59: =BE59*BF15 -> 0 | BJ59: =BH59*BI15 -> 0 | BM59: =BK59*BL15 -> 0 | BP59: =BN59*BO15 -> 0 | BS59: =BQ59*BR15 -> 0 | BV59: =BT59*BU15 -> 0 | BY59: =BW59*BX15 -> 0 | CB59: =BZ59*CA15 -> 0 | CE59: =CC59*CD15 -> 0 | CH59: =CF59*CG15 -> 0 | CK59: =CI59*CJ15 -> 0 | CN59: =CL59*CM15 -> 0 | CQ59: =CO59*CP15 -> 0 | CT59: =CR59*CS15 -> 0 | CW59: =CU59*CV15 -> 0 | CZ59: =CX59*CY15 -> 0 | DC59: =DA59*DB15 -> 0 | DF59: =DD59*DE15 -> 0 | DI59: =DG59*DH15 -> 0 | DL59: =DJ59*DK15 -> 0 | DO59: =DM59*DN15 -> 0 | DR59: =DP59*DQ15 -> 0 | DU59: =DS59*DT15 -> 0 | DX59: =DV59*DW15 -> 0 | EA59: =DY59*DZ15 -> 0 | ED59: =EB59*EC15 -> 0 | EG59: =EE59*EF15 -> 0 | EJ59: =EH59*EI15 -> 0 | EM59: =EK59*EL15 -> 0 | EP59: =EN59*EO15 -> 0 | ES59: =EQ59*ER15 -> 0 | EV59: =ET59*EU15 -> 0 | EY59: =EW59*EX15 -> 0 | FB59: =EZ59*FA15 -> 0 | FE59: =FC59*FD15 -> 0 | FH59: =FF59*FG15 -> 0 | FK59: =FI59*FJ15 -> 0 | FN59: =FL59*FM15 -> 0 | FQ59: =FO59*FP15 -> 0 | FT59: =FR59*FS15 -> 0 | FW59: =FU59*FV15 -> 0 | FZ59: =FX59*FY15 -> 0 | GC59: =GA59*GB15 -> 0 | GF59: =GD59*GE15 -> 0 | GI59: =GG59*GH15 -> 0 | GL59: =GJ59*GK15 -> 0 | GO59: =GM59*GN15 -> 0 | GR59: =GP59*GQ15 -> 0 | GU59: =GS59*GT15 -> 0 | GX59: =GV59*GW15 -> 0 | HA59: =GY59*GZ15 -> 0 | HD59: =HB59*HC15 -> 0 | HG59: =HE59*HF15 -> 0 | HJ59: =HH59*HI15 -> 0 | HM59: =HK59*HL15 -> 0 | HP59: =HN59*HO15 -> 0 | HS59: =HQ59*HR15 -> 0 | HV59: =HT59*HU15 -> 0 | HY59: =HW59*HX15 -> 0 | IB59: =HZ59*IA15 -> 0 | IE59: =IC59*ID15 -> 0 | IH59: =IF59*IG15 -> 0
B60: 0 | E60: =C60*D15 -> 0 | H60: =F60*G15 -> 0 | K60: =I60*J15 -> 0 | N60: =L60*M15 -> 0 | Q60: =O60*P15 -> 0 | T60: =R60*S15 -> 0 | W60: =U60*V15 -> 0 | Z60: =X60*Y15 -> 0 | AC60: =AA60*AB15 -> 0 | AF60: =AD60*AE15 -> 0 | AI60: =AG60*AH15 -> 0 | AL60: =AJ60*AK15 -> 0 | AO60: =AM60*AN15 -> 0 | AR60: =AP60*AQ15 -> 0 | AU60: =AS60*AT15 -> 0 | AX60: =AV60*AW15 -> 0 | BA60: =AY60*AZ15 -> 0 | BD60: =BB60*BC15 -> 0 | BG60: =BE60*BF15 -> 0 | BJ60: =BH60*BI15 -> 0 | BM60: =BK60*BL15 -> 0 | BP60: =BN60*BO15 -> 0 | BS60: =BQ60*BR15 -> 0 | BV60: =BT60*BU15 -> 0 | BY60: =BW60*BX15 -> 0 | CB60: =BZ60*CA15 -> 0 | CE60: =CC60*CD15 -> 0 | CH60: =CF60*CG15 -> 0 | CK60: =CI60*CJ15 -> 0 | CN60: =CL60*CM15 -> 0 | CQ60: =CO60*CP15 -> 0 | CT60: =CR60*CS15 -> 0 | CW60: =CU60*CV15 -> 0 | CZ60: =CX60*CY15 -> 0 | DC60: =DA60*DB15 -> 0 | DF60: =DD60*DE15 -> 0 | DI60: =DG60*DH15 -> 0 | DL60: =DJ60*DK15 -> 0 | DO60: =DM60*DN15 -> 0 | DR60: =DP60*DQ15 -> 0 | DU60: =DS60*DT15 -> 0 | DX60: =DV60*DW15 -> 0 | EA60: =DY60*DZ15 -> 0 | ED60: =EB60*EC15 -> 0 | EG60: =EE60*EF15 -> 0 | EJ60: =EH60*EI15 -> 0 | EM60: =EK60*EL15 -> 0 | EP60: =EN60*EO15 -> 0 | ES60: =EQ60*ER15 -> 0 | EV60: =ET60*EU15 -> 0 | EY60: =EW60*EX15 -> 0 | FB60: =EZ60*FA15 -> 0 | FE60: =FC60*FD15 -> 0 | FH60: =FF60*FG15 -> 0 | FK60: =FI60*FJ15 -> 0 | FN60: =FL60*FM15 -> 0 | FQ60: =FO60*FP15 -> 0 | FT60: =FR60*FS15 -> 0 | FW60: =FU60*FV15 -> 0 | FZ60: =FX60*FY15 -> 0 | GC60: =GA60*GB15 -> 0 | GF60: =GD60*GE15 -> 0 | GI60: =GG60*GH15 -> 0 | GL60: =GJ60*GK15 -> 0 | GO60: =GM60*GN15 -> 0 | GR60: =GP60*GQ15 -> 0 | GU60: =GS60*GT15 -> 0 | GX60: =GV60*GW15 -> 0 | HA60: =GY60*GZ15 -> 0 | HD60: =HB60*HC15 -> 0 | HG60: =HE60*HF15 -> 0 | HJ60: =HH60*HI15 -> 0 | HM60: =HK60*HL15 -> 0 | HP60: =HN60*HO15 -> 0 | HS60: =HQ60*HR15 -> 0 | HV60: =HT60*HU15 -> 0 | HY60: =HW60*HX15 -> 0 | IB60: =HZ60*IA15 -> 0 | IE60: =IC60*ID15 -> 0 | IH60: =IF60*IG15 -> 0
B61: 0 | E61: =C61*D15 -> 0 | H61: =F61*G15 -> 0 | K61: =I61*J15 -> 0 | N61: =L61*M15 -> 0 | Q61: =O61*P15 -> 0 | T61: =R61*S15 -> 0 | W61: =U61*V15 -> 0 | Z61: =X61*Y15 -> 0 | AC61: =AA61*AB15 -> 0 | AF61: =AD61*AE15 -> 0 | AI61: =AG61*AH15 -> 0 | AL61: =AJ61*AK15 -> 0 | AO61: =AM61*AN15 -> 0 | AR61: =AP61*AQ15 -> 0 | AU61: =AS61*AT15 -> 0 | AX61: =AV61*AW15 -> 0 | BA61: =AY61*AZ15 -> 0 | BD61: =BB61*BC15 -> 0 | BG61: =BE61*BF15 -> 0 | BJ61: =BH61*BI15 -> 0 | BM61: =BK61*BL15 -> 0 | BP61: =BN61*BO15 -> 0 | BS61: =BQ61*BR15 -> 0 | BV61: =BT61*BU15 -> 0 | BY61: =BW61*BX15 -> 0 | CB61: =BZ61*CA15 -> 0 | CE61: =CC61*CD15 -> 0 | CH61: =CF61*CG15 -> 0 | CK61: =CI61*CJ15 -> 0 | CN61: =CL61*CM15 -> 0 | CQ61: =CO61*CP15 -> 0 | CT61: =CR61*CS15 -> 0 | CW61: =CU61*CV15 -> 0 | CZ61: =CX61*CY15 -> 0 | DC61: =DA61*DB15 -> 0 | DF61: =DD61*DE15 -> 0 | DI61: =DG61*DH15 -> 0 | DL61: =DJ61*DK15 -> 0 | DO61: =DM61*DN15 -> 0 | DR61: =DP61*DQ15 -> 0 | DU61: =DS61*DT15 -> 0 | DX61: =DV61*DW15 -> 0 | EA61: =DY61*DZ15 -> 0 | ED61: =EB61*EC15 -> 0 | EG61: =EE61*EF15 -> 0 | EJ61: =EH61*EI15 -> 0 | EM61: =EK61*EL15 -> 0 | EP61: =EN61*EO15 -> 0 | ES61: =EQ61*ER15 -> 0 | EV61: =ET61*EU15 -> 0 | EY61: =EW61*EX15 -> 0 | FB61: =EZ61*FA15 -> 0 | FE61: =FC61*FD15 -> 0 | FH61: =FF61*FG15 -> 0 | FK61: =FI61*FJ15 -> 0 | FN61: =FL61*FM15 -> 0 | FQ61: =FO61*FP15 -> 0 | FT61: =FR61*FS15 -> 0 | FW61: =FU61*FV15 -> 0 | FZ61: =FX61*FY15 -> 0 | GC61: =GA61*GB15 -> 0 | GF61: =GD61*GE15 -> 0 | GI61: =GG61*GH15 -> 0 | GL61: =GJ61*GK15 -> 0 | GO61: =GM61*GN15 -> 0 | GR61: =GP61*GQ15 -> 0 | GU61: =GS61*GT15 -> 0 | GX61: =GV61*GW15 -> 0 | HA61: =GY61*GZ15 -> 0 | HD61: =HB61*HC15 -> 0 | HG61: =HE61*HF15 -> 0 | HJ61: =HH61*HI15 -> 0 | HM61: =HK61*HL15 -> 0 | HP61: =HN61*HO15 -> 0 | HS61: =HQ61*HR15 -> 0 | HV61: =HT61*HU15 -> 0 | HY61: =HW61*HX15 -> 0 | IB61: =HZ61*IA15 -> 0 | IE61: =IC61*ID15 -> 0 | IH61: =IF61*IG15 -> 0
B62: 0 | E62: =C62*D15 -> 0 | H62: =F62*G15 -> 0 | K62: =I62*J15 -> 0 | N62: =L62*M15 -> 0 | Q62: =O62*P15 -> 0 | T62: =R62*S15 -> 0 | W62: =U62*V15 -> 0 | Z62: =X62*Y15 -> 0 | AC62: =AA62*AB15 -> 0 | AF62: =AD62*AE15 -> 0 | AI62: =AG62*AH15 -> 0 | AL62: =AJ62*AK15 -> 0 | AO62: =AM62*AN15 -> 0 | AR62: =AP62*AQ15 -> 0 | AU62: =AS62*AT15 -> 0 | AX62: =AV62*AW15 -> 0 | BA62: =AY62*AZ15 -> 0 | BD62: =BB62*BC15 -> 0 | BG62: =BE62*BF15 -> 0 | BJ62: =BH62*BI15 -> 0 | BM62: =BK62*BL15 -> 0 | BP62: =BN62*BO15 -> 0 | BS62: =BQ62*BR15 -> 0 | BV62: =BT62*BU15 -> 0 | BY62: =BW62*BX15 -> 0 | CB62: =BZ62*CA15 -> 0 | CE62: =CC62*CD15 -> 0 | CH62: =CF62*CG15 -> 0 | CK62: =CI62*CJ15 -> 0 | CN62: =CL62*CM15 -> 0 | CQ62: =CO62*CP15 -> 0 | CT62: =CR62*CS15 -> 0 | CW62: =CU62*CV15 -> 0 | CZ62: =CX62*CY15 -> 0 | DC62: =DA62*DB15 -> 0 | DF62: =DD62*DE15 -> 0 | DI62: =DG62*DH15 -> 0 | DL62: =DJ62*DK15 -> 0 | DO62: =DM62*DN15 -> 0 | DR62: =DP62*DQ15 -> 0 | DU62: =DS62*DT15 -> 0 | DX62: =DV62*DW15 -> 0 | EA62: =DY62*DZ15 -> 0 | ED62: =EB62*EC15 -> 0 | EG62: =EE62*EF15 -> 0 | EJ62: =EH62*EI15 -> 0 | EM62: =EK62*EL15 -> 0 | EP62: =EN62*EO15 -> 0 | ES62: =EQ62*ER15 -> 0 | EV62: =ET62*EU15 -> 0 | EY62: =EW62*EX15 -> 0 | FB62: =EZ62*FA15 -> 0 | FE62: =FC62*FD15 -> 0 | FH62: =FF62*FG15 -> 0 | FK62: =FI62*FJ15 -> 0 | FN62: =FL62*FM15 -> 0 | FQ62: =FO62*FP15 -> 0 | FT62: =FR62*FS15 -> 0 | FW62: =FU62*FV15 -> 0 | FZ62: =FX62*FY15 -> 0 | GC62: =GA62*GB15 -> 0 | GF62: =GD62*GE15 -> 0 | GI62: =GG62*GH15 -> 0 | GL62: =GJ62*GK15 -> 0 | GO62: =GM62*GN15 -> 0 | GR62: =GP62*GQ15 -> 0 | GU62: =GS62*GT15 -> 0 | GX62: =GV62*GW15 -> 0 | HA62: =GY62*GZ15 -> 0 | HD62: =HB62*HC15 -> 0 | HG62: =HE62*HF15 -> 0 | HJ62: =HH62*HI15 -> 0 | HM62: =HK62*HL15 -> 0 | HP62: =HN62*HO15 -> 0 | HS62: =HQ62*HR15 -> 0 | HV62: =HT62*HU15 -> 0 | HY62: =HW62*HX15 -> 0 | IB62: =HZ62*IA15 -> 0 | IE62: =IC62*ID15 -> 0 | IH62: =IF62*IG15 -> 0
B63: 0 | E63: =C63*D15 -> 0 | H63: =F63*G15 -> 0 | K63: =I63*J15 -> 0 | N63: =L63*M15 -> 0 | Q63: =O63*P15 -> 0 | T63: =R63*S15 -> 0 | W63: =U63*V15 -> 0 | Z63: =X63*Y15 -> 0 | AC63: =AA63*AB15 -> 0 | AF63: =AD63*AE15 -> 0 | AI63: =AG63*AH15 -> 0 | AL63: =AJ63*AK15 -> 0 | AO63: =AM63*AN15 -> 0 | AR63: =AP63*AQ15 -> 0 | AU63: =AS63*AT15 -> 0 | AX63: =AV63*AW15 -> 0 | BA63: =AY63*AZ15 -> 0 | BD63: =BB63*BC15 -> 0 | BG63: =BE63*BF15 -> 0 | BJ63: =BH63*BI15 -> 0 | BM63: =BK63*BL15 -> 0 | BP63: =BN63*BO15 -> 0 | BS63: =BQ63*BR15 -> 0 | BV63: =BT63*BU15 -> 0 | BY63: =BW63*BX15 -> 0 | CB63: =BZ63*CA15 -> 0 | CE63: =CC63*CD15 -> 0 | CH63: =CF63*CG15 -> 0 | CK63: =CI63*CJ15 -> 0 | CN63: =CL63*CM15 -> 0 | CQ63: =CO63*CP15 -> 0 | CT63: =CR63*CS15 -> 0 | CW63: =CU63*CV15 -> 0 | CZ63: =CX63*CY15 -> 0 | DC63: =DA63*DB15 -> 0 | DF63: =DD63*DE15 -> 0 | DI63: =DG63*DH15 -> 0 | DL63: =DJ63*DK15 -> 0 | DO63: =DM63*DN15 -> 0 | DR63: =DP63*DQ15 -> 0 | DU63: =DS63*DT15 -> 0 | DX63: =DV63*DW15 -> 0 | EA63: =DY63*DZ15 -> 0 | ED63: =EB63*EC15 -> 0 | EG63: =EE63*EF15 -> 0 | EJ63: =EH63*EI15 -> 0 | EM63: =EK63*EL15 -> 0 | EP63: =EN63*EO15 -> 0 | ES63: =EQ63*ER15 -> 0 | EV63: =ET63*EU15 -> 0 | EY63: =EW63*EX15 -> 0 | FB63: =EZ63*FA15 -> 0 | FE63: =FC63*FD15 -> 0 | FH63: =FF63*FG15 -> 0 | FK63: =FI63*FJ15 -> 0 | FN63: =FL63*FM15 -> 0 | FQ63: =FO63*FP15 -> 0 | FT63: =FR63*FS15 -> 0 | FW63: =FU63*FV15 -> 0 | FZ63: =FX63*FY15 -> 0 | GC63: =GA63*GB15 -> 0 | GF63: =GD63*GE15 -> 0 | GI63: =GG63*GH15 -> 0 | GL63: =GJ63*GK15 -> 0 | GO63: =GM63*GN15 -> 0 | GR63: =GP63*GQ15 -> 0 | GU63: =GS63*GT15 -> 0 | GX63: =GV63*GW15 -> 0 | HA63: =GY63*GZ15 -> 0 | HD63: =HB63*HC15 -> 0 | HG63: =HE63*HF15 -> 0 | HJ63: =HH63*HI15 -> 0 | HM63: =HK63*HL15 -> 0 | HP63: =HN63*HO15 -> 0 | HS63: =HQ63*HR15 -> 0 | HV63: =HT63*HU15 -> 0 | HY63: =HW63*HX15 -> 0 | IB63: =HZ63*IA15 -> 0 | IE63: =IC63*ID15 -> 0 | IH63: =IF63*IG15 -> 0
B64: 0 | E64: =C64*D15 -> 0 | H64: =F64*G15 -> 0 | K64: =I64*J15 -> 0 | N64: =L64*M15 -> 0 | Q64: =O64*P15 -> 0 | T64: =R64*S15 -> 0 | W64: =U64*V15 -> 0 | Z64: =X64*Y15 -> 0 | AC64: =AA64*AB15 -> 0 | AF64: =AD64*AE15 -> 0 | AI64: =AG64*AH15 -> 0 | AL64: =AJ64*AK15 -> 0 | AO64: =AM64*AN15 -> 0 | AR64: =AP64*AQ15 -> 0 | AU64: =AS64*AT15 -> 0 | AX64: =AV64*AW15 -> 0 | BA64: =AY64*AZ15 -> 0 | BD64: =BB64*BC15 -> 0 | BG64: =BE64*BF15 -> 0 | BJ64: =BH64*BI15 -> 0 | BM64: =BK64*BL15 -> 0 | BP64: =BN64*BO15 -> 0 | BS64: =BQ64*BR15 -> 0 | BV64: =BT64*BU15 -> 0 | BY64: =BW64*BX15 -> 0 | CB64: =BZ64*CA15 -> 0 | CE64: =CC64*CD15 -> 0 | CH64: =CF64*CG15 -> 0 | CK64: =CI64*CJ15 -> 0 | CN64: =CL64*CM15 -> 0 | CQ64: =CO64*CP15 -> 0 | CT64: =CR64*CS15 -> 0 | CW64: =CU64*CV15 -> 0 | CZ64: =CX64*CY15 -> 0 | DC64: =DA64*DB15 -> 0 | DF64: =DD64*DE15 -> 0 | DI64: =DG64*DH15 -> 0 | DL64: =DJ64*DK15 -> 0 | DO64: =DM64*DN15 -> 0 | DR64: =DP64*DQ15 -> 0 | DU64: =DS64*DT15 -> 0 | DX64: =DV64*DW15 -> 0 | EA64: =DY64*DZ15 -> 0 | ED64: =EB64*EC15 -> 0 | EG64: =EE64*EF15 -> 0 | EJ64: =EH64*EI15 -> 0 | EM64: =EK64*EL15 -> 0 | EP64: =EN64*EO15 -> 0 | ES64: =EQ64*ER15 -> 0 | EV64: =ET64*EU15 -> 0 | EY64: =EW64*EX15 -> 0 | FB64: =EZ64*FA15 -> 0 | FE64: =FC64*FD15 -> 0 | FH64: =FF64*FG15 -> 0 | FK64: =FI64*FJ15 -> 0 | FN64: =FL64*FM15 -> 0 | FQ64: =FO64*FP15 -> 0 | FT64: =FR64*FS15 -> 0 | FW64: =FU64*FV15 -> 0 | FZ64: =FX64*FY15 -> 0 | GC64: =GA64*GB15 -> 0 | GF64: =GD64*GE15 -> 0 | GI64: =GG64*GH15 -> 0 | GL64: =GJ64*GK15 -> 0 | GO64: =GM64*GN15 -> 0 | GR64: =GP64*GQ15 -> 0 | GU64: =GS64*GT15 -> 0 | GX64: =GV64*GW15 -> 0 | HA64: =GY64*GZ15 -> 0 | HD64: =HB64*HC15 -> 0 | HG64: =HE64*HF15 -> 0 | HJ64: =HH64*HI15 -> 0 | HM64: =HK64*HL15 -> 0 | HP64: =HN64*HO15 -> 0 | HS64: =HQ64*HR15 -> 0 | HV64: =HT64*HU15 -> 0 | HY64: =HW64*HX15 -> 0 | IB64: =HZ64*IA15 -> 0 | IE64: =IC64*ID15 -> 0 | IH64: =IF64*IG15 -> 0
B65: 0 | E65: =C65*D15 -> 0 | H65: =F65*G15 -> 0 | K65: =I65*J15 -> 0 | N65: =L65*M15 -> 0 | Q65: =O65*P15 -> 0 | T65: =R65*S15 -> 0 | W65: =U65*V15 -> 0 | Z65: =X65*Y15 -> 0 | AC65: =AA65*AB15 -> 0 | AF65: =AD65*AE15 -> 0 | AI65: =AG65*AH15 -> 0 | AL65: =AJ65*AK15 -> 0 | AO65: =AM65*AN15 -> 0 | AR65: =AP65*AQ15 -> 0 | AU65: =AS65*AT15 -> 0 | AX65: =AV65*AW15 -> 0 | BA65: =AY65*AZ15 -> 0 | BD65: =BB65*BC15 -> 0 | BG65: =BE65*BF15 -> 0 | BJ65: =BH65*BI15 -> 0 | BM65: =BK65*BL15 -> 0 | BP65: =BN65*BO15 -> 0 | BS65: =BQ65*BR15 -> 0 | BV65: =BT65*BU15 -> 0 | BY65: =BW65*BX15 -> 0 | CB65: =BZ65*CA15 -> 0 | CE65: =CC65*CD15 -> 0 | CH65: =CF65*CG15 -> 0 | CK65: =CI65*CJ15 -> 0 | CN65: =CL65*CM15 -> 0 | CQ65: =CO65*CP15 -> 0 | CT65: =CR65*CS15 -> 0 | CW65: =CU65*CV15 -> 0 | CZ65: =CX65*CY15 -> 0 | DC65: =DA65*DB15 -> 0 | DF65: =DD65*DE15 -> 0 | DI65: =DG65*DH15 -> 0 | DL65: =DJ65*DK15 -> 0 | DO65: =DM65*DN15 -> 0 | DR65: =DP65*DQ15 -> 0 | DU65: =DS65*DT15 -> 0 | DX65: =DV65*DW15 -> 0 | EA65: =DY65*DZ15 -> 0 | ED65: =EB65*EC15 -> 0 | EG65: =EE65*EF15 -> 0 | EJ65: =EH65*EI15 -> 0 | EM65: =EK65*EL15 -> 0 | EP65: =EN65*EO15 -> 0 | ES65: =EQ65*ER15 -> 0 | EV65: =ET65*EU15 -> 0 | EY65: =EW65*EX15 -> 0 | FB65: =EZ65*FA15 -> 0 | FE65: =FC65*FD15 -> 0 | FH65: =FF65*FG15 -> 0 | FK65: =FI65*FJ15 -> 0 | FN65: =FL65*FM15 -> 0 | FQ65: =FO65*FP15 -> 0 | FT65: =FR65*FS15 -> 0 | FW65: =FU65*FV15 -> 0 | FZ65: =FX65*FY15 -> 0 | GC65: =GA65*GB15 -> 0 | GF65: =GD65*GE15 -> 0 | GI65: =GG65*GH15 -> 0 | GL65: =GJ65*GK15 -> 0 | GO65: =GM65*GN15 -> 0 | GR65: =GP65*GQ15 -> 0 | GU65: =GS65*GT15 -> 0 | GX65: =GV65*GW15 -> 0 | HA65: =GY65*GZ15 -> 0 | HD65: =HB65*HC15 -> 0 | HG65: =HE65*HF15 -> 0 | HJ65: =HH65*HI15 -> 0 | HM65: =HK65*HL15 -> 0 | HP65: =HN65*HO15 -> 0 | HS65: =HQ65*HR15 -> 0 | HV65: =HT65*HU15 -> 0 | HY65: =HW65*HX15 -> 0 | IB65: =HZ65*IA15 -> 0 | IE65: =IC65*ID15 -> 0 | IH65: =IF65*IG15 -> 0
B66: 0 | E66: =C66*D15 -> 0 | H66: =F66*G15 -> 0 | K66: =I66*J15 -> 0 | N66: =L66*M15 -> 0 | Q66: =O66*P15 -> 0 | T66: =R66*S15 -> 0 | W66: =U66*V15 -> 0 | Z66: =X66*Y15 -> 0 | AC66: =AA66*AB15 -> 0 | AF66: =AD66*AE15 -> 0 | AI66: =AG66*AH15 -> 0 | AL66: =AJ66*AK15 -> 0 | AO66: =AM66*AN15 -> 0 | AR66: =AP66*AQ15 -> 0 | AU66: =AS66*AT15 -> 0 | AX66: =AV66*AW15 -> 0 | BA66: =AY66*AZ15 -> 0 | BD66: =BB66*BC15 -> 0 | BG66: =BE66*BF15 -> 0 | BJ66: =BH66*BI15 -> 0 | BM66: =BK66*BL15 -> 0 | BP66: =BN66*BO15 -> 0 | BS66: =BQ66*BR15 -> 0 | BV66: =BT66*BU15 -> 0 | BY66: =BW66*BX15 -> 0 | CB66: =BZ66*CA15 -> 0 | CE66: =CC66*CD15 -> 0 | CH66: =CF66*CG15 -> 0 | CK66: =CI66*CJ15 -> 0 | CN66: =CL66*CM15 -> 0 | CQ66: =CO66*CP15 -> 0 | CT66: =CR66*CS15 -> 0 | CW66: =CU66*CV15 -> 0 | CZ66: =CX66*CY15 -> 0 | DC66: =DA66*DB15 -> 0 | DF66: =DD66*DE15 -> 0 | DI66: =DG66*DH15 -> 0 | DL66: =DJ66*DK15 -> 0 | DO66: =DM66*DN15 -> 0 | DR66: =DP66*DQ15 -> 0 | DU66: =DS66*DT15 -> 0 | DX66: =DV66*DW15 -> 0 | EA66: =DY66*DZ15 -> 0 | ED66: =EB66*EC15 -> 0 | EG66: =EE66*EF15 -> 0 | EJ66: =EH66*EI15 -> 0 | EM66: =EK66*EL15 -> 0 | EP66: =EN66*EO15 -> 0 | ES66: =EQ66*ER15 -> 0 | EV66: =ET66*EU15 -> 0 | EY66: =EW66*EX15 -> 0 | FB66: =EZ66*FA15 -> 0 | FE66: =FC66*FD15 -> 0 | FH66: =FF66*FG15 -> 0 | FK66: =FI66*FJ15 -> 0 | FN66: =FL66*FM15 -> 0 | FQ66: =FO66*FP15 -> 0 | FT66: =FR66*FS15 -> 0 | FW66: =FU66*FV15 -> 0 | FZ66: =FX66*FY15 -> 0 | GC66: =GA66*GB15 -> 0 | GF66: =GD66*GE15 -> 0 | GI66: =GG66*GH15 -> 0 | GL66: =GJ66*GK15 -> 0 | GO66: =GM66*GN15 -> 0 | GR66: =GP66*GQ15 -> 0 | GU66: =GS66*GT15 -> 0 | GX66: =GV66*GW15 -> 0 | HA66: =GY66*GZ15 -> 0 | HD66: =HB66*HC15 -> 0 | HG66: =HE66*HF15 -> 0 | HJ66: =HH66*HI15 -> 0 | HM66: =HK66*HL15 -> 0 | HP66: =HN66*HO15 -> 0 | HS66: =HQ66*HR15 -> 0 | HV66: =HT66*HU15 -> 0 | HY66: =HW66*HX15 -> 0 | IB66: =HZ66*IA15 -> 0 | IE66: =IC66*ID15 -> 0 | IH66: =IF66*IG15 -> 0
B67: 0 | E67: =C67*D15 -> 0 | H67: =F67*G15 -> 0 | K67: =I67*J15 -> 0 | N67: =L67*M15 -> 0 | Q67: =O67*P15 -> 0 | T67: =R67*S15 -> 0 | W67: =U67*V15 -> 0 | Z67: =X67*Y15 -> 0 | AC67: =AA67*AB15 -> 0 | AF67: =AD67*AE15 -> 0 | AI67: =AG67*AH15 -> 0 | AL67: =AJ67*AK15 -> 0 | AO67: =AM67*AN15 -> 0 | AR67: =AP67*AQ15 -> 0 | AU67: =AS67*AT15 -> 0 | AX67: =AV67*AW15 -> 0 | BA67: =AY67*AZ15 -> 0 | BD67: =BB67*BC15 -> 0 | BG67: =BE67*BF15 -> 0 | BJ67: =BH67*BI15 -> 0 | BM67: =BK67*BL15 -> 0 | BP67: =BN67*BO15 -> 0 | BS67: =BQ67*BR15 -> 0 | BV67: =BT67*BU15 -> 0 | BY67: =BW67*BX15 -> 0 | CB67: =BZ67*CA15 -> 0 | CE67: =CC67*CD15 -> 0 | CH67: =CF67*CG15 -> 0 | CK67: =CI67*CJ15 -> 0 | CN67: =CL67*CM15 -> 0 | CQ67: =CO67*CP15 -> 0 | CT67: =CR67*CS15 -> 0 | CW67: =CU67*CV15 -> 0 | CZ67: =CX67*CY15 -> 0 | DC67: =DA67*DB15 -> 0 | DF67: =DD67*DE15 -> 0 | DI67: =DG67*DH15 -> 0 | DL67: =DJ67*DK15 -> 0 | DO67: =DM67*DN15 -> 0 | DR67: =DP67*DQ15 -> 0 | DU67: =DS67*DT15 -> 0 | DX67: =DV67*DW15 -> 0 | EA67: =DY67*DZ15 -> 0 | ED67: =EB67*EC15 -> 0 | EG67: =EE67*EF15 -> 0 | EJ67: =EH67*EI15 -> 0 | EM67: =EK67*EL15 -> 0 | EP67: =EN67*EO15 -> 0 | ES67: =EQ67*ER15 -> 0 | EV67: =ET67*EU15 -> 0 | EY67: =EW67*EX15 -> 0 | FB67: =EZ67*FA15 -> 0 | FE67: =FC67*FD15 -> 0 | FH67: =FF67*FG15 -> 0 | FK67: =FI67*FJ15 -> 0 | FN67: =FL67*FM15 -> 0 | FQ67: =FO67*FP15 -> 0 | FT67: =FR67*FS15 -> 0 | FW67: =FU67*FV15 -> 0 | FZ67: =FX67*FY15 -> 0 | GC67: =GA67*GB15 -> 0 | GF67: =GD67*GE15 -> 0 | GI67: =GG67*GH15 -> 0 | GL67: =GJ67*GK15 -> 0 | GO67: =GM67*GN15 -> 0 | GR67: =GP67*GQ15 -> 0 | GU67: =GS67*GT15 -> 0 | GX67: =GV67*GW15 -> 0 | HA67: =GY67*GZ15 -> 0 | HD67: =HB67*HC15 -> 0 | HG67: =HE67*HF15 -> 0 | HJ67: =HH67*HI15 -> 0 | HM67: =HK67*HL15 -> 0 | HP67: =HN67*HO15 -> 0 | HS67: =HQ67*HR15 -> 0 | HV67: =HT67*HU15 -> 0 | HY67: =HW67*HX15 -> 0 | IB67: =HZ67*IA15 -> 0 | IE67: =IC67*ID15 -> 0 | IH67: =IF67*IG15 -> 0
B68: 0 | E68: =C68*D15 -> 0 | H68: =F68*G15 -> 0 | K68: =I68*J15 -> 0 | N68: =L68*M15 -> 0 | Q68: =O68*P15 -> 0 | T68: =R68*S15 -> 0 | W68: =U68*V15 -> 0 | Z68: =X68*Y15 -> 0 | AC68: =AA68*AB15 -> 0 | AF68: =AD68*AE15 -> 0 | AI68: =AG68*AH15 -> 0 | AL68: =AJ68*AK15 -> 0 | AO68: =AM68*AN15 -> 0 | AR68: =AP68*AQ15 -> 0 | AU68: =AS68*AT15 -> 0 | AX68: =AV68*AW15 -> 0 | BA68: =AY68*AZ15 -> 0 | BD68: =BB68*BC15 -> 0 | BG68: =BE68*BF15 -> 0 | BJ68: =BH68*BI15 -> 0 | BM68: =BK68*BL15 -> 0 | BP68: =BN68*BO15 -> 0 | BS68: =BQ68*BR15 -> 0 | BV68: =BT68*BU15 -> 0 | BY68: =BW68*BX15 -> 0 | CB68: =BZ68*CA15 -> 0 | CE68: =CC68*CD15 -> 0 | CH68: =CF68*CG15 -> 0 | CK68: =CI68*CJ15 -> 0 | CN68: =CL68*CM15 -> 0 | CQ68: =CO68*CP15 -> 0 | CT68: =CR68*CS15 -> 0 | CW68: =CU68*CV15 -> 0 | CZ68: =CX68*CY15 -> 0 | DC68: =DA68*DB15 -> 0 | DF68: =DD68*DE15 -> 0 | DI68: =DG68*DH15 -> 0 | DL68: =DJ68*DK15 -> 0 | DO68: =DM68*DN15 -> 0 | DR68: =DP68*DQ15 -> 0 | DU68: =DS68*DT15 -> 0 | DX68: =DV68*DW15 -> 0 | EA68: =DY68*DZ15 -> 0 | ED68: =EB68*EC15 -> 0 | EG68: =EE68*EF15 -> 0 | EJ68: =EH68*EI15 -> 0 | EM68: =EK68*EL15 -> 0 | EP68: =EN68*EO15 -> 0 | ES68: =EQ68*ER15 -> 0 | EV68: =ET68*EU15 -> 0 | EY68: =EW68*EX15 -> 0 | FB68: =EZ68*FA15 -> 0 | FE68: =FC68*FD15 -> 0 | FH68: =FF68*FG15 -> 0 | FK68: =FI68*FJ15 -> 0 | FN68: =FL68*FM15 -> 0 | FQ68: =FO68*FP15 -> 0 | FT68: =FR68*FS15 -> 0 | FW68: =FU68*FV15 -> 0 | FZ68: =FX68*FY15 -> 0 | GC68: =GA68*GB15 -> 0 | GF68: =GD68*GE15 -> 0 | GI68: =GG68*GH15 -> 0 | GL68: =GJ68*GK15 -> 0 | GO68: =GM68*GN15 -> 0 | GR68: =GP68*GQ15 -> 0 | GU68: =GS68*GT15 -> 0 | GX68: =GV68*GW15 -> 0 | HA68: =GY68*GZ15 -> 0 | HD68: =HB68*HC15 -> 0 | HG68: =HE68*HF15 -> 0 | HJ68: =HH68*HI15 -> 0 | HM68: =HK68*HL15 -> 0 | HP68: =HN68*HO15 -> 0 | HS68: =HQ68*HR15 -> 0 | HV68: =HT68*HU15 -> 0 | HY68: =HW68*HX15 -> 0 | IB68: =HZ68*IA15 -> 0 | IE68: =IC68*ID15 -> 0 | IH68: =IF68*IG15 -> 0
B69: 0 | E69: =C69*D15 -> 0 | H69: =F69*G15 -> 0 | K69: =I69*J15 -> 0 | N69: =L69*M15 -> 0 | Q69: =O69*P15 -> 0 | T69: =R69*S15 -> 0 | W69: =U69*V15 -> 0 | Z69: =X69*Y15 -> 0 | AC69: =AA69*AB15 -> 0 | AF69: =AD69*AE15 -> 0 | AI69: =AG69*AH15 -> 0 | AL69: =AJ69*AK15 -> 0 | AO69: =AM69*AN15 -> 0 | AR69: =AP69*AQ15 -> 0 | AU69: =AS69*AT15 -> 0 | AX69: =AV69*AW15 -> 0 | BA69: =AY69*AZ15 -> 0 | BD69: =BB69*BC15 -> 0 | BG69: =BE69*BF15 -> 0 | BJ69: =BH69*BI15 -> 0 | BM69: =BK69*BL15 -> 0 | BP69: =BN69*BO15 -> 0 | BS69: =BQ69*BR15 -> 0 | BV69: =BT69*BU15 -> 0 | BY69: =BW69*BX15 -> 0 | CB69: =BZ69*CA15 -> 0 | CE69: =CC69*CD15 -> 0 | CH69: =CF69*CG15 -> 0 | CK69: =CI69*CJ15 -> 0 | CN69: =CL69*CM15 -> 0 | CQ69: =CO69*CP15 -> 0 | CT69: =CR69*CS15 -> 0 | CW69: =CU69*CV15 -> 0 | CZ69: =CX69*CY15 -> 0 | DC69: =DA69*DB15 -> 0 | DF69: =DD69*DE15 -> 0 | DI69: =DG69*DH15 -> 0 | DL69: =DJ69*DK15 -> 0 | DO69: =DM69*DN15 -> 0 | DR69: =DP69*DQ15 -> 0 | DU69: =DS69*DT15 -> 0 | DX69: =DV69*DW15 -> 0 | EA69: =DY69*DZ15 -> 0 | ED69: =EB69*EC15 -> 0 | EG69: =EE69*EF15 -> 0 | EJ69: =EH69*EI15 -> 0 | EM69: =EK69*EL15 -> 0 | EP69: =EN69*EO15 -> 0 | ES69: =EQ69*ER15 -> 0 | EV69: =ET69*EU15 -> 0 | EY69: =EW69*EX15 -> 0 | FB69: =EZ69*FA15 -> 0 | FE69: =FC69*FD15 -> 0 | FH69: =FF69*FG15 -> 0 | FK69: =FI69*FJ15 -> 0 | FN69: =FL69*FM15 -> 0 | FQ69: =FO69*FP15 -> 0 | FT69: =FR69*FS15 -> 0 | FW69: =FU69*FV15 -> 0 | FZ69: =FX69*FY15 -> 0 | GC69: =GA69*GB15 -> 0 | GF69: =GD69*GE15 -> 0 | GI69: =GG69*GH15 -> 0 | GL69: =GJ69*GK15 -> 0 | GO69: =GM69*GN15 -> 0 | GR69: =GP69*GQ15 -> 0 | GU69: =GS69*GT15 -> 0 | GX69: =GV69*GW15 -> 0 | HA69: =GY69*GZ15 -> 0 | HD69: =HB69*HC15 -> 0 | HG69: =HE69*HF15 -> 0 | HJ69: =HH69*HI15 -> 0 | HM69: =HK69*HL15 -> 0 | HP69: =HN69*HO15 -> 0 | HS69: =HQ69*HR15 -> 0 | HV69: =HT69*HU15 -> 0 | HY69: =HW69*HX15 -> 0 | IB69: =HZ69*IA15 -> 0 | IE69: =IC69*ID15 -> 0 | IH69: =IF69*IG15 -> 0
B70: 0 | E70: =C70*D15 -> 0 | H70: =F70*G15 -> 0 | K70: =I70*J15 -> 0 | N70: =L70*M15 -> 0 | Q70: =O70*P15 -> 0 | T70: =R70*S15 -> 0 | W70: =U70*V15 -> 0 | Z70: =X70*Y15 -> 0 | AC70: =AA70*AB15 -> 0 | AF70: =AD70*AE15 -> 0 | AI70: =AG70*AH15 -> 0 | AL70: =AJ70*AK15 -> 0 | AO70: =AM70*AN15 -> 0 | AR70: =AP70*AQ15 -> 0 | AU70: =AS70*AT15 -> 0 | AX70: =AV70*AW15 -> 0 | BA70: =AY70*AZ15 -> 0 | BD70: =BB70*BC15 -> 0 | BG70: =BE70*BF15 -> 0 | BJ70: =BH70*BI15 -> 0 | BM70: =BK70*BL15 -> 0 | BP70: =BN70*BO15 -> 0 | BS70: =BQ70*BR15 -> 0 | BV70: =BT70*BU15 -> 0 | BY70: =BW70*BX15 -> 0 | CB70: =BZ70*CA15 -> 0 | CE70: =CC70*CD15 -> 0 | CH70: =CF70*CG15 -> 0 | CK70: =CI70*CJ15 -> 0 | CN70: =CL70*CM15 -> 0 | CQ70: =CO70*CP15 -> 0 | CT70: =CR70*CS15 -> 0 | CW70: =CU70*CV15 -> 0 | CZ70: =CX70*CY15 -> 0 | DC70: =DA70*DB15 -> 0 | DF70: =DD70*DE15 -> 0 | DI70: =DG70*DH15 -> 0 | DL70: =DJ70*DK15 -> 0 | DO70: =DM70*DN15 -> 0 | DR70: =DP70*DQ15 -> 0 | DU70: =DS70*DT15 -> 0 | DX70: =DV70*DW15 -> 0 | EA70: =DY70*DZ15 -> 0 | ED70: =EB70*EC15 -> 0 | EG70: =EE70*EF15 -> 0 | EJ70: =EH70*EI15 -> 0 | EM70: =EK70*EL15 -> 0 | EP70: =EN70*EO15 -> 0 | ES70: =EQ70*ER15 -> 0 | EV70: =ET70*EU15 -> 0 | EY70: =EW70*EX15 -> 0 | FB70: =EZ70*FA15 -> 0 | FE70: =FC70*FD15 -> 0 | FH70: =FF70*FG15 -> 0 | FK70: =FI70*FJ15 -> 0 | FN70: =FL70*FM15 -> 0 | FQ70: =FO70*FP15 -> 0 | FT70: =FR70*FS15 -> 0 | FW70: =FU70*FV15 -> 0 | FZ70: =FX70*FY15 -> 0 | GC70: =GA70*GB15 -> 0 | GF70: =GD70*GE15 -> 0 | GI70: =GG70*GH15 -> 0 | GL70: =GJ70*GK15 -> 0 | GO70: =GM70*GN15 -> 0 | GR70: =GP70*GQ15 -> 0 | GU70: =GS70*GT15 -> 0 | GX70: =GV70*GW15 -> 0 | HA70: =GY70*GZ15 -> 0 | HD70: =HB70*HC15 -> 0 | HG70: =HE70*HF15 -> 0 | HJ70: =HH70*HI15 -> 0 | HM70: =HK70*HL15 -> 0 | HP70: =HN70*HO15 -> 0 | HS70: =HQ70*HR15 -> 0 | HV70: =HT70*HU15 -> 0 | HY70: =HW70*HX15 -> 0 | IB70: =HZ70*IA15 -> 0 | IE70: =IC70*ID15 -> 0 | IH70: =IF70*IG15 -> 0
B71: 0 | E71: =C71*D15 -> 0 | H71: =F71*G15 -> 0 | K71: =I71*J15 -> 0 | N71: =L71*M15 -> 0 | Q71: =O71*P15 -> 0 | T71: =R71*S15 -> 0 | W71: =U71*V15 -> 0 | Z71: =X71*Y15 -> 0 | AC71: =AA71*AB15 -> 0 | AF71: =AD71*AE15 -> 0 | AI71: =AG71*AH15 -> 0 | AL71: =AJ71*AK15 -> 0 | AO71: =AM71*AN15 -> 0 | AR71: =AP71*AQ15 -> 0 | AU71: =AS71*AT15 -> 0 | AX71: =AV71*AW15 -> 0 | BA71: =AY71*AZ15 -> 0 | BD71: =BB71*BC15 -> 0 | BG71: =BE71*BF15 -> 0 | BJ71: =BH71*BI15 -> 0 | BM71: =BK71*BL15 -> 0 | BP71: =BN71*BO15 -> 0 | BS71: =BQ71*BR15 -> 0 | BV71: =BT71*BU15 -> 0 | BY71: =BW71*BX15 -> 0 | CB71: =BZ71*CA15 -> 0 | CE71: =CC71*CD15 -> 0 | CH71: =CF71*CG15 -> 0 | CK71: =CI71*CJ15 -> 0 | CN71: =CL71*CM15 -> 0 | CQ71: =CO71*CP15 -> 0 | CT71: =CR71*CS15 -> 0 | CW71: =CU71*CV15 -> 0 | CZ71: =CX71*CY15 -> 0 | DC71: =DA71*DB15 -> 0 | DF71: =DD71*DE15 -> 0 | DI71: =DG71*DH15 -> 0 | DL71: =DJ71*DK15 -> 0 | DO71: =DM71*DN15 -> 0 | DR71: =DP71*DQ15 -> 0 | DU71: =DS71*DT15 -> 0 | DX71: =DV71*DW15 -> 0 | EA71: =DY71*DZ15 -> 0 | ED71: =EB71*EC15 -> 0 | EG71: =EE71*EF15 -> 0 | EJ71: =EH71*EI15 -> 0 | EM71: =EK71*EL15 -> 0 | EP71: =EN71*EO15 -> 0 | ES71: =EQ71*ER15 -> 0 | EV71: =ET71*EU15 -> 0 | EY71: =EW71*EX15 -> 0 | FB71: =EZ71*FA15 -> 0 | FE71: =FC71*FD15 -> 0 | FH71: =FF71*FG15 -> 0 | FK71: =FI71*FJ15 -> 0 | FN71: =FL71*FM15 -> 0 | FQ71: =FO71*FP15 -> 0 | FT71: =FR71*FS15 -> 0 | FW71: =FU71*FV15 -> 0 | FZ71: =FX71*FY15 -> 0 | GC71: =GA71*GB15 -> 0 | GF71: =GD71*GE15 -> 0 | GI71: =GG71*GH15 -> 0 | GL71: =GJ71*GK15 -> 0 | GO71: =GM71*GN15 -> 0 | GR71: =GP71*GQ15 -> 0 | GU71: =GS71*GT15 -> 0 | GX71: =GV71*GW15 -> 0 | HA71: =GY71*GZ15 -> 0 | HD71: =HB71*HC15 -> 0 | HG71: =HE71*HF15 -> 0 | HJ71: =HH71*HI15 -> 0 | HM71: =HK71*HL15 -> 0 | HP71: =HN71*HO15 -> 0 | HS71: =HQ71*HR15 -> 0 | HV71: =HT71*HU15 -> 0 | HY71: =HW71*HX15 -> 0 | IB71: =HZ71*IA15 -> 0 | IE71: =IC71*ID15 -> 0 | IH71: =IF71*IG15 -> 0
B72: 0 | E72: =C72*D15 -> 0 | H72: =F72*G15 -> 0 | K72: =I72*J15 -> 0 | N72: =L72*M15 -> 0 | Q72: =O72*P15 -> 0 | T72: =R72*S15 -> 0 | W72: =U72*V15 -> 0 | Z72: =X72*Y15 -> 0 | AC72: =AA72*AB15 -> 0 | AF72: =AD72*AE15 -> 0 | AI72: =AG72*AH15 -> 0 | AL72: =AJ72*AK15 -> 0 | AO72: =AM72*AN15 -> 0 | AR72: =AP72*AQ15 -> 0 | AU72: =AS72*AT15 -> 0 | AX72: =AV72*AW15 -> 0 | BA72: =AY72*AZ15 -> 0 | BD72: =BB72*BC15 -> 0 | BG72: =BE72*BF15 -> 0 | BJ72: =BH72*BI15 -> 0 | BM72: =BK72*BL15 -> 0 | BP72: =BN72*BO15 -> 0 | BS72: =BQ72*BR15 -> 0 | BV72: =BT72*BU15 -> 0 | BY72: =BW72*BX15 -> 0 | CB72: =BZ72*CA15 -> 0 | CE72: =CC72*CD15 -> 0 | CH72: =CF72*CG15 -> 0 | CK72: =CI72*CJ15 -> 0 | CN72: =CL72*CM15 -> 0 | CQ72: =CO72*CP15 -> 0 | CT72: =CR72*CS15 -> 0 | CW72: =CU72*CV15 -> 0 | CZ72: =CX72*CY15 -> 0 | DC72: =DA72*DB15 -> 0 | DF72: =DD72*DE15 -> 0 | DI72: =DG72*DH15 -> 0 | DL72: =DJ72*DK15 -> 0 | DO72: =DM72*DN15 -> 0 | DR72: =DP72*DQ15 -> 0 | DU72: =DS72*DT15 -> 0 | DX72: =DV72*DW15 -> 0 | EA72: =DY72*DZ15 -> 0 | ED72: =EB72*EC15 -> 0 | EG72: =EE72*EF15 -> 0 | EJ72: =EH72*EI15 -> 0 | EM72: =EK72*EL15 -> 0 | EP72: =EN72*EO15 -> 0 | ES72: =EQ72*ER15 -> 0 | EV72: =ET72*EU15 -> 0 | EY72: =EW72*EX15 -> 0 | FB72: =EZ72*FA15 -> 0 | FE72: =FC72*FD15 -> 0 | FH72: =FF72*FG15 -> 0 | FK72: =FI72*FJ15 -> 0 | FN72: =FL72*FM15 -> 0 | FQ72: =FO72*FP15 -> 0 | FT72: =FR72*FS15 -> 0 | FW72: =FU72*FV15 -> 0 | FZ72: =FX72*FY15 -> 0 | GC72: =GA72*GB15 -> 0 | GF72: =GD72*GE15 -> 0 | GI72: =GG72*GH15 -> 0 | GL72: =GJ72*GK15 -> 0 | GO72: =GM72*GN15 -> 0 | GR72: =GP72*GQ15 -> 0 | GU72: =GS72*GT15 -> 0 | GX72: =GV72*GW15 -> 0 | HA72: =GY72*GZ15 -> 0 | HD72: =HB72*HC15 -> 0 | HG72: =HE72*HF15 -> 0 | HJ72: =HH72*HI15 -> 0 | HM72: =HK72*HL15 -> 0 | HP72: =HN72*HO15 -> 0 | HS72: =HQ72*HR15 -> 0 | HV72: =HT72*HU15 -> 0 | HY72: =HW72*HX15 -> 0 | IB72: =HZ72*IA15 -> 0 | IE72: =IC72*ID15 -> 0 | IH72: =IF72*IG15 -> 0
B73: 0 | E73: =C73*D15 -> 0 | H73: =F73*G15 -> 0 | K73: =I73*J15 -> 0 | N73: =L73*M15 -> 0 | Q73: =O73*P15 -> 0 | T73: =R73*S15 -> 0 | W73: =U73*V15 -> 0 | Z73: =X73*Y15 -> 0 | AC73: =AA73*AB15 -> 0 | AF73: =AD73*AE15 -> 0 | AI73: =AG73*AH15 -> 0 | AL73: =AJ73*AK15 -> 0 | AO73: =AM73*AN15 -> 0 | AR73: =AP73*AQ15 -> 0 | AU73: =AS73*AT15 -> 0 | AX73: =AV73*AW15 -> 0 | BA73: =AY73*AZ15 -> 0 | BD73: =BB73*BC15 -> 0 | BG73: =BE73*BF15 -> 0 | BJ73: =BH73*BI15 -> 0 | BM73: =BK73*BL15 -> 0 | BP73: =BN73*BO15 -> 0 | BS73: =BQ73*BR15 -> 0 | BV73: =BT73*BU15 -> 0 | BY73: =BW73*BX15 -> 0 | CB73: =BZ73*CA15 -> 0 | CE73: =CC73*CD15 -> 0 | CH73: =CF73*CG15 -> 0 | CK73: =CI73*CJ15 -> 0 | CN73: =CL73*CM15 -> 0 | CQ73: =CO73*CP15 -> 0 | CT73: =CR73*CS15 -> 0 | CW73: =CU73*CV15 -> 0 | CZ73: =CX73*CY15 -> 0 | DC73: =DA73*DB15 -> 0 | DF73: =DD73*DE15 -> 0 | DI73: =DG73*DH15 -> 0 | DL73: =DJ73*DK15 -> 0 | DO73: =DM73*DN15 -> 0 | DR73: =DP73*DQ15 -> 0 | DU73: =DS73*DT15 -> 0 | DX73: =DV73*DW15 -> 0 | EA73: =DY73*DZ15 -> 0 | ED73: =EB73*EC15 -> 0 | EG73: =EE73*EF15 -> 0 | EJ73: =EH73*EI15 -> 0 | EM73: =EK73*EL15 -> 0 | EP73: =EN73*EO15 -> 0 | ES73: =EQ73*ER15 -> 0 | EV73: =ET73*EU15 -> 0 | EY73: =EW73*EX15 -> 0 | FB73: =EZ73*FA15 -> 0 | FE73: =FC73*FD15 -> 0 | FH73: =FF73*FG15 -> 0 | FK73: =FI73*FJ15 -> 0 | FN73: =FL73*FM15 -> 0 | FQ73: =FO73*FP15 -> 0 | FT73: =FR73*FS15 -> 0 | FW73: =FU73*FV15 -> 0 | FZ73: =FX73*FY15 -> 0 | GC73: =GA73*GB15 -> 0 | GF73: =GD73*GE15 -> 0 | GI73: =GG73*GH15 -> 0 | GL73: =GJ73*GK15 -> 0 | GO73: =GM73*GN15 -> 0 | GR73: =GP73*GQ15 -> 0 | GU73: =GS73*GT15 -> 0 | GX73: =GV73*GW15 -> 0 | HA73: =GY73*GZ15 -> 0 | HD73: =HB73*HC15 -> 0 | HG73: =HE73*HF15 -> 0 | HJ73: =HH73*HI15 -> 0 | HM73: =HK73*HL15 -> 0 | HP73: =HN73*HO15 -> 0 | HS73: =HQ73*HR15 -> 0 | HV73: =HT73*HU15 -> 0 | HY73: =HW73*HX15 -> 0 | IB73: =HZ73*IA15 -> 0 | IE73: =IC73*ID15 -> 0 | IH73: =IF73*IG15 -> 0
B74: 0 | E74: =C74*D15 -> 0 | H74: =F74*G15 -> 0 | K74: =I74*J15 -> 0 | N74: =L74*M15 -> 0 | Q74: =O74*P15 -> 0 | T74: =R74*S15 -> 0 | W74: =U74*V15 -> 0 | Z74: =X74*Y15 -> 0 | AC74: =AA74*AB15 -> 0 | AF74: =AD74*AE15 -> 0 | AI74: =AG74*AH15 -> 0 | AL74: =AJ74*AK15 -> 0 | AO74: =AM74*AN15 -> 0 | AR74: =AP74*AQ15 -> 0 | AU74: =AS74*AT15 -> 0 | AX74: =AV74*AW15 -> 0 | BA74: =AY74*AZ15 -> 0 | BD74: =BB74*BC15 -> 0 | BG74: =BE74*BF15 -> 0 | BJ74: =BH74*BI15 -> 0 | BM74: =BK74*BL15 -> 0 | BP74: =BN74*BO15 -> 0 | BS74: =BQ74*BR15 -> 0 | BV74: =BT74*BU15 -> 0 | BY74: =BW74*BX15 -> 0 | CB74: =BZ74*CA15 -> 0 | CE74: =CC74*CD15 -> 0 | CH74: =CF74*CG15 -> 0 | CK74: =CI74*CJ15 -> 0 | CN74: =CL74*CM15 -> 0 | CQ74: =CO74*CP15 -> 0 | CT74: =CR74*CS15 -> 0 | CW74: =CU74*CV15 -> 0 | CZ74: =CX74*CY15 -> 0 | DC74: =DA74*DB15 -> 0 | DF74: =DD74*DE15 -> 0 | DI74: =DG74*DH15 -> 0 | DL74: =DJ74*DK15 -> 0 | DO74: =DM74*DN15 -> 0 | DR74: =DP74*DQ15 -> 0 | DU74: =DS74*DT15 -> 0 | DX74: =DV74*DW15 -> 0 | EA74: =DY74*DZ15 -> 0 | ED74: =EB74*EC15 -> 0 | EG74: =EE74*EF15 -> 0 | EJ74: =EH74*EI15 -> 0 | EM74: =EK74*EL15 -> 0 | EP74: =EN74*EO15 -> 0 | ES74: =EQ74*ER15 -> 0 | EV74: =ET74*EU15 -> 0 | EY74: =EW74*EX15 -> 0 | FB74: =EZ74*FA15 -> 0 | FE74: =FC74*FD15 -> 0 | FH74: =FF74*FG15 -> 0 | FK74: =FI74*FJ15 -> 0 | FN74: =FL74*FM15 -> 0 | FQ74: =FO74*FP15 -> 0 | FT74: =FR74*FS15 -> 0 | FW74: =FU74*FV15 -> 0 | FZ74: =FX74*FY15 -> 0 | GC74: =GA74*GB15 -> 0 | GF74: =GD74*GE15 -> 0 | GI74: =GG74*GH15 -> 0 | GL74: =GJ74*GK15 -> 0 | GO74: =GM74*GN15 -> 0 | GR74: =GP74*GQ15 -> 0 | GU74: =GS74*GT15 -> 0 | GX74: =GV74*GW15 -> 0 | HA74: =GY74*GZ15 -> 0 | HD74: =HB74*HC15 -> 0 | HG74: =HE74*HF15 -> 0 | HJ74: =HH74*HI15 -> 0 | HM74: =HK74*HL15 -> 0 | HP74: =HN74*HO15 -> 0 | HS74: =HQ74*HR15 -> 0 | HV74: =HT74*HU15 -> 0 | HY74: =HW74*HX15 -> 0 | IB74: =HZ74*IA15 -> 0 | IE74: =IC74*ID15 -> 0 | IH74: =IF74*IG15 -> 0
B75: 0 | E75: =C75*D15 -> 0 | H75: =F75*G15 -> 0 | K75: =I75*J15 -> 0 | N75: =L75*M15 -> 0 | Q75: =O75*P15 -> 0 | T75: =R75*S15 -> 0 | W75: =U75*V15 -> 0 | Z75: =X75*Y15 -> 0 | AC75: =AA75*AB15 -> 0 | AF75: =AD75*AE15 -> 0 | AI75: =AG75*AH15 -> 0 | AL75: =AJ75*AK15 -> 0 | AO75: =AM75*AN15 -> 0 | AR75: =AP75*AQ15 -> 0 | AU75: =AS75*AT15 -> 0 | AX75: =AV75*AW15 -> 0 | BA75: =AY75*AZ15 -> 0 | BD75: =BB75*BC15 -> 0 | BG75: =BE75*BF15 -> 0 | BJ75: =BH75*BI15 -> 0 | BM75: =BK75*BL15 -> 0 | BP75: =BN75*BO15 -> 0 | BS75: =BQ75*BR15 -> 0 | BV75: =BT75*BU15 -> 0 | BY75: =BW75*BX15 -> 0 | CB75: =BZ75*CA15 -> 0 | CE75: =CC75*CD15 -> 0 | CH75: =CF75*CG15 -> 0 | CK75: =CI75*CJ15 -> 0 | CN75: =CL75*CM15 -> 0 | CQ75: =CO75*CP15 -> 0 | CT75: =CR75*CS15 -> 0 | CW75: =CU75*CV15 -> 0 | CZ75: =CX75*CY15 -> 0 | DC75: =DA75*DB15 -> 0 | DF75: =DD75*DE15 -> 0 | DI75: =DG75*DH15 -> 0 | DL75: =DJ75*DK15 -> 0 | DO75: =DM75*DN15 -> 0 | DR75: =DP75*DQ15 -> 0 | DU75: =DS75*DT15 -> 0 | DX75: =DV75*DW15 -> 0 | EA75: =DY75*DZ15 -> 0 | ED75: =EB75*EC15 -> 0 | EG75: =EE75*EF15 -> 0 | EJ75: =EH75*EI15 -> 0 | EM75: =EK75*EL15 -> 0 | EP75: =EN75*EO15 -> 0 | ES75: =EQ75*ER15 -> 0 | EV75: =ET75*EU15 -> 0 | EY75: =EW75*EX15 -> 0 | FB75: =EZ75*FA15 -> 0 | FE75: =FC75*FD15 -> 0 | FH75: =FF75*FG15 -> 0 | FK75: =FI75*FJ15 -> 0 | FN75: =FL75*FM15 -> 0 | FQ75: =FO75*FP15 -> 0 | FT75: =FR75*FS15 -> 0 | FW75: =FU75*FV15 -> 0 | FZ75: =FX75*FY15 -> 0 | GC75: =GA75*GB15 -> 0 | GF75: =GD75*GE15 -> 0 | GI75: =GG75*GH15 -> 0 | GL75: =GJ75*GK15 -> 0 | GO75: =GM75*GN15 -> 0 | GR75: =GP75*GQ15 -> 0 | GU75: =GS75*GT15 -> 0 | GX75: =GV75*GW15 -> 0 | HA75: =GY75*GZ15 -> 0 | HD75: =HB75*HC15 -> 0 | HG75: =HE75*HF15 -> 0 | HJ75: =HH75*HI15 -> 0 | HM75: =HK75*HL15 -> 0 | HP75: =HN75*HO15 -> 0 | HS75: =HQ75*HR15 -> 0 | HV75: =HT75*HU15 -> 0 | HY75: =HW75*HX15 -> 0 | IB75: =HZ75*IA15 -> 0 | IE75: =IC75*ID15 -> 0 | IH75: =IF75*IG15 -> 0
B76: 0 | E76: =C76*D15 -> 0 | H76: =F76*G15 -> 0 | K76: =I76*J15 -> 0 | N76: =L76*M15 -> 0 | Q76: =O76*P15 -> 0 | T76: =R76*S15 -> 0 | W76: =U76*V15 -> 0 | Z76: =X76*Y15 -> 0 | AC76: =AA76*AB15 -> 0 | AF76: =AD76*AE15 -> 0 | AI76: =AG76*AH15 -> 0 | AL76: =AJ76*AK15 -> 0 | AO76: =AM76*AN15 -> 0 | AR76: =AP76*AQ15 -> 0 | AU76: =AS76*AT15 -> 0 | AX76: =AV76*AW15 -> 0 | BA76: =AY76*AZ15 -> 0 | BD76: =BB76*BC15 -> 0 | BG76: =BE76*BF15 -> 0 | BJ76: =BH76*BI15 -> 0 | BM76: =BK76*BL15 -> 0 | BP76: =BN76*BO15 -> 0 | BS76: =BQ76*BR15 -> 0 | BV76: =BT76*BU15 -> 0 | BY76: =BW76*BX15 -> 0 | CB76: =BZ76*CA15 -> 0 | CE76: =CC76*CD15 -> 0 | CH76: =CF76*CG15 -> 0 | CK76: =CI76*CJ15 -> 0 | CN76: =CL76*CM15 -> 0 | CQ76: =CO76*CP15 -> 0 | CT76: =CR76*CS15 -> 0 | CW76: =CU76*CV15 -> 0 | CZ76: =CX76*CY15 -> 0 | DC76: =DA76*DB15 -> 0 | DF76: =DD76*DE15 -> 0 | DI76: =DG76*DH15 -> 0 | DL76: =DJ76*DK15 -> 0 | DO76: =DM76*DN15 -> 0 | DR76: =DP76*DQ15 -> 0 | DU76: =DS76*DT15 -> 0 | DX76: =DV76*DW15 -> 0 | EA76: =DY76*DZ15 -> 0 | ED76: =EB76*EC15 -> 0 | EG76: =EE76*EF15 -> 0 | EJ76: =EH76*EI15 -> 0 | EM76: =EK76*EL15 -> 0 | EP76: =EN76*EO15 -> 0 | ES76: =EQ76*ER15 -> 0 | EV76: =ET76*EU15 -> 0 | EY76: =EW76*EX15 -> 0 | FB76: =EZ76*FA15 -> 0 | FE76: =FC76*FD15 -> 0 | FH76: =FF76*FG15 -> 0 | FK76: =FI76*FJ15 -> 0 | FN76: =FL76*FM15 -> 0 | FQ76: =FO76*FP15 -> 0 | FT76: =FR76*FS15 -> 0 | FW76: =FU76*FV15 -> 0 | FZ76: =FX76*FY15 -> 0 | GC76: =GA76*GB15 -> 0 | GF76: =GD76*GE15 -> 0 | GI76: =GG76*GH15 -> 0 | GL76: =GJ76*GK15 -> 0 | GO76: =GM76*GN15 -> 0 | GR76: =GP76*GQ15 -> 0 | GU76: =GS76*GT15 -> 0 | GX76: =GV76*GW15 -> 0 | HA76: =GY76*GZ15 -> 0 | HD76: =HB76*HC15 -> 0 | HG76: =HE76*HF15 -> 0 | HJ76: =HH76*HI15 -> 0 | HM76: =HK76*HL15 -> 0 | HP76: =HN76*HO15 -> 0 | HS76: =HQ76*HR15 -> 0 | HV76: =HT76*HU15 -> 0 | HY76: =HW76*HX15 -> 0 | IB76: =HZ76*IA15 -> 0 | IE76: =IC76*ID15 -> 0 | IH76: =IF76*IG15 -> 0
B77: 0 | E77: =C77*D15 -> 0 | H77: =F77*G15 -> 0 | K77: =I77*J15 -> 0 | N77: =L77*M15 -> 0 | Q77: =O77*P15 -> 0 | T77: =R77*S15 -> 0 | W77: =U77*V15 -> 0 | Z77: =X77*Y15 -> 0 | AC77: =AA77*AB15 -> 0 | AF77: =AD77*AE15 -> 0 | AI77: =AG77*AH15 -> 0 | AL77: =AJ77*AK15 -> 0 | AO77: =AM77*AN15 -> 0 | AR77: =AP77*AQ15 -> 0 | AU77: =AS77*AT15 -> 0 | AX77: =AV77*AW15 -> 0 | BA77: =AY77*AZ15 -> 0 | BD77: =BB77*BC15 -> 0 | BG77: =BE77*BF15 -> 0 | BJ77: =BH77*BI15 -> 0 | BM77: =BK77*BL15 -> 0 | BP77: =BN77*BO15 -> 0 | BS77: =BQ77*BR15 -> 0 | BV77: =BT77*BU15 -> 0 | BY77: =BW77*BX15 -> 0 | CB77: =BZ77*CA15 -> 0 | CE77: =CC77*CD15 -> 0 | CH77: =CF77*CG15 -> 0 | CK77: =CI77*CJ15 -> 0 | CN77: =CL77*CM15 -> 0 | CQ77: =CO77*CP15 -> 0 | CT77: =CR77*CS15 -> 0 | CW77: =CU77*CV15 -> 0 | CZ77: =CX77*CY15 -> 0 | DC77: =DA77*DB15 -> 0 | DF77: =DD77*DE15 -> 0 | DI77: =DG77*DH15 -> 0 | DL77: =DJ77*DK15 -> 0 | DO77: =DM77*DN15 -> 0 | DR77: =DP77*DQ15 -> 0 | DU77: =DS77*DT15 -> 0 | DX77: =DV77*DW15 -> 0 | EA77: =DY77*DZ15 -> 0 | ED77: =EB77*EC15 -> 0 | EG77: =EE77*EF15 -> 0 | EJ77: =EH77*EI15 -> 0 | EM77: =EK77*EL15 -> 0 | EP77: =EN77*EO15 -> 0 | ES77: =EQ77*ER15 -> 0 | EV77: =ET77*EU15 -> 0 | EY77: =EW77*EX15 -> 0 | FB77: =EZ77*FA15 -> 0 | FE77: =FC77*FD15 -> 0 | FH77: =FF77*FG15 -> 0 | FK77: =FI77*FJ15 -> 0 | FN77: =FL77*FM15 -> 0 | FQ77: =FO77*FP15 -> 0 | FT77: =FR77*FS15 -> 0 | FW77: =FU77*FV15 -> 0 | FZ77: =FX77*FY15 -> 0 | GC77: =GA77*GB15 -> 0 | GF77: =GD77*GE15 -> 0 | GI77: =GG77*GH15 -> 0 | GL77: =GJ77*GK15 -> 0 | GO77: =GM77*GN15 -> 0 | GR77: =GP77*GQ15 -> 0 | GU77: =GS77*GT15 -> 0 | GX77: =GV77*GW15 -> 0 | HA77: =GY77*GZ15 -> 0 | HD77: =HB77*HC15 -> 0 | HG77: =HE77*HF15 -> 0 | HJ77: =HH77*HI15 -> 0 | HM77: =HK77*HL15 -> 0 | HP77: =HN77*HO15 -> 0 | HS77: =HQ77*HR15 -> 0 | HV77: =HT77*HU15 -> 0 | HY77: =HW77*HX15 -> 0 | IB77: =HZ77*IA15 -> 0 | IE77: =IC77*ID15 -> 0 | IH77: =IF77*IG15 -> 0
B78: 0 | E78: =C78*D15 -> 0 | H78: =F78*G15 -> 0 | K78: =I78*J15 -> 0 | N78: =L78*M15 -> 0 | Q78: =O78*P15 -> 0 | T78: =R78*S15 -> 0 | W78: =U78*V15 -> 0 | Z78: =X78*Y15 -> 0 | AC78: =AA78*AB15 -> 0 | AF78: =AD78*AE15 -> 0 | AI78: =AG78*AH15 -> 0 | AL78: =AJ78*AK15 -> 0 | AO78: =AM78*AN15 -> 0 | AR78: =AP78*AQ15 -> 0 | AU78: =AS78*AT15 -> 0 | AX78: =AV78*AW15 -> 0 | BA78: =AY78*AZ15 -> 0 | BD78: =BB78*BC15 -> 0 | BG78: =BE78*BF15 -> 0 | BJ78: =BH78*BI15 -> 0 | BM78: =BK78*BL15 -> 0 | BP78: =BN78*BO15 -> 0 | BS78: =BQ78*BR15 -> 0 | BV78: =BT78*BU15 -> 0 | BY78: =BW78*BX15 -> 0 | CB78: =BZ78*CA15 -> 0 | CE78: =CC78*CD15 -> 0 | CH78: =CF78*CG15 -> 0 | CK78: =CI78*CJ15 -> 0 | CN78: =CL78*CM15 -> 0 | CQ78: =CO78*CP15 -> 0 | CT78: =CR78*CS15 -> 0 | CW78: =CU78*CV15 -> 0 | CZ78: =CX78*CY15 -> 0 | DC78: =DA78*DB15 -> 0 | DF78: =DD78*DE15 -> 0 | DI78: =DG78*DH15 -> 0 | DL78: =DJ78*DK15 -> 0 | DO78: =DM78*DN15 -> 0 | DR78: =DP78*DQ15 -> 0 | DU78: =DS78*DT15 -> 0 | DX78: =DV78*DW15 -> 0 | EA78: =DY78*DZ15 -> 0 | ED78: =EB78*EC15 -> 0 | EG78: =EE78*EF15 -> 0 | EJ78: =EH78*EI15 -> 0 | EM78: =EK78*EL15 -> 0 | EP78: =EN78*EO15 -> 0 | ES78: =EQ78*ER15 -> 0 | EV78: =ET78*EU15 -> 0 | EY78: =EW78*EX15 -> 0 | FB78: =EZ78*FA15 -> 0 | FE78: =FC78*FD15 -> 0 | FH78: =FF78*FG15 -> 0 | FK78: =FI78*FJ15 -> 0 | FN78: =FL78*FM15 -> 0 | FQ78: =FO78*FP15 -> 0 | FT78: =FR78*FS15 -> 0 | FW78: =FU78*FV15 -> 0 | FZ78: =FX78*FY15 -> 0 | GC78: =GA78*GB15 -> 0 | GF78: =GD78*GE15 -> 0 | GI78: =GG78*GH15 -> 0 | GL78: =GJ78*GK15 -> 0 | GO78: =GM78*GN15 -> 0 | GR78: =GP78*GQ15 -> 0 | GU78: =GS78*GT15 -> 0 | GX78: =GV78*GW15 -> 0 | HA78: =GY78*GZ15 -> 0 | HD78: =HB78*HC15 -> 0 | HG78: =HE78*HF15 -> 0 | HJ78: =HH78*HI15 -> 0 | HM78: =HK78*HL15 -> 0 | HP78: =HN78*HO15 -> 0 | HS78: =HQ78*HR15 -> 0 | HV78: =HT78*HU15 -> 0 | HY78: =HW78*HX15 -> 0 | IB78: =HZ78*IA15 -> 0 | IE78: =IC78*ID15 -> 0 | IH78: =IF78*IG15 -> 0
B79: 0 | E79: =C79*D15 -> 0 | H79: =F79*G15 -> 0 | K79: =I79*J15 -> 0 | N79: =L79*M15 -> 0 | Q79: =O79*P15 -> 0 | T79: =R79*S15 -> 0 | W79: =U79*V15 -> 0 | Z79: =X79*Y15 -> 0 | AC79: =AA79*AB15 -> 0 | AF79: =AD79*AE15 -> 0 | AI79: =AG79*AH15 -> 0 | AL79: =AJ79*AK15 -> 0 | AO79: =AM79*AN15 -> 0 | AR79: =AP79*AQ15 -> 0 | AU79: =AS79*AT15 -> 0 | AX79: =AV79*AW15 -> 0 | BA79: =AY79*AZ15 -> 0 | BD79: =BB79*BC15 -> 0 | BG79: =BE79*BF15 -> 0 | BJ79: =BH79*BI15 -> 0 | BM79: =BK79*BL15 -> 0 | BP79: =BN79*BO15 -> 0 | BS79: =BQ79*BR15 -> 0 | BV79: =BT79*BU15 -> 0 | BY79: =BW79*BX15 -> 0 | CB79: =BZ79*CA15 -> 0 | CE79: =CC79*CD15 -> 0 | CH79: =CF79*CG15 -> 0 | CK79: =CI79*CJ15 -> 0 | CN79: =CL79*CM15 -> 0 | CQ79: =CO79*CP15 -> 0 | CT79: =CR79*CS15 -> 0 | CW79: =CU79*CV15 -> 0 | CZ79: =CX79*CY15 -> 0 | DC79: =DA79*DB15 -> 0 | DF79: =DD79*DE15 -> 0 | DI79: =DG79*DH15 -> 0 | DL79: =DJ79*DK15 -> 0 | DO79: =DM79*DN15 -> 0 | DR79: =DP79*DQ15 -> 0 | DU79: =DS79*DT15 -> 0 | DX79: =DV79*DW15 -> 0 | EA79: =DY79*DZ15 -> 0 | ED79: =EB79*EC15 -> 0 | EG79: =EE79*EF15 -> 0 | EJ79: =EH79*EI15 -> 0 | EM79: =EK79*EL15 -> 0 | EP79: =EN79*EO15 -> 0 | ES79: =EQ79*ER15 -> 0 | EV79: =ET79*EU15 -> 0 | EY79: =EW79*EX15 -> 0 | FB79: =EZ79*FA15 -> 0 | FE79: =FC79*FD15 -> 0 | FH79: =FF79*FG15 -> 0 | FK79: =FI79*FJ15 -> 0 | FN79: =FL79*FM15 -> 0 | FQ79: =FO79*FP15 -> 0 | FT79: =FR79*FS15 -> 0 | FW79: =FU79*FV15 -> 0 | FZ79: =FX79*FY15 -> 0 | GC79: =GA79*GB15 -> 0 | GF79: =GD79*GE15 -> 0 | GI79: =GG79*GH15 -> 0 | GL79: =GJ79*GK15 -> 0 | GO79: =GM79*GN15 -> 0 | GR79: =GP79*GQ15 -> 0 | GU79: =GS79*GT15 -> 0 | GX79: =GV79*GW15 -> 0 | HA79: =GY79*GZ15 -> 0 | HD79: =HB79*HC15 -> 0 | HG79: =HE79*HF15 -> 0 | HJ79: =HH79*HI15 -> 0 | HM79: =HK79*HL15 -> 0 | HP79: =HN79*HO15 -> 0 | HS79: =HQ79*HR15 -> 0 | HV79: =HT79*HU15 -> 0 | HY79: =HW79*HX15 -> 0 | IB79: =HZ79*IA15 -> 0 | IE79: =IC79*ID15 -> 0 | IH79: =IF79*IG15 -> 0
B80: 0 | E80: =C80*D15 -> 0 | H80: =F80*G15 -> 0 | K80: =I80*J15 -> 0 | N80: =L80*M15 -> 0 | Q80: =O80*P15 -> 0 | T80: =R80*S15 -> 0 | W80: =U80*V15 -> 0 | Z80: =X80*Y15 -> 0 | AC80: =AA80*AB15 -> 0 | AF80: =AD80*AE15 -> 0 | AI80: =AG80*AH15 -> 0 | AL80: =AJ80*AK15 -> 0 | AO80: =AM80*AN15 -> 0 | AR80: =AP80*AQ15 -> 0 | AU80: =AS80*AT15 -> 0 | AX80: =AV80*AW15 -> 0 | BA80: =AY80*AZ15 -> 0 | BD80: =BB80*BC15 -> 0 | BG80: =BE80*BF15 -> 0 | BJ80: =BH80*BI15 -> 0 | BM80: =BK80*BL15 -> 0 | BP80: =BN80*BO15 -> 0 | BS80: =BQ80*BR15 -> 0 | BV80: =BT80*BU15 -> 0 | BY80: =BW80*BX15 -> 0 | CB80: =BZ80*CA15 -> 0 | CE80: =CC80*CD15 -> 0 | CH80: =CF80*CG15 -> 0 | CK80: =CI80*CJ15 -> 0 | CN80: =CL80*CM15 -> 0 | CQ80: =CO80*CP15 -> 0 | CT80: =CR80*CS15 -> 0 | CW80: =CU80*CV15 -> 0 | CZ80: =CX80*CY15 -> 0 | DC80: =DA80*DB15 -> 0 | DF80: =DD80*DE15 -> 0 | DI80: =DG80*DH15 -> 0 | DL80: =DJ80*DK15 -> 0 | DO80: =DM80*DN15 -> 0 | DR80: =DP80*DQ15 -> 0 | DU80: =DS80*DT15 -> 0 | DX80: =DV80*DW15 -> 0 | EA80: =DY80*DZ15 -> 0 | ED80: =EB80*EC15 -> 0 | EG80: =EE80*EF15 -> 0 | EJ80: =EH80*EI15 -> 0 | EM80: =EK80*EL15 -> 0 | EP80: =EN80*EO15 -> 0 | ES80: =EQ80*ER15 -> 0 | EV80: =ET80*EU15 -> 0 | EY80: =EW80*EX15 -> 0 | FB80: =EZ80*FA15 -> 0 | FE80: =FC80*FD15 -> 0 | FH80: =FF80*FG15 -> 0 | FK80: =FI80*FJ15 -> 0 | FN80: =FL80*FM15 -> 0 | FQ80: =FO80*FP15 -> 0 | FT80: =FR80*FS15 -> 0 | FW80: =FU80*FV15 -> 0 | FZ80: =FX80*FY15 -> 0 | GC80: =GA80*GB15 -> 0 | GF80: =GD80*GE15 -> 0 | GI80: =GG80*GH15 -> 0 | GL80: =GJ80*GK15 -> 0 | GO80: =GM80*GN15 -> 0 | GR80: =GP80*GQ15 -> 0 | GU80: =GS80*GT15 -> 0 | GX80: =GV80*GW15 -> 0 | HA80: =GY80*GZ15 -> 0 | HD80: =HB80*HC15 -> 0 | HG80: =HE80*HF15 -> 0 | HJ80: =HH80*HI15 -> 0 | HM80: =HK80*HL15 -> 0 | HP80: =HN80*HO15 -> 0 | HS80: =HQ80*HR15 -> 0 | HV80: =HT80*HU15 -> 0 | HY80: =HW80*HX15 -> 0 | IB80: =HZ80*IA15 -> 0 | IE80: =IC80*ID15 -> 0 | IH80: =IF80*IG15 -> 0
B81: 0 | E81: =C81*D15 -> 0 | H81: =F81*G15 -> 0 | K81: =I81*J15 -> 0 | N81: =L81*M15 -> 0 | Q81: =O81*P15 -> 0 | T81: =R81*S15 -> 0 | W81: =U81*V15 -> 0 | Z81: =X81*Y15 -> 0 | AC81: =AA81*AB15 -> 0 | AF81: =AD81*AE15 -> 0 | AI81: =AG81*AH15 -> 0 | AL81: =AJ81*AK15 -> 0 | AO81: =AM81*AN15 -> 0 | AR81: =AP81*AQ15 -> 0 | AU81: =AS81*AT15 -> 0 | AX81: =AV81*AW15 -> 0 | BA81: =AY81*AZ15 -> 0 | BD81: =BB81*BC15 -> 0 | BG81: =BE81*BF15 -> 0 | BJ81: =BH81*BI15 -> 0 | BM81: =BK81*BL15 -> 0 | BP81: =BN81*BO15 -> 0 | BS81: =BQ81*BR15 -> 0 | BV81: =BT81*BU15 -> 0 | BY81: =BW81*BX15 -> 0 | CB81: =BZ81*CA15 -> 0 | CE81: =CC81*CD15 -> 0 | CH81: =CF81*CG15 -> 0 | CK81: =CI81*CJ15 -> 0 | CN81: =CL81*CM15 -> 0 | CQ81: =CO81*CP15 -> 0 | CT81: =CR81*CS15 -> 0 | CW81: =CU81*CV15 -> 0 | CZ81: =CX81*CY15 -> 0 | DC81: =DA81*DB15 -> 0 | DF81: =DD81*DE15 -> 0 | DI81: =DG81*DH15 -> 0 | DL81: =DJ81*DK15 -> 0 | DO81: =DM81*DN15 -> 0 | DR81: =DP81*DQ15 -> 0 | DU81: =DS81*DT15 -> 0 | DX81: =DV81*DW15 -> 0 | EA81: =DY81*DZ15 -> 0 | ED81: =EB81*EC15 -> 0 | EG81: =EE81*EF15 -> 0 | EJ81: =EH81*EI15 -> 0 | EM81: =EK81*EL15 -> 0 | EP81: =EN81*EO15 -> 0 | ES81: =EQ81*ER15 -> 0 | EV81: =ET81*EU15 -> 0 | EY81: =EW81*EX15 -> 0 | FB81: =EZ81*FA15 -> 0 | FE81: =FC81*FD15 -> 0 | FH81: =FF81*FG15 -> 0 | FK81: =FI81*FJ15 -> 0 | FN81: =FL81*FM15 -> 0 | FQ81: =FO81*FP15 -> 0 | FT81: =FR81*FS15 -> 0 | FW81: =FU81*FV15 -> 0 | FZ81: =FX81*FY15 -> 0 | GC81: =GA81*GB15 -> 0 | GF81: =GD81*GE15 -> 0 | GI81: =GG81*GH15 -> 0 | GL81: =GJ81*GK15 -> 0 | GO81: =GM81*GN15 -> 0 | GR81: =GP81*GQ15 -> 0 | GU81: =GS81*GT15 -> 0 | GX81: =GV81*GW15 -> 0 | HA81: =GY81*GZ15 -> 0 | HD81: =HB81*HC15 -> 0 | HG81: =HE81*HF15 -> 0 | HJ81: =HH81*HI15 -> 0 | HM81: =HK81*HL15 -> 0 | HP81: =HN81*HO15 -> 0 | HS81: =HQ81*HR15 -> 0 | HV81: =HT81*HU15 -> 0 | HY81: =HW81*HX15 -> 0 | IB81: =HZ81*IA15 -> 0 | IE81: =IC81*ID15 -> 0 | IH81: =IF81*IG15 -> 0
B82: =E82+H82+K82+N82+Q82+T82+W82+Z82+AC82+AF82+AI82+AL82+AO82+AR82+AU82+AX82+BA82+BD82+BG82+BJ82+BM82+BP82+BS82+BV82+BY82+CB82+CE82+CH82+CK82+CN82+CQ82+CT82+CW82+CZ82+DC82+DF82+DI82+DL82+DO82+DR82+DU82+DX82+EA82+ED82+EG82+EJ82+EM82+EP82+ES82+EV82+EY82+FB82+FE82+FH82+FK82+FN82+FQ82+FT82+FW82+FZ82+GC82+GF82+GI82+GL82+GO82+GR82+GU82+GX82+HA82+HD82+HG82+HJ82+HM82+HP82+HS82+HV82+HY82+IB82+IE82+IH82 -> 0 | E82: =C82*D15 -> 0 | H82: =F82*G15 -> 0 | K82: =I82*J15 -> 0 | N82: =L82*M15 -> 0 | Q82: =O82*P15 -> 0 | T82: =R82*S15 -> 0 | W82: =U82*V15 -> 0 | Z82: =X82*Y15 -> 0 | AC82: =AA82*AB15 -> 0 | AF82: =AD82*AE15 -> 0 | AI82: =AG82*AH15 -> 0 | AL82: =AJ82*AK15 -> 0 | AO82: =AM82*AN15 -> 0 | AR82: =AP82*AQ15 -> 0 | AU82: =AS82*AT15 -> 0 | AX82: =AV82*AW15 -> 0 | BA82: =AY82*AZ15 -> 0 | BD82: =BB82*BC15 -> 0 | BG82: =BE82*BF15 -> 0 | BJ82: =BH82*BI15 -> 0 | BM82: =BK82*BL15 -> 0 | BP82: =BN82*BO15 -> 0 | BS82: =BQ82*BR15 -> 0 | BV82: =BT82*BU15 -> 0 | BY82: =BW82*BX15 -> 0 | CB82: =BZ82*CA15 -> 0 | CE82: =CC82*CD15 -> 0 | CH82: =CF82*CG15 -> 0 | CK82: =CI82*CJ15 -> 0 | CN82: =CL82*CM15 -> 0 | CQ82: =CO82*CP15 -> 0 | CT82: =CR82*CS15 -> 0 | CW82: =CU82*CV15 -> 0 | CZ82: =CX82*CY15 -> 0 | DC82: =DA82*DB15 -> 0 | DF82: =DD82*DE15 -> 0 | DI82: =DG82*DH15 -> 0 | DL82: =DJ82*DK15 -> 0 | DO82: =DM82*DN15 -> 0 | DR82: =DP82*DQ15 -> 0 | DU82: =DS82*DT15 -> 0 | DX82: =DV82*DW15 -> 0 | EA82: =DY82*DZ15 -> 0 | ED82: =EB82*EC15 -> 0 | EG82: =EE82*EF15 -> 0 | EJ82: =EH82*EI15 -> 0 | EM82: =EK82*EL15 -> 0 | EP82: =EN82*EO15 -> 0 | ES82: =EQ82*ER15 -> 0 | EV82: =ET82*EU15 -> 0 | EY82: =EW82*EX15 -> 0 | FB82: =EZ82*FA15 -> 0 | FE82: =FC82*FD15 -> 0 | FH82: =FF82*FG15 -> 0 | FK82: =FI82*FJ15 -> 0 | FN82: =FL82*FM15 -> 0 | FQ82: =FO82*FP15 -> 0 | FT82: =FR82*FS15 -> 0 | FW82: =FU82*FV15 -> 0 | FZ82: =FX82*FY15 -> 0 | GC82: =GA82*GB15 -> 0 | GF82: =GD82*GE15 -> 0 | GI82: =GG82*GH15 -> 0 | GL82: =GJ82*GK15 -> 0 | GO82: =GM82*GN15 -> 0 | GR82: =GP82*GQ15 -> 0 | GU82: =GS82*GT15 -> 0 | GX82: =GV82*GW15 -> 0 | HA82: =GY82*GZ15 -> 0 | HD82: =HB82*HC15 -> 0 | HG82: =HE82*HF15 -> 0 | HJ82: =HH82*HI15 -> 0 | HM82: =HK82*HL15 -> 0 | HP82: =HN82*HO15 -> 0 | HS82: =HQ82*HR15 -> 0 | HV82: =HT82*HU15 -> 0 | HY82: =HW82*HX15 -> 0 | IB82: =HZ82*IA15 -> 0 | IE82: =IC82*ID15 -> 0 | IH82: =IF82*IG15 -> 0
B83: 0 | E83: =C83*D15 -> 0 | H83: =F83*G15 -> 0 | K83: =I83*J15 -> 0 | N83: =L83*M15 -> 0 | Q83: =O83*P15 -> 0 | T83: =R83*S15 -> 0 | W83: =U83*V15 -> 0 | Z83: =X83*Y15 -> 0 | AC83: =AA83*AB15 -> 0 | AF83: =AD83*AE15 -> 0 | AI83: =AG83*AH15 -> 0 | AL83: =AJ83*AK15 -> 0 | AO83: =AM83*AN15 -> 0 | AR83: =AP83*AQ15 -> 0 | AU83: =AS83*AT15 -> 0 | AX83: =AV83*AW15 -> 0 | BA83: =AY83*AZ15 -> 0 | BD83: =BB83*BC15 -> 0 | BG83: =BE83*BF15 -> 0 | BJ83: =BH83*BI15 -> 0 | BM83: =BK83*BL15 -> 0 | BP83: =BN83*BO15 -> 0 | BS83: =BQ83*BR15 -> 0 | BV83: =BT83*BU15 -> 0 | BY83: =BW83*BX15 -> 0 | CB83: =BZ83*CA15 -> 0 | CE83: =CC83*CD15 -> 0 | CH83: =CF83*CG15 -> 0 | CK83: =CI83*CJ15 -> 0 | CN83: =CL83*CM15 -> 0 | CQ83: =CO83*CP15 -> 0 | CT83: =CR83*CS15 -> 0 | CW83: =CU83*CV15 -> 0 | CZ83: =CX83*CY15 -> 0 | DC83: =DA83*DB15 -> 0 | DF83: =DD83*DE15 -> 0 | DI83: =DG83*DH15 -> 0 | DL83: =DJ83*DK15 -> 0 | DO83: =DM83*DN15 -> 0 | DR83: =DP83*DQ15 -> 0 | DU83: =DS83*DT15 -> 0 | DX83: =DV83*DW15 -> 0 | EA83: =DY83*DZ15 -> 0 | ED83: =EB83*EC15 -> 0 | EG83: =EE83*EF15 -> 0 | EJ83: =EH83*EI15 -> 0 | EM83: =EK83*EL15 -> 0 | EP83: =EN83*EO15 -> 0 | ES83: =EQ83*ER15 -> 0 | EV83: =ET83*EU15 -> 0 | EY83: =EW83*EX15 -> 0 | FB83: =EZ83*FA15 -> 0 | FE83: =FC83*FD15 -> 0 | FH83: =FF83*FG15 -> 0 | FK83: =FI83*FJ15 -> 0 | FN83: =FL83*FM15 -> 0 | FQ83: =FO83*FP15 -> 0 | FT83: =FR83*FS15 -> 0 | FW83: =FU83*FV15 -> 0 | FZ83: =FX83*FY15 -> 0 | GC83: =GA83*GB15 -> 0 | GF83: =GD83*GE15 -> 0 | GI83: =GG83*GH15 -> 0 | GL83: =GJ83*GK15 -> 0 | GO83: =GM83*GN15 -> 0 | GR83: =GP83*GQ15 -> 0 | GU83: =GS83*GT15 -> 0 | GX83: =GV83*GW15 -> 0 | HA83: =GY83*GZ15 -> 0 | HD83: =HB83*HC15 -> 0 | HG83: =HE83*HF15 -> 0 | HJ83: =HH83*HI15 -> 0 | HM83: =HK83*HL15 -> 0 | HP83: =HN83*HO15 -> 0 | HS83: =HQ83*HR15 -> 0 | HV83: =HT83*HU15 -> 0 | HY83: =HW83*HX15 -> 0 | IB83: =HZ83*IA15 -> 0 | IE83: =IC83*ID15 -> 0 | IH83: =IF83*IG15 -> 0
B84: 0 | E84: =C84*D15 -> 0 | H84: =F84*G15 -> 0 | K84: =I84*J15 -> 0 | N84: =L84*M15 -> 0 | Q84: =O84*P15 -> 0 | T84: =R84*S15 -> 0 | W84: =U84*V15 -> 0 | Z84: =X84*Y15 -> 0 | AC84: =AA84*AB15 -> 0 | AF84: =AD84*AE15 -> 0 | AI84: =AG84*AH15 -> 0 | AL84: =AJ84*AK15 -> 0 | AO84: =AM84*AN15 -> 0 | AR84: =AP84*AQ15 -> 0 | AU84: =AS84*AT15 -> 0 | AX84: =AV84*AW15 -> 0 | BA84: =AY84*AZ15 -> 0 | BD84: =BB84*BC15 -> 0 | BG84: =BE84*BF15 -> 0 | BJ84: =BH84*BI15 -> 0 | BM84: =BK84*BL15 -> 0 | BP84: =BN84*BO15 -> 0 | BS84: =BQ84*BR15 -> 0 | BV84: =BT84*BU15 -> 0 | BY84: =BW84*BX15 -> 0 | CB84: =BZ84*CA15 -> 0 | CE84: =CC84*CD15 -> 0 | CH84: =CF84*CG15 -> 0 | CK84: =CI84*CJ15 -> 0 | CN84: =CL84*CM15 -> 0 | CQ84: =CO84*CP15 -> 0 | CT84: =CR84*CS15 -> 0 | CW84: =CU84*CV15 -> 0 | CZ84: =CX84*CY15 -> 0 | DC84: =DA84*DB15 -> 0 | DF84: =DD84*DE15 -> 0 | DI84: =DG84*DH15 -> 0 | DL84: =DJ84*DK15 -> 0 | DO84: =DM84*DN15 -> 0 | DR84: =DP84*DQ15 -> 0 | DU84: =DS84*DT15 -> 0 | DX84: =DV84*DW15 -> 0 | EA84: =DY84*DZ15 -> 0 | ED84: =EB84*EC15 -> 0 | EG84: =EE84*EF15 -> 0 | EJ84: =EH84*EI15 -> 0 | EM84: =EK84*EL15 -> 0 | EP84: =EN84*EO15 -> 0 | ES84: =EQ84*ER15 -> 0 | EV84: =ET84*EU15 -> 0 | EY84: =EW84*EX15 -> 0 | FB84: =EZ84*FA15 -> 0 | FE84: =FC84*FD15 -> 0 | FH84: =FF84*FG15 -> 0 | FK84: =FI84*FJ15 -> 0 | FN84: =FL84*FM15 -> 0 | FQ84: =FO84*FP15 -> 0 | FT84: =FR84*FS15 -> 0 | FW84: =FU84*FV15 -> 0 | FZ84: =FX84*FY15 -> 0 | GC84: =GA84*GB15 -> 0 | GF84: =GD84*GE15 -> 0 | GI84: =GG84*GH15 -> 0 | GL84: =GJ84*GK15 -> 0 | GO84: =GM84*GN15 -> 0 | GR84: =GP84*GQ15 -> 0 | GU84: =GS84*GT15 -> 0 | GX84: =GV84*GW15 -> 0 | HA84: =GY84*GZ15 -> 0 | HD84: =HB84*HC15 -> 0 | HG84: =HE84*HF15 -> 0 | HJ84: =HH84*HI15 -> 0 | HM84: =HK84*HL15 -> 0 | HP84: =HN84*HO15 -> 0 | HS84: =HQ84*HR15 -> 0 | HV84: =HT84*HU15 -> 0 | HY84: =HW84*HX15 -> 0 | IB84: =HZ84*IA15 -> 0 | IE84: =IC84*ID15 -> 0 | IH84: =IF84*IG15 -> 0
B85: 0 | E85: =C85*D15 -> 0 | H85: =F85*G15 -> 0 | K85: =I85*J15 -> 0 | N85: =L85*M15 -> 0 | Q85: =O85*P15 -> 0 | T85: =R85*S15 -> 0 | W85: =U85*V15 -> 0 | Z85: =X85*Y15 -> 0 | AC85: =AA85*AB15 -> 0 | AF85: =AD85*AE15 -> 0 | AI85: =AG85*AH15 -> 0 | AL85: =AJ85*AK15 -> 0 | AO85: =AM85*AN15 -> 0 | AR85: =AP85*AQ15 -> 0 | AU85: =AS85*AT15 -> 0 | AX85: =AV85*AW15 -> 0 | BA85: =AY85*AZ15 -> 0 | BD85: =BB85*BC15 -> 0 | BG85: =BE85*BF15 -> 0 | BJ85: =BH85*BI15 -> 0 | BM85: =BK85*BL15 -> 0 | BP85: =BN85*BO15 -> 0 | BS85: =BQ85*BR15 -> 0 | BV85: =BT85*BU15 -> 0 | BY85: =BW85*BX15 -> 0 | CB85: =BZ85*CA15 -> 0 | CE85: =CC85*CD15 -> 0 | CH85: =CF85*CG15 -> 0 | CK85: =CI85*CJ15 -> 0 | CN85: =CL85*CM15 -> 0 | CQ85: =CO85*CP15 -> 0 | CT85: =CR85*CS15 -> 0 | CW85: =CU85*CV15 -> 0 | CZ85: =CX85*CY15 -> 0 | DC85: =DA85*DB15 -> 0 | DF85: =DD85*DE15 -> 0 | DI85: =DG85*DH15 -> 0 | DL85: =DJ85*DK15 -> 0 | DO85: =DM85*DN15 -> 0 | DR85: =DP85*DQ15 -> 0 | DU85: =DS85*DT15 -> 0 | DX85: =DV85*DW15 -> 0 | EA85: =DY85*DZ15 -> 0 | ED85: =EB85*EC15 -> 0 | EG85: =EE85*EF15 -> 0 | EJ85: =EH85*EI15 -> 0 | EM85: =EK85*EL15 -> 0 | EP85: =EN85*EO15 -> 0 | ES85: =EQ85*ER15 -> 0 | EV85: =ET85*EU15 -> 0 | EY85: =EW85*EX15 -> 0 | FB85: =EZ85*FA15 -> 0 | FE85: =FC85*FD15 -> 0 | FH85: =FF85*FG15 -> 0 | FK85: =FI85*FJ15 -> 0 | FN85: =FL85*FM15 -> 0 | FQ85: =FO85*FP15 -> 0 | FT85: =FR85*FS15 -> 0 | FW85: =FU85*FV15 -> 0 | FZ85: =FX85*FY15 -> 0 | GC85: =GA85*GB15 -> 0 | GF85: =GD85*GE15 -> 0 | GI85: =GG85*GH15 -> 0 | GL85: =GJ85*GK15 -> 0 | GO85: =GM85*GN15 -> 0 | GR85: =GP85*GQ15 -> 0 | GU85: =GS85*GT15 -> 0 | GX85: =GV85*GW15 -> 0 | HA85: =GY85*GZ15 -> 0 | HD85: =HB85*HC15 -> 0 | HG85: =HE85*HF15 -> 0 | HJ85: =HH85*HI15 -> 0 | HM85: =HK85*HL15 -> 0 | HP85: =HN85*HO15 -> 0 | HS85: =HQ85*HR15 -> 0 | HV85: =HT85*HU15 -> 0 | HY85: =HW85*HX15 -> 0 | IB85: =HZ85*IA15 -> 0 | IE85: =IC85*ID15 -> 0 | IH85: =IF85*IG15 -> 0
B86: 0 | E86: =C86*D15 -> 0 | H86: =F86*G15 -> 0 | K86: =I86*J15 -> 0 | N86: =L86*M15 -> 0 | Q86: =O86*P15 -> 0 | T86: =R86*S15 -> 0 | W86: =U86*V15 -> 0 | Z86: =X86*Y15 -> 0 | AC86: =AA86*AB15 -> 0 | AF86: =AD86*AE15 -> 0 | AI86: =AG86*AH15 -> 0 | AL86: =AJ86*AK15 -> 0 | AO86: =AM86*AN15 -> 0 | AR86: =AP86*AQ15 -> 0 | AU86: =AS86*AT15 -> 0 | AX86: =AV86*AW15 -> 0 | BA86: =AY86*AZ15 -> 0 | BD86: =BB86*BC15 -> 0 | BG86: =BE86*BF15 -> 0 | BJ86: =BH86*BI15 -> 0 | BM86: =BK86*BL15 -> 0 | BP86: =BN86*BO15 -> 0 | BS86: =BQ86*BR15 -> 0 | BV86: =BT86*BU15 -> 0 | BY86: =BW86*BX15 -> 0 | CB86: =BZ86*CA15 -> 0 | CE86: =CC86*CD15 -> 0 | CH86: =CF86*CG15 -> 0 | CK86: =CI86*CJ15 -> 0 | CN86: =CL86*CM15 -> 0 | CQ86: =CO86*CP15 -> 0 | CT86: =CR86*CS15 -> 0 | CW86: =CU86*CV15 -> 0 | CZ86: =CX86*CY15 -> 0 | DC86: =DA86*DB15 -> 0 | DF86: =DD86*DE15 -> 0 | DI86: =DG86*DH15 -> 0 | DL86: =DJ86*DK15 -> 0 | DO86: =DM86*DN15 -> 0 | DR86: =DP86*DQ15 -> 0 | DU86: =DS86*DT15 -> 0 | DX86: =DV86*DW15 -> 0 | EA86: =DY86*DZ15 -> 0 | ED86: =EB86*EC15 -> 0 | EG86: =EE86*EF15 -> 0 | EJ86: =EH86*EI15 -> 0 | EM86: =EK86*EL15 -> 0 | EP86: =EN86*EO15 -> 0 | ES86: =EQ86*ER15 -> 0 | EV86: =ET86*EU15 -> 0 | EY86: =EW86*EX15 -> 0 | FB86: =EZ86*FA15 -> 0 | FE86: =FC86*FD15 -> 0 | FH86: =FF86*FG15 -> 0 | FK86: =FI86*FJ15 -> 0 | FN86: =FL86*FM15 -> 0 | FQ86: =FO86*FP15 -> 0 | FT86: =FR86*FS15 -> 0 | FW86: =FU86*FV15 -> 0 | FZ86: =FX86*FY15 -> 0 | GC86: =GA86*GB15 -> 0 | GF86: =GD86*GE15 -> 0 | GI86: =GG86*GH15 -> 0 | GL86: =GJ86*GK15 -> 0 | GO86: =GM86*GN15 -> 0 | GR86: =GP86*GQ15 -> 0 | GU86: =GS86*GT15 -> 0 | GX86: =GV86*GW15 -> 0 | HA86: =GY86*GZ15 -> 0 | HD86: =HB86*HC15 -> 0 | HG86: =HE86*HF15 -> 0 | HJ86: =HH86*HI15 -> 0 | HM86: =HK86*HL15 -> 0 | HP86: =HN86*HO15 -> 0 | HS86: =HQ86*HR15 -> 0 | HV86: =HT86*HU15 -> 0 | HY86: =HW86*HX15 -> 0 | IB86: =HZ86*IA15 -> 0 | IE86: =IC86*ID15 -> 0 | IH86: =IF86*IG15 -> 0
B87: 0 | E87: =C87*D15 -> 0 | H87: =F87*G15 -> 0 | K87: =I87*J15 -> 0 | N87: =L87*M15 -> 0 | Q87: =O87*P15 -> 0 | T87: =R87*S15 -> 0 | W87: =U87*V15 -> 0 | Z87: =X87*Y15 -> 0 | AC87: =AA87*AB15 -> 0 | AF87: =AD87*AE15 -> 0 | AI87: =AG87*AH15 -> 0 | AL87: =AJ87*AK15 -> 0 | AO87: =AM87*AN15 -> 0 | AR87: =AP87*AQ15 -> 0 | AU87: =AS87*AT15 -> 0 | AX87: =AV87*AW15 -> 0 | BA87: =AY87*AZ15 -> 0 | BD87: =BB87*BC15 -> 0 | BG87: =BE87*BF15 -> 0 | BJ87: =BH87*BI15 -> 0 | BM87: =BK87*BL15 -> 0 | BP87: =BN87*BO15 -> 0 | BS87: =BQ87*BR15 -> 0 | BV87: =BT87*BU15 -> 0 | BY87: =BW87*BX15 -> 0 | CB87: =BZ87*CA15 -> 0 | CE87: =CC87*CD15 -> 0 | CH87: =CF87*CG15 -> 0 | CK87: =CI87*CJ15 -> 0 | CN87: =CL87*CM15 -> 0 | CQ87: =CO87*CP15 -> 0 | CT87: =CR87*CS15 -> 0 | CW87: =CU87*CV15 -> 0 | CZ87: =CX87*CY15 -> 0 | DC87: =DA87*DB15 -> 0 | DF87: =DD87*DE15 -> 0 | DI87: =DG87*DH15 -> 0 | DL87: =DJ87*DK15 -> 0 | DO87: =DM87*DN15 -> 0 | DR87: =DP87*DQ15 -> 0 | DU87: =DS87*DT15 -> 0 | DX87: =DV87*DW15 -> 0 | EA87: =DY87*DZ15 -> 0 | ED87: =EB87*EC15 -> 0 | EG87: =EE87*EF15 -> 0 | EJ87: =EH87*EI15 -> 0 | EM87: =EK87*EL15 -> 0 | EP87: =EN87*EO15 -> 0 | ES87: =EQ87*ER15 -> 0 | EV87: =ET87*EU15 -> 0 | EY87: =EW87*EX15 -> 0 | FB87: =EZ87*FA15 -> 0 | FE87: =FC87*FD15 -> 0 | FH87: =FF87*FG15 -> 0 | FK87: =FI87*FJ15 -> 0 | FN87: =FL87*FM15 -> 0 | FQ87: =FO87*FP15 -> 0 | FT87: =FR87*FS15 -> 0 | FW87: =FU87*FV15 -> 0 | FZ87: =FX87*FY15 -> 0 | GC87: =GA87*GB15 -> 0 | GF87: =GD87*GE15 -> 0 | GI87: =GG87*GH15 -> 0 | GL87: =GJ87*GK15 -> 0 | GO87: =GM87*GN15 -> 0 | GR87: =GP87*GQ15 -> 0 | GU87: =GS87*GT15 -> 0 | GX87: =GV87*GW15 -> 0 | HA87: =GY87*GZ15 -> 0 | HD87: =HB87*HC15 -> 0 | HG87: =HE87*HF15 -> 0 | HJ87: =HH87*HI15 -> 0 | HM87: =HK87*HL15 -> 0 | HP87: =HN87*HO15 -> 0 | HS87: =HQ87*HR15 -> 0 | HV87: =HT87*HU15 -> 0 | HY87: =HW87*HX15 -> 0 | IB87: =HZ87*IA15 -> 0 | IE87: =IC87*ID15 -> 0 | IH87: =IF87*IG15 -> 0
B88: 0 | E88: =C88*D15 -> 0 | H88: =F88*G15 -> 0 | K88: =I88*J15 -> 0 | N88: =L88*M15 -> 0 | Q88: =O88*P15 -> 0 | T88: =R88*S15 -> 0 | W88: =U88*V15 -> 0 | Z88: =X88*Y15 -> 0 | AC88: =AA88*AB15 -> 0 | AF88: =AD88*AE15 -> 0 | AI88: =AG88*AH15 -> 0 | AL88: =AJ88*AK15 -> 0 | AO88: =AM88*AN15 -> 0 | AR88: =AP88*AQ15 -> 0 | AU88: =AS88*AT15 -> 0 | AX88: =AV88*AW15 -> 0 | BA88: =AY88*AZ15 -> 0 | BD88: =BB88*BC15 -> 0 | BG88: =BE88*BF15 -> 0 | BJ88: =BH88*BI15 -> 0 | BM88: =BK88*BL15 -> 0 | BP88: =BN88*BO15 -> 0 | BS88: =BQ88*BR15 -> 0 | BV88: =BT88*BU15 -> 0 | BY88: =BW88*BX15 -> 0 | CB88: =BZ88*CA15 -> 0 | CE88: =CC88*CD15 -> 0 | CH88: =CF88*CG15 -> 0 | CK88: =CI88*CJ15 -> 0 | CN88: =CL88*CM15 -> 0 | CQ88: =CO88*CP15 -> 0 | CT88: =CR88*CS15 -> 0 | CW88: =CU88*CV15 -> 0 | CZ88: =CX88*CY15 -> 0 | DC88: =DA88*DB15 -> 0 | DF88: =DD88*DE15 -> 0 | DI88: =DG88*DH15 -> 0 | DL88: =DJ88*DK15 -> 0 | DO88: =DM88*DN15 -> 0 | DR88: =DP88*DQ15 -> 0 | DU88: =DS88*DT15 -> 0 | DX88: =DV88*DW15 -> 0 | EA88: =DY88*DZ15 -> 0 | ED88: =EB88*EC15 -> 0 | EG88: =EE88*EF15 -> 0 | EJ88: =EH88*EI15 -> 0 | EM88: =EK88*EL15 -> 0 | EP88: =EN88*EO15 -> 0 | ES88: =EQ88*ER15 -> 0 | EV88: =ET88*EU15 -> 0 | EY88: =EW88*EX15 -> 0 | FB88: =EZ88*FA15 -> 0 | FE88: =FC88*FD15 -> 0 | FH88: =FF88*FG15 -> 0 | FK88: =FI88*FJ15 -> 0 | FN88: =FL88*FM15 -> 0 | FQ88: =FO88*FP15 -> 0 | FT88: =FR88*FS15 -> 0 | FW88: =FU88*FV15 -> 0 | FZ88: =FX88*FY15 -> 0 | GC88: =GA88*GB15 -> 0 | GF88: =GD88*GE15 -> 0 | GI88: =GG88*GH15 -> 0 | GL88: =GJ88*GK15 -> 0 | GO88: =GM88*GN15 -> 0 | GR88: =GP88*GQ15 -> 0 | GU88: =GS88*GT15 -> 0 | GX88: =GV88*GW15 -> 0 | HA88: =GY88*GZ15 -> 0 | HD88: =HB88*HC15 -> 0 | HG88: =HE88*HF15 -> 0 | HJ88: =HH88*HI15 -> 0 | HM88: =HK88*HL15 -> 0 | HP88: =HN88*HO15 -> 0 | HS88: =HQ88*HR15 -> 0 | HV88: =HT88*HU15 -> 0 | HY88: =HW88*HX15 -> 0 | IB88: =HZ88*IA15 -> 0 | IE88: =IC88*ID15 -> 0 | IH88: =IF88*IG15 -> 0
B89: 0 | E89: =C89*D15 -> 0 | H89: =F89*G15 -> 0 | K89: =I89*J15 -> 0 | N89: =L89*M15 -> 0 | Q89: =O89*P15 -> 0 | T89: =R89*S15 -> 0 | W89: =U89*V15 -> 0 | Z89: =X89*Y15 -> 0 | AC89: =AA89*AB15 -> 0 | AF89: =AD89*AE15 -> 0 | AI89: =AG89*AH15 -> 0 | AL89: =AJ89*AK15 -> 0 | AO89: =AM89*AN15 -> 0 | AR89: =AP89*AQ15 -> 0 | AU89: =AS89*AT15 -> 0 | AX89: =AV89*AW15 -> 0 | BA89: =AY89*AZ15 -> 0 | BD89: =BB89*BC15 -> 0 | BG89: =BE89*BF15 -> 0 | BJ89: =BH89*BI15 -> 0 | BM89: =BK89*BL15 -> 0 | BP89: =BN89*BO15 -> 0 | BS89: =BQ89*BR15 -> 0 | BV89: =BT89*BU15 -> 0 | BY89: =BW89*BX15 -> 0 | CB89: =BZ89*CA15 -> 0 | CE89: =CC89*CD15 -> 0 | CH89: =CF89*CG15 -> 0 | CK89: =CI89*CJ15 -> 0 | CN89: =CL89*CM15 -> 0 | CQ89: =CO89*CP15 -> 0 | CT89: =CR89*CS15 -> 0 | CW89: =CU89*CV15 -> 0 | CZ89: =CX89*CY15 -> 0 | DC89: =DA89*DB15 -> 0 | DF89: =DD89*DE15 -> 0 | DI89: =DG89*DH15 -> 0 | DL89: =DJ89*DK15 -> 0 | DO89: =DM89*DN15 -> 0 | DR89: =DP89*DQ15 -> 0 | DU89: =DS89*DT15 -> 0 | DX89: =DV89*DW15 -> 0 | EA89: =DY89*DZ15 -> 0 | ED89: =EB89*EC15 -> 0 | EG89: =EE89*EF15 -> 0 | EJ89: =EH89*EI15 -> 0 | EM89: =EK89*EL15 -> 0 | EP89: =EN89*EO15 -> 0 | ES89: =EQ89*ER15 -> 0 | EV89: =ET89*EU15 -> 0 | EY89: =EW89*EX15 -> 0 | FB89: =EZ89*FA15 -> 0 | FE89: =FC89*FD15 -> 0 | FH89: =FF89*FG15 -> 0 | FK89: =FI89*FJ15 -> 0 | FN89: =FL89*FM15 -> 0 | FQ89: =FO89*FP15 -> 0 | FT89: =FR89*FS15 -> 0 | FW89: =FU89*FV15 -> 0 | FZ89: =FX89*FY15 -> 0 | GC89: =GA89*GB15 -> 0 | GF89: =GD89*GE15 -> 0 | GI89: =GG89*GH15 -> 0 | GL89: =GJ89*GK15 -> 0 | GO89: =GM89*GN15 -> 0 | GR89: =GP89*GQ15 -> 0 | GU89: =GS89*GT15 -> 0 | GX89: =GV89*GW15 -> 0 | HA89: =GY89*GZ15 -> 0 | HD89: =HB89*HC15 -> 0 | HG89: =HE89*HF15 -> 0 | HJ89: =HH89*HI15 -> 0 | HM89: =HK89*HL15 -> 0 | HP89: =HN89*HO15 -> 0 | HS89: =HQ89*HR15 -> 0 | HV89: =HT89*HU15 -> 0 | HY89: =HW89*HX15 -> 0 | IB89: =HZ89*IA15 -> 0 | IE89: =IC89*ID15 -> 0 | IH89: =IF89*IG15 -> 0
B90: 0 | E90: =C90*D15 -> 0 | H90: =F90*G15 -> 0 | K90: =I90*J15 -> 0 | N90: =L90*M15 -> 0 | Q90: =O90*P15 -> 0 | T90: =R90*S15 -> 0 | W90: =U90*V15 -> 0 | Z90: =X90*Y15 -> 0 | AC90: =AA90*AB15 -> 0 | AF90: =AD90*AE15 -> 0 | AI90: =AG90*AH15 -> 0 | AL90: =AJ90*AK15 -> 0 | AO90: =AM90*AN15 -> 0 | AR90: =AP90*AQ15 -> 0 | AU90: =AS90*AT15 -> 0 | AX90: =AV90*AW15 -> 0 | BA90: =AY90*AZ15 -> 0 | BD90: =BB90*BC15 -> 0 | BG90: =BE90*BF15 -> 0 | BJ90: =BH90*BI15 -> 0 | BM90: =BK90*BL15 -> 0 | BP90: =BN90*BO15 -> 0 | BS90: =BQ90*BR15 -> 0 | BV90: =BT90*BU15 -> 0 | BY90: =BW90*BX15 -> 0 | CB90: =BZ90*CA15 -> 0 | CE90: =CC90*CD15 -> 0 | CH90: =CF90*CG15 -> 0 | CK90: =CI90*CJ15 -> 0 | CN90: =CL90*CM15 -> 0 | CQ90: =CO90*CP15 -> 0 | CT90: =CR90*CS15 -> 0 | CW90: =CU90*CV15 -> 0 | CZ90: =CX90*CY15 -> 0 | DC90: =DA90*DB15 -> 0 | DF90: =DD90*DE15 -> 0 | DI90: =DG90*DH15 -> 0 | DL90: =DJ90*DK15 -> 0 | DO90: =DM90*DN15 -> 0 | DR90: =DP90*DQ15 -> 0 | DU90: =DS90*DT15 -> 0 | DX90: =DV90*DW15 -> 0 | EA90: =DY90*DZ15 -> 0 | ED90: =EB90*EC15 -> 0 | EG90: =EE90*EF15 -> 0 | EJ90: =EH90*EI15 -> 0 | EM90: =EK90*EL15 -> 0 | EP90: =EN90*EO15 -> 0 | ES90: =EQ90*ER15 -> 0 | EV90: =ET90*EU15 -> 0 | EY90: =EW90*EX15 -> 0 | FB90: =EZ90*FA15 -> 0 | FE90: =FC90*FD15 -> 0 | FH90: =FF90*FG15 -> 0 | FK90: =FI90*FJ15 -> 0 | FN90: =FL90*FM15 -> 0 | FQ90: =FO90*FP15 -> 0 | FT90: =FR90*FS15 -> 0 | FW90: =FU90*FV15 -> 0 | FZ90: =FX90*FY15 -> 0 | GC90: =GA90*GB15 -> 0 | GF90: =GD90*GE15 -> 0 | GI90: =GG90*GH15 -> 0 | GL90: =GJ90*GK15 -> 0 | GO90: =GM90*GN15 -> 0 | GR90: =GP90*GQ15 -> 0 | GU90: =GS90*GT15 -> 0 | GX90: =GV90*GW15 -> 0 | HA90: =GY90*GZ15 -> 0 | HD90: =HB90*HC15 -> 0 | HG90: =HE90*HF15 -> 0 | HJ90: =HH90*HI15 -> 0 | HM90: =HK90*HL15 -> 0 | HP90: =HN90*HO15 -> 0 | HS90: =HQ90*HR15 -> 0 | HV90: =HT90*HU15 -> 0 | HY90: =HW90*HX15 -> 0 | IB90: =HZ90*IA15 -> 0 | IE90: =IC90*ID15 -> 0 | IH90: =IF90*IG15 -> 0
B91: 0 | E91: =C91*D15 -> 0 | H91: =F91*G15 -> 0 | K91: =I91*J15 -> 0 | N91: =L91*M15 -> 0 | Q91: =O91*P15 -> 0 | T91: =R91*S15 -> 0 | W91: =U91*V15 -> 0 | Z91: =X91*Y15 -> 0 | AC91: =AA91*AB15 -> 0 | AF91: =AD91*AE15 -> 0 | AI91: =AG91*AH15 -> 0 | AL91: =AJ91*AK15 -> 0 | AO91: =AM91*AN15 -> 0 | AR91: =AP91*AQ15 -> 0 | AU91: =AS91*AT15 -> 0 | AX91: =AV91*AW15 -> 0 | BA91: =AY91*AZ15 -> 0 | BD91: =BB91*BC15 -> 0 | BG91: =BE91*BF15 -> 0 | BJ91: =BH91*BI15 -> 0 | BM91: =BK91*BL15 -> 0 | BP91: =BN91*BO15 -> 0 | BS91: =BQ91*BR15 -> 0 | BV91: =BT91*BU15 -> 0 | BY91: =BW91*BX15 -> 0 | CB91: =BZ91*CA15 -> 0 | CE91: =CC91*CD15 -> 0 | CH91: =CF91*CG15 -> 0 | CK91: =CI91*CJ15 -> 0 | CN91: =CL91*CM15 -> 0 | CQ91: =CO91*CP15 -> 0 | CT91: =CR91*CS15 -> 0 | CW91: =CU91*CV15 -> 0 | CZ91: =CX91*CY15 -> 0 | DC91: =DA91*DB15 -> 0 | DF91: =DD91*DE15 -> 0 | DI91: =DG91*DH15 -> 0 | DL91: =DJ91*DK15 -> 0 | DO91: =DM91*DN15 -> 0 | DR91: =DP91*DQ15 -> 0 | DU91: =DS91*DT15 -> 0 | DX91: =DV91*DW15 -> 0 | EA91: =DY91*DZ15 -> 0 | ED91: =EB91*EC15 -> 0 | EG91: =EE91*EF15 -> 0 | EJ91: =EH91*EI15 -> 0 | EM91: =EK91*EL15 -> 0 | EP91: =EN91*EO15 -> 0 | ES91: =EQ91*ER15 -> 0 | EV91: =ET91*EU15 -> 0 | EY91: =EW91*EX15 -> 0 | FB91: =EZ91*FA15 -> 0 | FE91: =FC91*FD15 -> 0 | FH91: =FF91*FG15 -> 0 | FK91: =FI91*FJ15 -> 0 | FN91: =FL91*FM15 -> 0 | FQ91: =FO91*FP15 -> 0 | FT91: =FR91*FS15 -> 0 | FW91: =FU91*FV15 -> 0 | FZ91: =FX91*FY15 -> 0 | GC91: =GA91*GB15 -> 0 | GF91: =GD91*GE15 -> 0 | GI91: =GG91*GH15 -> 0 | GL91: =GJ91*GK15 -> 0 | GO91: =GM91*GN15 -> 0 | GR91: =GP91*GQ15 -> 0 | GU91: =GS91*GT15 -> 0 | GX91: =GV91*GW15 -> 0 | HA91: =GY91*GZ15 -> 0 | HD91: =HB91*HC15 -> 0 | HG91: =HE91*HF15 -> 0 | HJ91: =HH91*HI15 -> 0 | HM91: =HK91*HL15 -> 0 | HP91: =HN91*HO15 -> 0 | HS91: =HQ91*HR15 -> 0 | HV91: =HT91*HU15 -> 0 | HY91: =HW91*HX15 -> 0 | IB91: =HZ91*IA15 -> 0 | IE91: =IC91*ID15 -> 0 | IH91: =IF91*IG15 -> 0
B92: 0 | E92: =C92*D15 -> 0 | H92: =F92*G15 -> 0 | K92: =I92*J15 -> 0 | N92: =L92*M15 -> 0 | Q92: =O92*P15 -> 0 | T92: =R92*S15 -> 0 | W92: =U92*V15 -> 0 | Z92: =X92*Y15 -> 0 | AC92: =AA92*AB15 -> 0 | AF92: =AD92*AE15 -> 0 | AI92: =AG92*AH15 -> 0 | AL92: =AJ92*AK15 -> 0 | AO92: =AM92*AN15 -> 0 | AR92: =AP92*AQ15 -> 0 | AU92: =AS92*AT15 -> 0 | AX92: =AV92*AW15 -> 0 | BA92: =AY92*AZ15 -> 0 | BD92: =BB92*BC15 -> 0 | BG92: =BE92*BF15 -> 0 | BJ92: =BH92*BI15 -> 0 | BM92: =BK92*BL15 -> 0 | BP92: =BN92*BO15 -> 0 | BS92: =BQ92*BR15 -> 0 | BV92: =BT92*BU15 -> 0 | BY92: =BW92*BX15 -> 0 | CB92: =BZ92*CA15 -> 0 | CE92: =CC92*CD15 -> 0 | CH92: =CF92*CG15 -> 0 | CK92: =CI92*CJ15 -> 0 | CN92: =CL92*CM15 -> 0 | CQ92: =CO92*CP15 -> 0 | CT92: =CR92*CS15 -> 0 | CW92: =CU92*CV15 -> 0 | CZ92: =CX92*CY15 -> 0 | DC92: =DA92*DB15 -> 0 | DF92: =DD92*DE15 -> 0 | DI92: =DG92*DH15 -> 0 | DL92: =DJ92*DK15 -> 0 | DO92: =DM92*DN15 -> 0 | DR92: =DP92*DQ15 -> 0 | DU92: =DS92*DT15 -> 0 | DX92: =DV92*DW15 -> 0 | EA92: =DY92*DZ15 -> 0 | ED92: =EB92*EC15 -> 0 | EG92: =EE92*EF15 -> 0 | EJ92: =EH92*EI15 -> 0 | EM92: =EK92*EL15 -> 0 | EP92: =EN92*EO15 -> 0 | ES92: =EQ92*ER15 -> 0 | EV92: =ET92*EU15 -> 0 | EY92: =EW92*EX15 -> 0 | FB92: =EZ92*FA15 -> 0 | FE92: =FC92*FD15 -> 0 | FH92: =FF92*FG15 -> 0 | FK92: =FI92*FJ15 -> 0 | FN92: =FL92*FM15 -> 0 | FQ92: =FO92*FP15 -> 0 | FT92: =FR92*FS15 -> 0 | FW92: =FU92*FV15 -> 0 | FZ92: =FX92*FY15 -> 0 | GC92: =GA92*GB15 -> 0 | GF92: =GD92*GE15 -> 0 | GI92: =GG92*GH15 -> 0 | GL92: =GJ92*GK15 -> 0 | GO92: =GM92*GN15 -> 0 | GR92: =GP92*GQ15 -> 0 | GU92: =GS92*GT15 -> 0 | GX92: =GV92*GW15 -> 0 | HA92: =GY92*GZ15 -> 0 | HD92: =HB92*HC15 -> 0 | HG92: =HE92*HF15 -> 0 | HJ92: =HH92*HI15 -> 0 | HM92: =HK92*HL15 -> 0 | HP92: =HN92*HO15 -> 0 | HS92: =HQ92*HR15 -> 0 | HV92: =HT92*HU15 -> 0 | HY92: =HW92*HX15 -> 0 | IB92: =HZ92*IA15 -> 0 | IE92: =IC92*ID15 -> 0 | IH92: =IF92*IG15 -> 0
B93: 0 | E93: =C93*D15 -> 0 | H93: =F93*G15 -> 0 | K93: =I93*J15 -> 0 | N93: =L93*M15 -> 0 | Q93: =O93*P15 -> 0 | T93: =R93*S15 -> 0 | W93: =U93*V15 -> 0 | Z93: =X93*Y15 -> 0 | AC93: =AA93*AB15 -> 0 | AF93: =AD93*AE15 -> 0 | AI93: =AG93*AH15 -> 0 | AL93: =AJ93*AK15 -> 0 | AO93: =AM93*AN15 -> 0 | AR93: =AP93*AQ15 -> 0 | AU93: =AS93*AT15 -> 0 | AX93: =AV93*AW15 -> 0 | BA93: =AY93*AZ15 -> 0 | BD93: =BB93*BC15 -> 0 | BG93: =BE93*BF15 -> 0 | BJ93: =BH93*BI15 -> 0 | BM93: =BK93*BL15 -> 0 | BP93: =BN93*BO15 -> 0 | BS93: =BQ93*BR15 -> 0 | BV93: =BT93*BU15 -> 0 | BY93: =BW93*BX15 -> 0 | CB93: =BZ93*CA15 -> 0 | CE93: =CC93*CD15 -> 0 | CH93: =CF93*CG15 -> 0 | CK93: =CI93*CJ15 -> 0 | CN93: =CL93*CM15 -> 0 | CQ93: =CO93*CP15 -> 0 | CT93: =CR93*CS15 -> 0 | CW93: =CU93*CV15 -> 0 | CZ93: =CX93*CY15 -> 0 | DC93: =DA93*DB15 -> 0 | DF93: =DD93*DE15 -> 0 | DI93: =DG93*DH15 -> 0 | DL93: =DJ93*DK15 -> 0 | DO93: =DM93*DN15 -> 0 | DR93: =DP93*DQ15 -> 0 | DU93: =DS93*DT15 -> 0 | DX93: =DV93*DW15 -> 0 | EA93: =DY93*DZ15 -> 0 | ED93: =EB93*EC15 -> 0 | EG93: =EE93*EF15 -> 0 | EJ93: =EH93*EI15 -> 0 | EM93: =EK93*EL15 -> 0 | EP93: =EN93*EO15 -> 0 | ES93: =EQ93*ER15 -> 0 | EV93: =ET93*EU15 -> 0 | EY93: =EW93*EX15 -> 0 | FB93: =EZ93*FA15 -> 0 | FE93: =FC93*FD15 -> 0 | FH93: =FF93*FG15 -> 0 | FK93: =FI93*FJ15 -> 0 | FN93: =FL93*FM15 -> 0 | FQ93: =FO93*FP15 -> 0 | FT93: =FR93*FS15 -> 0 | FW93: =FU93*FV15 -> 0 | FZ93: =FX93*FY15 -> 0 | GC93: =GA93*GB15 -> 0 | GF93: =GD93*GE15 -> 0 | GI93: =GG93*GH15 -> 0 | GL93: =GJ93*GK15 -> 0 | GO93: =GM93*GN15 -> 0 | GR93: =GP93*GQ15 -> 0 | GU93: =GS93*GT15 -> 0 | GX93: =GV93*GW15 -> 0 | HA93: =GY93*GZ15 -> 0 | HD93: =HB93*HC15 -> 0 | HG93: =HE93*HF15 -> 0 | HJ93: =HH93*HI15 -> 0 | HM93: =HK93*HL15 -> 0 | HP93: =HN93*HO15 -> 0 | HS93: =HQ93*HR15 -> 0 | HV93: =HT93*HU15 -> 0 | HY93: =HW93*HX15 -> 0 | IB93: =HZ93*IA15 -> 0 | IE93: =IC93*ID15 -> 0 | IH93: =IF93*IG15 -> 0
B94: 0 | E94: =C94*D15 -> 0 | H94: =F94*G15 -> 0 | K94: =I94*J15 -> 0 | N94: =L94*M15 -> 0 | Q94: =O94*P15 -> 0 | T94: =R94*S15 -> 0 | W94: =U94*V15 -> 0 | Z94: =X94*Y15 -> 0 | AC94: =AA94*AB15 -> 0 | AF94: =AD94*AE15 -> 0 | AI94: =AG94*AH15 -> 0 | AL94: =AJ94*AK15 -> 0 | AO94: =AM94*AN15 -> 0 | AR94: =AP94*AQ15 -> 0 | AU94: =AS94*AT15 -> 0 | AX94: =AV94*AW15 -> 0 | BA94: =AY94*AZ15 -> 0 | BD94: =BB94*BC15 -> 0 | BG94: =BE94*BF15 -> 0 | BJ94: =BH94*BI15 -> 0 | BM94: =BK94*BL15 -> 0 | BP94: =BN94*BO15 -> 0 | BS94: =BQ94*BR15 -> 0 | BV94: =BT94*BU15 -> 0 | BY94: =BW94*BX15 -> 0 | CB94: =BZ94*CA15 -> 0 | CE94: =CC94*CD15 -> 0 | CH94: =CF94*CG15 -> 0 | CK94: =CI94*CJ15 -> 0 | CN94: =CL94*CM15 -> 0 | CQ94: =CO94*CP15 -> 0 | CT94: =CR94*CS15 -> 0 | CW94: =CU94*CV15 -> 0 | CZ94: =CX94*CY15 -> 0 | DC94: =DA94*DB15 -> 0 | DF94: =DD94*DE15 -> 0 | DI94: =DG94*DH15 -> 0 | DL94: =DJ94*DK15 -> 0 | DO94: =DM94*DN15 -> 0 | DR94: =DP94*DQ15 -> 0 | DU94: =DS94*DT15 -> 0 | DX94: =DV94*DW15 -> 0 | EA94: =DY94*DZ15 -> 0 | ED94: =EB94*EC15 -> 0 | EG94: =EE94*EF15 -> 0 | EJ94: =EH94*EI15 -> 0 | EM94: =EK94*EL15 -> 0 | EP94: =EN94*EO15 -> 0 | ES94: =EQ94*ER15 -> 0 | EV94: =ET94*EU15 -> 0 | EY94: =EW94*EX15 -> 0 | FB94: =EZ94*FA15 -> 0 | FE94: =FC94*FD15 -> 0 | FH94: =FF94*FG15 -> 0 | FK94: =FI94*FJ15 -> 0 | FN94: =FL94*FM15 -> 0 | FQ94: =FO94*FP15 -> 0 | FT94: =FR94*FS15 -> 0 | FW94: =FU94*FV15 -> 0 | FZ94: =FX94*FY15 -> 0 | GC94: =GA94*GB15 -> 0 | GF94: =GD94*GE15 -> 0 | GI94: =GG94*GH15 -> 0 | GL94: =GJ94*GK15 -> 0 | GO94: =GM94*GN15 -> 0 | GR94: =GP94*GQ15 -> 0 | GU94: =GS94*GT15 -> 0 | GX94: =GV94*GW15 -> 0 | HA94: =GY94*GZ15 -> 0 | HD94: =HB94*HC15 -> 0 | HG94: =HE94*HF15 -> 0 | HJ94: =HH94*HI15 -> 0 | HM94: =HK94*HL15 -> 0 | HP94: =HN94*HO15 -> 0 | HS94: =HQ94*HR15 -> 0 | HV94: =HT94*HU15 -> 0 | HY94: =HW94*HX15 -> 0 | IB94: =HZ94*IA15 -> 0 | IE94: =IC94*ID15 -> 0 | IH94: =IF94*IG15 -> 0
B95: 0 | E95: =C95*D15 -> 0 | H95: =F95*G15 -> 0 | K95: =I95*J15 -> 0 | N95: =L95*M15 -> 0 | Q95: =O95*P15 -> 0 | T95: =R95*S15 -> 0 | W95: =U95*V15 -> 0 | Z95: =X95*Y15 -> 0 | AC95: =AA95*AB15 -> 0 | AF95: =AD95*AE15 -> 0 | AI95: =AG95*AH15 -> 0 | AL95: =AJ95*AK15 -> 0 | AO95: =AM95*AN15 -> 0 | AR95: =AP95*AQ15 -> 0 | AU95: =AS95*AT15 -> 0 | AX95: =AV95*AW15 -> 0 | BA95: =AY95*AZ15 -> 0 | BD95: =BB95*BC15 -> 0 | BG95: =BE95*BF15 -> 0 | BJ95: =BH95*BI15 -> 0 | BM95: =BK95*BL15 -> 0 | BP95: =BN95*BO15 -> 0 | BS95: =BQ95*BR15 -> 0 | BV95: =BT95*BU15 -> 0 | BY95: =BW95*BX15 -> 0 | CB95: =BZ95*CA15 -> 0 | CE95: =CC95*CD15 -> 0 | CH95: =CF95*CG15 -> 0 | CK95: =CI95*CJ15 -> 0 | CN95: =CL95*CM15 -> 0 | CQ95: =CO95*CP15 -> 0 | CT95: =CR95*CS15 -> 0 | CW95: =CU95*CV15 -> 0 | CZ95: =CX95*CY15 -> 0 | DC95: =DA95*DB15 -> 0 | DF95: =DD95*DE15 -> 0 | DI95: =DG95*DH15 -> 0 | DL95: =DJ95*DK15 -> 0 | DO95: =DM95*DN15 -> 0 | DR95: =DP95*DQ15 -> 0 | DU95: =DS95*DT15 -> 0 | DX95: =DV95*DW15 -> 0 | EA95: =DY95*DZ15 -> 0 | ED95: =EB95*EC15 -> 0 | EG95: =EE95*EF15 -> 0 | EJ95: =EH95*EI15 -> 0 | EM95: =EK95*EL15 -> 0 | EP95: =EN95*EO15 -> 0 | ES95: =EQ95*ER15 -> 0 | EV95: =ET95*EU15 -> 0 | EY95: =EW95*EX15 -> 0 | FB95: =EZ95*FA15 -> 0 | FE95: =FC95*FD15 -> 0 | FH95: =FF95*FG15 -> 0 | FK95: =FI95*FJ15 -> 0 | FN95: =FL95*FM15 -> 0 | FQ95: =FO95*FP15 -> 0 | FT95: =FR95*FS15 -> 0 | FW95: =FU95*FV15 -> 0 | FZ95: =FX95*FY15 -> 0 | GC95: =GA95*GB15 -> 0 | GF95: =GD95*GE15 -> 0 | GI95: =GG95*GH15 -> 0 | GL95: =GJ95*GK15 -> 0 | GO95: =GM95*GN15 -> 0 | GR95: =GP95*GQ15 -> 0 | GU95: =GS95*GT15 -> 0 | GX95: =GV95*GW15 -> 0 | HA95: =GY95*GZ15 -> 0 | HD95: =HB95*HC15 -> 0 | HG95: =HE95*HF15 -> 0 | HJ95: =HH95*HI15 -> 0 | HM95: =HK95*HL15 -> 0 | HP95: =HN95*HO15 -> 0 | HS95: =HQ95*HR15 -> 0 | HV95: =HT95*HU15 -> 0 | HY95: =HW95*HX15 -> 0 | IB95: =HZ95*IA15 -> 0 | IE95: =IC95*ID15 -> 0 | IH95: =IF95*IG15 -> 0
B96: 0 | E96: =C96*D15 -> 0 | H96: =F96*G15 -> 0 | K96: =I96*J15 -> 0 | N96: =L96*M15 -> 0 | Q96: =O96*P15 -> 0 | T96: =R96*S15 -> 0 | W96: =U96*V15 -> 0 | Z96: =X96*Y15 -> 0 | AC96: =AA96*AB15 -> 0 | AF96: =AD96*AE15 -> 0 | AI96: =AG96*AH15 -> 0 | AL96: =AJ96*AK15 -> 0 | AO96: =AM96*AN15 -> 0 | AR96: =AP96*AQ15 -> 0 | AU96: =AS96*AT15 -> 0 | AX96: =AV96*AW15 -> 0 | BA96: =AY96*AZ15 -> 0 | BD96: =BB96*BC15 -> 0 | BG96: =BE96*BF15 -> 0 | BJ96: =BH96*BI15 -> 0 | BM96: =BK96*BL15 -> 0 | BP96: =BN96*BO15 -> 0 | BS96: =BQ96*BR15 -> 0 | BV96: =BT96*BU15 -> 0 | BY96: =BW96*BX15 -> 0 | CB96: =BZ96*CA15 -> 0 | CE96: =CC96*CD15 -> 0 | CH96: =CF96*CG15 -> 0 | CK96: =CI96*CJ15 -> 0 | CN96: =CL96*CM15 -> 0 | CQ96: =CO96*CP15 -> 0 | CT96: =CR96*CS15 -> 0 | CW96: =CU96*CV15 -> 0 | CZ96: =CX96*CY15 -> 0 | DC96: =DA96*DB15 -> 0 | DF96: =DD96*DE15 -> 0 | DI96: =DG96*DH15 -> 0 | DL96: =DJ96*DK15 -> 0 | DO96: =DM96*DN15 -> 0 | DR96: =DP96*DQ15 -> 0 | DU96: =DS96*DT15 -> 0 | DX96: =DV96*DW15 -> 0 | EA96: =DY96*DZ15 -> 0 | ED96: =EB96*EC15 -> 0 | EG96: =EE96*EF15 -> 0 | EJ96: =EH96*EI15 -> 0 | EM96: =EK96*EL15 -> 0 | EP96: =EN96*EO15 -> 0 | ES96: =EQ96*ER15 -> 0 | EV96: =ET96*EU15 -> 0 | EY96: =EW96*EX15 -> 0 | FB96: =EZ96*FA15 -> 0 | FE96: =FC96*FD15 -> 0 | FH96: =FF96*FG15 -> 0 | FK96: =FI96*FJ15 -> 0 | FN96: =FL96*FM15 -> 0 | FQ96: =FO96*FP15 -> 0 | FT96: =FR96*FS15 -> 0 | FW96: =FU96*FV15 -> 0 | FZ96: =FX96*FY15 -> 0 | GC96: =GA96*GB15 -> 0 | GF96: =GD96*GE15 -> 0 | GI96: =GG96*GH15 -> 0 | GL96: =GJ96*GK15 -> 0 | GO96: =GM96*GN15 -> 0 | GR96: =GP96*GQ15 -> 0 | GU96: =GS96*GT15 -> 0 | GX96: =GV96*GW15 -> 0 | HA96: =GY96*GZ15 -> 0 | HD96: =HB96*HC15 -> 0 | HG96: =HE96*HF15 -> 0 | HJ96: =HH96*HI15 -> 0 | HM96: =HK96*HL15 -> 0 | HP96: =HN96*HO15 -> 0 | HS96: =HQ96*HR15 -> 0 | HV96: =HT96*HU15 -> 0 | HY96: =HW96*HX15 -> 0 | IB96: =HZ96*IA15 -> 0 | IE96: =IC96*ID15 -> 0 | IH96: =IF96*IG15 -> 0
B97: 0 | E97: =C97*D15 -> 0 | H97: =F97*G15 -> 0 | K97: =I97*J15 -> 0 | N97: =L97*M15 -> 0 | Q97: =O97*P15 -> 0 | T97: =R97*S15 -> 0 | W97: =U97*V15 -> 0 | Z97: =X97*Y15 -> 0 | AC97: =AA97*AB15 -> 0 | AF97: =AD97*AE15 -> 0 | AI97: =AG97*AH15 -> 0 | AL97: =AJ97*AK15 -> 0 | AO97: =AM97*AN15 -> 0 | AR97: =AP97*AQ15 -> 0 | AU97: =AS97*AT15 -> 0 | AX97: =AV97*AW15 -> 0 | BA97: =AY97*AZ15 -> 0 | BD97: =BB97*BC15 -> 0 | BG97: =BE97*BF15 -> 0 | BJ97: =BH97*BI15 -> 0 | BM97: =BK97*BL15 -> 0 | BP97: =BN97*BO15 -> 0 | BS97: =BQ97*BR15 -> 0 | BV97: =BT97*BU15 -> 0 | BY97: =BW97*BX15 -> 0 | CB97: =BZ97*CA15 -> 0 | CE97: =CC97*CD15 -> 0 | CH97: =CF97*CG15 -> 0 | CK97: =CI97*CJ15 -> 0 | CN97: =CL97*CM15 -> 0 | CQ97: =CO97*CP15 -> 0 | CT97: =CR97*CS15 -> 0 | CW97: =CU97*CV15 -> 0 | CZ97: =CX97*CY15 -> 0 | DC97: =DA97*DB15 -> 0 | DF97: =DD97*DE15 -> 0 | DI97: =DG97*DH15 -> 0 | DL97: =DJ97*DK15 -> 0 | DO97: =DM97*DN15 -> 0 | DR97: =DP97*DQ15 -> 0 | DU97: =DS97*DT15 -> 0 | DX97: =DV97*DW15 -> 0 | EA97: =DY97*DZ15 -> 0 | ED97: =EB97*EC15 -> 0 | EG97: =EE97*EF15 -> 0 | EJ97: =EH97*EI15 -> 0 | EM97: =EK97*EL15 -> 0 | EP97: =EN97*EO15 -> 0 | ES97: =EQ97*ER15 -> 0 | EV97: =ET97*EU15 -> 0 | EY97: =EW97*EX15 -> 0 | FB97: =EZ97*FA15 -> 0 | FE97: =FC97*FD15 -> 0 | FH97: =FF97*FG15 -> 0 | FK97: =FI97*FJ15 -> 0 | FN97: =FL97*FM15 -> 0 | FQ97: =FO97*FP15 -> 0 | FT97: =FR97*FS15 -> 0 | FW97: =FU97*FV15 -> 0 | FZ97: =FX97*FY15 -> 0 | GC97: =GA97*GB15 -> 0 | GF97: =GD97*GE15 -> 0 | GI97: =GG97*GH15 -> 0 | GL97: =GJ97*GK15 -> 0 | GO97: =GM97*GN15 -> 0 | GR97: =GP97*GQ15 -> 0 | GU97: =GS97*GT15 -> 0 | GX97: =GV97*GW15 -> 0 | HA97: =GY97*GZ15 -> 0 | HD97: =HB97*HC15 -> 0 | HG97: =HE97*HF15 -> 0 | HJ97: =HH97*HI15 -> 0 | HM97: =HK97*HL15 -> 0 | HP97: =HN97*HO15 -> 0 | HS97: =HQ97*HR15 -> 0 | HV97: =HT97*HU15 -> 0 | HY97: =HW97*HX15 -> 0 | IB97: =HZ97*IA15 -> 0 | IE97: =IC97*ID15 -> 0 | IH97: =IF97*IG15 -> 0
B98: 0 | E98: =C98*D15 -> 0 | H98: =F98*G15 -> 0 | K98: =I98*J15 -> 0 | N98: =L98*M15 -> 0 | Q98: =O98*P15 -> 0 | T98: =R98*S15 -> 0 | W98: =U98*V15 -> 0 | Z98: =X98*Y15 -> 0 | AC98: =AA98*AB15 -> 0 | AF98: =AD98*AE15 -> 0 | AI98: =AG98*AH15 -> 0 | AL98: =AJ98*AK15 -> 0 | AO98: =AM98*AN15 -> 0 | AR98: =AP98*AQ15 -> 0 | AU98: =AS98*AT15 -> 0 | AX98: =AV98*AW15 -> 0 | BA98: =AY98*AZ15 -> 0 | BD98: =BB98*BC15 -> 0 | BG98: =BE98*BF15 -> 0 | BJ98: =BH98*BI15 -> 0 | BM98: =BK98*BL15 -> 0 | BP98: =BN98*BO15 -> 0 | BS98: =BQ98*BR15 -> 0 | BV98: =BT98*BU15 -> 0 | BY98: =BW98*BX15 -> 0 | CB98: =BZ98*CA15 -> 0 | CE98: =CC98*CD15 -> 0 | CH98: =CF98*CG15 -> 0 | CK98: =CI98*CJ15 -> 0 | CN98: =CL98*CM15 -> 0 | CQ98: =CO98*CP15 -> 0 | CT98: =CR98*CS15 -> 0 | CW98: =CU98*CV15 -> 0 | CZ98: =CX98*CY15 -> 0 | DC98: =DA98*DB15 -> 0 | DF98: =DD98*DE15 -> 0 | DI98: =DG98*DH15 -> 0 | DL98: =DJ98*DK15 -> 0 | DO98: =DM98*DN15 -> 0 | DR98: =DP98*DQ15 -> 0 | DU98: =DS98*DT15 -> 0 | DX98: =DV98*DW15 -> 0 | EA98: =DY98*DZ15 -> 0 | ED98: =EB98*EC15 -> 0 | EG98: =EE98*EF15 -> 0 | EJ98: =EH98*EI15 -> 0 | EM98: =EK98*EL15 -> 0 | EP98: =EN98*EO15 -> 0 | ES98: =EQ98*ER15 -> 0 | EV98: =ET98*EU15 -> 0 | EY98: =EW98*EX15 -> 0 | FB98: =EZ98*FA15 -> 0 | FE98: =FC98*FD15 -> 0 | FH98: =FF98*FG15 -> 0 | FK98: =FI98*FJ15 -> 0 | FN98: =FL98*FM15 -> 0 | FQ98: =FO98*FP15 -> 0 | FT98: =FR98*FS15 -> 0 | FW98: =FU98*FV15 -> 0 | FZ98: =FX98*FY15 -> 0 | GC98: =GA98*GB15 -> 0 | GF98: =GD98*GE15 -> 0 | GI98: =GG98*GH15 -> 0 | GL98: =GJ98*GK15 -> 0 | GO98: =GM98*GN15 -> 0 | GR98: =GP98*GQ15 -> 0 | GU98: =GS98*GT15 -> 0 | GX98: =GV98*GW15 -> 0 | HA98: =GY98*GZ15 -> 0 | HD98: =HB98*HC15 -> 0 | HG98: =HE98*HF15 -> 0 | HJ98: =HH98*HI15 -> 0 | HM98: =HK98*HL15 -> 0 | HP98: =HN98*HO15 -> 0 | HS98: =HQ98*HR15 -> 0 | HV98: =HT98*HU15 -> 0 | HY98: =HW98*HX15 -> 0 | IB98: =HZ98*IA15 -> 0 | IE98: =IC98*ID15 -> 0 | IH98: =IF98*IG15 -> 0
B99: 0 | E99: =C99*D15 -> 0 | H99: =F99*G15 -> 0 | K99: =I99*J15 -> 0 | N99: =L99*M15 -> 0 | Q99: =O99*P15 -> 0 | T99: =R99*S15 -> 0 | W99: =U99*V15 -> 0 | Z99: =X99*Y15 -> 0 | AC99: =AA99*AB15 -> 0 | AF99: =AD99*AE15 -> 0 | AI99: =AG99*AH15 -> 0 | AL99: =AJ99*AK15 -> 0 | AO99: =AM99*AN15 -> 0 | AR99: =AP99*AQ15 -> 0 | AU99: =AS99*AT15 -> 0 | AX99: =AV99*AW15 -> 0 | BA99: =AY99*AZ15 -> 0 | BD99: =BB99*BC15 -> 0 | BG99: =BE99*BF15 -> 0 | BJ99: =BH99*BI15 -> 0 | BM99: =BK99*BL15 -> 0 | BP99: =BN99*BO15 -> 0 | BS99: =BQ99*BR15 -> 0 | BV99: =BT99*BU15 -> 0 | BY99: =BW99*BX15 -> 0 | CB99: =BZ99*CA15 -> 0 | CE99: =CC99*CD15 -> 0 | CH99: =CF99*CG15 -> 0 | CK99: =CI99*CJ15 -> 0 | CN99: =CL99*CM15 -> 0 | CQ99: =CO99*CP15 -> 0 | CT99: =CR99*CS15 -> 0 | CW99: =CU99*CV15 -> 0 | CZ99: =CX99*CY15 -> 0 | DC99: =DA99*DB15 -> 0 | DF99: =DD99*DE15 -> 0 | DI99: =DG99*DH15 -> 0 | DL99: =DJ99*DK15 -> 0 | DO99: =DM99*DN15 -> 0 | DR99: =DP99*DQ15 -> 0 | DU99: =DS99*DT15 -> 0 | DX99: =DV99*DW15 -> 0 | EA99: =DY99*DZ15 -> 0 | ED99: =EB99*EC15 -> 0 | EG99: =EE99*EF15 -> 0 | EJ99: =EH99*EI15 -> 0 | EM99: =EK99*EL15 -> 0 | EP99: =EN99*EO15 -> 0 | ES99: =EQ99*ER15 -> 0 | EV99: =ET99*EU15 -> 0 | EY99: =EW99*EX15 -> 0 | FB99: =EZ99*FA15 -> 0 | FE99: =FC99*FD15 -> 0 | FH99: =FF99*FG15 -> 0 | FK99: =FI99*FJ15 -> 0 | FN99: =FL99*FM15 -> 0 | FQ99: =FO99*FP15 -> 0 | FT99: =FR99*FS15 -> 0 | FW99: =FU99*FV15 -> 0 | FZ99: =FX99*FY15 -> 0 | GC99: =GA99*GB15 -> 0 | GF99: =GD99*GE15 -> 0 | GI99: =GG99*GH15 -> 0 | GL99: =GJ99*GK15 -> 0 | GO99: =GM99*GN15 -> 0 | GR99: =GP99*GQ15 -> 0 | GU99: =GS99*GT15 -> 0 | GX99: =GV99*GW15 -> 0 | HA99: =GY99*GZ15 -> 0 | HD99: =HB99*HC15 -> 0 | HG99: =HE99*HF15 -> 0 | HJ99: =HH99*HI15 -> 0 | HM99: =HK99*HL15 -> 0 | HP99: =HN99*HO15 -> 0 | HS99: =HQ99*HR15 -> 0 | HV99: =HT99*HU15 -> 0 | HY99: =HW99*HX15 -> 0 | IB99: =HZ99*IA15 -> 0 | IE99: =IC99*ID15 -> 0 | IH99: =IF99*IG15 -> 0
B100: 0 | E100: =C100*D15 -> 0 | H100: =F100*G15 -> 0 | K100: =I100*J15 -> 0 | N100: =L100*M15 -> 0 | Q100: =O100*P15 -> 0 | T100: =R100*S15 -> 0 | W100: =U100*V15 -> 0 | Z100: =X100*Y15 -> 0 | AC100: =AA100*AB15 -> 0 | AF100: =AD100*AE15 -> 0 | AI100: =AG100*AH15 -> 0 | AL100: =AJ100*AK15 -> 0 | AO100: =AM100*AN15 -> 0 | AR100: =AP100*AQ15 -> 0 | AU100: =AS100*AT15 -> 0 | AX100: =AV100*AW15 -> 0 | BA100: =AY100*AZ15 -> 0 | BD100: =BB100*BC15 -> 0 | BG100: =BE100*BF15 -> 0 | BJ100: =BH100*BI15 -> 0 | BM100: =BK100*BL15 -> 0 | BP100: =BN100*BO15 -> 0 | BS100: =BQ100*BR15 -> 0 | BV100: =BT100*BU15 -> 0 | BY100: =BW100*BX15 -> 0 | CB100: =BZ100*CA15 -> 0 | CE100: =CC100*CD15 -> 0 | CH100: =CF100*CG15 -> 0 | CK100: =CI100*CJ15 -> 0 | CN100: =CL100*CM15 -> 0 | CQ100: =CO100*CP15 -> 0 | CT100: =CR100*CS15 -> 0 | CW100: =CU100*CV15 -> 0 | CZ100: =CX100*CY15 -> 0 | DC100: =DA100*DB15 -> 0 | DF100: =DD100*DE15 -> 0 | DI100: =DG100*DH15 -> 0 | DL100: =DJ100*DK15 -> 0 | DO100: =DM100*DN15 -> 0 | DR100: =DP100*DQ15 -> 0 | DU100: =DS100*DT15 -> 0 | DX100: =DV100*DW15 -> 0 | EA100: =DY100*DZ15 -> 0 | ED100: =EB100*EC15 -> 0 | EG100: =EE100*EF15 -> 0 | EJ100: =EH100*EI15 -> 0 | EM100: =EK100*EL15 -> 0 | EP100: =EN100*EO15 -> 0 | ES100: =EQ100*ER15 -> 0 | EV100: =ET100*EU15 -> 0 | EY100: =EW100*EX15 -> 0 | FB100: =EZ100*FA15 -> 0 | FE100: =FC100*FD15 -> 0 | FH100: =FF100*FG15 -> 0 | FK100: =FI100*FJ15 -> 0 | FN100: =FL100*FM15 -> 0 | FQ100: =FO100*FP15 -> 0 | FT100: =FR100*FS15 -> 0 | FW100: =FU100*FV15 -> 0 | FZ100: =FX100*FY15 -> 0 | GC100: =GA100*GB15 -> 0 | GF100: =GD100*GE15 -> 0 | GI100: =GG100*GH15 -> 0 | GL100: =GJ100*GK15 -> 0 | GO100: =GM100*GN15 -> 0 | GR100: =GP100*GQ15 -> 0 | GU100: =GS100*GT15 -> 0 | GX100: =GV100*GW15 -> 0 | HA100: =GY100*GZ15 -> 0 | HD100: =HB100*HC15 -> 0 | HG100: =HE100*HF15 -> 0 | HJ100: =HH100*HI15 -> 0 | HM100: =HK100*HL15 -> 0 | HP100: =HN100*HO15 -> 0 | HS100: =HQ100*HR15 -> 0 | HV100: =HT100*HU15 -> 0 | HY100: =HW100*HX15 -> 0 | IB100: =HZ100*IA15 -> 0 | IE100: =IC100*ID15 -> 0 | IH100: =IF100*IG15 -> 0
B101: 0 | E101: =C101*D15 -> 0 | H101: =F101*G15 -> 0 | K101: =I101*J15 -> 0 | N101: =L101*M15 -> 0 | Q101: =O101*P15 -> 0 | T101: =R101*S15 -> 0 | W101: =U101*V15 -> 0 | Z101: =X101*Y15 -> 0 | AC101: =AA101*AB15 -> 0 | AF101: =AD101*AE15 -> 0 | AI101: =AG101*AH15 -> 0 | AL101: =AJ101*AK15 -> 0 | AO101: =AM101*AN15 -> 0 | AR101: =AP101*AQ15 -> 0 | AU101: =AS101*AT15 -> 0 | AX101: =AV101*AW15 -> 0 | BA101: =AY101*AZ15 -> 0 | BD101: =BB101*BC15 -> 0 | BG101: =BE101*BF15 -> 0 | BJ101: =BH101*BI15 -> 0 | BM101: =BK101*BL15 -> 0 | BP101: =BN101*BO15 -> 0 | BS101: =BQ101*BR15 -> 0 | BV101: =BT101*BU15 -> 0 | BY101: =BW101*BX15 -> 0 | CB101: =BZ101*CA15 -> 0 | CE101: =CC101*CD15 -> 0 | CH101: =CF101*CG15 -> 0 | CK101: =CI101*CJ15 -> 0 | CN101: =CL101*CM15 -> 0 | CQ101: =CO101*CP15 -> 0 | CT101: =CR101*CS15 -> 0 | CW101: =CU101*CV15 -> 0 | CZ101: =CX101*CY15 -> 0 | DC101: =DA101*DB15 -> 0 | DF101: =DD101*DE15 -> 0 | DI101: =DG101*DH15 -> 0 | DL101: =DJ101*DK15 -> 0 | DO101: =DM101*DN15 -> 0 | DR101: =DP101*DQ15 -> 0 | DU101: =DS101*DT15 -> 0 | DX101: =DV101*DW15 -> 0 | EA101: =DY101*DZ15 -> 0 | ED101: =EB101*EC15 -> 0 | EG101: =EE101*EF15 -> 0 | EJ101: =EH101*EI15 -> 0 | EM101: =EK101*EL15 -> 0 | EP101: =EN101*EO15 -> 0 | ES101: =EQ101*ER15 -> 0 | EV101: =ET101*EU15 -> 0 | EY101: =EW101*EX15 -> 0 | FB101: =EZ101*FA15 -> 0 | FE101: =FC101*FD15 -> 0 | FH101: =FF101*FG15 -> 0 | FK101: =FI101*FJ15 -> 0 | FN101: =FL101*FM15 -> 0 | FQ101: =FO101*FP15 -> 0 | FT101: =FR101*FS15 -> 0 | FW101: =FU101*FV15 -> 0 | FZ101: =FX101*FY15 -> 0 | GC101: =GA101*GB15 -> 0 | GF101: =GD101*GE15 -> 0 | GI101: =GG101*GH15 -> 0 | GL101: =GJ101*GK15 -> 0 | GO101: =GM101*GN15 -> 0 | GR101: =GP101*GQ15 -> 0 | GU101: =GS101*GT15 -> 0 | GX101: =GV101*GW15 -> 0 | HA101: =GY101*GZ15 -> 0 | HD101: =HB101*HC15 -> 0 | HG101: =HE101*HF15 -> 0 | HJ101: =HH101*HI15 -> 0 | HM101: =HK101*HL15 -> 0 | HP101: =HN101*HO15 -> 0 | HS101: =HQ101*HR15 -> 0 | HV101: =HT101*HU15 -> 0 | HY101: =HW101*HX15 -> 0 | IB101: =HZ101*IA15 -> 0 | IE101: =IC101*ID15 -> 0 | IH101: =IF101*IG15 -> 0
B102: 0 | E102: =C102*D15 -> 0 | H102: =F102*G15 -> 0 | K102: =I102*J15 -> 0 | N102: =L102*M15 -> 0 | Q102: =O102*P15 -> 0 | T102: =R102*S15 -> 0 | W102: =U102*V15 -> 0 | Z102: =X102*Y15 -> 0 | AC102: =AA102*AB15 -> 0 | AF102: =AD102*AE15 -> 0 | AI102: =AG102*AH15 -> 0 | AL102: =AJ102*AK15 -> 0 | AO102: =AM102*AN15 -> 0 | AR102: =AP102*AQ15 -> 0 | AU102: =AS102*AT15 -> 0 | AX102: =AV102*AW15 -> 0 | BA102: =AY102*AZ15 -> 0 | BD102: =BB102*BC15 -> 0 | BG102: =BE102*BF15 -> 0 | BJ102: =BH102*BI15 -> 0 | BM102: =BK102*BL15 -> 0 | BP102: =BN102*BO15 -> 0 | BS102: =BQ102*BR15 -> 0 | BV102: =BT102*BU15 -> 0 | BY102: =BW102*BX15 -> 0 | CB102: =BZ102*CA15 -> 0 | CE102: =CC102*CD15 -> 0 | CH102: =CF102*CG15 -> 0 | CK102: =CI102*CJ15 -> 0 | CN102: =CL102*CM15 -> 0 | CQ102: =CO102*CP15 -> 0 | CT102: =CR102*CS15 -> 0 | CW102: =CU102*CV15 -> 0 | CZ102: =CX102*CY15 -> 0 | DC102: =DA102*DB15 -> 0 | DF102: =DD102*DE15 -> 0 | DI102: =DG102*DH15 -> 0 | DL102: =DJ102*DK15 -> 0 | DO102: =DM102*DN15 -> 0 | DR102: =DP102*DQ15 -> 0 | DU102: =DS102*DT15 -> 0 | DX102: =DV102*DW15 -> 0 | EA102: =DY102*DZ15 -> 0 | ED102: =EB102*EC15 -> 0 | EG102: =EE102*EF15 -> 0 | EJ102: =EH102*EI15 -> 0 | EM102: =EK102*EL15 -> 0 | EP102: =EN102*EO15 -> 0 | ES102: =EQ102*ER15 -> 0 | EV102: =ET102*EU15 -> 0 | EY102: =EW102*EX15 -> 0 | FB102: =EZ102*FA15 -> 0 | FE102: =FC102*FD15 -> 0 | FH102: =FF102*FG15 -> 0 | FK102: =FI102*FJ15 -> 0 | FN102: =FL102*FM15 -> 0 | FQ102: =FO102*FP15 -> 0 | FT102: =FR102*FS15 -> 0 | FW102: =FU102*FV15 -> 0 | FZ102: =FX102*FY15 -> 0 | GC102: =GA102*GB15 -> 0 | GF102: =GD102*GE15 -> 0 | GI102: =GG102*GH15 -> 0 | GL102: =GJ102*GK15 -> 0 | GO102: =GM102*GN15 -> 0 | GR102: =GP102*GQ15 -> 0 | GU102: =GS102*GT15 -> 0 | GX102: =GV102*GW15 -> 0 | HA102: =GY102*GZ15 -> 0 | HD102: =HB102*HC15 -> 0 | HG102: =HE102*HF15 -> 0 | HJ102: =HH102*HI15 -> 0 | HM102: =HK102*HL15 -> 0 | HP102: =HN102*HO15 -> 0 | HS102: =HQ102*HR15 -> 0 | HV102: =HT102*HU15 -> 0 | HY102: =HW102*HX15 -> 0 | IB102: =HZ102*IA15 -> 0 | IE102: =IC102*ID15 -> 0 | IH102: =IF102*IG15 -> 0
B103: 0 | E103: =C103*D15 -> 0 | H103: =F103*G15 -> 0 | K103: =I103*J15 -> 0 | N103: =L103*M15 -> 0 | Q103: =O103*P15 -> 0 | T103: =R103*S15 -> 0 | W103: =U103*V15 -> 0 | Z103: =X103*Y15 -> 0 | AC103: =AA103*AB15 -> 0 | AF103: =AD103*AE15 -> 0 | AI103: =AG103*AH15 -> 0 | AL103: =AJ103*AK15 -> 0 | AO103: =AM103*AN15 -> 0 | AR103: =AP103*AQ15 -> 0 | AU103: =AS103*AT15 -> 0 | AX103: =AV103*AW15 -> 0 | BA103: =AY103*AZ15 -> 0 | BD103: =BB103*BC15 -> 0 | BG103: =BE103*BF15 -> 0 | BJ103: =BH103*BI15 -> 0 | BM103: =BK103*BL15 -> 0 | BP103: =BN103*BO15 -> 0 | BS103: =BQ103*BR15 -> 0 | BV103: =BT103*BU15 -> 0 | BY103: =BW103*BX15 -> 0 | CB103: =BZ103*CA15 -> 0 | CE103: =CC103*CD15 -> 0 | CH103: =CF103*CG15 -> 0 | CK103: =CI103*CJ15 -> 0 | CN103: =CL103*CM15 -> 0 | CQ103: =CO103*CP15 -> 0 | CT103: =CR103*CS15 -> 0 | CW103: =CU103*CV15 -> 0 | CZ103: =CX103*CY15 -> 0 | DC103: =DA103*DB15 -> 0 | DF103: =DD103*DE15 -> 0 | DI103: =DG103*DH15 -> 0 | DL103: =DJ103*DK15 -> 0 | DO103: =DM103*DN15 -> 0 | DR103: =DP103*DQ15 -> 0 | DU103: =DS103*DT15 -> 0 | DX103: =DV103*DW15 -> 0 | EA103: =DY103*DZ15 -> 0 | ED103: =EB103*EC15 -> 0 | EG103: =EE103*EF15 -> 0 | EJ103: =EH103*EI15 -> 0 | EM103: =EK103*EL15 -> 0 | EP103: =EN103*EO15 -> 0 | ES103: =EQ103*ER15 -> 0 | EV103: =ET103*EU15 -> 0 | EY103: =EW103*EX15 -> 0 | FB103: =EZ103*FA15 -> 0 | FE103: =FC103*FD15 -> 0 | FH103: =FF103*FG15 -> 0 | FK103: =FI103*FJ15 -> 0 | FN103: =FL103*FM15 -> 0 | FQ103: =FO103*FP15 -> 0 | FT103: =FR103*FS15 -> 0 | FW103: =FU103*FV15 -> 0 | FZ103: =FX103*FY15 -> 0 | GC103: =GA103*GB15 -> 0 | GF103: =GD103*GE15 -> 0 | GI103: =GG103*GH15 -> 0 | GL103: =GJ103*GK15 -> 0 | GO103: =GM103*GN15 -> 0 | GR103: =GP103*GQ15 -> 0 | GU103: =GS103*GT15 -> 0 | GX103: =GV103*GW15 -> 0 | HA103: =GY103*GZ15 -> 0 | HD103: =HB103*HC15 -> 0 | HG103: =HE103*HF15 -> 0 | HJ103: =HH103*HI15 -> 0 | HM103: =HK103*HL15 -> 0 | HP103: =HN103*HO15 -> 0 | HS103: =HQ103*HR15 -> 0 | HV103: =HT103*HU15 -> 0 | HY103: =HW103*HX15 -> 0 | IB103: =HZ103*IA15 -> 0 | IE103: =IC103*ID15 -> 0 | IH103: =IF103*IG15 -> 0
B104: 0 | E104: =C104*D15 -> 0 | H104: =F104*G15 -> 0 | K104: =I104*J15 -> 0 | N104: =L104*M15 -> 0 | Q104: =O104*P15 -> 0 | T104: =R104*S15 -> 0 | W104: =U104*V15 -> 0 | Z104: =X104*Y15 -> 0 | AC104: =AA104*AB15 -> 0 | AF104: =AD104*AE15 -> 0 | AI104: =AG104*AH15 -> 0 | AL104: =AJ104*AK15 -> 0 | AO104: =AM104*AN15 -> 0 | AR104: =AP104*AQ15 -> 0 | AU104: =AS104*AT15 -> 0 | AX104: =AV104*AW15 -> 0 | BA104: =AY104*AZ15 -> 0 | BD104: =BB104*BC15 -> 0 | BG104: =BE104*BF15 -> 0 | BJ104: =BH104*BI15 -> 0 | BM104: =BK104*BL15 -> 0 | BP104: =BN104*BO15 -> 0 | BS104: =BQ104*BR15 -> 0 | BV104: =BT104*BU15 -> 0 | BY104: =BW104*BX15 -> 0 | CB104: =BZ104*CA15 -> 0 | CE104: =CC104*CD15 -> 0 | CH104: =CF104*CG15 -> 0 | CK104: =CI104*CJ15 -> 0 | CN104: =CL104*CM15 -> 0 | CQ104: =CO104*CP15 -> 0 | CT104: =CR104*CS15 -> 0 | CW104: =CU104*CV15 -> 0 | CZ104: =CX104*CY15 -> 0 | DC104: =DA104*DB15 -> 0 | DF104: =DD104*DE15 -> 0 | DI104: =DG104*DH15 -> 0 | DL104: =DJ104*DK15 -> 0 | DO104: =DM104*DN15 -> 0 | DR104: =DP104*DQ15 -> 0 | DU104: =DS104*DT15 -> 0 | DX104: =DV104*DW15 -> 0 | EA104: =DY104*DZ15 -> 0 | ED104: =EB104*EC15 -> 0 | EG104: =EE104*EF15 -> 0 | EJ104: =EH104*EI15 -> 0 | EM104: =EK104*EL15 -> 0 | EP104: =EN104*EO15 -> 0 | ES104: =EQ104*ER15 -> 0 | EV104: =ET104*EU15 -> 0 | EY104: =EW104*EX15 -> 0 | FB104: =EZ104*FA15 -> 0 | FE104: =FC104*FD15 -> 0 | FH104: =FF104*FG15 -> 0 | FK104: =FI104*FJ15 -> 0 | FN104: =FL104*FM15 -> 0 | FQ104: =FO104*FP15 -> 0 | FT104: =FR104*FS15 -> 0 | FW104: =FU104*FV15 -> 0 | FZ104: =FX104*FY15 -> 0 | GC104: =GA104*GB15 -> 0 | GF104: =GD104*GE15 -> 0 | GI104: =GG104*GH15 -> 0 | GL104: =GJ104*GK15 -> 0 | GO104: =GM104*GN15 -> 0 | GR104: =GP104*GQ15 -> 0 | GU104: =GS104*GT15 -> 0 | GX104: =GV104*GW15 -> 0 | HA104: =GY104*GZ15 -> 0 | HD104: =HB104*HC15 -> 0 | HG104: =HE104*HF15 -> 0 | HJ104: =HH104*HI15 -> 0 | HM104: =HK104*HL15 -> 0 | HP104: =HN104*HO15 -> 0 | HS104: =HQ104*HR15 -> 0 | HV104: =HT104*HU15 -> 0 | HY104: =HW104*HX15 -> 0 | IB104: =HZ104*IA15 -> 0 | IE104: =IC104*ID15 -> 0 | IH104: =IF104*IG15 -> 0
B105: 0 | E105: =C105*D15 -> 0 | H105: =F105*G15 -> 0 | K105: =I105*J15 -> 0 | N105: =L105*M15 -> 0 | Q105: =O105*P15 -> 0 | T105: =R105*S15 -> 0 | W105: =U105*V15 -> 0 | Z105: =X105*Y15 -> 0 | AC105: =AA105*AB15 -> 0 | AF105: =AD105*AE15 -> 0 | AI105: =AG105*AH15 -> 0 | AL105: =AJ105*AK15 -> 0 | AO105: =AM105*AN15 -> 0 | AR105: =AP105*AQ15 -> 0 | AU105: =AS105*AT15 -> 0 | AX105: =AV105*AW15 -> 0 | BA105: =AY105*AZ15 -> 0 | BD105: =BB105*BC15 -> 0 | BG105: =BE105*BF15 -> 0 | BJ105: =BH105*BI15 -> 0 | BM105: =BK105*BL15 -> 0 | BP105: =BN105*BO15 -> 0 | BS105: =BQ105*BR15 -> 0 | BV105: =BT105*BU15 -> 0 | BY105: =BW105*BX15 -> 0 | CB105: =BZ105*CA15 -> 0 | CE105: =CC105*CD15 -> 0 | CH105: =CF105*CG15 -> 0 | CK105: =CI105*CJ15 -> 0 | CN105: =CL105*CM15 -> 0 | CQ105: =CO105*CP15 -> 0 | CT105: =CR105*CS15 -> 0 | CW105: =CU105*CV15 -> 0 | CZ105: =CX105*CY15 -> 0 | DC105: =DA105*DB15 -> 0 | DF105: =DD105*DE15 -> 0 | DI105: =DG105*DH15 -> 0 | DL105: =DJ105*DK15 -> 0 | DO105: =DM105*DN15 -> 0 | DR105: =DP105*DQ15 -> 0 | DU105: =DS105*DT15 -> 0 | DX105: =DV105*DW15 -> 0 | EA105: =DY105*DZ15 -> 0 | ED105: =EB105*EC15 -> 0 | EG105: =EE105*EF15 -> 0 | EJ105: =EH105*EI15 -> 0 | EM105: =EK105*EL15 -> 0 | EP105: =EN105*EO15 -> 0 | ES105: =EQ105*ER15 -> 0 | EV105: =ET105*EU15 -> 0 | EY105: =EW105*EX15 -> 0 | FB105: =EZ105*FA15 -> 0 | FE105: =FC105*FD15 -> 0 | FH105: =FF105*FG15 -> 0 | FK105: =FI105*FJ15 -> 0 | FN105: =FL105*FM15 -> 0 | FQ105: =FO105*FP15 -> 0 | FT105: =FR105*FS15 -> 0 | FW105: =FU105*FV15 -> 0 | FZ105: =FX105*FY15 -> 0 | GC105: =GA105*GB15 -> 0 | GF105: =GD105*GE15 -> 0 | GI105: =GG105*GH15 -> 0 | GL105: =GJ105*GK15 -> 0 | GO105: =GM105*GN15 -> 0 | GR105: =GP105*GQ15 -> 0 | GU105: =GS105*GT15 -> 0 | GX105: =GV105*GW15 -> 0 | HA105: =GY105*GZ15 -> 0 | HD105: =HB105*HC15 -> 0 | HG105: =HE105*HF15 -> 0 | HJ105: =HH105*HI15 -> 0 | HM105: =HK105*HL15 -> 0 | HP105: =HN105*HO15 -> 0 | HS105: =HQ105*HR15 -> 0 | HV105: =HT105*HU15 -> 0 | HY105: =HW105*HX15 -> 0 | IB105: =HZ105*IA15 -> 0 | IE105: =IC105*ID15 -> 0 | IH105: =IF105*IG15 -> 0
B106: 0 | E106: =C106*D15 -> 0 | H106: =F106*G15 -> 0 | K106: =I106*J15 -> 0 | N106: =L106*M15 -> 0 | Q106: =O106*P15 -> 0 | T106: =R106*S15 -> 0 | W106: =U106*V15 -> 0 | Z106: =X106*Y15 -> 0 | AC106: =AA106*AB15 -> 0 | AF106: =AD106*AE15 -> 0 | AI106: =AG106*AH15 -> 0 | AL106: =AJ106*AK15 -> 0 | AO106: =AM106*AN15 -> 0 | AR106: =AP106*AQ15 -> 0 | AU106: =AS106*AT15 -> 0 | AX106: =AV106*AW15 -> 0 | BA106: =AY106*AZ15 -> 0 | BD106: =BB106*BC15 -> 0 | BG106: =BE106*BF15 -> 0 | BJ106: =BH106*BI15 -> 0 | BM106: =BK106*BL15 -> 0 | BP106: =BN106*BO15 -> 0 | BS106: =BQ106*BR15 -> 0 | BV106: =BT106*BU15 -> 0 | BY106: =BW106*BX15 -> 0 | CB106: =BZ106*CA15 -> 0 | CE106: =CC106*CD15 -> 0 | CH106: =CF106*CG15 -> 0 | CK106: =CI106*CJ15 -> 0 | CN106: =CL106*CM15 -> 0 | CQ106: =CO106*CP15 -> 0 | CT106: =CR106*CS15 -> 0 | CW106: =CU106*CV15 -> 0 | CZ106: =CX106*CY15 -> 0 | DC106: =DA106*DB15 -> 0 | DF106: =DD106*DE15 -> 0 | DI106: =DG106*DH15 -> 0 | DL106: =DJ106*DK15 -> 0 | DO106: =DM106*DN15 -> 0 | DR106: =DP106*DQ15 -> 0 | DU106: =DS106*DT15 -> 0 | DX106: =DV106*DW15 -> 0 | EA106: =DY106*DZ15 -> 0 | ED106: =EB106*EC15 -> 0 | EG106: =EE106*EF15 -> 0 | EJ106: =EH106*EI15 -> 0 | EM106: =EK106*EL15 -> 0 | EP106: =EN106*EO15 -> 0 | ES106: =EQ106*ER15 -> 0 | EV106: =ET106*EU15 -> 0 | EY106: =EW106*EX15 -> 0 | FB106: =EZ106*FA15 -> 0 | FE106: =FC106*FD15 -> 0 | FH106: =FF106*FG15 -> 0 | FK106: =FI106*FJ15 -> 0 | FN106: =FL106*FM15 -> 0 | FQ106: =FO106*FP15 -> 0 | FT106: =FR106*FS15 -> 0 | FW106: =FU106*FV15 -> 0 | FZ106: =FX106*FY15 -> 0 | GC106: =GA106*GB15 -> 0 | GF106: =GD106*GE15 -> 0 | GI106: =GG106*GH15 -> 0 | GL106: =GJ106*GK15 -> 0 | GO106: =GM106*GN15 -> 0 | GR106: =GP106*GQ15 -> 0 | GU106: =GS106*GT15 -> 0 | GX106: =GV106*GW15 -> 0 | HA106: =GY106*GZ15 -> 0 | HD106: =HB106*HC15 -> 0 | HG106: =HE106*HF15 -> 0 | HJ106: =HH106*HI15 -> 0 | HM106: =HK106*HL15 -> 0 | HP106: =HN106*HO15 -> 0 | HS106: =HQ106*HR15 -> 0 | HV106: =HT106*HU15 -> 0 | HY106: =HW106*HX15 -> 0 | IB106: =HZ106*IA15 -> 0 | IE106: =IC106*ID15 -> 0 | IH106: =IF106*IG15 -> 0
B107: 0 | E107: =C107*D15 -> 0 | H107: =F107*G15 -> 0 | K107: =I107*J15 -> 0 | N107: =L107*M15 -> 0 | Q107: =O107*P15 -> 0 | T107: =R107*S15 -> 0 | W107: =U107*V15 -> 0 | Z107: =X107*Y15 -> 0 | AC107: =AA107*AB15 -> 0 | AF107: =AD107*AE15 -> 0 | AI107: =AG107*AH15 -> 0 | AL107: =AJ107*AK15 -> 0 | AO107: =AM107*AN15 -> 0 | AR107: =AP107*AQ15 -> 0 | AU107: =AS107*AT15 -> 0 | AX107: =AV107*AW15 -> 0 | BA107: =AY107*AZ15 -> 0 | BD107: =BB107*BC15 -> 0 | BG107: =BE107*BF15 -> 0 | BJ107: =BH107*BI15 -> 0 | BM107: =BK107*BL15 -> 0 | BP107: =BN107*BO15 -> 0 | BS107: =BQ107*BR15 -> 0 | BV107: =BT107*BU15 -> 0 | BY107: =BW107*BX15 -> 0 | CB107: =BZ107*CA15 -> 0 | CE107: =CC107*CD15 -> 0 | CH107: =CF107*CG15 -> 0 | CK107: =CI107*CJ15 -> 0 | CN107: =CL107*CM15 -> 0 | CQ107: =CO107*CP15 -> 0 | CT107: =CR107*CS15 -> 0 | CW107: =CU107*CV15 -> 0 | CZ107: =CX107*CY15 -> 0 | DC107: =DA107*DB15 -> 0 | DF107: =DD107*DE15 -> 0 | DI107: =DG107*DH15 -> 0 | DL107: =DJ107*DK15 -> 0 | DO107: =DM107*DN15 -> 0 | DR107: =DP107*DQ15 -> 0 | DU107: =DS107*DT15 -> 0 | DX107: =DV107*DW15 -> 0 | EA107: =DY107*DZ15 -> 0 | ED107: =EB107*EC15 -> 0 | EG107: =EE107*EF15 -> 0 | EJ107: =EH107*EI15 -> 0 | EM107: =EK107*EL15 -> 0 | EP107: =EN107*EO15 -> 0 | ES107: =EQ107*ER15 -> 0 | EV107: =ET107*EU15 -> 0 | EY107: =EW107*EX15 -> 0 | FB107: =EZ107*FA15 -> 0 | FE107: =FC107*FD15 -> 0 | FH107: =FF107*FG15 -> 0 | FK107: =FI107*FJ15 -> 0 | FN107: =FL107*FM15 -> 0 | FQ107: =FO107*FP15 -> 0 | FT107: =FR107*FS15 -> 0 | FW107: =FU107*FV15 -> 0 | FZ107: =FX107*FY15 -> 0 | GC107: =GA107*GB15 -> 0 | GF107: =GD107*GE15 -> 0 | GI107: =GG107*GH15 -> 0 | GL107: =GJ107*GK15 -> 0 | GO107: =GM107*GN15 -> 0 | GR107: =GP107*GQ15 -> 0 | GU107: =GS107*GT15 -> 0 | GX107: =GV107*GW15 -> 0 | HA107: =GY107*GZ15 -> 0 | HD107: =HB107*HC15 -> 0 | HG107: =HE107*HF15 -> 0 | HJ107: =HH107*HI15 -> 0 | HM107: =HK107*HL15 -> 0 | HP107: =HN107*HO15 -> 0 | HS107: =HQ107*HR15 -> 0 | HV107: =HT107*HU15 -> 0 | HY107: =HW107*HX15 -> 0 | IB107: =HZ107*IA15 -> 0 | IE107: =IC107*ID15 -> 0 | IH107: =IF107*IG15 -> 0
B108: 0 | E108: =C108*D15 -> 0 | H108: =F108*G15 -> 0 | K108: =I108*J15 -> 0 | N108: =L108*M15 -> 0 | Q108: =O108*P15 -> 0 | T108: =R108*S15 -> 0 | W108: =U108*V15 -> 0 | Z108: =X108*Y15 -> 0 | AC108: =AA108*AB15 -> 0 | AF108: =AD108*AE15 -> 0 | AI108: =AG108*AH15 -> 0 | AL108: =AJ108*AK15 -> 0 | AO108: =AM108*AN15 -> 0 | AR108: =AP108*AQ15 -> 0 | AU108: =AS108*AT15 -> 0 | AX108: =AV108*AW15 -> 0 | BA108: =AY108*AZ15 -> 0 | BD108: =BB108*BC15 -> 0 | BG108: =BE108*BF15 -> 0 | BJ108: =BH108*BI15 -> 0 | BM108: =BK108*BL15 -> 0 | BP108: =BN108*BO15 -> 0 | BS108: =BQ108*BR15 -> 0 | BV108: =BT108*BU15 -> 0 | BY108: =BW108*BX15 -> 0 | CB108: =BZ108*CA15 -> 0 | CE108: =CC108*CD15 -> 0 | CH108: =CF108*CG15 -> 0 | CK108: =CI108*CJ15 -> 0 | CN108: =CL108*CM15 -> 0 | CQ108: =CO108*CP15 -> 0 | CT108: =CR108*CS15 -> 0 | CW108: =CU108*CV15 -> 0 | CZ108: =CX108*CY15 -> 0 | DC108: =DA108*DB15 -> 0 | DF108: =DD108*DE15 -> 0 | DI108: =DG108*DH15 -> 0 | DL108: =DJ108*DK15 -> 0 | DO108: =DM108*DN15 -> 0 | DR108: =DP108*DQ15 -> 0 | DU108: =DS108*DT15 -> 0 | DX108: =DV108*DW15 -> 0 | EA108: =DY108*DZ15 -> 0 | ED108: =EB108*EC15 -> 0 | EG108: =EE108*EF15 -> 0 | EJ108: =EH108*EI15 -> 0 | EM108: =EK108*EL15 -> 0 | EP108: =EN108*EO15 -> 0 | ES108: =EQ108*ER15 -> 0 | EV108: =ET108*EU15 -> 0 | EY108: =EW108*EX15 -> 0 | FB108: =EZ108*FA15 -> 0 | FE108: =FC108*FD15 -> 0 | FH108: =FF108*FG15 -> 0 | FK108: =FI108*FJ15 -> 0 | FN108: =FL108*FM15 -> 0 | FQ108: =FO108*FP15 -> 0 | FT108: =FR108*FS15 -> 0 | FW108: =FU108*FV15 -> 0 | FZ108: =FX108*FY15 -> 0 | GC108: =GA108*GB15 -> 0 | GF108: =GD108*GE15 -> 0 | GI108: =GG108*GH15 -> 0 | GL108: =GJ108*GK15 -> 0 | GO108: =GM108*GN15 -> 0 | GR108: =GP108*GQ15 -> 0 | GU108: =GS108*GT15 -> 0 | GX108: =GV108*GW15 -> 0 | HA108: =GY108*GZ15 -> 0 | HD108: =HB108*HC15 -> 0 | HG108: =HE108*HF15 -> 0 | HJ108: =HH108*HI15 -> 0 | HM108: =HK108*HL15 -> 0 | HP108: =HN108*HO15 -> 0 | HS108: =HQ108*HR15 -> 0 | HV108: =HT108*HU15 -> 0 | HY108: =HW108*HX15 -> 0 | IB108: =HZ108*IA15 -> 0 | IE108: =IC108*ID15 -> 0 | IH108: =IF108*IG15 -> 0
B109: 0 | E109: =C109*D15 -> 0 | H109: =F109*G15 -> 0 | K109: =I109*J15 -> 0 | N109: =L109*M15 -> 0 | Q109: =O109*P15 -> 0 | T109: =R109*S15 -> 0 | W109: =U109*V15 -> 0 | Z109: =X109*Y15 -> 0 | AC109: =AA109*AB15 -> 0 | AF109: =AD109*AE15 -> 0 | AI109: =AG109*AH15 -> 0 | AL109: =AJ109*AK15 -> 0 | AO109: =AM109*AN15 -> 0 | AR109: =AP109*AQ15 -> 0 | AU109: =AS109*AT15 -> 0 | AX109: =AV109*AW15 -> 0 | BA109: =AY109*AZ15 -> 0 | BD109: =BB109*BC15 -> 0 | BG109: =BE109*BF15 -> 0 | BJ109: =BH109*BI15 -> 0 | BM109: =BK109*BL15 -> 0 | BP109: =BN109*BO15 -> 0 | BS109: =BQ109*BR15 -> 0 | BV109: =BT109*BU15 -> 0 | BY109: =BW109*BX15 -> 0 | CB109: =BZ109*CA15 -> 0 | CE109: =CC109*CD15 -> 0 | CH109: =CF109*CG15 -> 0 | CK109: =CI109*CJ15 -> 0 | CN109: =CL109*CM15 -> 0 | CQ109: =CO109*CP15 -> 0 | CT109: =CR109*CS15 -> 0 | CW109: =CU109*CV15 -> 0 | CZ109: =CX109*CY15 -> 0 | DC109: =DA109*DB15 -> 0 | DF109: =DD109*DE15 -> 0 | DI109: =DG109*DH15 -> 0 | DL109: =DJ109*DK15 -> 0 | DO109: =DM109*DN15 -> 0 | DR109: =DP109*DQ15 -> 0 | DU109: =DS109*DT15 -> 0 | DX109: =DV109*DW15 -> 0 | EA109: =DY109*DZ15 -> 0 | ED109: =EB109*EC15 -> 0 | EG109: =EE109*EF15 -> 0 | EJ109: =EH109*EI15 -> 0 | EM109: =EK109*EL15 -> 0 | EP109: =EN109*EO15 -> 0 | ES109: =EQ109*ER15 -> 0 | EV109: =ET109*EU15 -> 0 | EY109: =EW109*EX15 -> 0 | FB109: =EZ109*FA15 -> 0 | FE109: =FC109*FD15 -> 0 | FH109: =FF109*FG15 -> 0 | FK109: =FI109*FJ15 -> 0 | FN109: =FL109*FM15 -> 0 | FQ109: =FO109*FP15 -> 0 | FT109: =FR109*FS15 -> 0 | FW109: =FU109*FV15 -> 0 | FZ109: =FX109*FY15 -> 0 | GC109: =GA109*GB15 -> 0 | GF109: =GD109*GE15 -> 0 | GI109: =GG109*GH15 -> 0 | GL109: =GJ109*GK15 -> 0 | GO109: =GM109*GN15 -> 0 | GR109: =GP109*GQ15 -> 0 | GU109: =GS109*GT15 -> 0 | GX109: =GV109*GW15 -> 0 | HA109: =GY109*GZ15 -> 0 | HD109: =HB109*HC15 -> 0 | HG109: =HE109*HF15 -> 0 | HJ109: =HH109*HI15 -> 0 | HM109: =HK109*HL15 -> 0 | HP109: =HN109*HO15 -> 0 | HS109: =HQ109*HR15 -> 0 | HV109: =HT109*HU15 -> 0 | HY109: =HW109*HX15 -> 0 | IB109: =HZ109*IA15 -> 0 | IE109: =IC109*ID15 -> 0 | IH109: =IF109*IG15 -> 0
B110: 0 | E110: =C110*D15 -> 0 | H110: =F110*G15 -> 0 | K110: =I110*J15 -> 0 | N110: =L110*M15 -> 0 | Q110: =O110*P15 -> 0 | T110: =R110*S15 -> 0 | W110: =U110*V15 -> 0 | Z110: =X110*Y15 -> 0 | AC110: =AA110*AB15 -> 0 | AF110: =AD110*AE15 -> 0 | AI110: =AG110*AH15 -> 0 | AL110: =AJ110*AK15 -> 0 | AO110: =AM110*AN15 -> 0 | AR110: =AP110*AQ15 -> 0 | AU110: =AS110*AT15 -> 0 | AX110: =AV110*AW15 -> 0 | BA110: =AY110*AZ15 -> 0 | BD110: =BB110*BC15 -> 0 | BG110: =BE110*BF15 -> 0 | BJ110: =BH110*BI15 -> 0 | BM110: =BK110*BL15 -> 0 | BP110: =BN110*BO15 -> 0 | BS110: =BQ110*BR15 -> 0 | BV110: =BT110*BU15 -> 0 | BY110: =BW110*BX15 -> 0 | CB110: =BZ110*CA15 -> 0 | CE110: =CC110*CD15 -> 0 | CH110: =CF110*CG15 -> 0 | CK110: =CI110*CJ15 -> 0 | CN110: =CL110*CM15 -> 0 | CQ110: =CO110*CP15 -> 0 | CT110: =CR110*CS15 -> 0 | CW110: =CU110*CV15 -> 0 | CZ110: =CX110*CY15 -> 0 | DC110: =DA110*DB15 -> 0 | DF110: =DD110*DE15 -> 0 | DI110: =DG110*DH15 -> 0 | DL110: =DJ110*DK15 -> 0 | DO110: =DM110*DN15 -> 0 | DR110: =DP110*DQ15 -> 0 | DU110: =DS110*DT15 -> 0 | DX110: =DV110*DW15 -> 0 | EA110: =DY110*DZ15 -> 0 | ED110: =EB110*EC15 -> 0 | EG110: =EE110*EF15 -> 0 | EJ110: =EH110*EI15 -> 0 | EM110: =EK110*EL15 -> 0 | EP110: =EN110*EO15 -> 0 | ES110: =EQ110*ER15 -> 0 | EV110: =ET110*EU15 -> 0 | EY110: =EW110*EX15 -> 0 | FB110: =EZ110*FA15 -> 0 | FE110: =FC110*FD15 -> 0 | FH110: =FF110*FG15 -> 0 | FK110: =FI110*FJ15 -> 0 | FN110: =FL110*FM15 -> 0 | FQ110: =FO110*FP15 -> 0 | FT110: =FR110*FS15 -> 0 | FW110: =FU110*FV15 -> 0 | FZ110: =FX110*FY15 -> 0 | GC110: =GA110*GB15 -> 0 | GF110: =GD110*GE15 -> 0 | GI110: =GG110*GH15 -> 0 | GL110: =GJ110*GK15 -> 0 | GO110: =GM110*GN15 -> 0 | GR110: =GP110*GQ15 -> 0 | GU110: =GS110*GT15 -> 0 | GX110: =GV110*GW15 -> 0 | HA110: =GY110*GZ15 -> 0 | HD110: =HB110*HC15 -> 0 | HG110: =HE110*HF15 -> 0 | HJ110: =HH110*HI15 -> 0 | HM110: =HK110*HL15 -> 0 | HP110: =HN110*HO15 -> 0 | HS110: =HQ110*HR15 -> 0 | HV110: =HT110*HU15 -> 0 | HY110: =HW110*HX15 -> 0 | IB110: =HZ110*IA15 -> 0 | IE110: =IC110*ID15 -> 0 | IH110: =IF110*IG15 -> 0
B111: 0 | E111: =C111*D15 -> 0 | H111: =F111*G15 -> 0 | K111: =I111*J15 -> 0 | N111: =L111*M15 -> 0 | Q111: =O111*P15 -> 0 | T111: =R111*S15 -> 0 | W111: =U111*V15 -> 0 | Z111: =X111*Y15 -> 0 | AC111: =AA111*AB15 -> 0 | AF111: =AD111*AE15 -> 0 | AI111: =AG111*AH15 -> 0 | AL111: =AJ111*AK15 -> 0 | AO111: =AM111*AN15 -> 0 | AR111: =AP111*AQ15 -> 0 | AU111: =AS111*AT15 -> 0 | AX111: =AV111*AW15 -> 0 | BA111: =AY111*AZ15 -> 0 | BD111: =BB111*BC15 -> 0 | BG111: =BE111*BF15 -> 0 | BJ111: =BH111*BI15 -> 0 | BM111: =BK111*BL15 -> 0 | BP111: =BN111*BO15 -> 0 | BS111: =BQ111*BR15 -> 0 | BV111: =BT111*BU15 -> 0 | BY111: =BW111*BX15 -> 0 | CB111: =BZ111*CA15 -> 0 | CE111: =CC111*CD15 -> 0 | CH111: =CF111*CG15 -> 0 | CK111: =CI111*CJ15 -> 0 | CN111: =CL111*CM15 -> 0 | CQ111: =CO111*CP15 -> 0 | CT111: =CR111*CS15 -> 0 | CW111: =CU111*CV15 -> 0 | CZ111: =CX111*CY15 -> 0 | DC111: =DA111*DB15 -> 0 | DF111: =DD111*DE15 -> 0 | DI111: =DG111*DH15 -> 0 | DL111: =DJ111*DK15 -> 0 | DO111: =DM111*DN15 -> 0 | DR111: =DP111*DQ15 -> 0 | DU111: =DS111*DT15 -> 0 | DX111: =DV111*DW15 -> 0 | EA111: =DY111*DZ15 -> 0 | ED111: =EB111*EC15 -> 0 | EG111: =EE111*EF15 -> 0 | EJ111: =EH111*EI15 -> 0 | EM111: =EK111*EL15 -> 0 | EP111: =EN111*EO15 -> 0 | ES111: =EQ111*ER15 -> 0 | EV111: =ET111*EU15 -> 0 | EY111: =EW111*EX15 -> 0 | FB111: =EZ111*FA15 -> 0 | FE111: =FC111*FD15 -> 0 | FH111: =FF111*FG15 -> 0 | FK111: =FI111*FJ15 -> 0 | FN111: =FL111*FM15 -> 0 | FQ111: =FO111*FP15 -> 0 | FT111: =FR111*FS15 -> 0 | FW111: =FU111*FV15 -> 0 | FZ111: =FX111*FY15 -> 0 | GC111: =GA111*GB15 -> 0 | GF111: =GD111*GE15 -> 0 | GI111: =GG111*GH15 -> 0 | GL111: =GJ111*GK15 -> 0 | GO111: =GM111*GN15 -> 0 | GR111: =GP111*GQ15 -> 0 | GU111: =GS111*GT15 -> 0 | GX111: =GV111*GW15 -> 0 | HA111: =GY111*GZ15 -> 0 | HD111: =HB111*HC15 -> 0 | HG111: =HE111*HF15 -> 0 | HJ111: =HH111*HI15 -> 0 | HM111: =HK111*HL15 -> 0 | HP111: =HN111*HO15 -> 0 | HS111: =HQ111*HR15 -> 0 | HV111: =HT111*HU15 -> 0 | HY111: =HW111*HX15 -> 0 | IB111: =HZ111*IA15 -> 0 | IE111: =IC111*ID15 -> 0 | IH111: =IF111*IG15 -> 0
B112: 0 | E112: =C112*D15 -> 0 | H112: =F112*G15 -> 0 | K112: =I112*J15 -> 0 | N112: =L112*M15 -> 0 | Q112: =O112*P15 -> 0 | T112: =R112*S15 -> 0 | W112: =U112*V15 -> 0 | Z112: =X112*Y15 -> 0 | AC112: =AA112*AB15 -> 0 | AF112: =AD112*AE15 -> 0 | AI112: =AG112*AH15 -> 0 | AL112: =AJ112*AK15 -> 0 | AO112: =AM112*AN15 -> 0 | AR112: =AP112*AQ15 -> 0 | AU112: =AS112*AT15 -> 0 | AX112: =AV112*AW15 -> 0 | BA112: =AY112*AZ15 -> 0 | BD112: =BB112*BC15 -> 0 | BG112: =BE112*BF15 -> 0 | BJ112: =BH112*BI15 -> 0 | BM112: =BK112*BL15 -> 0 | BP112: =BN112*BO15 -> 0 | BS112: =BQ112*BR15 -> 0 | BV112: =BT112*BU15 -> 0 | BY112: =BW112*BX15 -> 0 | CB112: =BZ112*CA15 -> 0 | CE112: =CC112*CD15 -> 0 | CH112: =CF112*CG15 -> 0 | CK112: =CI112*CJ15 -> 0 | CN112: =CL112*CM15 -> 0 | CQ112: =CO112*CP15 -> 0 | CT112: =CR112*CS15 -> 0 | CW112: =CU112*CV15 -> 0 | CZ112: =CX112*CY15 -> 0 | DC112: =DA112*DB15 -> 0 | DF112: =DD112*DE15 -> 0 | DI112: =DG112*DH15 -> 0 | DL112: =DJ112*DK15 -> 0 | DO112: =DM112*DN15 -> 0 | DR112: =DP112*DQ15 -> 0 | DU112: =DS112*DT15 -> 0 | DX112: =DV112*DW15 -> 0 | EA112: =DY112*DZ15 -> 0 | ED112: =EB112*EC15 -> 0 | EG112: =EE112*EF15 -> 0 | EJ112: =EH112*EI15 -> 0 | EM112: =EK112*EL15 -> 0 | EP112: =EN112*EO15 -> 0 | ES112: =EQ112*ER15 -> 0 | EV112: =ET112*EU15 -> 0 | EY112: =EW112*EX15 -> 0 | FB112: =EZ112*FA15 -> 0 | FE112: =FC112*FD15 -> 0 | FH112: =FF112*FG15 -> 0 | FK112: =FI112*FJ15 -> 0 | FN112: =FL112*FM15 -> 0 | FQ112: =FO112*FP15 -> 0 | FT112: =FR112*FS15 -> 0 | FW112: =FU112*FV15 -> 0 | FZ112: =FX112*FY15 -> 0 | GC112: =GA112*GB15 -> 0 | GF112: =GD112*GE15 -> 0 | GI112: =GG112*GH15 -> 0 | GL112: =GJ112*GK15 -> 0 | GO112: =GM112*GN15 -> 0 | GR112: =GP112*GQ15 -> 0 | GU112: =GS112*GT15 -> 0 | GX112: =GV112*GW15 -> 0 | HA112: =GY112*GZ15 -> 0 | HD112: =HB112*HC15 -> 0 | HG112: =HE112*HF15 -> 0 | HJ112: =HH112*HI15 -> 0 | HM112: =HK112*HL15 -> 0 | HP112: =HN112*HO15 -> 0 | HS112: =HQ112*HR15 -> 0 | HV112: =HT112*HU15 -> 0 | HY112: =HW112*HX15 -> 0 | IB112: =HZ112*IA15 -> 0 | IE112: =IC112*ID15 -> 0 | IH112: =IF112*IG15 -> 0
B113: 0 | E113: =C113*D15 -> 0 | H113: =F113*G15 -> 0 | K113: =I113*J15 -> 0 | N113: =L113*M15 -> 0 | Q113: =O113*P15 -> 0 | T113: =R113*S15 -> 0 | W113: =U113*V15 -> 0 | Z113: =X113*Y15 -> 0 | AC113: =AA113*AB15 -> 0 | AF113: =AD113*AE15 -> 0 | AI113: =AG113*AH15 -> 0 | AL113: =AJ113*AK15 -> 0 | AO113: =AM113*AN15 -> 0 | AR113: =AP113*AQ15 -> 0 | AU113: =AS113*AT15 -> 0 | AX113: =AV113*AW15 -> 0 | BA113: =AY113*AZ15 -> 0 | BD113: =BB113*BC15 -> 0 | BG113: =BE113*BF15 -> 0 | BJ113: =BH113*BI15 -> 0 | BM113: =BK113*BL15 -> 0 | BP113: =BN113*BO15 -> 0 | BS113: =BQ113*BR15 -> 0 | BV113: =BT113*BU15 -> 0 | BY113: =BW113*BX15 -> 0 | CB113: =BZ113*CA15 -> 0 | CE113: =CC113*CD15 -> 0 | CH113: =CF113*CG15 -> 0 | CK113: =CI113*CJ15 -> 0 | CN113: =CL113*CM15 -> 0 | CQ113: =CO113*CP15 -> 0 | CT113: =CR113*CS15 -> 0 | CW113: =CU113*CV15 -> 0 | CZ113: =CX113*CY15 -> 0 | DC113: =DA113*DB15 -> 0 | DF113: =DD113*DE15 -> 0 | DI113: =DG113*DH15 -> 0 | DL113: =DJ113*DK15 -> 0 | DO113: =DM113*DN15 -> 0 | DR113: =DP113*DQ15 -> 0 | DU113: =DS113*DT15 -> 0 | DX113: =DV113*DW15 -> 0 | EA113: =DY113*DZ15 -> 0 | ED113: =EB113*EC15 -> 0 | EG113: =EE113*EF15 -> 0 | EJ113: =EH113*EI15 -> 0 | EM113: =EK113*EL15 -> 0 | EP113: =EN113*EO15 -> 0 | ES113: =EQ113*ER15 -> 0 | EV113: =ET113*EU15 -> 0 | EY113: =EW113*EX15 -> 0 | FB113: =EZ113*FA15 -> 0 | FE113: =FC113*FD15 -> 0 | FH113: =FF113*FG15 -> 0 | FK113: =FI113*FJ15 -> 0 | FN113: =FL113*FM15 -> 0 | FQ113: =FO113*FP15 -> 0 | FT113: =FR113*FS15 -> 0 | FW113: =FU113*FV15 -> 0 | FZ113: =FX113*FY15 -> 0 | GC113: =GA113*GB15 -> 0 | GF113: =GD113*GE15 -> 0 | GI113: =GG113*GH15 -> 0 | GL113: =GJ113*GK15 -> 0 | GO113: =GM113*GN15 -> 0 | GR113: =GP113*GQ15 -> 0 | GU113: =GS113*GT15 -> 0 | GX113: =GV113*GW15 -> 0 | HA113: =GY113*GZ15 -> 0 | HD113: =HB113*HC15 -> 0 | HG113: =HE113*HF15 -> 0 | HJ113: =HH113*HI15 -> 0 | HM113: =HK113*HL15 -> 0 | HP113: =HN113*HO15 -> 0 | HS113: =HQ113*HR15 -> 0 | HV113: =HT113*HU15 -> 0 | HY113: =HW113*HX15 -> 0 | IB113: =HZ113*IA15 -> 0 | IE113: =IC113*ID15 -> 0 | IH113: =IF113*IG15 -> 0
B114: 0 | E114: =C114*D15 -> 0 | H114: =F114*G15 -> 0 | K114: =I114*J15 -> 0 | N114: =L114*M15 -> 0 | Q114: =O114*P15 -> 0 | T114: =R114*S15 -> 0 | W114: =U114*V15 -> 0 | Z114: =X114*Y15 -> 0 | AC114: =AA114*AB15 -> 0 | AF114: =AD114*AE15 -> 0 | AI114: =AG114*AH15 -> 0 | AL114: =AJ114*AK15 -> 0 | AO114: =AM114*AN15 -> 0 | AR114: =AP114*AQ15 -> 0 | AU114: =AS114*AT15 -> 0 | AX114: =AV114*AW15 -> 0 | BA114: =AY114*AZ15 -> 0 | BD114: =BB114*BC15 -> 0 | BG114: =BE114*BF15 -> 0 | BJ114: =BH114*BI15 -> 0 | BM114: =BK114*BL15 -> 0 | BP114: =BN114*BO15 -> 0 | BS114: =BQ114*BR15 -> 0 | BV114: =BT114*BU15 -> 0 | BY114: =BW114*BX15 -> 0 | CB114: =BZ114*CA15 -> 0 | CE114: =CC114*CD15 -> 0 | CH114: =CF114*CG15 -> 0 | CK114: =CI114*CJ15 -> 0 | CN114: =CL114*CM15 -> 0 | CQ114: =CO114*CP15 -> 0 | CT114: =CR114*CS15 -> 0 | CW114: =CU114*CV15 -> 0 | CZ114: =CX114*CY15 -> 0 | DC114: =DA114*DB15 -> 0 | DF114: =DD114*DE15 -> 0 | DI114: =DG114*DH15 -> 0 | DL114: =DJ114*DK15 -> 0 | DO114: =DM114*DN15 -> 0 | DR114: =DP114*DQ15 -> 0 | DU114: =DS114*DT15 -> 0 | DX114: =DV114*DW15 -> 0 | EA114: =DY114*DZ15 -> 0 | ED114: =EB114*EC15 -> 0 | EG114: =EE114*EF15 -> 0 | EJ114: =EH114*EI15 -> 0 | EM114: =EK114*EL15 -> 0 | EP114: =EN114*EO15 -> 0 | ES114: =EQ114*ER15 -> 0 | EV114: =ET114*EU15 -> 0 | EY114: =EW114*EX15 -> 0 | FB114: =EZ114*FA15 -> 0 | FE114: =FC114*FD15 -> 0 | FH114: =FF114*FG15 -> 0 | FK114: =FI114*FJ15 -> 0 | FN114: =FL114*FM15 -> 0 | FQ114: =FO114*FP15 -> 0 | FT114: =FR114*FS15 -> 0 | FW114: =FU114*FV15 -> 0 | FZ114: =FX114*FY15 -> 0 | GC114: =GA114*GB15 -> 0 | GF114: =GD114*GE15 -> 0 | GI114: =GG114*GH15 -> 0 | GL114: =GJ114*GK15 -> 0 | GO114: =GM114*GN15 -> 0 | GR114: =GP114*GQ15 -> 0 | GU114: =GS114*GT15 -> 0 | GX114: =GV114*GW15 -> 0 | HA114: =GY114*GZ15 -> 0 | HD114: =HB114*HC15 -> 0 | HG114: =HE114*HF15 -> 0 | HJ114: =HH114*HI15 -> 0 | HM114: =HK114*HL15 -> 0 | HP114: =HN114*HO15 -> 0 | HS114: =HQ114*HR15 -> 0 | HV114: =HT114*HU15 -> 0 | HY114: =HW114*HX15 -> 0 | IB114: =HZ114*IA15 -> 0 | IE114: =IC114*ID15 -> 0 | IH114: =IF114*IG15 -> 0
B115: 0 | E115: =C115*D15 -> 0 | H115: =F115*G15 -> 0 | K115: =I115*J15 -> 0 | N115: =L115*M15 -> 0 | Q115: =O115*P15 -> 0 | T115: =R115*S15 -> 0 | W115: =U115*V15 -> 0 | Z115: =X115*Y15 -> 0 | AC115: =AA115*AB15 -> 0 | AF115: =AD115*AE15 -> 0 | AI115: =AG115*AH15 -> 0 | AL115: =AJ115*AK15 -> 0 | AO115: =AM115*AN15 -> 0 | AR115: =AP115*AQ15 -> 0 | AU115: =AS115*AT15 -> 0 | AX115: =AV115*AW15 -> 0 | BA115: =AY115*AZ15 -> 0 | BD115: =BB115*BC15 -> 0 | BG115: =BE115*BF15 -> 0 | BJ115: =BH115*BI15 -> 0 | BM115: =BK115*BL15 -> 0 | BP115: =BN115*BO15 -> 0 | BS115: =BQ115*BR15 -> 0 | BV115: =BT115*BU15 -> 0 | BY115: =BW115*BX15 -> 0 | CB115: =BZ115*CA15 -> 0 | CE115: =CC115*CD15 -> 0 | CH115: =CF115*CG15 -> 0 | CK115: =CI115*CJ15 -> 0 | CN115: =CL115*CM15 -> 0 | CQ115: =CO115*CP15 -> 0 | CT115: =CR115*CS15 -> 0 | CW115: =CU115*CV15 -> 0 | CZ115: =CX115*CY15 -> 0 | DC115: =DA115*DB15 -> 0 | DF115: =DD115*DE15 -> 0 | DI115: =DG115*DH15 -> 0 | DL115: =DJ115*DK15 -> 0 | DO115: =DM115*DN15 -> 0 | DR115: =DP115*DQ15 -> 0 | DU115: =DS115*DT15 -> 0 | DX115: =DV115*DW15 -> 0 | EA115: =DY115*DZ15 -> 0 | ED115: =EB115*EC15 -> 0 | EG115: =EE115*EF15 -> 0 | EJ115: =EH115*EI15 -> 0 | EM115: =EK115*EL15 -> 0 | EP115: =EN115*EO15 -> 0 | ES115: =EQ115*ER15 -> 0 | EV115: =ET115*EU15 -> 0 | EY115: =EW115*EX15 -> 0 | FB115: =EZ115*FA15 -> 0 | FE115: =FC115*FD15 -> 0 | FH115: =FF115*FG15 -> 0 | FK115: =FI115*FJ15 -> 0 | FN115: =FL115*FM15 -> 0 | FQ115: =FO115*FP15 -> 0 | FT115: =FR115*FS15 -> 0 | FW115: =FU115*FV15 -> 0 | FZ115: =FX115*FY15 -> 0 | GC115: =GA115*GB15 -> 0 | GF115: =GD115*GE15 -> 0 | GI115: =GG115*GH15 -> 0 | GL115: =GJ115*GK15 -> 0 | GO115: =GM115*GN15 -> 0 | GR115: =GP115*GQ15 -> 0 | GU115: =GS115*GT15 -> 0 | GX115: =GV115*GW15 -> 0 | HA115: =GY115*GZ15 -> 0 | HD115: =HB115*HC15 -> 0 | HG115: =HE115*HF15 -> 0 | HJ115: =HH115*HI15 -> 0 | HM115: =HK115*HL15 -> 0 | HP115: =HN115*HO15 -> 0 | HS115: =HQ115*HR15 -> 0 | HV115: =HT115*HU15 -> 0 | HY115: =HW115*HX15 -> 0 | IB115: =HZ115*IA15 -> 0 | IE115: =IC115*ID15 -> 0 | IH115: =IF115*IG15 -> 0
B116: 0 | E116: =C116*D15 -> 0 | H116: =F116*G15 -> 0 | K116: =I116*J15 -> 0 | N116: =L116*M15 -> 0 | Q116: =O116*P15 -> 0 | T116: =R116*S15 -> 0 | W116: =U116*V15 -> 0 | Z116: =X116*Y15 -> 0 | AC116: =AA116*AB15 -> 0 | AF116: =AD116*AE15 -> 0 | AI116: =AG116*AH15 -> 0 | AL116: =AJ116*AK15 -> 0 | AO116: =AM116*AN15 -> 0 | AR116: =AP116*AQ15 -> 0 | AU116: =AS116*AT15 -> 0 | AX116: =AV116*AW15 -> 0 | BA116: =AY116*AZ15 -> 0 | BD116: =BB116*BC15 -> 0 | BG116: =BE116*BF15 -> 0 | BJ116: =BH116*BI15 -> 0 | BM116: =BK116*BL15 -> 0 | BP116: =BN116*BO15 -> 0 | BS116: =BQ116*BR15 -> 0 | BV116: =BT116*BU15 -> 0 | BY116: =BW116*BX15 -> 0 | CB116: =BZ116*CA15 -> 0 | CE116: =CC116*CD15 -> 0 | CH116: =CF116*CG15 -> 0 | CK116: =CI116*CJ15 -> 0 | CN116: =CL116*CM15 -> 0 | CQ116: =CO116*CP15 -> 0 | CT116: =CR116*CS15 -> 0 | CW116: =CU116*CV15 -> 0 | CZ116: =CX116*CY15 -> 0 | DC116: =DA116*DB15 -> 0 | DF116: =DD116*DE15 -> 0 | DI116: =DG116*DH15 -> 0 | DL116: =DJ116*DK15 -> 0 | DO116: =DM116*DN15 -> 0 | DR116: =DP116*DQ15 -> 0 | DU116: =DS116*DT15 -> 0 | DX116: =DV116*DW15 -> 0 | EA116: =DY116*DZ15 -> 0 | ED116: =EB116*EC15 -> 0 | EG116: =EE116*EF15 -> 0 | EJ116: =EH116*EI15 -> 0 | EM116: =EK116*EL15 -> 0 | EP116: =EN116*EO15 -> 0 | ES116: =EQ116*ER15 -> 0 | EV116: =ET116*EU15 -> 0 | EY116: =EW116*EX15 -> 0 | FB116: =EZ116*FA15 -> 0 | FE116: =FC116*FD15 -> 0 | FH116: =FF116*FG15 -> 0 | FK116: =FI116*FJ15 -> 0 | FN116: =FL116*FM15 -> 0 | FQ116: =FO116*FP15 -> 0 | FT116: =FR116*FS15 -> 0 | FW116: =FU116*FV15 -> 0 | FZ116: =FX116*FY15 -> 0 | GC116: =GA116*GB15 -> 0 | GF116: =GD116*GE15 -> 0 | GI116: =GG116*GH15 -> 0 | GL116: =GJ116*GK15 -> 0 | GO116: =GM116*GN15 -> 0 | GR116: =GP116*GQ15 -> 0 | GU116: =GS116*GT15 -> 0 | GX116: =GV116*GW15 -> 0 | HA116: =GY116*GZ15 -> 0 | HD116: =HB116*HC15 -> 0 | HG116: =HE116*HF15 -> 0 | HJ116: =HH116*HI15 -> 0 | HM116: =HK116*HL15 -> 0 | HP116: =HN116*HO15 -> 0 | HS116: =HQ116*HR15 -> 0 | HV116: =HT116*HU15 -> 0 | HY116: =HW116*HX15 -> 0 | IB116: =HZ116*IA15 -> 0 | IE116: =IC116*ID15 -> 0 | IH116: =IF116*IG15 -> 0
B117: 0 | E117: =C117*D15 -> 0 | H117: =F117*G15 -> 0 | K117: =I117*J15 -> 0 | N117: =L117*M15 -> 0 | Q117: =O117*P15 -> 0 | T117: =R117*S15 -> 0 | W117: =U117*V15 -> 0 | Z117: =X117*Y15 -> 0 | AC117: =AA117*AB15 -> 0 | AF117: =AD117*AE15 -> 0 | AI117: =AG117*AH15 -> 0 | AL117: =AJ117*AK15 -> 0 | AO117: =AM117*AN15 -> 0 | AR117: =AP117*AQ15 -> 0 | AU117: =AS117*AT15 -> 0 | AX117: =AV117*AW15 -> 0 | BA117: =AY117*AZ15 -> 0 | BD117: =BB117*BC15 -> 0 | BG117: =BE117*BF15 -> 0 | BJ117: =BH117*BI15 -> 0 | BM117: =BK117*BL15 -> 0 | BP117: =BN117*BO15 -> 0 | BS117: =BQ117*BR15 -> 0 | BV117: =BT117*BU15 -> 0 | BY117: =BW117*BX15 -> 0 | CB117: =BZ117*CA15 -> 0 | CE117: =CC117*CD15 -> 0 | CH117: =CF117*CG15 -> 0 | CK117: =CI117*CJ15 -> 0 | CN117: =CL117*CM15 -> 0 | CQ117: =CO117*CP15 -> 0 | CT117: =CR117*CS15 -> 0 | CW117: =CU117*CV15 -> 0 | CZ117: =CX117*CY15 -> 0 | DC117: =DA117*DB15 -> 0 | DF117: =DD117*DE15 -> 0 | DI117: =DG117*DH15 -> 0 | DL117: =DJ117*DK15 -> 0 | DO117: =DM117*DN15 -> 0 | DR117: =DP117*DQ15 -> 0 | DU117: =DS117*DT15 -> 0 | DX117: =DV117*DW15 -> 0 | EA117: =DY117*DZ15 -> 0 | ED117: =EB117*EC15 -> 0 | EG117: =EE117*EF15 -> 0 | EJ117: =EH117*EI15 -> 0 | EM117: =EK117*EL15 -> 0 | EP117: =EN117*EO15 -> 0 | ES117: =EQ117*ER15 -> 0 | EV117: =ET117*EU15 -> 0 | EY117: =EW117*EX15 -> 0 | FB117: =EZ117*FA15 -> 0 | FE117: =FC117*FD15 -> 0 | FH117: =FF117*FG15 -> 0 | FK117: =FI117*FJ15 -> 0 | FN117: =FL117*FM15 -> 0 | FQ117: =FO117*FP15 -> 0 | FT117: =FR117*FS15 -> 0 | FW117: =FU117*FV15 -> 0 | FZ117: =FX117*FY15 -> 0 | GC117: =GA117*GB15 -> 0 | GF117: =GD117*GE15 -> 0 | GI117: =GG117*GH15 -> 0 | GL117: =GJ117*GK15 -> 0 | GO117: =GM117*GN15 -> 0 | GR117: =GP117*GQ15 -> 0 | GU117: =GS117*GT15 -> 0 | GX117: =GV117*GW15 -> 0 | HA117: =GY117*GZ15 -> 0 | HD117: =HB117*HC15 -> 0 | HG117: =HE117*HF15 -> 0 | HJ117: =HH117*HI15 -> 0 | HM117: =HK117*HL15 -> 0 | HP117: =HN117*HO15 -> 0 | HS117: =HQ117*HR15 -> 0 | HV117: =HT117*HU15 -> 0 | HY117: =HW117*HX15 -> 0 | IB117: =HZ117*IA15 -> 0 | IE117: =IC117*ID15 -> 0 | IH117: =IF117*IG15 -> 0
B118: 0 | E118: =C118*D15 -> 0 | H118: =F118*G15 -> 0 | K118: =I118*J15 -> 0 | N118: =L118*M15 -> 0 | Q118: =O118*P15 -> 0 | T118: =R118*S15 -> 0 | W118: =U118*V15 -> 0 | Z118: =X118*Y15 -> 0 | AC118: =AA118*AB15 -> 0 | AF118: =AD118*AE15 -> 0 | AI118: =AG118*AH15 -> 0 | AL118: =AJ118*AK15 -> 0 | AO118: =AM118*AN15 -> 0 | AR118: =AP118*AQ15 -> 0 | AU118: =AS118*AT15 -> 0 | AX118: =AV118*AW15 -> 0 | BA118: =AY118*AZ15 -> 0 | BD118: =BB118*BC15 -> 0 | BG118: =BE118*BF15 -> 0 | BJ118: =BH118*BI15 -> 0 | BM118: =BK118*BL15 -> 0 | BP118: =BN118*BO15 -> 0 | BS118: =BQ118*BR15 -> 0 | BV118: =BT118*BU15 -> 0 | BY118: =BW118*BX15 -> 0 | CB118: =BZ118*CA15 -> 0 | CE118: =CC118*CD15 -> 0 | CH118: =CF118*CG15 -> 0 | CK118: =CI118*CJ15 -> 0 | CN118: =CL118*CM15 -> 0 | CQ118: =CO118*CP15 -> 0 | CT118: =CR118*CS15 -> 0 | CW118: =CU118*CV15 -> 0 | CZ118: =CX118*CY15 -> 0 | DC118: =DA118*DB15 -> 0 | DF118: =DD118*DE15 -> 0 | DI118: =DG118*DH15 -> 0 | DL118: =DJ118*DK15 -> 0 | DO118: =DM118*DN15 -> 0 | DR118: =DP118*DQ15 -> 0 | DU118: =DS118*DT15 -> 0 | DX118: =DV118*DW15 -> 0 | EA118: =DY118*DZ15 -> 0 | ED118: =EB118*EC15 -> 0 | EG118: =EE118*EF15 -> 0 | EJ118: =EH118*EI15 -> 0 | EM118: =EK118*EL15 -> 0 | EP118: =EN118*EO15 -> 0 | ES118: =EQ118*ER15 -> 0 | EV118: =ET118*EU15 -> 0 | EY118: =EW118*EX15 -> 0 | FB118: =EZ118*FA15 -> 0 | FE118: =FC118*FD15 -> 0 | FH118: =FF118*FG15 -> 0 | FK118: =FI118*FJ15 -> 0 | FN118: =FL118*FM15 -> 0 | FQ118: =FO118*FP15 -> 0 | FT118: =FR118*FS15 -> 0 | FW118: =FU118*FV15 -> 0 | FZ118: =FX118*FY15 -> 0 | GC118: =GA118*GB15 -> 0 | GF118: =GD118*GE15 -> 0 | GI118: =GG118*GH15 -> 0 | GL118: =GJ118*GK15 -> 0 | GO118: =GM118*GN15 -> 0 | GR118: =GP118*GQ15 -> 0 | GU118: =GS118*GT15 -> 0 | GX118: =GV118*GW15 -> 0 | HA118: =GY118*GZ15 -> 0 | HD118: =HB118*HC15 -> 0 | HG118: =HE118*HF15 -> 0 | HJ118: =HH118*HI15 -> 0 | HM118: =HK118*HL15 -> 0 | HP118: =HN118*HO15 -> 0 | HS118: =HQ118*HR15 -> 0 | HV118: =HT118*HU15 -> 0 | HY118: =HW118*HX15 -> 0 | IB118: =HZ118*IA15 -> 0 | IE118: =IC118*ID15 -> 0 | IH118: =IF118*IG15 -> 0
B119: 0 | E119: =C119*D15 -> 0 | H119: =F119*G15 -> 0 | K119: =I119*J15 -> 0 | N119: =L119*M15 -> 0 | Q119: =O119*P15 -> 0 | T119: =R119*S15 -> 0 | W119: =U119*V15 -> 0 | Z119: =X119*Y15 -> 0 | AC119: =AA119*AB15 -> 0 | AF119: =AD119*AE15 -> 0 | AI119: =AG119*AH15 -> 0 | AL119: =AJ119*AK15 -> 0 | AO119: =AM119*AN15 -> 0 | AR119: =AP119*AQ15 -> 0 | AU119: =AS119*AT15 -> 0 | AX119: =AV119*AW15 -> 0 | BA119: =AY119*AZ15 -> 0 | BD119: =BB119*BC15 -> 0 | BG119: =BE119*BF15 -> 0 | BJ119: =BH119*BI15 -> 0 | BM119: =BK119*BL15 -> 0 | BP119: =BN119*BO15 -> 0 | BS119: =BQ119*BR15 -> 0 | BV119: =BT119*BU15 -> 0 | BY119: =BW119*BX15 -> 0 | CB119: =BZ119*CA15 -> 0 | CE119: =CC119*CD15 -> 0 | CH119: =CF119*CG15 -> 0 | CK119: =CI119*CJ15 -> 0 | CN119: =CL119*CM15 -> 0 | CQ119: =CO119*CP15 -> 0 | CT119: =CR119*CS15 -> 0 | CW119: =CU119*CV15 -> 0 | CZ119: =CX119*CY15 -> 0 | DC119: =DA119*DB15 -> 0 | DF119: =DD119*DE15 -> 0 | DI119: =DG119*DH15 -> 0 | DL119: =DJ119*DK15 -> 0 | DO119: =DM119*DN15 -> 0 | DR119: =DP119*DQ15 -> 0 | DU119: =DS119*DT15 -> 0 | DX119: =DV119*DW15 -> 0 | EA119: =DY119*DZ15 -> 0 | ED119: =EB119*EC15 -> 0 | EG119: =EE119*EF15 -> 0 | EJ119: =EH119*EI15 -> 0 | EM119: =EK119*EL15 -> 0 | EP119: =EN119*EO15 -> 0 | ES119: =EQ119*ER15 -> 0 | EV119: =ET119*EU15 -> 0 | EY119: =EW119*EX15 -> 0 | FB119: =EZ119*FA15 -> 0 | FE119: =FC119*FD15 -> 0 | FH119: =FF119*FG15 -> 0 | FK119: =FI119*FJ15 -> 0 | FN119: =FL119*FM15 -> 0 | FQ119: =FO119*FP15 -> 0 | FT119: =FR119*FS15 -> 0 | FW119: =FU119*FV15 -> 0 | FZ119: =FX119*FY15 -> 0 | GC119: =GA119*GB15 -> 0 | GF119: =GD119*GE15 -> 0 | GI119: =GG119*GH15 -> 0 | GL119: =GJ119*GK15 -> 0 | GO119: =GM119*GN15 -> 0 | GR119: =GP119*GQ15 -> 0 | GU119: =GS119*GT15 -> 0 | GX119: =GV119*GW15 -> 0 | HA119: =GY119*GZ15 -> 0 | HD119: =HB119*HC15 -> 0 | HG119: =HE119*HF15 -> 0 | HJ119: =HH119*HI15 -> 0 | HM119: =HK119*HL15 -> 0 | HP119: =HN119*HO15 -> 0 | HS119: =HQ119*HR15 -> 0 | HV119: =HT119*HU15 -> 0 | HY119: =HW119*HX15 -> 0 | IB119: =HZ119*IA15 -> 0 | IE119: =IC119*ID15 -> 0 | IH119: =IF119*IG15 -> 0
B120: 0 | E120: =C120*D15 -> 0 | H120: =F120*G15 -> 0 | K120: =I120*J15 -> 0 | N120: =L120*M15 -> 0 | Q120: =O120*P15 -> 0 | T120: =R120*S15 -> 0 | W120: =U120*V15 -> 0 | Z120: =X120*Y15 -> 0 | AC120: =AA120*AB15 -> 0 | AF120: =AD120*AE15 -> 0 | AI120: =AG120*AH15 -> 0 | AL120: =AJ120*AK15 -> 0 | AO120: =AM120*AN15 -> 0 | AR120: =AP120*AQ15 -> 0 | AU120: =AS120*AT15 -> 0 | AX120: =AV120*AW15 -> 0 | BA120: =AY120*AZ15 -> 0 | BD120: =BB120*BC15 -> 0 | BG120: =BE120*BF15 -> 0 | BJ120: =BH120*BI15 -> 0 | BM120: =BK120*BL15 -> 0 | BP120: =BN120*BO15 -> 0 | BS120: =BQ120*BR15 -> 0 | BV120: =BT120*BU15 -> 0 | BY120: =BW120*BX15 -> 0 | CB120: =BZ120*CA15 -> 0 | CE120: =CC120*CD15 -> 0 | CH120: =CF120*CG15 -> 0 | CK120: =CI120*CJ15 -> 0 | CN120: =CL120*CM15 -> 0 | CQ120: =CO120*CP15 -> 0 | CT120: =CR120*CS15 -> 0 | CW120: =CU120*CV15 -> 0 | CZ120: =CX120*CY15 -> 0 | DC120: =DA120*DB15 -> 0 | DF120: =DD120*DE15 -> 0 | DI120: =DG120*DH15 -> 0 | DL120: =DJ120*DK15 -> 0 | DO120: =DM120*DN15 -> 0 | DR120: =DP120*DQ15 -> 0 | DU120: =DS120*DT15 -> 0 | DX120: =DV120*DW15 -> 0 | EA120: =DY120*DZ15 -> 0 | ED120: =EB120*EC15 -> 0 | EG120: =EE120*EF15 -> 0 | EJ120: =EH120*EI15 -> 0 | EM120: =EK120*EL15 -> 0 | EP120: =EN120*EO15 -> 0 | ES120: =EQ120*ER15 -> 0 | EV120: =ET120*EU15 -> 0 | EY120: =EW120*EX15 -> 0 | FB120: =EZ120*FA15 -> 0 | FE120: =FC120*FD15 -> 0 | FH120: =FF120*FG15 -> 0 | FK120: =FI120*FJ15 -> 0 | FN120: =FL120*FM15 -> 0 | FQ120: =FO120*FP15 -> 0 | FT120: =FR120*FS15 -> 0 | FW120: =FU120*FV15 -> 0 | FZ120: =FX120*FY15 -> 0 | GC120: =GA120*GB15 -> 0 | GF120: =GD120*GE15 -> 0 | GI120: =GG120*GH15 -> 0 | GL120: =GJ120*GK15 -> 0 | GO120: =GM120*GN15 -> 0 | GR120: =GP120*GQ15 -> 0 | GU120: =GS120*GT15 -> 0 | GX120: =GV120*GW15 -> 0 | HA120: =GY120*GZ15 -> 0 | HD120: =HB120*HC15 -> 0 | HG120: =HE120*HF15 -> 0 | HJ120: =HH120*HI15 -> 0 | HM120: =HK120*HL15 -> 0 | HP120: =HN120*HO15 -> 0 | HS120: =HQ120*HR15 -> 0 | HV120: =HT120*HU15 -> 0 | HY120: =HW120*HX15 -> 0 | IB120: =HZ120*IA15 -> 0 | IE120: =IC120*ID15 -> 0 | IH120: =IF120*IG15 -> 0
B121: 0 | E121: =C121*D15 -> 0 | H121: =F121*G15 -> 0 | K121: =I121*J15 -> 0 | N121: =L121*M15 -> 0 | Q121: =O121*P15 -> 0 | T121: =R121*S15 -> 0 | W121: =U121*V15 -> 0 | Z121: =X121*Y15 -> 0 | AC121: =AA121*AB15 -> 0 | AF121: =AD121*AE15 -> 0 | AI121: =AG121*AH15 -> 0 | AL121: =AJ121*AK15 -> 0 | AO121: =AM121*AN15 -> 0 | AR121: =AP121*AQ15 -> 0 | AU121: =AS121*AT15 -> 0 | AX121: =AV121*AW15 -> 0 | BA121: =AY121*AZ15 -> 0 | BD121: =BB121*BC15 -> 0 | BG121: =BE121*BF15 -> 0 | BJ121: =BH121*BI15 -> 0 | BM121: =BK121*BL15 -> 0 | BP121: =BN121*BO15 -> 0 | BS121: =BQ121*BR15 -> 0 | BV121: =BT121*BU15 -> 0 | BY121: =BW121*BX15 -> 0 | CB121: =BZ121*CA15 -> 0 | CE121: =CC121*CD15 -> 0 | CH121: =CF121*CG15 -> 0 | CK121: =CI121*CJ15 -> 0 | CN121: =CL121*CM15 -> 0 | CQ121: =CO121*CP15 -> 0 | CT121: =CR121*CS15 -> 0 | CW121: =CU121*CV15 -> 0 | CZ121: =CX121*CY15 -> 0 | DC121: =DA121*DB15 -> 0 | DF121: =DD121*DE15 -> 0 | DI121: =DG121*DH15 -> 0 | DL121: =DJ121*DK15 -> 0 | DO121: =DM121*DN15 -> 0 | DR121: =DP121*DQ15 -> 0 | DU121: =DS121*DT15 -> 0 | DX121: =DV121*DW15 -> 0 | EA121: =DY121*DZ15 -> 0 | ED121: =EB121*EC15 -> 0 | EG121: =EE121*EF15 -> 0 | EJ121: =EH121*EI15 -> 0 | EM121: =EK121*EL15 -> 0 | EP121: =EN121*EO15 -> 0 | ES121: =EQ121*ER15 -> 0 | EV121: =ET121*EU15 -> 0 | EY121: =EW121*EX15 -> 0 | FB121: =EZ121*FA15 -> 0 | FE121: =FC121*FD15 -> 0 | FH121: =FF121*FG15 -> 0 | FK121: =FI121*FJ15 -> 0 | FN121: =FL121*FM15 -> 0 | FQ121: =FO121*FP15 -> 0 | FT121: =FR121*FS15 -> 0 | FW121: =FU121*FV15 -> 0 | FZ121: =FX121*FY15 -> 0 | GC121: =GA121*GB15 -> 0 | GF121: =GD121*GE15 -> 0 | GI121: =GG121*GH15 -> 0 | GL121: =GJ121*GK15 -> 0 | GO121: =GM121*GN15 -> 0 | GR121: =GP121*GQ15 -> 0 | GU121: =GS121*GT15 -> 0 | GX121: =GV121*GW15 -> 0 | HA121: =GY121*GZ15 -> 0 | HD121: =HB121*HC15 -> 0 | HG121: =HE121*HF15 -> 0 | HJ121: =HH121*HI15 -> 0 | HM121: =HK121*HL15 -> 0 | HP121: =HN121*HO15 -> 0 | HS121: =HQ121*HR15 -> 0 | HV121: =HT121*HU15 -> 0 | HY121: =HW121*HX15 -> 0 | IB121: =HZ121*IA15 -> 0 | IE121: =IC121*ID15 -> 0 | IH121: =IF121*IG15 -> 0
B122: 0 | E122: =C122*D15 -> 0 | H122: =F122*G15 -> 0 | K122: =I122*J15 -> 0 | N122: =L122*M15 -> 0 | Q122: =O122*P15 -> 0 | T122: =R122*S15 -> 0 | W122: =U122*V15 -> 0 | Z122: =X122*Y15 -> 0 | AC122: =AA122*AB15 -> 0 | AF122: =AD122*AE15 -> 0 | AI122: =AG122*AH15 -> 0 | AL122: =AJ122*AK15 -> 0 | AO122: =AM122*AN15 -> 0 | AR122: =AP122*AQ15 -> 0 | AU122: =AS122*AT15 -> 0 | AX122: =AV122*AW15 -> 0 | BA122: =AY122*AZ15 -> 0 | BD122: =BB122*BC15 -> 0 | BG122: =BE122*BF15 -> 0 | BJ122: =BH122*BI15 -> 0 | BM122: =BK122*BL15 -> 0 | BP122: =BN122*BO15 -> 0 | BS122: =BQ122*BR15 -> 0 | BV122: =BT122*BU15 -> 0 | BY122: =BW122*BX15 -> 0 | CB122: =BZ122*CA15 -> 0 | CE122: =CC122*CD15 -> 0 | CH122: =CF122*CG15 -> 0 | CK122: =CI122*CJ15 -> 0 | CN122: =CL122*CM15 -> 0 | CQ122: =CO122*CP15 -> 0 | CT122: =CR122*CS15 -> 0 | CW122: =CU122*CV15 -> 0 | CZ122: =CX122*CY15 -> 0 | DC122: =DA122*DB15 -> 0 | DF122: =DD122*DE15 -> 0 | DI122: =DG122*DH15 -> 0 | DL122: =DJ122*DK15 -> 0 | DO122: =DM122*DN15 -> 0 | DR122: =DP122*DQ15 -> 0 | DU122: =DS122*DT15 -> 0 | DX122: =DV122*DW15 -> 0 | EA122: =DY122*DZ15 -> 0 | ED122: =EB122*EC15 -> 0 | EG122: =EE122*EF15 -> 0 | EJ122: =EH122*EI15 -> 0 | EM122: =EK122*EL15 -> 0 | EP122: =EN122*EO15 -> 0 | ES122: =EQ122*ER15 -> 0 | EV122: =ET122*EU15 -> 0 | EY122: =EW122*EX15 -> 0 | FB122: =EZ122*FA15 -> 0 | FE122: =FC122*FD15 -> 0 | FH122: =FF122*FG15 -> 0 | FK122: =FI122*FJ15 -> 0 | FN122: =FL122*FM15 -> 0 | FQ122: =FO122*FP15 -> 0 | FT122: =FR122*FS15 -> 0 | FW122: =FU122*FV15 -> 0 | FZ122: =FX122*FY15 -> 0 | GC122: =GA122*GB15 -> 0 | GF122: =GD122*GE15 -> 0 | GI122: =GG122*GH15 -> 0 | GL122: =GJ122*GK15 -> 0 | GO122: =GM122*GN15 -> 0 | GR122: =GP122*GQ15 -> 0 | GU122: =GS122*GT15 -> 0 | GX122: =GV122*GW15 -> 0 | HA122: =GY122*GZ15 -> 0 | HD122: =HB122*HC15 -> 0 | HG122: =HE122*HF15 -> 0 | HJ122: =HH122*HI15 -> 0 | HM122: =HK122*HL15 -> 0 | HP122: =HN122*HO15 -> 0 | HS122: =HQ122*HR15 -> 0 | HV122: =HT122*HU15 -> 0 | HY122: =HW122*HX15 -> 0 | IB122: =HZ122*IA15 -> 0 | IE122: =IC122*ID15 -> 0 | IH122: =IF122*IG15 -> 0
B123: 0 | E123: =C123*D15 -> 0 | H123: =F123*G15 -> 0 | K123: =I123*J15 -> 0 | N123: =L123*M15 -> 0 | Q123: =O123*P15 -> 0 | T123: =R123*S15 -> 0 | W123: =U123*V15 -> 0 | Z123: =X123*Y15 -> 0 | AC123: =AA123*AB15 -> 0 | AF123: =AD123*AE15 -> 0 | AI123: =AG123*AH15 -> 0 | AL123: =AJ123*AK15 -> 0 | AO123: =AM123*AN15 -> 0 | AR123: =AP123*AQ15 -> 0 | AU123: =AS123*AT15 -> 0 | AX123: =AV123*AW15 -> 0 | BA123: =AY123*AZ15 -> 0 | BD123: =BB123*BC15 -> 0 | BG123: =BE123*BF15 -> 0 | BJ123: =BH123*BI15 -> 0 | BM123: =BK123*BL15 -> 0 | BP123: =BN123*BO15 -> 0 | BS123: =BQ123*BR15 -> 0 | BV123: =BT123*BU15 -> 0 | BY123: =BW123*BX15 -> 0 | CB123: =BZ123*CA15 -> 0 | CE123: =CC123*CD15 -> 0 | CH123: =CF123*CG15 -> 0 | CK123: =CI123*CJ15 -> 0 | CN123: =CL123*CM15 -> 0 | CQ123: =CO123*CP15 -> 0 | CT123: =CR123*CS15 -> 0 | CW123: =CU123*CV15 -> 0 | CZ123: =CX123*CY15 -> 0 | DC123: =DA123*DB15 -> 0 | DF123: =DD123*DE15 -> 0 | DI123: =DG123*DH15 -> 0 | DL123: =DJ123*DK15 -> 0 | DO123: =DM123*DN15 -> 0 | DR123: =DP123*DQ15 -> 0 | DU123: =DS123*DT15 -> 0 | DX123: =DV123*DW15 -> 0 | EA123: =DY123*DZ15 -> 0 | ED123: =EB123*EC15 -> 0 | EG123: =EE123*EF15 -> 0 | EJ123: =EH123*EI15 -> 0 | EM123: =EK123*EL15 -> 0 | EP123: =EN123*EO15 -> 0 | ES123: =EQ123*ER15 -> 0 | EV123: =ET123*EU15 -> 0 | EY123: =EW123*EX15 -> 0 | FB123: =EZ123*FA15 -> 0 | FE123: =FC123*FD15 -> 0 | FH123: =FF123*FG15 -> 0 | FK123: =FI123*FJ15 -> 0 | FN123: =FL123*FM15 -> 0 | FQ123: =FO123*FP15 -> 0 | FT123: =FR123*FS15 -> 0 | FW123: =FU123*FV15 -> 0 | FZ123: =FX123*FY15 -> 0 | GC123: =GA123*GB15 -> 0 | GF123: =GD123*GE15 -> 0 | GI123: =GG123*GH15 -> 0 | GL123: =GJ123*GK15 -> 0 | GO123: =GM123*GN15 -> 0 | GR123: =GP123*GQ15 -> 0 | GU123: =GS123*GT15 -> 0 | GX123: =GV123*GW15 -> 0 | HA123: =GY123*GZ15 -> 0 | HD123: =HB123*HC15 -> 0 | HG123: =HE123*HF15 -> 0 | HJ123: =HH123*HI15 -> 0 | HM123: =HK123*HL15 -> 0 | HP123: =HN123*HO15 -> 0 | HS123: =HQ123*HR15 -> 0 | HV123: =HT123*HU15 -> 0 | HY123: =HW123*HX15 -> 0 | IB123: =HZ123*IA15 -> 0 | IE123: =IC123*ID15 -> 0 | IH123: =IF123*IG15 -> 0
B124: 0 | E124: =C124*D15 -> 0 | H124: =F124*G15 -> 0 | K124: =I124*J15 -> 0 | N124: =L124*M15 -> 0 | Q124: =O124*P15 -> 0 | T124: =R124*S15 -> 0 | W124: =U124*V15 -> 0 | Z124: =X124*Y15 -> 0 | AC124: =AA124*AB15 -> 0 | AF124: =AD124*AE15 -> 0 | AI124: =AG124*AH15 -> 0 | AL124: =AJ124*AK15 -> 0 | AO124: =AM124*AN15 -> 0 | AR124: =AP124*AQ15 -> 0 | AU124: =AS124*AT15 -> 0 | AX124: =AV124*AW15 -> 0 | BA124: =AY124*AZ15 -> 0 | BD124: =BB124*BC15 -> 0 | BG124: =BE124*BF15 -> 0 | BJ124: =BH124*BI15 -> 0 | BM124: =BK124*BL15 -> 0 | BP124: =BN124*BO15 -> 0 | BS124: =BQ124*BR15 -> 0 | BV124: =BT124*BU15 -> 0 | BY124: =BW124*BX15 -> 0 | CB124: =BZ124*CA15 -> 0 | CE124: =CC124*CD15 -> 0 | CH124: =CF124*CG15 -> 0 | CK124: =CI124*CJ15 -> 0 | CN124: =CL124*CM15 -> 0 | CQ124: =CO124*CP15 -> 0 | CT124: =CR124*CS15 -> 0 | CW124: =CU124*CV15 -> 0 | CZ124: =CX124*CY15 -> 0 | DC124: =DA124*DB15 -> 0 | DF124: =DD124*DE15 -> 0 | DI124: =DG124*DH15 -> 0 | DL124: =DJ124*DK15 -> 0 | DO124: =DM124*DN15 -> 0 | DR124: =DP124*DQ15 -> 0 | DU124: =DS124*DT15 -> 0 | DX124: =DV124*DW15 -> 0 | EA124: =DY124*DZ15 -> 0 | ED124: =EB124*EC15 -> 0 | EG124: =EE124*EF15 -> 0 | EJ124: =EH124*EI15 -> 0 | EM124: =EK124*EL15 -> 0 | EP124: =EN124*EO15 -> 0 | ES124: =EQ124*ER15 -> 0 | EV124: =ET124*EU15 -> 0 | EY124: =EW124*EX15 -> 0 | FB124: =EZ124*FA15 -> 0 | FE124: =FC124*FD15 -> 0 | FH124: =FF124*FG15 -> 0 | FK124: =FI124*FJ15 -> 0 | FN124: =FL124*FM15 -> 0 | FQ124: =FO124*FP15 -> 0 | FT124: =FR124*FS15 -> 0 | FW124: =FU124*FV15 -> 0 | FZ124: =FX124*FY15 -> 0 | GC124: =GA124*GB15 -> 0 | GF124: =GD124*GE15 -> 0 | GI124: =GG124*GH15 -> 0 | GL124: =GJ124*GK15 -> 0 | GO124: =GM124*GN15 -> 0 | GR124: =GP124*GQ15 -> 0 | GU124: =GS124*GT15 -> 0 | GX124: =GV124*GW15 -> 0 | HA124: =GY124*GZ15 -> 0 | HD124: =HB124*HC15 -> 0 | HG124: =HE124*HF15 -> 0 | HJ124: =HH124*HI15 -> 0 | HM124: =HK124*HL15 -> 0 | HP124: =HN124*HO15 -> 0 | HS124: =HQ124*HR15 -> 0 | HV124: =HT124*HU15 -> 0 | HY124: =HW124*HX15 -> 0 | IB124: =HZ124*IA15 -> 0 | IE124: =IC124*ID15 -> 0 | IH124: =IF124*IG15 -> 0
B125: 0 | E125: =C125*D15 -> 0 | H125: =F125*G15 -> 0 | K125: =I125*J15 -> 0 | N125: =L125*M15 -> 0 | Q125: =O125*P15 -> 0 | T125: =R125*S15 -> 0 | W125: =U125*V15 -> 0 | Z125: =X125*Y15 -> 0 | AC125: =AA125*AB15 -> 0 | AF125: =AD125*AE15 -> 0 | AI125: =AG125*AH15 -> 0 | AL125: =AJ125*AK15 -> 0 | AO125: =AM125*AN15 -> 0 | AR125: =AP125*AQ15 -> 0 | AU125: =AS125*AT15 -> 0 | AX125: =AV125*AW15 -> 0 | BA125: =AY125*AZ15 -> 0 | BD125: =BB125*BC15 -> 0 | BG125: =BE125*BF15 -> 0 | BJ125: =BH125*BI15 -> 0 | BM125: =BK125*BL15 -> 0 | BP125: =BN125*BO15 -> 0 | BS125: =BQ125*BR15 -> 0 | BV125: =BT125*BU15 -> 0 | BY125: =BW125*BX15 -> 0 | CB125: =BZ125*CA15 -> 0 | CE125: =CC125*CD15 -> 0 | CH125: =CF125*CG15 -> 0 | CK125: =CI125*CJ15 -> 0 | CN125: =CL125*CM15 -> 0 | CQ125: =CO125*CP15 -> 0 | CT125: =CR125*CS15 -> 0 | CW125: =CU125*CV15 -> 0 | CZ125: =CX125*CY15 -> 0 | DC125: =DA125*DB15 -> 0 | DF125: =DD125*DE15 -> 0 | DI125: =DG125*DH15 -> 0 | DL125: =DJ125*DK15 -> 0 | DO125: =DM125*DN15 -> 0 | DR125: =DP125*DQ15 -> 0 | DU125: =DS125*DT15 -> 0 | DX125: =DV125*DW15 -> 0 | EA125: =DY125*DZ15 -> 0 | ED125: =EB125*EC15 -> 0 | EG125: =EE125*EF15 -> 0 | EJ125: =EH125*EI15 -> 0 | EM125: =EK125*EL15 -> 0 | EP125: =EN125*EO15 -> 0 | ES125: =EQ125*ER15 -> 0 | EV125: =ET125*EU15 -> 0 | EY125: =EW125*EX15 -> 0 | FB125: =EZ125*FA15 -> 0 | FE125: =FC125*FD15 -> 0 | FH125: =FF125*FG15 -> 0 | FK125: =FI125*FJ15 -> 0 | FN125: =FL125*FM15 -> 0 | FQ125: =FO125*FP15 -> 0 | FT125: =FR125*FS15 -> 0 | FW125: =FU125*FV15 -> 0 | FZ125: =FX125*FY15 -> 0 | GC125: =GA125*GB15 -> 0 | GF125: =GD125*GE15 -> 0 | GI125: =GG125*GH15 -> 0 | GL125: =GJ125*GK15 -> 0 | GO125: =GM125*GN15 -> 0 | GR125: =GP125*GQ15 -> 0 | GU125: =GS125*GT15 -> 0 | GX125: =GV125*GW15 -> 0 | HA125: =GY125*GZ15 -> 0 | HD125: =HB125*HC15 -> 0 | HG125: =HE125*HF15 -> 0 | HJ125: =HH125*HI15 -> 0 | HM125: =HK125*HL15 -> 0 | HP125: =HN125*HO15 -> 0 | HS125: =HQ125*HR15 -> 0 | HV125: =HT125*HU15 -> 0 | HY125: =HW125*HX15 -> 0 | IB125: =HZ125*IA15 -> 0 | IE125: =IC125*ID15 -> 0 | IH125: =IF125*IG15 -> 0
B126: 0 | E126: =C126*D15 -> 0 | H126: =F126*G15 -> 0 | K126: =I126*J15 -> 0 | N126: =L126*M15 -> 0 | Q126: =O126*P15 -> 0 | T126: =R126*S15 -> 0 | W126: =U126*V15 -> 0 | Z126: =X126*Y15 -> 0 | AC126: =AA126*AB15 -> 0 | AF126: =AD126*AE15 -> 0 | AI126: =AG126*AH15 -> 0 | AL126: =AJ126*AK15 -> 0 | AO126: =AM126*AN15 -> 0 | AR126: =AP126*AQ15 -> 0 | AU126: =AS126*AT15 -> 0 | AX126: =AV126*AW15 -> 0 | BA126: =AY126*AZ15 -> 0 | BD126: =BB126*BC15 -> 0 | BG126: =BE126*BF15 -> 0 | BJ126: =BH126*BI15 -> 0 | BM126: =BK126*BL15 -> 0 | BP126: =BN126*BO15 -> 0 | BS126: =BQ126*BR15 -> 0 | BV126: =BT126*BU15 -> 0 | BY126: =BW126*BX15 -> 0 | CB126: =BZ126*CA15 -> 0 | CE126: =CC126*CD15 -> 0 | CH126: =CF126*CG15 -> 0 | CK126: =CI126*CJ15 -> 0 | CN126: =CL126*CM15 -> 0 | CQ126: =CO126*CP15 -> 0 | CT126: =CR126*CS15 -> 0 | CW126: =CU126*CV15 -> 0 | CZ126: =CX126*CY15 -> 0 | DC126: =DA126*DB15 -> 0 | DF126: =DD126*DE15 -> 0 | DI126: =DG126*DH15 -> 0 | DL126: =DJ126*DK15 -> 0 | DO126: =DM126*DN15 -> 0 | DR126: =DP126*DQ15 -> 0 | DU126: =DS126*DT15 -> 0 | DX126: =DV126*DW15 -> 0 | EA126: =DY126*DZ15 -> 0 | ED126: =EB126*EC15 -> 0 | EG126: =EE126*EF15 -> 0 | EJ126: =EH126*EI15 -> 0 | EM126: =EK126*EL15 -> 0 | EP126: =EN126*EO15 -> 0 | ES126: =EQ126*ER15 -> 0 | EV126: =ET126*EU15 -> 0 | EY126: =EW126*EX15 -> 0 | FB126: =EZ126*FA15 -> 0 | FE126: =FC126*FD15 -> 0 | FH126: =FF126*FG15 -> 0 | FK126: =FI126*FJ15 -> 0 | FN126: =FL126*FM15 -> 0 | FQ126: =FO126*FP15 -> 0 | FT126: =FR126*FS15 -> 0 | FW126: =FU126*FV15 -> 0 | FZ126: =FX126*FY15 -> 0 | GC126: =GA126*GB15 -> 0 | GF126: =GD126*GE15 -> 0 | GI126: =GG126*GH15 -> 0 | GL126: =GJ126*GK15 -> 0 | GO126: =GM126*GN15 -> 0 | GR126: =GP126*GQ15 -> 0 | GU126: =GS126*GT15 -> 0 | GX126: =GV126*GW15 -> 0 | HA126: =GY126*GZ15 -> 0 | HD126: =HB126*HC15 -> 0 | HG126: =HE126*HF15 -> 0 | HJ126: =HH126*HI15 -> 0 | HM126: =HK126*HL15 -> 0 | HP126: =HN126*HO15 -> 0 | HS126: =HQ126*HR15 -> 0 | HV126: =HT126*HU15 -> 0 | HY126: =HW126*HX15 -> 0 | IB126: =HZ126*IA15 -> 0 | IE126: =IC126*ID15 -> 0 | IH126: =IF126*IG15 -> 0
B127: 0 | E127: =C127*D15 -> 0 | H127: =F127*G15 -> 0 | K127: =I127*J15 -> 0 | N127: =L127*M15 -> 0 | Q127: =O127*P15 -> 0 | T127: =R127*S15 -> 0 | W127: =U127*V15 -> 0 | Z127: =X127*Y15 -> 0 | AC127: =AA127*AB15 -> 0 | AF127: =AD127*AE15 -> 0 | AI127: =AG127*AH15 -> 0 | AL127: =AJ127*AK15 -> 0 | AO127: =AM127*AN15 -> 0 | AR127: =AP127*AQ15 -> 0 | AU127: =AS127*AT15 -> 0 | AX127: =AV127*AW15 -> 0 | BA127: =AY127*AZ15 -> 0 | BD127: =BB127*BC15 -> 0 | BG127: =BE127*BF15 -> 0 | BJ127: =BH127*BI15 -> 0 | BM127: =BK127*BL15 -> 0 | BP127: =BN127*BO15 -> 0 | BS127: =BQ127*BR15 -> 0 | BV127: =BT127*BU15 -> 0 | BY127: =BW127*BX15 -> 0 | CB127: =BZ127*CA15 -> 0 | CE127: =CC127*CD15 -> 0 | CH127: =CF127*CG15 -> 0 | CK127: =CI127*CJ15 -> 0 | CN127: =CL127*CM15 -> 0 | CQ127: =CO127*CP15 -> 0 | CT127: =CR127*CS15 -> 0 | CW127: =CU127*CV15 -> 0 | CZ127: =CX127*CY15 -> 0 | DC127: =DA127*DB15 -> 0 | DF127: =DD127*DE15 -> 0 | DI127: =DG127*DH15 -> 0 | DL127: =DJ127*DK15 -> 0 | DO127: =DM127*DN15 -> 0 | DR127: =DP127*DQ15 -> 0 | DU127: =DS127*DT15 -> 0 | DX127: =DV127*DW15 -> 0 | EA127: =DY127*DZ15 -> 0 | ED127: =EB127*EC15 -> 0 | EG127: =EE127*EF15 -> 0 | EJ127: =EH127*EI15 -> 0 | EM127: =EK127*EL15 -> 0 | EP127: =EN127*EO15 -> 0 | ES127: =EQ127*ER15 -> 0 | EV127: =ET127*EU15 -> 0 | EY127: =EW127*EX15 -> 0 | FB127: =EZ127*FA15 -> 0 | FE127: =FC127*FD15 -> 0 | FH127: =FF127*FG15 -> 0 | FK127: =FI127*FJ15 -> 0 | FN127: =FL127*FM15 -> 0 | FQ127: =FO127*FP15 -> 0 | FT127: =FR127*FS15 -> 0 | FW127: =FU127*FV15 -> 0 | FZ127: =FX127*FY15 -> 0 | GC127: =GA127*GB15 -> 0 | GF127: =GD127*GE15 -> 0 | GI127: =GG127*GH15 -> 0 | GL127: =GJ127*GK15 -> 0 | GO127: =GM127*GN15 -> 0 | GR127: =GP127*GQ15 -> 0 | GU127: =GS127*GT15 -> 0 | GX127: =GV127*GW15 -> 0 | HA127: =GY127*GZ15 -> 0 | HD127: =HB127*HC15 -> 0 | HG127: =HE127*HF15 -> 0 | HJ127: =HH127*HI15 -> 0 | HM127: =HK127*HL15 -> 0 | HP127: =HN127*HO15 -> 0 | HS127: =HQ127*HR15 -> 0 | HV127: =HT127*HU15 -> 0 | HY127: =HW127*HX15 -> 0 | IB127: =HZ127*IA15 -> 0 | IE127: =IC127*ID15 -> 0 | IH127: =IF127*IG15 -> 0
B128: 0 | E128: =C128*D15 -> 0 | H128: =F128*G15 -> 0 | K128: =I128*J15 -> 0 | N128: =L128*M15 -> 0 | Q128: =O128*P15 -> 0 | T128: =R128*S15 -> 0 | W128: =U128*V15 -> 0 | Z128: =X128*Y15 -> 0 | AC128: =AA128*AB15 -> 0 | AF128: =AD128*AE15 -> 0 | AI128: =AG128*AH15 -> 0 | AL128: =AJ128*AK15 -> 0 | AO128: =AM128*AN15 -> 0 | AR128: =AP128*AQ15 -> 0 | AU128: =AS128*AT15 -> 0 | AX128: =AV128*AW15 -> 0 | BA128: =AY128*AZ15 -> 0 | BD128: =BB128*BC15 -> 0 | BG128: =BE128*BF15 -> 0 | BJ128: =BH128*BI15 -> 0 | BM128: =BK128*BL15 -> 0 | BP128: =BN128*BO15 -> 0 | BS128: =BQ128*BR15 -> 0 | BV128: =BT128*BU15 -> 0 | BY128: =BW128*BX15 -> 0 | CB128: =BZ128*CA15 -> 0 | CE128: =CC128*CD15 -> 0 | CH128: =CF128*CG15 -> 0 | CK128: =CI128*CJ15 -> 0 | CN128: =CL128*CM15 -> 0 | CQ128: =CO128*CP15 -> 0 | CT128: =CR128*CS15 -> 0 | CW128: =CU128*CV15 -> 0 | CZ128: =CX128*CY15 -> 0 | DC128: =DA128*DB15 -> 0 | DF128: =DD128*DE15 -> 0 | DI128: =DG128*DH15 -> 0 | DL128: =DJ128*DK15 -> 0 | DO128: =DM128*DN15 -> 0 | DR128: =DP128*DQ15 -> 0 | DU128: =DS128*DT15 -> 0 | DX128: =DV128*DW15 -> 0 | EA128: =DY128*DZ15 -> 0 | ED128: =EB128*EC15 -> 0 | EG128: =EE128*EF15 -> 0 | EJ128: =EH128*EI15 -> 0 | EM128: =EK128*EL15 -> 0 | EP128: =EN128*EO15 -> 0 | ES128: =EQ128*ER15 -> 0 | EV128: =ET128*EU15 -> 0 | EY128: =EW128*EX15 -> 0 | FB128: =EZ128*FA15 -> 0 | FE128: =FC128*FD15 -> 0 | FH128: =FF128*FG15 -> 0 | FK128: =FI128*FJ15 -> 0 | FN128: =FL128*FM15 -> 0 | FQ128: =FO128*FP15 -> 0 | FT128: =FR128*FS15 -> 0 | FW128: =FU128*FV15 -> 0 | FZ128: =FX128*FY15 -> 0 | GC128: =GA128*GB15 -> 0 | GF128: =GD128*GE15 -> 0 | GI128: =GG128*GH15 -> 0 | GL128: =GJ128*GK15 -> 0 | GO128: =GM128*GN15 -> 0 | GR128: =GP128*GQ15 -> 0 | GU128: =GS128*GT15 -> 0 | GX128: =GV128*GW15 -> 0 | HA128: =GY128*GZ15 -> 0 | HD128: =HB128*HC15 -> 0 | HG128: =HE128*HF15 -> 0 | HJ128: =HH128*HI15 -> 0 | HM128: =HK128*HL15 -> 0 | HP128: =HN128*HO15 -> 0 | HS128: =HQ128*HR15 -> 0 | HV128: =HT128*HU15 -> 0 | HY128: =HW128*HX15 -> 0 | IB128: =HZ128*IA15 -> 0 | IE128: =IC128*ID15 -> 0 | IH128: =IF128*IG15 -> 0
B129: 0 | E129: =C129*D15 -> 0 | H129: =F129*G15 -> 0 | K129: =I129*J15 -> 0 | N129: =L129*M15 -> 0 | Q129: =O129*P15 -> 0 | T129: =R129*S15 -> 0 | W129: =U129*V15 -> 0 | Z129: =X129*Y15 -> 0 | AC129: =AA129*AB15 -> 0 | AF129: =AD129*AE15 -> 0 | AI129: =AG129*AH15 -> 0 | AL129: =AJ129*AK15 -> 0 | AO129: =AM129*AN15 -> 0 | AR129: =AP129*AQ15 -> 0 | AU129: =AS129*AT15 -> 0 | AX129: =AV129*AW15 -> 0 | BA129: =AY129*AZ15 -> 0 | BD129: =BB129*BC15 -> 0 | BG129: =BE129*BF15 -> 0 | BJ129: =BH129*BI15 -> 0 | BM129: =BK129*BL15 -> 0 | BP129: =BN129*BO15 -> 0 | BS129: =BQ129*BR15 -> 0 | BV129: =BT129*BU15 -> 0 | BY129: =BW129*BX15 -> 0 | CB129: =BZ129*CA15 -> 0 | CE129: =CC129*CD15 -> 0 | CH129: =CF129*CG15 -> 0 | CK129: =CI129*CJ15 -> 0 | CN129: =CL129*CM15 -> 0 | CQ129: =CO129*CP15 -> 0 | CT129: =CR129*CS15 -> 0 | CW129: =CU129*CV15 -> 0 | CZ129: =CX129*CY15 -> 0 | DC129: =DA129*DB15 -> 0 | DF129: =DD129*DE15 -> 0 | DI129: =DG129*DH15 -> 0 | DL129: =DJ129*DK15 -> 0 | DO129: =DM129*DN15 -> 0 | DR129: =DP129*DQ15 -> 0 | DU129: =DS129*DT15 -> 0 | DX129: =DV129*DW15 -> 0 | EA129: =DY129*DZ15 -> 0 | ED129: =EB129*EC15 -> 0 | EG129: =EE129*EF15 -> 0 | EJ129: =EH129*EI15 -> 0 | EM129: =EK129*EL15 -> 0 | EP129: =EN129*EO15 -> 0 | ES129: =EQ129*ER15 -> 0 | EV129: =ET129*EU15 -> 0 | EY129: =EW129*EX15 -> 0 | FB129: =EZ129*FA15 -> 0 | FE129: =FC129*FD15 -> 0 | FH129: =FF129*FG15 -> 0 | FK129: =FI129*FJ15 -> 0 | FN129: =FL129*FM15 -> 0 | FQ129: =FO129*FP15 -> 0 | FT129: =FR129*FS15 -> 0 | FW129: =FU129*FV15 -> 0 | FZ129: =FX129*FY15 -> 0 | GC129: =GA129*GB15 -> 0 | GF129: =GD129*GE15 -> 0 | GI129: =GG129*GH15 -> 0 | GL129: =GJ129*GK15 -> 0 | GO129: =GM129*GN15 -> 0 | GR129: =GP129*GQ15 -> 0 | GU129: =GS129*GT15 -> 0 | GX129: =GV129*GW15 -> 0 | HA129: =GY129*GZ15 -> 0 | HD129: =HB129*HC15 -> 0 | HG129: =HE129*HF15 -> 0 | HJ129: =HH129*HI15 -> 0 | HM129: =HK129*HL15 -> 0 | HP129: =HN129*HO15 -> 0 | HS129: =HQ129*HR15 -> 0 | HV129: =HT129*HU15 -> 0 | HY129: =HW129*HX15 -> 0 | IB129: =HZ129*IA15 -> 0 | IE129: =IC129*ID15 -> 0 | IH129: =IF129*IG15 -> 0
B130: 0 | E130: =C130*D15 -> 0 | H130: =F130*G15 -> 0 | K130: =I130*J15 -> 0 | N130: =L130*M15 -> 0 | Q130: =O130*P15 -> 0 | T130: =R130*S15 -> 0 | W130: =U130*V15 -> 0 | Z130: =X130*Y15 -> 0 | AC130: =AA130*AB15 -> 0 | AF130: =AD130*AE15 -> 0 | AI130: =AG130*AH15 -> 0 | AL130: =AJ130*AK15 -> 0 | AO130: =AM130*AN15 -> 0 | AR130: =AP130*AQ15 -> 0 | AU130: =AS130*AT15 -> 0 | AX130: =AV130*AW15 -> 0 | BA130: =AY130*AZ15 -> 0 | BD130: =BB130*BC15 -> 0 | BG130: =BE130*BF15 -> 0 | BJ130: =BH130*BI15 -> 0 | BM130: =BK130*BL15 -> 0 | BP130: =BN130*BO15 -> 0 | BS130: =BQ130*BR15 -> 0 | BV130: =BT130*BU15 -> 0 | BY130: =BW130*BX15 -> 0 | CB130: =BZ130*CA15 -> 0 | CE130: =CC130*CD15 -> 0 | CH130: =CF130*CG15 -> 0 | CK130: =CI130*CJ15 -> 0 | CN130: =CL130*CM15 -> 0 | CQ130: =CO130*CP15 -> 0 | CT130: =CR130*CS15 -> 0 | CW130: =CU130*CV15 -> 0 | CZ130: =CX130*CY15 -> 0 | DC130: =DA130*DB15 -> 0 | DF130: =DD130*DE15 -> 0 | DI130: =DG130*DH15 -> 0 | DL130: =DJ130*DK15 -> 0 | DO130: =DM130*DN15 -> 0 | DR130: =DP130*DQ15 -> 0 | DU130: =DS130*DT15 -> 0 | DX130: =DV130*DW15 -> 0 | EA130: =DY130*DZ15 -> 0 | ED130: =EB130*EC15 -> 0 | EG130: =EE130*EF15 -> 0 | EJ130: =EH130*EI15 -> 0 | EM130: =EK130*EL15 -> 0 | EP130: =EN130*EO15 -> 0 | ES130: =EQ130*ER15 -> 0 | EV130: =ET130*EU15 -> 0 | EY130: =EW130*EX15 -> 0 | FB130: =EZ130*FA15 -> 0 | FE130: =FC130*FD15 -> 0 | FH130: =FF130*FG15 -> 0 | FK130: =FI130*FJ15 -> 0 | FN130: =FL130*FM15 -> 0 | FQ130: =FO130*FP15 -> 0 | FT130: =FR130*FS15 -> 0 | FW130: =FU130*FV15 -> 0 | FZ130: =FX130*FY15 -> 0 | GC130: =GA130*GB15 -> 0 | GF130: =GD130*GE15 -> 0 | GI130: =GG130*GH15 -> 0 | GL130: =GJ130*GK15 -> 0 | GO130: =GM130*GN15 -> 0 | GR130: =GP130*GQ15 -> 0 | GU130: =GS130*GT15 -> 0 | GX130: =GV130*GW15 -> 0 | HA130: =GY130*GZ15 -> 0 | HD130: =HB130*HC15 -> 0 | HG130: =HE130*HF15 -> 0 | HJ130: =HH130*HI15 -> 0 | HM130: =HK130*HL15 -> 0 | HP130: =HN130*HO15 -> 0 | HS130: =HQ130*HR15 -> 0 | HV130: =HT130*HU15 -> 0 | HY130: =HW130*HX15 -> 0 | IB130: =HZ130*IA15 -> 0 | IE130: =IC130*ID15 -> 0 | IH130: =IF130*IG15 -> 0
B131: 0 | E131: =C131*D15 -> 0 | H131: =F131*G15 -> 0 | K131: =I131*J15 -> 0 | N131: =L131*M15 -> 0 | Q131: =O131*P15 -> 0 | T131: =R131*S15 -> 0 | W131: =U131*V15 -> 0 | Z131: =X131*Y15 -> 0 | AC131: =AA131*AB15 -> 0 | AF131: =AD131*AE15 -> 0 | AI131: =AG131*AH15 -> 0 | AL131: =AJ131*AK15 -> 0 | AO131: =AM131*AN15 -> 0 | AR131: =AP131*AQ15 -> 0 | AU131: =AS131*AT15 -> 0 | AX131: =AV131*AW15 -> 0 | BA131: =AY131*AZ15 -> 0 | BD131: =BB131*BC15 -> 0 | BG131: =BE131*BF15 -> 0 | BJ131: =BH131*BI15 -> 0 | BM131: =BK131*BL15 -> 0 | BP131: =BN131*BO15 -> 0 | BS131: =BQ131*BR15 -> 0 | BV131: =BT131*BU15 -> 0 | BY131: =BW131*BX15 -> 0 | CB131: =BZ131*CA15 -> 0 | CE131: =CC131*CD15 -> 0 | CH131: =CF131*CG15 -> 0 | CK131: =CI131*CJ15 -> 0 | CN131: =CL131*CM15 -> 0 | CQ131: =CO131*CP15 -> 0 | CT131: =CR131*CS15 -> 0 | CW131: =CU131*CV15 -> 0 | CZ131: =CX131*CY15 -> 0 | DC131: =DA131*DB15 -> 0 | DF131: =DD131*DE15 -> 0 | DI131: =DG131*DH15 -> 0 | DL131: =DJ131*DK15 -> 0 | DO131: =DM131*DN15 -> 0 | DR131: =DP131*DQ15 -> 0 | DU131: =DS131*DT15 -> 0 | DX131: =DV131*DW15 -> 0 | EA131: =DY131*DZ15 -> 0 | ED131: =EB131*EC15 -> 0 | EG131: =EE131*EF15 -> 0 | EJ131: =EH131*EI15 -> 0 | EM131: =EK131*EL15 -> 0 | EP131: =EN131*EO15 -> 0 | ES131: =EQ131*ER15 -> 0 | EV131: =ET131*EU15 -> 0 | EY131: =EW131*EX15 -> 0 | FB131: =EZ131*FA15 -> 0 | FE131: =FC131*FD15 -> 0 | FH131: =FF131*FG15 -> 0 | FK131: =FI131*FJ15 -> 0 | FN131: =FL131*FM15 -> 0 | FQ131: =FO131*FP15 -> 0 | FT131: =FR131*FS15 -> 0 | FW131: =FU131*FV15 -> 0 | FZ131: =FX131*FY15 -> 0 | GC131: =GA131*GB15 -> 0 | GF131: =GD131*GE15 -> 0 | GI131: =GG131*GH15 -> 0 | GL131: =GJ131*GK15 -> 0 | GO131: =GM131*GN15 -> 0 | GR131: =GP131*GQ15 -> 0 | GU131: =GS131*GT15 -> 0 | GX131: =GV131*GW15 -> 0 | HA131: =GY131*GZ15 -> 0 | HD131: =HB131*HC15 -> 0 | HG131: =HE131*HF15 -> 0 | HJ131: =HH131*HI15 -> 0 | HM131: =HK131*HL15 -> 0 | HP131: =HN131*HO15 -> 0 | HS131: =HQ131*HR15 -> 0 | HV131: =HT131*HU15 -> 0 | HY131: =HW131*HX15 -> 0 | IB131: =HZ131*IA15 -> 0 | IE131: =IC131*ID15 -> 0 | IH131: =IF131*IG15 -> 0
B132: 0 | E132: =C132*D15 -> 0 | H132: =F132*G15 -> 0 | K132: =I132*J15 -> 0 | N132: =L132*M15 -> 0 | Q132: =O132*P15 -> 0 | T132: =R132*S15 -> 0 | W132: =U132*V15 -> 0 | Z132: =X132*Y15 -> 0 | AC132: =AA132*AB15 -> 0 | AF132: =AD132*AE15 -> 0 | AI132: =AG132*AH15 -> 0 | AL132: =AJ132*AK15 -> 0 | AO132: =AM132*AN15 -> 0 | AR132: =AP132*AQ15 -> 0 | AU132: =AS132*AT15 -> 0 | AX132: =AV132*AW15 -> 0 | BA132: =AY132*AZ15 -> 0 | BD132: =BB132*BC15 -> 0 | BG132: =BE132*BF15 -> 0 | BJ132: =BH132*BI15 -> 0 | BM132: =BK132*BL15 -> 0 | BP132: =BN132*BO15 -> 0 | BS132: =BQ132*BR15 -> 0 | BV132: =BT132*BU15 -> 0 | BY132: =BW132*BX15 -> 0 | CB132: =BZ132*CA15 -> 0 | CE132: =CC132*CD15 -> 0 | CH132: =CF132*CG15 -> 0 | CK132: =CI132*CJ15 -> 0 | CN132: =CL132*CM15 -> 0 | CQ132: =CO132*CP15 -> 0 | CT132: =CR132*CS15 -> 0 | CW132: =CU132*CV15 -> 0 | CZ132: =CX132*CY15 -> 0 | DC132: =DA132*DB15 -> 0 | DF132: =DD132*DE15 -> 0 | DI132: =DG132*DH15 -> 0 | DL132: =DJ132*DK15 -> 0 | DO132: =DM132*DN15 -> 0 | DR132: =DP132*DQ15 -> 0 | DU132: =DS132*DT15 -> 0 | DX132: =DV132*DW15 -> 0 | EA132: =DY132*DZ15 -> 0 | ED132: =EB132*EC15 -> 0 | EG132: =EE132*EF15 -> 0 | EJ132: =EH132*EI15 -> 0 | EM132: =EK132*EL15 -> 0 | EP132: =EN132*EO15 -> 0 | ES132: =EQ132*ER15 -> 0 | EV132: =ET132*EU15 -> 0 | EY132: =EW132*EX15 -> 0 | FB132: =EZ132*FA15 -> 0 | FE132: =FC132*FD15 -> 0 | FH132: =FF132*FG15 -> 0 | FK132: =FI132*FJ15 -> 0 | FN132: =FL132*FM15 -> 0 | FQ132: =FO132*FP15 -> 0 | FT132: =FR132*FS15 -> 0 | FW132: =FU132*FV15 -> 0 | FZ132: =FX132*FY15 -> 0 | GC132: =GA132*GB15 -> 0 | GF132: =GD132*GE15 -> 0 | GI132: =GG132*GH15 -> 0 | GL132: =GJ132*GK15 -> 0 | GO132: =GM132*GN15 -> 0 | GR132: =GP132*GQ15 -> 0 | GU132: =GS132*GT15 -> 0 | GX132: =GV132*GW15 -> 0 | HA132: =GY132*GZ15 -> 0 | HD132: =HB132*HC15 -> 0 | HG132: =HE132*HF15 -> 0 | HJ132: =HH132*HI15 -> 0 | HM132: =HK132*HL15 -> 0 | HP132: =HN132*HO15 -> 0 | HS132: =HQ132*HR15 -> 0 | HV132: =HT132*HU15 -> 0 | HY132: =HW132*HX15 -> 0 | IB132: =HZ132*IA15 -> 0 | IE132: =IC132*ID15 -> 0 | IH132: =IF132*IG15 -> 0
B133: 0 | E133: =C133*D15 -> 0 | H133: =F133*G15 -> 0 | K133: =I133*J15 -> 0 | N133: =L133*M15 -> 0 | Q133: =O133*P15 -> 0 | T133: =R133*S15 -> 0 | W133: =U133*V15 -> 0 | Z133: =X133*Y15 -> 0 | AC133: =AA133*AB15 -> 0 | AF133: =AD133*AE15 -> 0 | AI133: =AG133*AH15 -> 0 | AL133: =AJ133*AK15 -> 0 | AO133: =AM133*AN15 -> 0 | AR133: =AP133*AQ15 -> 0 | AU133: =AS133*AT15 -> 0 | AX133: =AV133*AW15 -> 0 | BA133: =AY133*AZ15 -> 0 | BD133: =BB133*BC15 -> 0 | BG133: =BE133*BF15 -> 0 | BJ133: =BH133*BI15 -> 0 | BM133: =BK133*BL15 -> 0 | BP133: =BN133*BO15 -> 0 | BS133: =BQ133*BR15 -> 0 | BV133: =BT133*BU15 -> 0 | BY133: =BW133*BX15 -> 0 | CB133: =BZ133*CA15 -> 0 | CE133: =CC133*CD15 -> 0 | CH133: =CF133*CG15 -> 0 | CK133: =CI133*CJ15 -> 0 | CN133: =CL133*CM15 -> 0 | CQ133: =CO133*CP15 -> 0 | CT133: =CR133*CS15 -> 0 | CW133: =CU133*CV15 -> 0 | CZ133: =CX133*CY15 -> 0 | DC133: =DA133*DB15 -> 0 | DF133: =DD133*DE15 -> 0 | DI133: =DG133*DH15 -> 0 | DL133: =DJ133*DK15 -> 0 | DO133: =DM133*DN15 -> 0 | DR133: =DP133*DQ15 -> 0 | DU133: =DS133*DT15 -> 0 | DX133: =DV133*DW15 -> 0 | EA133: =DY133*DZ15 -> 0 | ED133: =EB133*EC15 -> 0 | EG133: =EE133*EF15 -> 0 | EJ133: =EH133*EI15 -> 0 | EM133: =EK133*EL15 -> 0 | EP133: =EN133*EO15 -> 0 | ES133: =EQ133*ER15 -> 0 | EV133: =ET133*EU15 -> 0 | EY133: =EW133*EX15 -> 0 | FB133: =EZ133*FA15 -> 0 | FE133: =FC133*FD15 -> 0 | FH133: =FF133*FG15 -> 0 | FK133: =FI133*FJ15 -> 0 | FN133: =FL133*FM15 -> 0 | FQ133: =FO133*FP15 -> 0 | FT133: =FR133*FS15 -> 0 | FW133: =FU133*FV15 -> 0 | FZ133: =FX133*FY15 -> 0 | GC133: =GA133*GB15 -> 0 | GF133: =GD133*GE15 -> 0 | GI133: =GG133*GH15 -> 0 | GL133: =GJ133*GK15 -> 0 | GO133: =GM133*GN15 -> 0 | GR133: =GP133*GQ15 -> 0 | GU133: =GS133*GT15 -> 0 | GX133: =GV133*GW15 -> 0 | HA133: =GY133*GZ15 -> 0 | HD133: =HB133*HC15 -> 0 | HG133: =HE133*HF15 -> 0 | HJ133: =HH133*HI15 -> 0 | HM133: =HK133*HL15 -> 0 | HP133: =HN133*HO15 -> 0 | HS133: =HQ133*HR15 -> 0 | HV133: =HT133*HU15 -> 0 | HY133: =HW133*HX15 -> 0 | IB133: =HZ133*IA15 -> 0 | IE133: =IC133*ID15 -> 0 | IH133: =IF133*IG15 -> 0
B134: 0 | E134: =C134*D15 -> 0 | H134: =F134*G15 -> 0 | K134: =I134*J15 -> 0 | N134: =L134*M15 -> 0 | Q134: =O134*P15 -> 0 | T134: =R134*S15 -> 0 | W134: =U134*V15 -> 0 | Z134: =X134*Y15 -> 0 | AC134: =AA134*AB15 -> 0 | AF134: =AD134*AE15 -> 0 | AI134: =AG134*AH15 -> 0 | AL134: =AJ134*AK15 -> 0 | AO134: =AM134*AN15 -> 0 | AR134: =AP134*AQ15 -> 0 | AU134: =AS134*AT15 -> 0 | AX134: =AV134*AW15 -> 0 | BA134: =AY134*AZ15 -> 0 | BD134: =BB134*BC15 -> 0 | BG134: =BE134*BF15 -> 0 | BJ134: =BH134*BI15 -> 0 | BM134: =BK134*BL15 -> 0 | BP134: =BN134*BO15 -> 0 | BS134: =BQ134*BR15 -> 0 | BV134: =BT134*BU15 -> 0 | BY134: =BW134*BX15 -> 0 | CB134: =BZ134*CA15 -> 0 | CE134: =CC134*CD15 -> 0 | CH134: =CF134*CG15 -> 0 | CK134: =CI134*CJ15 -> 0 | CN134: =CL134*CM15 -> 0 | CQ134: =CO134*CP15 -> 0 | CT134: =CR134*CS15 -> 0 | CW134: =CU134*CV15 -> 0 | CZ134: =CX134*CY15 -> 0 | DC134: =DA134*DB15 -> 0 | DF134: =DD134*DE15 -> 0 | DI134: =DG134*DH15 -> 0 | DL134: =DJ134*DK15 -> 0 | DO134: =DM134*DN15 -> 0 | DR134: =DP134*DQ15 -> 0 | DU134: =DS134*DT15 -> 0 | DX134: =DV134*DW15 -> 0 | EA134: =DY134*DZ15 -> 0 | ED134: =EB134*EC15 -> 0 | EG134: =EE134*EF15 -> 0 | EJ134: =EH134*EI15 -> 0 | EM134: =EK134*EL15 -> 0 | EP134: =EN134*EO15 -> 0 | ES134: =EQ134*ER15 -> 0 | EV134: =ET134*EU15 -> 0 | EY134: =EW134*EX15 -> 0 | FB134: =EZ134*FA15 -> 0 | FE134: =FC134*FD15 -> 0 | FH134: =FF134*FG15 -> 0 | FK134: =FI134*FJ15 -> 0 | FN134: =FL134*FM15 -> 0 | FQ134: =FO134*FP15 -> 0 | FT134: =FR134*FS15 -> 0 | FW134: =FU134*FV15 -> 0 | FZ134: =FX134*FY15 -> 0 | GC134: =GA134*GB15 -> 0 | GF134: =GD134*GE15 -> 0 | GI134: =GG134*GH15 -> 0 | GL134: =GJ134*GK15 -> 0 | GO134: =GM134*GN15 -> 0 | GR134: =GP134*GQ15 -> 0 | GU134: =GS134*GT15 -> 0 | GX134: =GV134*GW15 -> 0 | HA134: =GY134*GZ15 -> 0 | HD134: =HB134*HC15 -> 0 | HG134: =HE134*HF15 -> 0 | HJ134: =HH134*HI15 -> 0 | HM134: =HK134*HL15 -> 0 | HP134: =HN134*HO15 -> 0 | HS134: =HQ134*HR15 -> 0 | HV134: =HT134*HU15 -> 0 | HY134: =HW134*HX15 -> 0 | IB134: =HZ134*IA15 -> 0 | IE134: =IC134*ID15 -> 0 | IH134: =IF134*IG15 -> 0
B135: 0 | E135: =C135*D15 -> 0 | H135: =F135*G15 -> 0 | K135: =I135*J15 -> 0 | N135: =L135*M15 -> 0 | Q135: =O135*P15 -> 0 | T135: =R135*S15 -> 0 | W135: =U135*V15 -> 0 | Z135: =X135*Y15 -> 0 | AC135: =AA135*AB15 -> 0 | AF135: =AD135*AE15 -> 0 | AI135: =AG135*AH15 -> 0 | AL135: =AJ135*AK15 -> 0 | AO135: =AM135*AN15 -> 0 | AR135: =AP135*AQ15 -> 0 | AU135: =AS135*AT15 -> 0 | AX135: =AV135*AW15 -> 0 | BA135: =AY135*AZ15 -> 0 | BD135: =BB135*BC15 -> 0 | BG135: =BE135*BF15 -> 0 | BJ135: =BH135*BI15 -> 0 | BM135: =BK135*BL15 -> 0 | BP135: =BN135*BO15 -> 0 | BS135: =BQ135*BR15 -> 0 | BV135: =BT135*BU15 -> 0 | BY135: =BW135*BX15 -> 0 | CB135: =BZ135*CA15 -> 0 | CE135: =CC135*CD15 -> 0 | CH135: =CF135*CG15 -> 0 | CK135: =CI135*CJ15 -> 0 | CN135: =CL135*CM15 -> 0 | CQ135: =CO135*CP15 -> 0 | CT135: =CR135*CS15 -> 0 | CW135: =CU135*CV15 -> 0 | CZ135: =CX135*CY15 -> 0 | DC135: =DA135*DB15 -> 0 | DF135: =DD135*DE15 -> 0 | DI135: =DG135*DH15 -> 0 | DL135: =DJ135*DK15 -> 0 | DO135: =DM135*DN15 -> 0 | DR135: =DP135*DQ15 -> 0 | DU135: =DS135*DT15 -> 0 | DX135: =DV135*DW15 -> 0 | EA135: =DY135*DZ15 -> 0 | ED135: =EB135*EC15 -> 0 | EG135: =EE135*EF15 -> 0 | EJ135: =EH135*EI15 -> 0 | EM135: =EK135*EL15 -> 0 | EP135: =EN135*EO15 -> 0 | ES135: =EQ135*ER15 -> 0 | EV135: =ET135*EU15 -> 0 | EY135: =EW135*EX15 -> 0 | FB135: =EZ135*FA15 -> 0 | FE135: =FC135*FD15 -> 0 | FH135: =FF135*FG15 -> 0 | FK135: =FI135*FJ15 -> 0 | FN135: =FL135*FM15 -> 0 | FQ135: =FO135*FP15 -> 0 | FT135: =FR135*FS15 -> 0 | FW135: =FU135*FV15 -> 0 | FZ135: =FX135*FY15 -> 0 | GC135: =GA135*GB15 -> 0 | GF135: =GD135*GE15 -> 0 | GI135: =GG135*GH15 -> 0 | GL135: =GJ135*GK15 -> 0 | GO135: =GM135*GN15 -> 0 | GR135: =GP135*GQ15 -> 0 | GU135: =GS135*GT15 -> 0 | GX135: =GV135*GW15 -> 0 | HA135: =GY135*GZ15 -> 0 | HD135: =HB135*HC15 -> 0 | HG135: =HE135*HF15 -> 0 | HJ135: =HH135*HI15 -> 0 | HM135: =HK135*HL15 -> 0 | HP135: =HN135*HO15 -> 0 | HS135: =HQ135*HR15 -> 0 | HV135: =HT135*HU15 -> 0 | HY135: =HW135*HX15 -> 0 | IB135: =HZ135*IA15 -> 0 | IE135: =IC135*ID15 -> 0 | IH135: =IF135*IG15 -> 0
B136: 0 | E136: =C136*D15 -> 0 | H136: =F136*G15 -> 0 | K136: =I136*J15 -> 0 | N136: =L136*M15 -> 0 | Q136: =O136*P15 -> 0 | T136: =R136*S15 -> 0 | W136: =U136*V15 -> 0 | Z136: =X136*Y15 -> 0 | AC136: =AA136*AB15 -> 0 | AF136: =AD136*AE15 -> 0 | AI136: =AG136*AH15 -> 0 | AL136: =AJ136*AK15 -> 0 | AO136: =AM136*AN15 -> 0 | AR136: =AP136*AQ15 -> 0 | AU136: =AS136*AT15 -> 0 | AX136: =AV136*AW15 -> 0 | BA136: =AY136*AZ15 -> 0 | BD136: =BB136*BC15 -> 0 | BG136: =BE136*BF15 -> 0 | BJ136: =BH136*BI15 -> 0 | BM136: =BK136*BL15 -> 0 | BP136: =BN136*BO15 -> 0 | BS136: =BQ136*BR15 -> 0 | BV136: =BT136*BU15 -> 0 | BY136: =BW136*BX15 -> 0 | CB136: =BZ136*CA15 -> 0 | CE136: =CC136*CD15 -> 0 | CH136: =CF136*CG15 -> 0 | CK136: =CI136*CJ15 -> 0 | CN136: =CL136*CM15 -> 0 | CQ136: =CO136*CP15 -> 0 | CT136: =CR136*CS15 -> 0 | CW136: =CU136*CV15 -> 0 | CZ136: =CX136*CY15 -> 0 | DC136: =DA136*DB15 -> 0 | DF136: =DD136*DE15 -> 0 | DI136: =DG136*DH15 -> 0 | DL136: =DJ136*DK15 -> 0 | DO136: =DM136*DN15 -> 0 | DR136: =DP136*DQ15 -> 0 | DU136: =DS136*DT15 -> 0 | DX136: =DV136*DW15 -> 0 | EA136: =DY136*DZ15 -> 0 | ED136: =EB136*EC15 -> 0 | EG136: =EE136*EF15 -> 0 | EJ136: =EH136*EI15 -> 0 | EM136: =EK136*EL15 -> 0 | EP136: =EN136*EO15 -> 0 | ES136: =EQ136*ER15 -> 0 | EV136: =ET136*EU15 -> 0 | EY136: =EW136*EX15 -> 0 | FB136: =EZ136*FA15 -> 0 | FE136: =FC136*FD15 -> 0 | FH136: =FF136*FG15 -> 0 | FK136: =FI136*FJ15 -> 0 | FN136: =FL136*FM15 -> 0 | FQ136: =FO136*FP15 -> 0 | FT136: =FR136*FS15 -> 0 | FW136: =FU136*FV15 -> 0 | FZ136: =FX136*FY15 -> 0 | GC136: =GA136*GB15 -> 0 | GF136: =GD136*GE15 -> 0 | GI136: =GG136*GH15 -> 0 | GL136: =GJ136*GK15 -> 0 | GO136: =GM136*GN15 -> 0 | GR136: =GP136*GQ15 -> 0 | GU136: =GS136*GT15 -> 0 | GX136: =GV136*GW15 -> 0 | HA136: =GY136*GZ15 -> 0 | HD136: =HB136*HC15 -> 0 | HG136: =HE136*HF15 -> 0 | HJ136: =HH136*HI15 -> 0 | HM136: =HK136*HL15 -> 0 | HP136: =HN136*HO15 -> 0 | HS136: =HQ136*HR15 -> 0 | HV136: =HT136*HU15 -> 0 | HY136: =HW136*HX15 -> 0 | IB136: =HZ136*IA15 -> 0 | IE136: =IC136*ID15 -> 0 | IH136: =IF136*IG15 -> 0
B137: 0 | E137: =C137*D15 -> 0 | H137: =F137*G15 -> 0 | K137: =I137*J15 -> 0 | N137: =L137*M15 -> 0 | Q137: =O137*P15 -> 0 | T137: =R137*S15 -> 0 | W137: =U137*V15 -> 0 | Z137: =X137*Y15 -> 0 | AC137: =AA137*AB15 -> 0 | AF137: =AD137*AE15 -> 0 | AI137: =AG137*AH15 -> 0 | AL137: =AJ137*AK15 -> 0 | AO137: =AM137*AN15 -> 0 | AR137: =AP137*AQ15 -> 0 | AU137: =AS137*AT15 -> 0 | AX137: =AV137*AW15 -> 0 | BA137: =AY137*AZ15 -> 0 | BD137: =BB137*BC15 -> 0 | BG137: =BE137*BF15 -> 0 | BJ137: =BH137*BI15 -> 0 | BM137: =BK137*BL15 -> 0 | BP137: =BN137*BO15 -> 0 | BS137: =BQ137*BR15 -> 0 | BV137: =BT137*BU15 -> 0 | BY137: =BW137*BX15 -> 0 | CB137: =BZ137*CA15 -> 0 | CE137: =CC137*CD15 -> 0 | CH137: =CF137*CG15 -> 0 | CK137: =CI137*CJ15 -> 0 | CN137: =CL137*CM15 -> 0 | CQ137: =CO137*CP15 -> 0 | CT137: =CR137*CS15 -> 0 | CW137: =CU137*CV15 -> 0 | CZ137: =CX137*CY15 -> 0 | DC137: =DA137*DB15 -> 0 | DF137: =DD137*DE15 -> 0 | DI137: =DG137*DH15 -> 0 | DL137: =DJ137*DK15 -> 0 | DO137: =DM137*DN15 -> 0 | DR137: =DP137*DQ15 -> 0 | DU137: =DS137*DT15 -> 0 | DX137: =DV137*DW15 -> 0 | EA137: =DY137*DZ15 -> 0 | ED137: =EB137*EC15 -> 0 | EG137: =EE137*EF15 -> 0 | EJ137: =EH137*EI15 -> 0 | EM137: =EK137*EL15 -> 0 | EP137: =EN137*EO15 -> 0 | ES137: =EQ137*ER15 -> 0 | EV137: =ET137*EU15 -> 0 | EY137: =EW137*EX15 -> 0 | FB137: =EZ137*FA15 -> 0 | FE137: =FC137*FD15 -> 0 | FH137: =FF137*FG15 -> 0 | FK137: =FI137*FJ15 -> 0 | FN137: =FL137*FM15 -> 0 | FQ137: =FO137*FP15 -> 0 | FT137: =FR137*FS15 -> 0 | FW137: =FU137*FV15 -> 0 | FZ137: =FX137*FY15 -> 0 | GC137: =GA137*GB15 -> 0 | GF137: =GD137*GE15 -> 0 | GI137: =GG137*GH15 -> 0 | GL137: =GJ137*GK15 -> 0 | GO137: =GM137*GN15 -> 0 | GR137: =GP137*GQ15 -> 0 | GU137: =GS137*GT15 -> 0 | GX137: =GV137*GW15 -> 0 | HA137: =GY137*GZ15 -> 0 | HD137: =HB137*HC15 -> 0 | HG137: =HE137*HF15 -> 0 | HJ137: =HH137*HI15 -> 0 | HM137: =HK137*HL15 -> 0 | HP137: =HN137*HO15 -> 0 | HS137: =HQ137*HR15 -> 0 | HV137: =HT137*HU15 -> 0 | HY137: =HW137*HX15 -> 0 | IB137: =HZ137*IA15 -> 0 | IE137: =IC137*ID15 -> 0 | IH137: =IF137*IG15 -> 0
B138: 0 | E138: =C138*D15 -> 0 | H138: =F138*G15 -> 0 | K138: =I138*J15 -> 0 | N138: =L138*M15 -> 0 | Q138: =O138*P15 -> 0 | T138: =R138*S15 -> 0 | W138: =U138*V15 -> 0 | Z138: =X138*Y15 -> 0 | AC138: =AA138*AB15 -> 0 | AF138: =AD138*AE15 -> 0 | AI138: =AG138*AH15 -> 0 | AL138: =AJ138*AK15 -> 0 | AO138: =AM138*AN15 -> 0 | AR138: =AP138*AQ15 -> 0 | AU138: =AS138*AT15 -> 0 | AX138: =AV138*AW15 -> 0 | BA138: =AY138*AZ15 -> 0 | BD138: =BB138*BC15 -> 0 | BG138: =BE138*BF15 -> 0 | BJ138: =BH138*BI15 -> 0 | BM138: =BK138*BL15 -> 0 | BP138: =BN138*BO15 -> 0 | BS138: =BQ138*BR15 -> 0 | BV138: =BT138*BU15 -> 0 | BY138: =BW138*BX15 -> 0 | CB138: =BZ138*CA15 -> 0 | CE138: =CC138*CD15 -> 0 | CH138: =CF138*CG15 -> 0 | CK138: =CI138*CJ15 -> 0 | CN138: =CL138*CM15 -> 0 | CQ138: =CO138*CP15 -> 0 | CT138: =CR138*CS15 -> 0 | CW138: =CU138*CV15 -> 0 | CZ138: =CX138*CY15 -> 0 | DC138: =DA138*DB15 -> 0 | DF138: =DD138*DE15 -> 0 | DI138: =DG138*DH15 -> 0 | DL138: =DJ138*DK15 -> 0 | DO138: =DM138*DN15 -> 0 | DR138: =DP138*DQ15 -> 0 | DU138: =DS138*DT15 -> 0 | DX138: =DV138*DW15 -> 0 | EA138: =DY138*DZ15 -> 0 | ED138: =EB138*EC15 -> 0 | EG138: =EE138*EF15 -> 0 | EJ138: =EH138*EI15 -> 0 | EM138: =EK138*EL15 -> 0 | EP138: =EN138*EO15 -> 0 | ES138: =EQ138*ER15 -> 0 | EV138: =ET138*EU15 -> 0 | EY138: =EW138*EX15 -> 0 | FB138: =EZ138*FA15 -> 0 | FE138: =FC138*FD15 -> 0 | FH138: =FF138*FG15 -> 0 | FK138: =FI138*FJ15 -> 0 | FN138: =FL138*FM15 -> 0 | FQ138: =FO138*FP15 -> 0 | FT138: =FR138*FS15 -> 0 | FW138: =FU138*FV15 -> 0 | FZ138: =FX138*FY15 -> 0 | GC138: =GA138*GB15 -> 0 | GF138: =GD138*GE15 -> 0 | GI138: =GG138*GH15 -> 0 | GL138: =GJ138*GK15 -> 0 | GO138: =GM138*GN15 -> 0 | GR138: =GP138*GQ15 -> 0 | GU138: =GS138*GT15 -> 0 | GX138: =GV138*GW15 -> 0 | HA138: =GY138*GZ15 -> 0 | HD138: =HB138*HC15 -> 0 | HG138: =HE138*HF15 -> 0 | HJ138: =HH138*HI15 -> 0 | HM138: =HK138*HL15 -> 0 | HP138: =HN138*HO15 -> 0 | HS138: =HQ138*HR15 -> 0 | HV138: =HT138*HU15 -> 0 | HY138: =HW138*HX15 -> 0 | IB138: =HZ138*IA15 -> 0 | IE138: =IC138*ID15 -> 0 | IH138: =IF138*IG15 -> 0
B139: 0 | E139: =C139*D15 -> 0 | H139: =F139*G15 -> 0 | K139: =I139*J15 -> 0 | N139: =L139*M15 -> 0 | Q139: =O139*P15 -> 0 | T139: =R139*S15 -> 0 | W139: =U139*V15 -> 0 | Z139: =X139*Y15 -> 0 | AC139: =AA139*AB15 -> 0 | AF139: =AD139*AE15 -> 0 | AI139: =AG139*AH15 -> 0 | AL139: =AJ139*AK15 -> 0 | AO139: =AM139*AN15 -> 0 | AR139: =AP139*AQ15 -> 0 | AU139: =AS139*AT15 -> 0 | AX139: =AV139*AW15 -> 0 | BA139: =AY139*AZ15 -> 0 | BD139: =BB139*BC15 -> 0 | BG139: =BE139*BF15 -> 0 | BJ139: =BH139*BI15 -> 0 | BM139: =BK139*BL15 -> 0 | BP139: =BN139*BO15 -> 0 | BS139: =BQ139*BR15 -> 0 | BV139: =BT139*BU15 -> 0 | BY139: =BW139*BX15 -> 0 | CB139: =BZ139*CA15 -> 0 | CE139: =CC139*CD15 -> 0 | CH139: =CF139*CG15 -> 0 | CK139: =CI139*CJ15 -> 0 | CN139: =CL139*CM15 -> 0 | CQ139: =CO139*CP15 -> 0 | CT139: =CR139*CS15 -> 0 | CW139: =CU139*CV15 -> 0 | CZ139: =CX139*CY15 -> 0 | DC139: =DA139*DB15 -> 0 | DF139: =DD139*DE15 -> 0 | DI139: =DG139*DH15 -> 0 | DL139: =DJ139*DK15 -> 0 | DO139: =DM139*DN15 -> 0 | DR139: =DP139*DQ15 -> 0 | DU139: =DS139*DT15 -> 0 | DX139: =DV139*DW15 -> 0 | EA139: =DY139*DZ15 -> 0 | ED139: =EB139*EC15 -> 0 | EG139: =EE139*EF15 -> 0 | EJ139: =EH139*EI15 -> 0 | EM139: =EK139*EL15 -> 0 | EP139: =EN139*EO15 -> 0 | ES139: =EQ139*ER15 -> 0 | EV139: =ET139*EU15 -> 0 | EY139: =EW139*EX15 -> 0 | FB139: =EZ139*FA15 -> 0 | FE139: =FC139*FD15 -> 0 | FH139: =FF139*FG15 -> 0 | FK139: =FI139*FJ15 -> 0 | FN139: =FL139*FM15 -> 0 | FQ139: =FO139*FP15 -> 0 | FT139: =FR139*FS15 -> 0 | FW139: =FU139*FV15 -> 0 | FZ139: =FX139*FY15 -> 0 | GC139: =GA139*GB15 -> 0 | GF139: =GD139*GE15 -> 0 | GI139: =GG139*GH15 -> 0 | GL139: =GJ139*GK15 -> 0 | GO139: =GM139*GN15 -> 0 | GR139: =GP139*GQ15 -> 0 | GU139: =GS139*GT15 -> 0 | GX139: =GV139*GW15 -> 0 | HA139: =GY139*GZ15 -> 0 | HD139: =HB139*HC15 -> 0 | HG139: =HE139*HF15 -> 0 | HJ139: =HH139*HI15 -> 0 | HM139: =HK139*HL15 -> 0 | HP139: =HN139*HO15 -> 0 | HS139: =HQ139*HR15 -> 0 | HV139: =HT139*HU15 -> 0 | HY139: =HW139*HX15 -> 0 | IB139: =HZ139*IA15 -> 0 | IE139: =IC139*ID15 -> 0 | IH139: =IF139*IG15 -> 0
B140: 0 | E140: =C140*D15 -> 0 | H140: =F140*G15 -> 0 | K140: =I140*J15 -> 0 | N140: =L140*M15 -> 0 | Q140: =O140*P15 -> 0 | T140: =R140*S15 -> 0 | W140: =U140*V15 -> 0 | Z140: =X140*Y15 -> 0 | AC140: =AA140*AB15 -> 0 | AF140: =AD140*AE15 -> 0 | AI140: =AG140*AH15 -> 0 | AL140: =AJ140*AK15 -> 0 | AO140: =AM140*AN15 -> 0 | AR140: =AP140*AQ15 -> 0 | AU140: =AS140*AT15 -> 0 | AX140: =AV140*AW15 -> 0 | BA140: =AY140*AZ15 -> 0 | BD140: =BB140*BC15 -> 0 | BG140: =BE140*BF15 -> 0 | BJ140: =BH140*BI15 -> 0 | BM140: =BK140*BL15 -> 0 | BP140: =BN140*BO15 -> 0 | BS140: =BQ140*BR15 -> 0 | BV140: =BT140*BU15 -> 0 | BY140: =BW140*BX15 -> 0 | CB140: =BZ140*CA15 -> 0 | CE140: =CC140*CD15 -> 0 | CH140: =CF140*CG15 -> 0 | CK140: =CI140*CJ15 -> 0 | CN140: =CL140*CM15 -> 0 | CQ140: =CO140*CP15 -> 0 | CT140: =CR140*CS15 -> 0 | CW140: =CU140*CV15 -> 0 | CZ140: =CX140*CY15 -> 0 | DC140: =DA140*DB15 -> 0 | DF140: =DD140*DE15 -> 0 | DI140: =DG140*DH15 -> 0 | DL140: =DJ140*DK15 -> 0 | DO140: =DM140*DN15 -> 0 | DR140: =DP140*DQ15 -> 0 | DU140: =DS140*DT15 -> 0 | DX140: =DV140*DW15 -> 0 | EA140: =DY140*DZ15 -> 0 | ED140: =EB140*EC15 -> 0 | EG140: =EE140*EF15 -> 0 | EJ140: =EH140*EI15 -> 0 | EM140: =EK140*EL15 -> 0 | EP140: =EN140*EO15 -> 0 | ES140: =EQ140*ER15 -> 0 | EV140: =ET140*EU15 -> 0 | EY140: =EW140*EX15 -> 0 | FB140: =EZ140*FA15 -> 0 | FE140: =FC140*FD15 -> 0 | FH140: =FF140*FG15 -> 0 | FK140: =FI140*FJ15 -> 0 | FN140: =FL140*FM15 -> 0 | FQ140: =FO140*FP15 -> 0 | FT140: =FR140*FS15 -> 0 | FW140: =FU140*FV15 -> 0 | FZ140: =FX140*FY15 -> 0 | GC140: =GA140*GB15 -> 0 | GF140: =GD140*GE15 -> 0 | GI140: =GG140*GH15 -> 0 | GL140: =GJ140*GK15 -> 0 | GO140: =GM140*GN15 -> 0 | GR140: =GP140*GQ15 -> 0 | GU140: =GS140*GT15 -> 0 | GX140: =GV140*GW15 -> 0 | HA140: =GY140*GZ15 -> 0 | HD140: =HB140*HC15 -> 0 | HG140: =HE140*HF15 -> 0 | HJ140: =HH140*HI15 -> 0 | HM140: =HK140*HL15 -> 0 | HP140: =HN140*HO15 -> 0 | HS140: =HQ140*HR15 -> 0 | HV140: =HT140*HU15 -> 0 | HY140: =HW140*HX15 -> 0 | IB140: =HZ140*IA15 -> 0 | IE140: =IC140*ID15 -> 0 | IH140: =IF140*IG15 -> 0
B141: 0 | E141: =C141*D15 -> 0 | H141: =F141*G15 -> 0 | K141: =I141*J15 -> 0 | N141: =L141*M15 -> 0 | Q141: =O141*P15 -> 0 | T141: =R141*S15 -> 0 | W141: =U141*V15 -> 0 | Z141: =X141*Y15 -> 0 | AC141: =AA141*AB15 -> 0 | AF141: =AD141*AE15 -> 0 | AI141: =AG141*AH15 -> 0 | AL141: =AJ141*AK15 -> 0 | AO141: =AM141*AN15 -> 0 | AR141: =AP141*AQ15 -> 0 | AU141: =AS141*AT15 -> 0 | AX141: =AV141*AW15 -> 0 | BA141: =AY141*AZ15 -> 0 | BD141: =BB141*BC15 -> 0 | BG141: =BE141*BF15 -> 0 | BJ141: =BH141*BI15 -> 0 | BM141: =BK141*BL15 -> 0 | BP141: =BN141*BO15 -> 0 | BS141: =BQ141*BR15 -> 0 | BV141: =BT141*BU15 -> 0 | BY141: =BW141*BX15 -> 0 | CB141: =BZ141*CA15 -> 0 | CE141: =CC141*CD15 -> 0 | CH141: =CF141*CG15 -> 0 | CK141: =CI141*CJ15 -> 0 | CN141: =CL141*CM15 -> 0 | CQ141: =CO141*CP15 -> 0 | CT141: =CR141*CS15 -> 0 | CW141: =CU141*CV15 -> 0 | CZ141: =CX141*CY15 -> 0 | DC141: =DA141*DB15 -> 0 | DF141: =DD141*DE15 -> 0 | DI141: =DG141*DH15 -> 0 | DL141: =DJ141*DK15 -> 0 | DO141: =DM141*DN15 -> 0 | DR141: =DP141*DQ15 -> 0 | DU141: =DS141*DT15 -> 0 | DX141: =DV141*DW15 -> 0 | EA141: =DY141*DZ15 -> 0 | ED141: =EB141*EC15 -> 0 | EG141: =EE141*EF15 -> 0 | EJ141: =EH141*EI15 -> 0 | EM141: =EK141*EL15 -> 0 | EP141: =EN141*EO15 -> 0 | ES141: =EQ141*ER15 -> 0 | EV141: =ET141*EU15 -> 0 | EY141: =EW141*EX15 -> 0 | FB141: =EZ141*FA15 -> 0 | FE141: =FC141*FD15 -> 0 | FH141: =FF141*FG15 -> 0 | FK141: =FI141*FJ15 -> 0 | FN141: =FL141*FM15 -> 0 | FQ141: =FO141*FP15 -> 0 | FT141: =FR141*FS15 -> 0 | FW141: =FU141*FV15 -> 0 | FZ141: =FX141*FY15 -> 0 | GC141: =GA141*GB15 -> 0 | GF141: =GD141*GE15 -> 0 | GI141: =GG141*GH15 -> 0 | GL141: =GJ141*GK15 -> 0 | GO141: =GM141*GN15 -> 0 | GR141: =GP141*GQ15 -> 0 | GU141: =GS141*GT15 -> 0 | GX141: =GV141*GW15 -> 0 | HA141: =GY141*GZ15 -> 0 | HD141: =HB141*HC15 -> 0 | HG141: =HE141*HF15 -> 0 | HJ141: =HH141*HI15 -> 0 | HM141: =HK141*HL15 -> 0 | HP141: =HN141*HO15 -> 0 | HS141: =HQ141*HR15 -> 0 | HV141: =HT141*HU15 -> 0 | HY141: =HW141*HX15 -> 0 | IB141: =HZ141*IA15 -> 0 | IE141: =IC141*ID15 -> 0 | IH141: =IF141*IG15 -> 0
B142: 0 | E142: =C142*D15 -> 0 | H142: =F142*G15 -> 0 | K142: =I142*J15 -> 0 | N142: =L142*M15 -> 0 | Q142: =O142*P15 -> 0 | T142: =R142*S15 -> 0 | W142: =U142*V15 -> 0 | Z142: =X142*Y15 -> 0 | AC142: =AA142*AB15 -> 0 | AF142: =AD142*AE15 -> 0 | AI142: =AG142*AH15 -> 0 | AL142: =AJ142*AK15 -> 0 | AO142: =AM142*AN15 -> 0 | AR142: =AP142*AQ15 -> 0 | AU142: =AS142*AT15 -> 0 | AX142: =AV142*AW15 -> 0 | BA142: =AY142*AZ15 -> 0 | BD142: =BB142*BC15 -> 0 | BG142: =BE142*BF15 -> 0 | BJ142: =BH142*BI15 -> 0 | BM142: =BK142*BL15 -> 0 | BP142: =BN142*BO15 -> 0 | BS142: =BQ142*BR15 -> 0 | BV142: =BT142*BU15 -> 0 | BY142: =BW142*BX15 -> 0 | CB142: =BZ142*CA15 -> 0 | CE142: =CC142*CD15 -> 0 | CH142: =CF142*CG15 -> 0 | CK142: =CI142*CJ15 -> 0 | CN142: =CL142*CM15 -> 0 | CQ142: =CO142*CP15 -> 0 | CT142: =CR142*CS15 -> 0 | CW142: =CU142*CV15 -> 0 | CZ142: =CX142*CY15 -> 0 | DC142: =DA142*DB15 -> 0 | DF142: =DD142*DE15 -> 0 | DI142: =DG142*DH15 -> 0 | DL142: =DJ142*DK15 -> 0 | DO142: =DM142*DN15 -> 0 | DR142: =DP142*DQ15 -> 0 | DU142: =DS142*DT15 -> 0 | DX142: =DV142*DW15 -> 0 | EA142: =DY142*DZ15 -> 0 | ED142: =EB142*EC15 -> 0 | EG142: =EE142*EF15 -> 0 | EJ142: =EH142*EI15 -> 0 | EM142: =EK142*EL15 -> 0 | EP142: =EN142*EO15 -> 0 | ES142: =EQ142*ER15 -> 0 | EV142: =ET142*EU15 -> 0 | EY142: =EW142*EX15 -> 0 | FB142: =EZ142*FA15 -> 0 | FE142: =FC142*FD15 -> 0 | FH142: =FF142*FG15 -> 0 | FK142: =FI142*FJ15 -> 0 | FN142: =FL142*FM15 -> 0 | FQ142: =FO142*FP15 -> 0 | FT142: =FR142*FS15 -> 0 | FW142: =FU142*FV15 -> 0 | FZ142: =FX142*FY15 -> 0 | GC142: =GA142*GB15 -> 0 | GF142: =GD142*GE15 -> 0 | GI142: =GG142*GH15 -> 0 | GL142: =GJ142*GK15 -> 0 | GO142: =GM142*GN15 -> 0 | GR142: =GP142*GQ15 -> 0 | GU142: =GS142*GT15 -> 0 | GX142: =GV142*GW15 -> 0 | HA142: =GY142*GZ15 -> 0 | HD142: =HB142*HC15 -> 0 | HG142: =HE142*HF15 -> 0 | HJ142: =HH142*HI15 -> 0 | HM142: =HK142*HL15 -> 0 | HP142: =HN142*HO15 -> 0 | HS142: =HQ142*HR15 -> 0 | HV142: =HT142*HU15 -> 0 | HY142: =HW142*HX15 -> 0 | IB142: =HZ142*IA15 -> 0 | IE142: =IC142*ID15 -> 0 | IH142: =IF142*IG15 -> 0
B143: 0 | E143: =C143*D15 -> 0 | H143: =F143*G15 -> 0 | K143: =I143*J15 -> 0 | N143: =L143*M15 -> 0 | Q143: =O143*P15 -> 0 | T143: =R143*S15 -> 0 | W143: =U143*V15 -> 0 | Z143: =X143*Y15 -> 0 | AC143: =AA143*AB15 -> 0 | AF143: =AD143*AE15 -> 0 | AI143: =AG143*AH15 -> 0 | AL143: =AJ143*AK15 -> 0 | AO143: =AM143*AN15 -> 0 | AR143: =AP143*AQ15 -> 0 | AU143: =AS143*AT15 -> 0 | AX143: =AV143*AW15 -> 0 | BA143: =AY143*AZ15 -> 0 | BD143: =BB143*BC15 -> 0 | BG143: =BE143*BF15 -> 0 | BJ143: =BH143*BI15 -> 0 | BM143: =BK143*BL15 -> 0 | BP143: =BN143*BO15 -> 0 | BS143: =BQ143*BR15 -> 0 | BV143: =BT143*BU15 -> 0 | BY143: =BW143*BX15 -> 0 | CB143: =BZ143*CA15 -> 0 | CE143: =CC143*CD15 -> 0 | CH143: =CF143*CG15 -> 0 | CK143: =CI143*CJ15 -> 0 | CN143: =CL143*CM15 -> 0 | CQ143: =CO143*CP15 -> 0 | CT143: =CR143*CS15 -> 0 | CW143: =CU143*CV15 -> 0 | CZ143: =CX143*CY15 -> 0 | DC143: =DA143*DB15 -> 0 | DF143: =DD143*DE15 -> 0 | DI143: =DG143*DH15 -> 0 | DL143: =DJ143*DK15 -> 0 | DO143: =DM143*DN15 -> 0 | DR143: =DP143*DQ15 -> 0 | DU143: =DS143*DT15 -> 0 | DX143: =DV143*DW15 -> 0 | EA143: =DY143*DZ15 -> 0 | ED143: =EB143*EC15 -> 0 | EG143: =EE143*EF15 -> 0 | EJ143: =EH143*EI15 -> 0 | EM143: =EK143*EL15 -> 0 | EP143: =EN143*EO15 -> 0 | ES143: =EQ143*ER15 -> 0 | EV143: =ET143*EU15 -> 0 | EY143: =EW143*EX15 -> 0 | FB143: =EZ143*FA15 -> 0 | FE143: =FC143*FD15 -> 0 | FH143: =FF143*FG15 -> 0 | FK143: =FI143*FJ15 -> 0 | FN143: =FL143*FM15 -> 0 | FQ143: =FO143*FP15 -> 0 | FT143: =FR143*FS15 -> 0 | FW143: =FU143*FV15 -> 0 | FZ143: =FX143*FY15 -> 0 | GC143: =GA143*GB15 -> 0 | GF143: =GD143*GE15 -> 0 | GI143: =GG143*GH15 -> 0 | GL143: =GJ143*GK15 -> 0 | GO143: =GM143*GN15 -> 0 | GR143: =GP143*GQ15 -> 0 | GU143: =GS143*GT15 -> 0 | GX143: =GV143*GW15 -> 0 | HA143: =GY143*GZ15 -> 0 | HD143: =HB143*HC15 -> 0 | HG143: =HE143*HF15 -> 0 | HJ143: =HH143*HI15 -> 0 | HM143: =HK143*HL15 -> 0 | HP143: =HN143*HO15 -> 0 | HS143: =HQ143*HR15 -> 0 | HV143: =HT143*HU15 -> 0 | HY143: =HW143*HX15 -> 0 | IB143: =HZ143*IA15 -> 0 | IE143: =IC143*ID15 -> 0 | IH143: =IF143*IG15 -> 0
B144: 0 | E144: =C144*D15 -> 0 | H144: =F144*G15 -> 0 | K144: =I144*J15 -> 0 | N144: =L144*M15 -> 0 | Q144: =O144*P15 -> 0 | T144: =R144*S15 -> 0 | W144: =U144*V15 -> 0 | Z144: =X144*Y15 -> 0 | AC144: =AA144*AB15 -> 0 | AF144: =AD144*AE15 -> 0 | AI144: =AG144*AH15 -> 0 | AL144: =AJ144*AK15 -> 0 | AO144: =AM144*AN15 -> 0 | AR144: =AP144*AQ15 -> 0 | AU144: =AS144*AT15 -> 0 | AX144: =AV144*AW15 -> 0 | BA144: =AY144*AZ15 -> 0 | BD144: =BB144*BC15 -> 0 | BG144: =BE144*BF15 -> 0 | BJ144: =BH144*BI15 -> 0 | BM144: =BK144*BL15 -> 0 | BP144: =BN144*BO15 -> 0 | BS144: =BQ144*BR15 -> 0 | BV144: =BT144*BU15 -> 0 | BY144: =BW144*BX15 -> 0 | CB144: =BZ144*CA15 -> 0 | CE144: =CC144*CD15 -> 0 | CH144: =CF144*CG15 -> 0 | CK144: =CI144*CJ15 -> 0 | CN144: =CL144*CM15 -> 0 | CQ144: =CO144*CP15 -> 0 | CT144: =CR144*CS15 -> 0 | CW144: =CU144*CV15 -> 0 | CZ144: =CX144*CY15 -> 0 | DC144: =DA144*DB15 -> 0 | DF144: =DD144*DE15 -> 0 | DI144: =DG144*DH15 -> 0 | DL144: =DJ144*DK15 -> 0 | DO144: =DM144*DN15 -> 0 | DR144: =DP144*DQ15 -> 0 | DU144: =DS144*DT15 -> 0 | DX144: =DV144*DW15 -> 0 | EA144: =DY144*DZ15 -> 0 | ED144: =EB144*EC15 -> 0 | EG144: =EE144*EF15 -> 0 | EJ144: =EH144*EI15 -> 0 | EM144: =EK144*EL15 -> 0 | EP144: =EN144*EO15 -> 0 | ES144: =EQ144*ER15 -> 0 | EV144: =ET144*EU15 -> 0 | EY144: =EW144*EX15 -> 0 | FB144: =EZ144*FA15 -> 0 | FE144: =FC144*FD15 -> 0 | FH144: =FF144*FG15 -> 0 | FK144: =FI144*FJ15 -> 0 | FN144: =FL144*FM15 -> 0 | FQ144: =FO144*FP15 -> 0 | FT144: =FR144*FS15 -> 0 | FW144: =FU144*FV15 -> 0 | FZ144: =FX144*FY15 -> 0 | GC144: =GA144*GB15 -> 0 | GF144: =GD144*GE15 -> 0 | GI144: =GG144*GH15 -> 0 | GL144: =GJ144*GK15 -> 0 | GO144: =GM144*GN15 -> 0 | GR144: =GP144*GQ15 -> 0 | GU144: =GS144*GT15 -> 0 | GX144: =GV144*GW15 -> 0 | HA144: =GY144*GZ15 -> 0 | HD144: =HB144*HC15 -> 0 | HG144: =HE144*HF15 -> 0 | HJ144: =HH144*HI15 -> 0 | HM144: =HK144*HL15 -> 0 | HP144: =HN144*HO15 -> 0 | HS144: =HQ144*HR15 -> 0 | HV144: =HT144*HU15 -> 0 | HY144: =HW144*HX15 -> 0 | IB144: =HZ144*IA15 -> 0 | IE144: =IC144*ID15 -> 0 | IH144: =IF144*IG15 -> 0
B145: 0 | E145: =C145*D15 -> 0 | H145: =F145*G15 -> 0 | K145: =I145*J15 -> 0 | N145: =L145*M15 -> 0 | Q145: =O145*P15 -> 0 | T145: =R145*S15 -> 0 | W145: =U145*V15 -> 0 | Z145: =X145*Y15 -> 0 | AC145: =AA145*AB15 -> 0 | AF145: =AD145*AE15 -> 0 | AI145: =AG145*AH15 -> 0 | AL145: =AJ145*AK15 -> 0 | AO145: =AM145*AN15 -> 0 | AR145: =AP145*AQ15 -> 0 | AU145: =AS145*AT15 -> 0 | AX145: =AV145*AW15 -> 0 | BA145: =AY145*AZ15 -> 0 | BD145: =BB145*BC15 -> 0 | BG145: =BE145*BF15 -> 0 | BJ145: =BH145*BI15 -> 0 | BM145: =BK145*BL15 -> 0 | BP145: =BN145*BO15 -> 0 | BS145: =BQ145*BR15 -> 0 | BV145: =BT145*BU15 -> 0 | BY145: =BW145*BX15 -> 0 | CB145: =BZ145*CA15 -> 0 | CE145: =CC145*CD15 -> 0 | CH145: =CF145*CG15 -> 0 | CK145: =CI145*CJ15 -> 0 | CN145: =CL145*CM15 -> 0 | CQ145: =CO145*CP15 -> 0 | CT145: =CR145*CS15 -> 0 | CW145: =CU145*CV15 -> 0 | CZ145: =CX145*CY15 -> 0 | DC145: =DA145*DB15 -> 0 | DF145: =DD145*DE15 -> 0 | DI145: =DG145*DH15 -> 0 | DL145: =DJ145*DK15 -> 0 | DO145: =DM145*DN15 -> 0 | DR145: =DP145*DQ15 -> 0 | DU145: =DS145*DT15 -> 0 | DX145: =DV145*DW15 -> 0 | EA145: =DY145*DZ15 -> 0 | ED145: =EB145*EC15 -> 0 | EG145: =EE145*EF15 -> 0 | EJ145: =EH145*EI15 -> 0 | EM145: =EK145*EL15 -> 0 | EP145: =EN145*EO15 -> 0 | ES145: =EQ145*ER15 -> 0 | EV145: =ET145*EU15 -> 0 | EY145: =EW145*EX15 -> 0 | FB145: =EZ145*FA15 -> 0 | FE145: =FC145*FD15 -> 0 | FH145: =FF145*FG15 -> 0 | FK145: =FI145*FJ15 -> 0 | FN145: =FL145*FM15 -> 0 | FQ145: =FO145*FP15 -> 0 | FT145: =FR145*FS15 -> 0 | FW145: =FU145*FV15 -> 0 | FZ145: =FX145*FY15 -> 0 | GC145: =GA145*GB15 -> 0 | GF145: =GD145*GE15 -> 0 | GI145: =GG145*GH15 -> 0 | GL145: =GJ145*GK15 -> 0 | GO145: =GM145*GN15 -> 0 | GR145: =GP145*GQ15 -> 0 | GU145: =GS145*GT15 -> 0 | GX145: =GV145*GW15 -> 0 | HA145: =GY145*GZ15 -> 0 | HD145: =HB145*HC15 -> 0 | HG145: =HE145*HF15 -> 0 | HJ145: =HH145*HI15 -> 0 | HM145: =HK145*HL15 -> 0 | HP145: =HN145*HO15 -> 0 | HS145: =HQ145*HR15 -> 0 | HV145: =HT145*HU15 -> 0 | HY145: =HW145*HX15 -> 0 | IB145: =HZ145*IA15 -> 0 | IE145: =IC145*ID15 -> 0 | IH145: =IF145*IG15 -> 0
B146: =E146+H146+K146+N146+Q146+T146+W146+Z146+AC146+AF146+AI146+AL146+AO146+AR146+AU146+AX146+BA146+BD146+BG146+BJ146+BM146+BP146+BS146+BV146+BY146+CB146+CE146+CH146+CK146+CN146+CQ146+CT146+CW146+CZ146+DC146+DF146+DI146+DL146+DO146+DR146+DU146+DX146+EA146+ED146+EG146+EJ146+EM146+EP146+ES146+EV146+EY146+FB146+FE146+FH146+FK146+FN146+FQ146+FT146+FW146+FZ146+GC146+GF146+GI146+GL146+GO146+GR146+GU146+GX146+HA146+HD146+HG146+HJ146+HM146+HP146+HS146+HV146+HY146+IB146+IE146+IH146 -> 0 | E146: =C146*D15 -> 0 | H146: =F146*G15 -> 0 | K146: =I146*J15 -> 0 | N146: =L146*M15 -> 0 | Q146: =O146*P15 -> 0 | T146: =R146*S15 -> 0 | W146: =U146*V15 -> 0 | Z146: =X146*Y15 -> 0 | AC146: =AA146*AB15 -> 0 | AF146: =AD146*AE15 -> 0 | AI146: =AG146*AH15 -> 0 | AL146: =AJ146*AK15 -> 0 | AO146: =AM146*AN15 -> 0 | AR146: =AP146*AQ15 -> 0 | AU146: =AS146*AT15 -> 0 | AX146: =AV146*AW15 -> 0 | BA146: =AY146*AZ15 -> 0 | BD146: =BB146*BC15 -> 0 | BG146: =BE146*BF15 -> 0 | BJ146: =BH146*BI15 -> 0 | BM146: =BK146*BL15 -> 0 | BP146: =BN146*BO15 -> 0 | BS146: =BQ146*BR15 -> 0 | BV146: =BT146*BU15 -> 0 | BY146: =BW146*BX15 -> 0 | CB146: =BZ146*CA15 -> 0 | CE146: =CC146*CD15 -> 0 | CH146: =CF146*CG15 -> 0 | CK146: =CI146*CJ15 -> 0 | CN146: =CL146*CM15 -> 0 | CQ146: =CO146*CP15 -> 0 | CT146: =CR146*CS15 -> 0 | CW146: =CU146*CV15 -> 0 | CZ146: =CX146*CY15 -> 0 | DC146: =DA146*DB15 -> 0 | DF146: =DD146*DE15 -> 0 | DI146: =DG146*DH15 -> 0 | DL146: =DJ146*DK15 -> 0 | DO146: =DM146*DN15 -> 0 | DR146: =DP146*DQ15 -> 0 | DU146: =DS146*DT15 -> 0 | DX146: =DV146*DW15 -> 0 | EA146: =DY146*DZ15 -> 0 | ED146: =EB146*EC15 -> 0 | EG146: =EE146*EF15 -> 0 | EJ146: =EH146*EI15 -> 0 | EM146: =EK146*EL15 -> 0 | EP146: =EN146*EO15 -> 0 | ES146: =EQ146*ER15 -> 0 | EV146: =ET146*EU15 -> 0 | EY146: =EW146*EX15 -> 0 | FB146: =EZ146*FA15 -> 0 | FE146: =FC146*FD15 -> 0 | FH146: =FF146*FG15 -> 0 | FK146: =FI146*FJ15 -> 0 | FN146: =FL146*FM15 -> 0 | FQ146: =FO146*FP15 -> 0 | FT146: =FR146*FS15 -> 0 | FW146: =FU146*FV15 -> 0 | FZ146: =FX146*FY15 -> 0 | GC146: =GA146*GB15 -> 0 | GF146: =GD146*GE15 -> 0 | GI146: =GG146*GH15 -> 0 | GL146: =GJ146*GK15 -> 0 | GO146: =GM146*GN15 -> 0 | GR146: =GP146*GQ15 -> 0 | GU146: =GS146*GT15 -> 0 | GX146: =GV146*GW15 -> 0 | HA146: =GY146*GZ15 -> 0 | HD146: =HB146*HC15 -> 0 | HG146: =HE146*HF15 -> 0 | HJ146: =HH146*HI15 -> 0 | HM146: =HK146*HL15 -> 0 | HP146: =HN146*HO15 -> 0 | HS146: =HQ146*HR15 -> 0 | HV146: =HT146*HU15 -> 0 | HY146: =HW146*HX15 -> 0 | IB146: =HZ146*IA15 -> 0 | IE146: =IC146*ID15 -> 0 | IH146: =IF146*IG15 -> 0
B147: 0 | E147: =C147*D15 -> 0 | H147: =F147*G15 -> 0 | K147: =I147*J15 -> 0 | N147: =L147*M15 -> 0 | Q147: =O147*P15 -> 0 | T147: =R147*S15 -> 0 | W147: =U147*V15 -> 0 | Z147: =X147*Y15 -> 0 | AC147: =AA147*AB15 -> 0 | AF147: =AD147*AE15 -> 0 | AI147: =AG147*AH15 -> 0 | AL147: =AJ147*AK15 -> 0 | AO147: =AM147*AN15 -> 0 | AR147: =AP147*AQ15 -> 0 | AU147: =AS147*AT15 -> 0 | AX147: =AV147*AW15 -> 0 | BA147: =AY147*AZ15 -> 0 | BD147: =BB147*BC15 -> 0 | BG147: =BE147*BF15 -> 0 | BJ147: =BH147*BI15 -> 0 | BM147: =BK147*BL15 -> 0 | BP147: =BN147*BO15 -> 0 | BS147: =BQ147*BR15 -> 0 | BV147: =BT147*BU15 -> 0 | BY147: =BW147*BX15 -> 0 | CB147: =BZ147*CA15 -> 0 | CE147: =CC147*CD15 -> 0 | CH147: =CF147*CG15 -> 0 | CK147: =CI147*CJ15 -> 0 | CN147: =CL147*CM15 -> 0 | CQ147: =CO147*CP15 -> 0 | CT147: =CR147*CS15 -> 0 | CW147: =CU147*CV15 -> 0 | CZ147: =CX147*CY15 -> 0 | DC147: =DA147*DB15 -> 0 | DF147: =DD147*DE15 -> 0 | DI147: =DG147*DH15 -> 0 | DL147: =DJ147*DK15 -> 0 | DO147: =DM147*DN15 -> 0 | DR147: =DP147*DQ15 -> 0 | DU147: =DS147*DT15 -> 0 | DX147: =DV147*DW15 -> 0 | EA147: =DY147*DZ15 -> 0 | ED147: =EB147*EC15 -> 0 | EG147: =EE147*EF15 -> 0 | EJ147: =EH147*EI15 -> 0 | EM147: =EK147*EL15 -> 0 | EP147: =EN147*EO15 -> 0 | ES147: =EQ147*ER15 -> 0 | EV147: =ET147*EU15 -> 0 | EY147: =EW147*EX15 -> 0 | FB147: =EZ147*FA15 -> 0 | FE147: =FC147*FD15 -> 0 | FH147: =FF147*FG15 -> 0 | FK147: =FI147*FJ15 -> 0 | FN147: =FL147*FM15 -> 0 | FQ147: =FO147*FP15 -> 0 | FT147: =FR147*FS15 -> 0 | FW147: =FU147*FV15 -> 0 | FZ147: =FX147*FY15 -> 0 | GC147: =GA147*GB15 -> 0 | GF147: =GD147*GE15 -> 0 | GI147: =GG147*GH15 -> 0 | GL147: =GJ147*GK15 -> 0 | GO147: =GM147*GN15 -> 0 | GR147: =GP147*GQ15 -> 0 | GU147: =GS147*GT15 -> 0 | GX147: =GV147*GW15 -> 0 | HA147: =GY147*GZ15 -> 0 | HD147: =HB147*HC15 -> 0 | HG147: =HE147*HF15 -> 0 | HJ147: =HH147*HI15 -> 0 | HM147: =HK147*HL15 -> 0 | HP147: =HN147*HO15 -> 0 | HS147: =HQ147*HR15 -> 0 | HV147: =HT147*HU15 -> 0 | HY147: =HW147*HX15 -> 0 | IB147: =HZ147*IA15 -> 0 | IE147: =IC147*ID15 -> 0 | IH147: =IF147*IG15 -> 0
B148: 0 | E148: =C148*D15 -> 0 | H148: =F148*G15 -> 0 | K148: =I148*J15 -> 0 | N148: =L148*M15 -> 0 | Q148: =O148*P15 -> 0 | T148: =R148*S15 -> 0 | W148: =U148*V15 -> 0 | Z148: =X148*Y15 -> 0 | AC148: =AA148*AB15 -> 0 | AF148: =AD148*AE15 -> 0 | AI148: =AG148*AH15 -> 0 | AL148: =AJ148*AK15 -> 0 | AO148: =AM148*AN15 -> 0 | AR148: =AP148*AQ15 -> 0 | AU148: =AS148*AT15 -> 0 | AX148: =AV148*AW15 -> 0 | BA148: =AY148*AZ15 -> 0 | BD148: =BB148*BC15 -> 0 | BG148: =BE148*BF15 -> 0 | BJ148: =BH148*BI15 -> 0 | BM148: =BK148*BL15 -> 0 | BP148: =BN148*BO15 -> 0 | BS148: =BQ148*BR15 -> 0 | BV148: =BT148*BU15 -> 0 | BY148: =BW148*BX15 -> 0 | CB148: =BZ148*CA15 -> 0 | CE148: =CC148*CD15 -> 0 | CH148: =CF148*CG15 -> 0 | CK148: =CI148*CJ15 -> 0 | CN148: =CL148*CM15 -> 0 | CQ148: =CO148*CP15 -> 0 | CT148: =CR148*CS15 -> 0 | CW148: =CU148*CV15 -> 0 | CZ148: =CX148*CY15 -> 0 | DC148: =DA148*DB15 -> 0 | DF148: =DD148*DE15 -> 0 | DI148: =DG148*DH15 -> 0 | DL148: =DJ148*DK15 -> 0 | DO148: =DM148*DN15 -> 0 | DR148: =DP148*DQ15 -> 0 | DU148: =DS148*DT15 -> 0 | DX148: =DV148*DW15 -> 0 | EA148: =DY148*DZ15 -> 0 | ED148: =EB148*EC15 -> 0 | EG148: =EE148*EF15 -> 0 | EJ148: =EH148*EI15 -> 0 | EM148: =EK148*EL15 -> 0 | EP148: =EN148*EO15 -> 0 | ES148: =EQ148*ER15 -> 0 | EV148: =ET148*EU15 -> 0 | EY148: =EW148*EX15 -> 0 | FB148: =EZ148*FA15 -> 0 | FE148: =FC148*FD15 -> 0 | FH148: =FF148*FG15 -> 0 | FK148: =FI148*FJ15 -> 0 | FN148: =FL148*FM15 -> 0 | FQ148: =FO148*FP15 -> 0 | FT148: =FR148*FS15 -> 0 | FW148: =FU148*FV15 -> 0 | FZ148: =FX148*FY15 -> 0 | GC148: =GA148*GB15 -> 0 | GF148: =GD148*GE15 -> 0 | GI148: =GG148*GH15 -> 0 | GL148: =GJ148*GK15 -> 0 | GO148: =GM148*GN15 -> 0 | GR148: =GP148*GQ15 -> 0 | GU148: =GS148*GT15 -> 0 | GX148: =GV148*GW15 -> 0 | HA148: =GY148*GZ15 -> 0 | HD148: =HB148*HC15 -> 0 | HG148: =HE148*HF15 -> 0 | HJ148: =HH148*HI15 -> 0 | HM148: =HK148*HL15 -> 0 | HP148: =HN148*HO15 -> 0 | HS148: =HQ148*HR15 -> 0 | HV148: =HT148*HU15 -> 0 | HY148: =HW148*HX15 -> 0 | IB148: =HZ148*IA15 -> 0 | IE148: =IC148*ID15 -> 0 | IH148: =IF148*IG15 -> 0
B149: 0 | E149: =C149*D15 -> 0 | H149: =F149*G15 -> 0 | K149: =I149*J15 -> 0 | N149: =L149*M15 -> 0 | Q149: =O149*P15 -> 0 | T149: =R149*S15 -> 0 | W149: =U149*V15 -> 0 | Z149: =X149*Y15 -> 0 | AC149: =AA149*AB15 -> 0 | AF149: =AD149*AE15 -> 0 | AI149: =AG149*AH15 -> 0 | AL149: =AJ149*AK15 -> 0 | AO149: =AM149*AN15 -> 0 | AR149: =AP149*AQ15 -> 0 | AU149: =AS149*AT15 -> 0 | AX149: =AV149*AW15 -> 0 | BA149: =AY149*AZ15 -> 0 | BD149: =BB149*BC15 -> 0 | BG149: =BE149*BF15 -> 0 | BJ149: =BH149*BI15 -> 0 | BM149: =BK149*BL15 -> 0 | BP149: =BN149*BO15 -> 0 | BS149: =BQ149*BR15 -> 0 | BV149: =BT149*BU15 -> 0 | BY149: =BW149*BX15 -> 0 | CB149: =BZ149*CA15 -> 0 | CE149: =CC149*CD15 -> 0 | CH149: =CF149*CG15 -> 0 | CK149: =CI149*CJ15 -> 0 | CN149: =CL149*CM15 -> 0 | CQ149: =CO149*CP15 -> 0 | CT149: =CR149*CS15 -> 0 | CW149: =CU149*CV15 -> 0 | CZ149: =CX149*CY15 -> 0 | DC149: =DA149*DB15 -> 0 | DF149: =DD149*DE15 -> 0 | DI149: =DG149*DH15 -> 0 | DL149: =DJ149*DK15 -> 0 | DO149: =DM149*DN15 -> 0 | DR149: =DP149*DQ15 -> 0 | DU149: =DS149*DT15 -> 0 | DX149: =DV149*DW15 -> 0 | EA149: =DY149*DZ15 -> 0 | ED149: =EB149*EC15 -> 0 | EG149: =EE149*EF15 -> 0 | EJ149: =EH149*EI15 -> 0 | EM149: =EK149*EL15 -> 0 | EP149: =EN149*EO15 -> 0 | ES149: =EQ149*ER15 -> 0 | EV149: =ET149*EU15 -> 0 | EY149: =EW149*EX15 -> 0 | FB149: =EZ149*FA15 -> 0 | FE149: =FC149*FD15 -> 0 | FH149: =FF149*FG15 -> 0 | FK149: =FI149*FJ15 -> 0 | FN149: =FL149*FM15 -> 0 | FQ149: =FO149*FP15 -> 0 | FT149: =FR149*FS15 -> 0 | FW149: =FU149*FV15 -> 0 | FZ149: =FX149*FY15 -> 0 | GC149: =GA149*GB15 -> 0 | GF149: =GD149*GE15 -> 0 | GI149: =GG149*GH15 -> 0 | GL149: =GJ149*GK15 -> 0 | GO149: =GM149*GN15 -> 0 | GR149: =GP149*GQ15 -> 0 | GU149: =GS149*GT15 -> 0 | GX149: =GV149*GW15 -> 0 | HA149: =GY149*GZ15 -> 0 | HD149: =HB149*HC15 -> 0 | HG149: =HE149*HF15 -> 0 | HJ149: =HH149*HI15 -> 0 | HM149: =HK149*HL15 -> 0 | HP149: =HN149*HO15 -> 0 | HS149: =HQ149*HR15 -> 0 | HV149: =HT149*HU15 -> 0 | HY149: =HW149*HX15 -> 0 | IB149: =HZ149*IA15 -> 0 | IE149: =IC149*ID15 -> 0 | IH149: =IF149*IG15 -> 0
B150: 0 | E150: =C150*D15 -> 0 | H150: =F150*G15 -> 0 | K150: =I150*J15 -> 0 | N150: =L150*M15 -> 0 | Q150: =O150*P15 -> 0 | T150: =R150*S15 -> 0 | W150: =U150*V15 -> 0 | Z150: =X150*Y15 -> 0 | AC150: =AA150*AB15 -> 0 | AF150: =AD150*AE15 -> 0 | AI150: =AG150*AH15 -> 0 | AL150: =AJ150*AK15 -> 0 | AO150: =AM150*AN15 -> 0 | AR150: =AP150*AQ15 -> 0 | AU150: =AS150*AT15 -> 0 | AX150: =AV150*AW15 -> 0 | BA150: =AY150*AZ15 -> 0 | BD150: =BB150*BC15 -> 0 | BG150: =BE150*BF15 -> 0 | BJ150: =BH150*BI15 -> 0 | BM150: =BK150*BL15 -> 0 | BP150: =BN150*BO15 -> 0 | BS150: =BQ150*BR15 -> 0 | BV150: =BT150*BU15 -> 0 | BY150: =BW150*BX15 -> 0 | CB150: =BZ150*CA15 -> 0 | CE150: =CC150*CD15 -> 0 | CH150: =CF150*CG15 -> 0 | CK150: =CI150*CJ15 -> 0 | CN150: =CL150*CM15 -> 0 | CQ150: =CO150*CP15 -> 0 | CT150: =CR150*CS15 -> 0 | CW150: =CU150*CV15 -> 0 | CZ150: =CX150*CY15 -> 0 | DC150: =DA150*DB15 -> 0 | DF150: =DD150*DE15 -> 0 | DI150: =DG150*DH15 -> 0 | DL150: =DJ150*DK15 -> 0 | DO150: =DM150*DN15 -> 0 | DR150: =DP150*DQ15 -> 0 | DU150: =DS150*DT15 -> 0 | DX150: =DV150*DW15 -> 0 | EA150: =DY150*DZ15 -> 0 | ED150: =EB150*EC15 -> 0 | EG150: =EE150*EF15 -> 0 | EJ150: =EH150*EI15 -> 0 | EM150: =EK150*EL15 -> 0 | EP150: =EN150*EO15 -> 0 | ES150: =EQ150*ER15 -> 0 | EV150: =ET150*EU15 -> 0 | EY150: =EW150*EX15 -> 0 | FB150: =EZ150*FA15 -> 0 | FE150: =FC150*FD15 -> 0 | FH150: =FF150*FG15 -> 0 | FK150: =FI150*FJ15 -> 0 | FN150: =FL150*FM15 -> 0 | FQ150: =FO150*FP15 -> 0 | FT150: =FR150*FS15 -> 0 | FW150: =FU150*FV15 -> 0 | FZ150: =FX150*FY15 -> 0 | GC150: =GA150*GB15 -> 0 | GF150: =GD150*GE15 -> 0 | GI150: =GG150*GH15 -> 0 | GL150: =GJ150*GK15 -> 0 | GO150: =GM150*GN15 -> 0 | GR150: =GP150*GQ15 -> 0 | GU150: =GS150*GT15 -> 0 | GX150: =GV150*GW15 -> 0 | HA150: =GY150*GZ15 -> 0 | HD150: =HB150*HC15 -> 0 | HG150: =HE150*HF15 -> 0 | HJ150: =HH150*HI15 -> 0 | HM150: =HK150*HL15 -> 0 | HP150: =HN150*HO15 -> 0 | HS150: =HQ150*HR15 -> 0 | HV150: =HT150*HU15 -> 0 | HY150: =HW150*HX15 -> 0 | IB150: =HZ150*IA15 -> 0 | IE150: =IC150*ID15 -> 0 | IH150: =IF150*IG15 -> 0
B151: 0 | E151: =C151*D15 -> 0 | H151: =F151*G15 -> 0 | K151: =I151*J15 -> 0 | N151: =L151*M15 -> 0 | Q151: =O151*P15 -> 0 | T151: =R151*S15 -> 0 | W151: =U151*V15 -> 0 | Z151: =X151*Y15 -> 0 | AC151: =AA151*AB15 -> 0 | AF151: =AD151*AE15 -> 0 | AI151: =AG151*AH15 -> 0 | AL151: =AJ151*AK15 -> 0 | AO151: =AM151*AN15 -> 0 | AR151: =AP151*AQ15 -> 0 | AU151: =AS151*AT15 -> 0 | AX151: =AV151*AW15 -> 0 | BA151: =AY151*AZ15 -> 0 | BD151: =BB151*BC15 -> 0 | BG151: =BE151*BF15 -> 0 | BJ151: =BH151*BI15 -> 0 | BM151: =BK151*BL15 -> 0 | BP151: =BN151*BO15 -> 0 | BS151: =BQ151*BR15 -> 0 | BV151: =BT151*BU15 -> 0 | BY151: =BW151*BX15 -> 0 | CB151: =BZ151*CA15 -> 0 | CE151: =CC151*CD15 -> 0 | CH151: =CF151*CG15 -> 0 | CK151: =CI151*CJ15 -> 0 | CN151: =CL151*CM15 -> 0 | CQ151: =CO151*CP15 -> 0 | CT151: =CR151*CS15 -> 0 | CW151: =CU151*CV15 -> 0 | CZ151: =CX151*CY15 -> 0 | DC151: =DA151*DB15 -> 0 | DF151: =DD151*DE15 -> 0 | DI151: =DG151*DH15 -> 0 | DL151: =DJ151*DK15 -> 0 | DO151: =DM151*DN15 -> 0 | DR151: =DP151*DQ15 -> 0 | DU151: =DS151*DT15 -> 0 | DX151: =DV151*DW15 -> 0 | EA151: =DY151*DZ15 -> 0 | ED151: =EB151*EC15 -> 0 | EG151: =EE151*EF15 -> 0 | EJ151: =EH151*EI15 -> 0 | EM151: =EK151*EL15 -> 0 | EP151: =EN151*EO15 -> 0 | ES151: =EQ151*ER15 -> 0 | EV151: =ET151*EU15 -> 0 | EY151: =EW151*EX15 -> 0 | FB151: =EZ151*FA15 -> 0 | FE151: =FC151*FD15 -> 0 | FH151: =FF151*FG15 -> 0 | FK151: =FI151*FJ15 -> 0 | FN151: =FL151*FM15 -> 0 | FQ151: =FO151*FP15 -> 0 | FT151: =FR151*FS15 -> 0 | FW151: =FU151*FV15 -> 0 | FZ151: =FX151*FY15 -> 0 | GC151: =GA151*GB15 -> 0 | GF151: =GD151*GE15 -> 0 | GI151: =GG151*GH15 -> 0 | GL151: =GJ151*GK15 -> 0 | GO151: =GM151*GN15 -> 0 | GR151: =GP151*GQ15 -> 0 | GU151: =GS151*GT15 -> 0 | GX151: =GV151*GW15 -> 0 | HA151: =GY151*GZ15 -> 0 | HD151: =HB151*HC15 -> 0 | HG151: =HE151*HF15 -> 0 | HJ151: =HH151*HI15 -> 0 | HM151: =HK151*HL15 -> 0 | HP151: =HN151*HO15 -> 0 | HS151: =HQ151*HR15 -> 0 | HV151: =HT151*HU15 -> 0 | HY151: =HW151*HX15 -> 0 | IB151: =HZ151*IA15 -> 0 | IE151: =IC151*ID15 -> 0 | IH151: =IF151*IG15 -> 0
B152: 0 | E152: =C152*D15 -> 0 | H152: =F152*G15 -> 0 | K152: =I152*J15 -> 0 | N152: =L152*M15 -> 0 | Q152: =O152*P15 -> 0 | T152: =R152*S15 -> 0 | W152: =U152*V15 -> 0 | Z152: =X152*Y15 -> 0 | AC152: =AA152*AB15 -> 0 | AF152: =AD152*AE15 -> 0 | AI152: =AG152*AH15 -> 0 | AL152: =AJ152*AK15 -> 0 | AO152: =AM152*AN15 -> 0 | AR152: =AP152*AQ15 -> 0 | AU152: =AS152*AT15 -> 0 | AX152: =AV152*AW15 -> 0 | BA152: =AY152*AZ15 -> 0 | BD152: =BB152*BC15 -> 0 | BG152: =BE152*BF15 -> 0 | BJ152: =BH152*BI15 -> 0 | BM152: =BK152*BL15 -> 0 | BP152: =BN152*BO15 -> 0 | BS152: =BQ152*BR15 -> 0 | BV152: =BT152*BU15 -> 0 | BY152: =BW152*BX15 -> 0 | CB152: =BZ152*CA15 -> 0 | CE152: =CC152*CD15 -> 0 | CH152: =CF152*CG15 -> 0 | CK152: =CI152*CJ15 -> 0 | CN152: =CL152*CM15 -> 0 | CQ152: =CO152*CP15 -> 0 | CT152: =CR152*CS15 -> 0 | CW152: =CU152*CV15 -> 0 | CZ152: =CX152*CY15 -> 0 | DC152: =DA152*DB15 -> 0 | DF152: =DD152*DE15 -> 0 | DI152: =DG152*DH15 -> 0 | DL152: =DJ152*DK15 -> 0 | DO152: =DM152*DN15 -> 0 | DR152: =DP152*DQ15 -> 0 | DU152: =DS152*DT15 -> 0 | DX152: =DV152*DW15 -> 0 | EA152: =DY152*DZ15 -> 0 | ED152: =EB152*EC15 -> 0 | EG152: =EE152*EF15 -> 0 | EJ152: =EH152*EI15 -> 0 | EM152: =EK152*EL15 -> 0 | EP152: =EN152*EO15 -> 0 | ES152: =EQ152*ER15 -> 0 | EV152: =ET152*EU15 -> 0 | EY152: =EW152*EX15 -> 0 | FB152: =EZ152*FA15 -> 0 | FE152: =FC152*FD15 -> 0 | FH152: =FF152*FG15 -> 0 | FK152: =FI152*FJ15 -> 0 | FN152: =FL152*FM15 -> 0 | FQ152: =FO152*FP15 -> 0 | FT152: =FR152*FS15 -> 0 | FW152: =FU152*FV15 -> 0 | FZ152: =FX152*FY15 -> 0 | GC152: =GA152*GB15 -> 0 | GF152: =GD152*GE15 -> 0 | GI152: =GG152*GH15 -> 0 | GL152: =GJ152*GK15 -> 0 | GO152: =GM152*GN15 -> 0 | GR152: =GP152*GQ15 -> 0 | GU152: =GS152*GT15 -> 0 | GX152: =GV152*GW15 -> 0 | HA152: =GY152*GZ15 -> 0 | HD152: =HB152*HC15 -> 0 | HG152: =HE152*HF15 -> 0 | HJ152: =HH152*HI15 -> 0 | HM152: =HK152*HL15 -> 0 | HP152: =HN152*HO15 -> 0 | HS152: =HQ152*HR15 -> 0 | HV152: =HT152*HU15 -> 0 | HY152: =HW152*HX15 -> 0 | IB152: =HZ152*IA15 -> 0 | IE152: =IC152*ID15 -> 0 | IH152: =IF152*IG15 -> 0
B153: 0 | E153: =C153*D15 -> 0 | H153: =F153*G15 -> 0 | K153: =I153*J15 -> 0 | N153: =L153*M15 -> 0 | Q153: =O153*P15 -> 0 | T153: =R153*S15 -> 0 | W153: =U153*V15 -> 0 | Z153: =X153*Y15 -> 0 | AC153: =AA153*AB15 -> 0 | AF153: =AD153*AE15 -> 0 | AI153: =AG153*AH15 -> 0 | AL153: =AJ153*AK15 -> 0 | AO153: =AM153*AN15 -> 0 | AR153: =AP153*AQ15 -> 0 | AU153: =AS153*AT15 -> 0 | AX153: =AV153*AW15 -> 0 | BA153: =AY153*AZ15 -> 0 | BD153: =BB153*BC15 -> 0 | BG153: =BE153*BF15 -> 0 | BJ153: =BH153*BI15 -> 0 | BM153: =BK153*BL15 -> 0 | BP153: =BN153*BO15 -> 0 | BS153: =BQ153*BR15 -> 0 | BV153: =BT153*BU15 -> 0 | BY153: =BW153*BX15 -> 0 | CB153: =BZ153*CA15 -> 0 | CE153: =CC153*CD15 -> 0 | CH153: =CF153*CG15 -> 0 | CK153: =CI153*CJ15 -> 0 | CN153: =CL153*CM15 -> 0 | CQ153: =CO153*CP15 -> 0 | CT153: =CR153*CS15 -> 0 | CW153: =CU153*CV15 -> 0 | CZ153: =CX153*CY15 -> 0 | DC153: =DA153*DB15 -> 0 | DF153: =DD153*DE15 -> 0 | DI153: =DG153*DH15 -> 0 | DL153: =DJ153*DK15 -> 0 | DO153: =DM153*DN15 -> 0 | DR153: =DP153*DQ15 -> 0 | DU153: =DS153*DT15 -> 0 | DX153: =DV153*DW15 -> 0 | EA153: =DY153*DZ15 -> 0 | ED153: =EB153*EC15 -> 0 | EG153: =EE153*EF15 -> 0 | EJ153: =EH153*EI15 -> 0 | EM153: =EK153*EL15 -> 0 | EP153: =EN153*EO15 -> 0 | ES153: =EQ153*ER15 -> 0 | EV153: =ET153*EU15 -> 0 | EY153: =EW153*EX15 -> 0 | FB153: =EZ153*FA15 -> 0 | FE153: =FC153*FD15 -> 0 | FH153: =FF153*FG15 -> 0 | FK153: =FI153*FJ15 -> 0 | FN153: =FL153*FM15 -> 0 | FQ153: =FO153*FP15 -> 0 | FT153: =FR153*FS15 -> 0 | FW153: =FU153*FV15 -> 0 | FZ153: =FX153*FY15 -> 0 | GC153: =GA153*GB15 -> 0 | GF153: =GD153*GE15 -> 0 | GI153: =GG153*GH15 -> 0 | GL153: =GJ153*GK15 -> 0 | GO153: =GM153*GN15 -> 0 | GR153: =GP153*GQ15 -> 0 | GU153: =GS153*GT15 -> 0 | GX153: =GV153*GW15 -> 0 | HA153: =GY153*GZ15 -> 0 | HD153: =HB153*HC15 -> 0 | HG153: =HE153*HF15 -> 0 | HJ153: =HH153*HI15 -> 0 | HM153: =HK153*HL15 -> 0 | HP153: =HN153*HO15 -> 0 | HS153: =HQ153*HR15 -> 0 | HV153: =HT153*HU15 -> 0 | HY153: =HW153*HX15 -> 0 | IB153: =HZ153*IA15 -> 0 | IE153: =IC153*ID15 -> 0 | IH153: =IF153*IG15 -> 0
B154: 0 | E154: =C154*D15 -> 0 | H154: =F154*G15 -> 0 | K154: =I154*J15 -> 0 | N154: =L154*M15 -> 0 | Q154: =O154*P15 -> 0 | T154: =R154*S15 -> 0 | W154: =U154*V15 -> 0 | Z154: =X154*Y15 -> 0 | AC154: =AA154*AB15 -> 0 | AF154: =AD154*AE15 -> 0 | AI154: =AG154*AH15 -> 0 | AL154: =AJ154*AK15 -> 0 | AO154: =AM154*AN15 -> 0 | AR154: =AP154*AQ15 -> 0 | AU154: =AS154*AT15 -> 0 | AX154: =AV154*AW15 -> 0 | BA154: =AY154*AZ15 -> 0 | BD154: =BB154*BC15 -> 0 | BG154: =BE154*BF15 -> 0 | BJ154: =BH154*BI15 -> 0 | BM154: =BK154*BL15 -> 0 | BP154: =BN154*BO15 -> 0 | BS154: =BQ154*BR15 -> 0 | BV154: =BT154*BU15 -> 0 | BY154: =BW154*BX15 -> 0 | CB154: =BZ154*CA15 -> 0 | CE154: =CC154*CD15 -> 0 | CH154: =CF154*CG15 -> 0 | CK154: =CI154*CJ15 -> 0 | CN154: =CL154*CM15 -> 0 | CQ154: =CO154*CP15 -> 0 | CT154: =CR154*CS15 -> 0 | CW154: =CU154*CV15 -> 0 | CZ154: =CX154*CY15 -> 0 | DC154: =DA154*DB15 -> 0 | DF154: =DD154*DE15 -> 0 | DI154: =DG154*DH15 -> 0 | DL154: =DJ154*DK15 -> 0 | DO154: =DM154*DN15 -> 0 | DR154: =DP154*DQ15 -> 0 | DU154: =DS154*DT15 -> 0 | DX154: =DV154*DW15 -> 0 | EA154: =DY154*DZ15 -> 0 | ED154: =EB154*EC15 -> 0 | EG154: =EE154*EF15 -> 0 | EJ154: =EH154*EI15 -> 0 | EM154: =EK154*EL15 -> 0 | EP154: =EN154*EO15 -> 0 | ES154: =EQ154*ER15 -> 0 | EV154: =ET154*EU15 -> 0 | EY154: =EW154*EX15 -> 0 | FB154: =EZ154*FA15 -> 0 | FE154: =FC154*FD15 -> 0 | FH154: =FF154*FG15 -> 0 | FK154: =FI154*FJ15 -> 0 | FN154: =FL154*FM15 -> 0 | FQ154: =FO154*FP15 -> 0 | FT154: =FR154*FS15 -> 0 | FW154: =FU154*FV15 -> 0 | FZ154: =FX154*FY15 -> 0 | GC154: =GA154*GB15 -> 0 | GF154: =GD154*GE15 -> 0 | GI154: =GG154*GH15 -> 0 | GL154: =GJ154*GK15 -> 0 | GO154: =GM154*GN15 -> 0 | GR154: =GP154*GQ15 -> 0 | GU154: =GS154*GT15 -> 0 | GX154: =GV154*GW15 -> 0 | HA154: =GY154*GZ15 -> 0 | HD154: =HB154*HC15 -> 0 | HG154: =HE154*HF15 -> 0 | HJ154: =HH154*HI15 -> 0 | HM154: =HK154*HL15 -> 0 | HP154: =HN154*HO15 -> 0 | HS154: =HQ154*HR15 -> 0 | HV154: =HT154*HU15 -> 0 | HY154: =HW154*HX15 -> 0 | IB154: =HZ154*IA15 -> 0 | IE154: =IC154*ID15 -> 0 | IH154: =IF154*IG15 -> 0
B155: 0 | E155: =C155*D15 -> 0 | H155: =F155*G15 -> 0 | K155: =I155*J15 -> 0 | N155: =L155*M15 -> 0 | Q155: =O155*P15 -> 0 | T155: =R155*S15 -> 0 | W155: =U155*V15 -> 0 | Z155: =X155*Y15 -> 0 | AC155: =AA155*AB15 -> 0 | AF155: =AD155*AE15 -> 0 | AI155: =AG155*AH15 -> 0 | AL155: =AJ155*AK15 -> 0 | AO155: =AM155*AN15 -> 0 | AR155: =AP155*AQ15 -> 0 | AU155: =AS155*AT15 -> 0 | AX155: =AV155*AW15 -> 0 | BA155: =AY155*AZ15 -> 0 | BD155: =BB155*BC15 -> 0 | BG155: =BE155*BF15 -> 0 | BJ155: =BH155*BI15 -> 0 | BM155: =BK155*BL15 -> 0 | BP155: =BN155*BO15 -> 0 | BS155: =BQ155*BR15 -> 0 | BV155: =BT155*BU15 -> 0 | BY155: =BW155*BX15 -> 0 | CB155: =BZ155*CA15 -> 0 | CE155: =CC155*CD15 -> 0 | CH155: =CF155*CG15 -> 0 | CK155: =CI155*CJ15 -> 0 | CN155: =CL155*CM15 -> 0 | CQ155: =CO155*CP15 -> 0 | CT155: =CR155*CS15 -> 0 | CW155: =CU155*CV15 -> 0 | CZ155: =CX155*CY15 -> 0 | DC155: =DA155*DB15 -> 0 | DF155: =DD155*DE15 -> 0 | DI155: =DG155*DH15 -> 0 | DL155: =DJ155*DK15 -> 0 | DO155: =DM155*DN15 -> 0 | DR155: =DP155*DQ15 -> 0 | DU155: =DS155*DT15 -> 0 | DX155: =DV155*DW15 -> 0 | EA155: =DY155*DZ15 -> 0 | ED155: =EB155*EC15 -> 0 | EG155: =EE155*EF15 -> 0 | EJ155: =EH155*EI15 -> 0 | EM155: =EK155*EL15 -> 0 | EP155: =EN155*EO15 -> 0 | ES155: =EQ155*ER15 -> 0 | EV155: =ET155*EU15 -> 0 | EY155: =EW155*EX15 -> 0 | FB155: =EZ155*FA15 -> 0 | FE155: =FC155*FD15 -> 0 | FH155: =FF155*FG15 -> 0 | FK155: =FI155*FJ15 -> 0 | FN155: =FL155*FM15 -> 0 | FQ155: =FO155*FP15 -> 0 | FT155: =FR155*FS15 -> 0 | FW155: =FU155*FV15 -> 0 | FZ155: =FX155*FY15 -> 0 | GC155: =GA155*GB15 -> 0 | GF155: =GD155*GE15 -> 0 | GI155: =GG155*GH15 -> 0 | GL155: =GJ155*GK15 -> 0 | GO155: =GM155*GN15 -> 0 | GR155: =GP155*GQ15 -> 0 | GU155: =GS155*GT15 -> 0 | GX155: =GV155*GW15 -> 0 | HA155: =GY155*GZ15 -> 0 | HD155: =HB155*HC15 -> 0 | HG155: =HE155*HF15 -> 0 | HJ155: =HH155*HI15 -> 0 | HM155: =HK155*HL15 -> 0 | HP155: =HN155*HO15 -> 0 | HS155: =HQ155*HR15 -> 0 | HV155: =HT155*HU15 -> 0 | HY155: =HW155*HX15 -> 0 | IB155: =HZ155*IA15 -> 0 | IE155: =IC155*ID15 -> 0 | IH155: =IF155*IG15 -> 0
B156: 0 | E156: =C156*D15 -> 0 | H156: =F156*G15 -> 0 | K156: =I156*J15 -> 0 | N156: =L156*M15 -> 0 | Q156: =O156*P15 -> 0 | T156: =R156*S15 -> 0 | W156: =U156*V15 -> 0 | Z156: =X156*Y15 -> 0 | AC156: =AA156*AB15 -> 0 | AF156: =AD156*AE15 -> 0 | AI156: =AG156*AH15 -> 0 | AL156: =AJ156*AK15 -> 0 | AO156: =AM156*AN15 -> 0 | AR156: =AP156*AQ15 -> 0 | AU156: =AS156*AT15 -> 0 | AX156: =AV156*AW15 -> 0 | BA156: =AY156*AZ15 -> 0 | BD156: =BB156*BC15 -> 0 | BG156: =BE156*BF15 -> 0 | BJ156: =BH156*BI15 -> 0 | BM156: =BK156*BL15 -> 0 | BP156: =BN156*BO15 -> 0 | BS156: =BQ156*BR15 -> 0 | BV156: =BT156*BU15 -> 0 | BY156: =BW156*BX15 -> 0 | CB156: =BZ156*CA15 -> 0 | CE156: =CC156*CD15 -> 0 | CH156: =CF156*CG15 -> 0 | CK156: =CI156*CJ15 -> 0 | CN156: =CL156*CM15 -> 0 | CQ156: =CO156*CP15 -> 0 | CT156: =CR156*CS15 -> 0 | CW156: =CU156*CV15 -> 0 | CZ156: =CX156*CY15 -> 0 | DC156: =DA156*DB15 -> 0 | DF156: =DD156*DE15 -> 0 | DI156: =DG156*DH15 -> 0 | DL156: =DJ156*DK15 -> 0 | DO156: =DM156*DN15 -> 0 | DR156: =DP156*DQ15 -> 0 | DU156: =DS156*DT15 -> 0 | DX156: =DV156*DW15 -> 0 | EA156: =DY156*DZ15 -> 0 | ED156: =EB156*EC15 -> 0 | EG156: =EE156*EF15 -> 0 | EJ156: =EH156*EI15 -> 0 | EM156: =EK156*EL15 -> 0 | EP156: =EN156*EO15 -> 0 | ES156: =EQ156*ER15 -> 0 | EV156: =ET156*EU15 -> 0 | EY156: =EW156*EX15 -> 0 | FB156: =EZ156*FA15 -> 0 | FE156: =FC156*FD15 -> 0 | FH156: =FF156*FG15 -> 0 | FK156: =FI156*FJ15 -> 0 | FN156: =FL156*FM15 -> 0 | FQ156: =FO156*FP15 -> 0 | FT156: =FR156*FS15 -> 0 | FW156: =FU156*FV15 -> 0 | FZ156: =FX156*FY15 -> 0 | GC156: =GA156*GB15 -> 0 | GF156: =GD156*GE15 -> 0 | GI156: =GG156*GH15 -> 0 | GL156: =GJ156*GK15 -> 0 | GO156: =GM156*GN15 -> 0 | GR156: =GP156*GQ15 -> 0 | GU156: =GS156*GT15 -> 0 | GX156: =GV156*GW15 -> 0 | HA156: =GY156*GZ15 -> 0 | HD156: =HB156*HC15 -> 0 | HG156: =HE156*HF15 -> 0 | HJ156: =HH156*HI15 -> 0 | HM156: =HK156*HL15 -> 0 | HP156: =HN156*HO15 -> 0 | HS156: =HQ156*HR15 -> 0 | HV156: =HT156*HU15 -> 0 | HY156: =HW156*HX15 -> 0 | IB156: =HZ156*IA15 -> 0 | IE156: =IC156*ID15 -> 0 | IH156: =IF156*IG15 -> 0
B157: 0 | E157: =C157*D15 -> 0 | H157: =F157*G15 -> 0 | K157: =I157*J15 -> 0 | N157: =L157*M15 -> 0 | Q157: =O157*P15 -> 0 | T157: =R157*S15 -> 0 | W157: =U157*V15 -> 0 | Z157: =X157*Y15 -> 0 | AC157: =AA157*AB15 -> 0 | AF157: =AD157*AE15 -> 0 | AI157: =AG157*AH15 -> 0 | AL157: =AJ157*AK15 -> 0 | AO157: =AM157*AN15 -> 0 | AR157: =AP157*AQ15 -> 0 | AU157: =AS157*AT15 -> 0 | AX157: =AV157*AW15 -> 0 | BA157: =AY157*AZ15 -> 0 | BD157: =BB157*BC15 -> 0 | BG157: =BE157*BF15 -> 0 | BJ157: =BH157*BI15 -> 0 | BM157: =BK157*BL15 -> 0 | BP157: =BN157*BO15 -> 0 | BS157: =BQ157*BR15 -> 0 | BV157: =BT157*BU15 -> 0 | BY157: =BW157*BX15 -> 0 | CB157: =BZ157*CA15 -> 0 | CE157: =CC157*CD15 -> 0 | CH157: =CF157*CG15 -> 0 | CK157: =CI157*CJ15 -> 0 | CN157: =CL157*CM15 -> 0 | CQ157: =CO157*CP15 -> 0 | CT157: =CR157*CS15 -> 0 | CW157: =CU157*CV15 -> 0 | CZ157: =CX157*CY15 -> 0 | DC157: =DA157*DB15 -> 0 | DF157: =DD157*DE15 -> 0 | DI157: =DG157*DH15 -> 0 | DL157: =DJ157*DK15 -> 0 | DO157: =DM157*DN15 -> 0 | DR157: =DP157*DQ15 -> 0 | DU157: =DS157*DT15 -> 0 | DX157: =DV157*DW15 -> 0 | EA157: =DY157*DZ15 -> 0 | ED157: =EB157*EC15 -> 0 | EG157: =EE157*EF15 -> 0 | EJ157: =EH157*EI15 -> 0 | EM157: =EK157*EL15 -> 0 | EP157: =EN157*EO15 -> 0 | ES157: =EQ157*ER15 -> 0 | EV157: =ET157*EU15 -> 0 | EY157: =EW157*EX15 -> 0 | FB157: =EZ157*FA15 -> 0 | FE157: =FC157*FD15 -> 0 | FH157: =FF157*FG15 -> 0 | FK157: =FI157*FJ15 -> 0 | FN157: =FL157*FM15 -> 0 | FQ157: =FO157*FP15 -> 0 | FT157: =FR157*FS15 -> 0 | FW157: =FU157*FV15 -> 0 | FZ157: =FX157*FY15 -> 0 | GC157: =GA157*GB15 -> 0 | GF157: =GD157*GE15 -> 0 | GI157: =GG157*GH15 -> 0 | GL157: =GJ157*GK15 -> 0 | GO157: =GM157*GN15 -> 0 | GR157: =GP157*GQ15 -> 0 | GU157: =GS157*GT15 -> 0 | GX157: =GV157*GW15 -> 0 | HA157: =GY157*GZ15 -> 0 | HD157: =HB157*HC15 -> 0 | HG157: =HE157*HF15 -> 0 | HJ157: =HH157*HI15 -> 0 | HM157: =HK157*HL15 -> 0 | HP157: =HN157*HO15 -> 0 | HS157: =HQ157*HR15 -> 0 | HV157: =HT157*HU15 -> 0 | HY157: =HW157*HX15 -> 0 | IB157: =HZ157*IA15 -> 0 | IE157: =IC157*ID15 -> 0 | IH157: =IF157*IG15 -> 0
B158: 0 | E158: =C158*D15 -> 0 | H158: =F158*G15 -> 0 | K158: =I158*J15 -> 0 | N158: =L158*M15 -> 0 | Q158: =O158*P15 -> 0 | T158: =R158*S15 -> 0 | W158: =U158*V15 -> 0 | Z158: =X158*Y15 -> 0 | AC158: =AA158*AB15 -> 0 | AF158: =AD158*AE15 -> 0 | AI158: =AG158*AH15 -> 0 | AL158: =AJ158*AK15 -> 0 | AO158: =AM158*AN15 -> 0 | AR158: =AP158*AQ15 -> 0 | AU158: =AS158*AT15 -> 0 | AX158: =AV158*AW15 -> 0 | BA158: =AY158*AZ15 -> 0 | BD158: =BB158*BC15 -> 0 | BG158: =BE158*BF15 -> 0 | BJ158: =BH158*BI15 -> 0 | BM158: =BK158*BL15 -> 0 | BP158: =BN158*BO15 -> 0 | BS158: =BQ158*BR15 -> 0 | BV158: =BT158*BU15 -> 0 | BY158: =BW158*BX15 -> 0 | CB158: =BZ158*CA15 -> 0 | CE158: =CC158*CD15 -> 0 | CH158: =CF158*CG15 -> 0 | CK158: =CI158*CJ15 -> 0 | CN158: =CL158*CM15 -> 0 | CQ158: =CO158*CP15 -> 0 | CT158: =CR158*CS15 -> 0 | CW158: =CU158*CV15 -> 0 | CZ158: =CX158*CY15 -> 0 | DC158: =DA158*DB15 -> 0 | DF158: =DD158*DE15 -> 0 | DI158: =DG158*DH15 -> 0 | DL158: =DJ158*DK15 -> 0 | DO158: =DM158*DN15 -> 0 | DR158: =DP158*DQ15 -> 0 | DU158: =DS158*DT15 -> 0 | DX158: =DV158*DW15 -> 0 | EA158: =DY158*DZ15 -> 0 | ED158: =EB158*EC15 -> 0 | EG158: =EE158*EF15 -> 0 | EJ158: =EH158*EI15 -> 0 | EM158: =EK158*EL15 -> 0 | EP158: =EN158*EO15 -> 0 | ES158: =EQ158*ER15 -> 0 | EV158: =ET158*EU15 -> 0 | EY158: =EW158*EX15 -> 0 | FB158: =EZ158*FA15 -> 0 | FE158: =FC158*FD15 -> 0 | FH158: =FF158*FG15 -> 0 | FK158: =FI158*FJ15 -> 0 | FN158: =FL158*FM15 -> 0 | FQ158: =FO158*FP15 -> 0 | FT158: =FR158*FS15 -> 0 | FW158: =FU158*FV15 -> 0 | FZ158: =FX158*FY15 -> 0 | GC158: =GA158*GB15 -> 0 | GF158: =GD158*GE15 -> 0 | GI158: =GG158*GH15 -> 0 | GL158: =GJ158*GK15 -> 0 | GO158: =GM158*GN15 -> 0 | GR158: =GP158*GQ15 -> 0 | GU158: =GS158*GT15 -> 0 | GX158: =GV158*GW15 -> 0 | HA158: =GY158*GZ15 -> 0 | HD158: =HB158*HC15 -> 0 | HG158: =HE158*HF15 -> 0 | HJ158: =HH158*HI15 -> 0 | HM158: =HK158*HL15 -> 0 | HP158: =HN158*HO15 -> 0 | HS158: =HQ158*HR15 -> 0 | HV158: =HT158*HU15 -> 0 | HY158: =HW158*HX15 -> 0 | IB158: =HZ158*IA15 -> 0 | IE158: =IC158*ID15 -> 0 | IH158: =IF158*IG15 -> 0
B159: 0 | E159: =C159*D15 -> 0 | H159: =F159*G15 -> 0 | K159: =I159*J15 -> 0 | N159: =L159*M15 -> 0 | Q159: =O159*P15 -> 0 | T159: =R159*S15 -> 0 | W159: =U159*V15 -> 0 | Z159: =X159*Y15 -> 0 | AC159: =AA159*AB15 -> 0 | AF159: =AD159*AE15 -> 0 | AI159: =AG159*AH15 -> 0 | AL159: =AJ159*AK15 -> 0 | AO159: =AM159*AN15 -> 0 | AR159: =AP159*AQ15 -> 0 | AU159: =AS159*AT15 -> 0 | AX159: =AV159*AW15 -> 0 | BA159: =AY159*AZ15 -> 0 | BD159: =BB159*BC15 -> 0 | BG159: =BE159*BF15 -> 0 | BJ159: =BH159*BI15 -> 0 | BM159: =BK159*BL15 -> 0 | BP159: =BN159*BO15 -> 0 | BS159: =BQ159*BR15 -> 0 | BV159: =BT159*BU15 -> 0 | BY159: =BW159*BX15 -> 0 | CB159: =BZ159*CA15 -> 0 | CE159: =CC159*CD15 -> 0 | CH159: =CF159*CG15 -> 0 | CK159: =CI159*CJ15 -> 0 | CN159: =CL159*CM15 -> 0 | CQ159: =CO159*CP15 -> 0 | CT159: =CR159*CS15 -> 0 | CW159: =CU159*CV15 -> 0 | CZ159: =CX159*CY15 -> 0 | DC159: =DA159*DB15 -> 0 | DF159: =DD159*DE15 -> 0 | DI159: =DG159*DH15 -> 0 | DL159: =DJ159*DK15 -> 0 | DO159: =DM159*DN15 -> 0 | DR159: =DP159*DQ15 -> 0 | DU159: =DS159*DT15 -> 0 | DX159: =DV159*DW15 -> 0 | EA159: =DY159*DZ15 -> 0 | ED159: =EB159*EC15 -> 0 | EG159: =EE159*EF15 -> 0 | EJ159: =EH159*EI15 -> 0 | EM159: =EK159*EL15 -> 0 | EP159: =EN159*EO15 -> 0 | ES159: =EQ159*ER15 -> 0 | EV159: =ET159*EU15 -> 0 | EY159: =EW159*EX15 -> 0 | FB159: =EZ159*FA15 -> 0 | FE159: =FC159*FD15 -> 0 | FH159: =FF159*FG15 -> 0 | FK159: =FI159*FJ15 -> 0 | FN159: =FL159*FM15 -> 0 | FQ159: =FO159*FP15 -> 0 | FT159: =FR159*FS15 -> 0 | FW159: =FU159*FV15 -> 0 | FZ159: =FX159*FY15 -> 0 | GC159: =GA159*GB15 -> 0 | GF159: =GD159*GE15 -> 0 | GI159: =GG159*GH15 -> 0 | GL159: =GJ159*GK15 -> 0 | GO159: =GM159*GN15 -> 0 | GR159: =GP159*GQ15 -> 0 | GU159: =GS159*GT15 -> 0 | GX159: =GV159*GW15 -> 0 | HA159: =GY159*GZ15 -> 0 | HD159: =HB159*HC15 -> 0 | HG159: =HE159*HF15 -> 0 | HJ159: =HH159*HI15 -> 0 | HM159: =HK159*HL15 -> 0 | HP159: =HN159*HO15 -> 0 | HS159: =HQ159*HR15 -> 0 | HV159: =HT159*HU15 -> 0 | HY159: =HW159*HX15 -> 0 | IB159: =HZ159*IA15 -> 0 | IE159: =IC159*ID15 -> 0 | IH159: =IF159*IG15 -> 0
